Workbook

Sheet APT Proforma (hidden)
B2: Local Authority Funding Reform Proforma
B4: LA Name: | C4: Derby | I4: Total DSG schools block allocation | K4: 173851730
B5: LA Number: | C5: 831 | I5: Total Funding For Schools Block Formula as a percentage of DSG schools block allocation | K5: 0.9999999975
I6: Total funding allocated to schools as a percentage of DSG schools block allocation | K6: 0.9948724155
I7: Total funding allocated to growth and falling rolls as a percentage of DSG schools block allocation | K7: 0.005127581992
C9: Premises costs to exclude from allocation when calculating the minimum funding level | D9: Mobility | E9: Rates | F9: PFI | G9: Split Sites
D10: No | E10: No | F10: No | G10: No
C11: Primary minimum per pupil funding level | D11: Secondary (KS3 only) minimum per pupil funding level | F11: Secondary (KS4 only) minimum per pupil funding level | H11: Secondary (KS3 and KS4) minimum per pupil funding level
C12: 3300 | H12: 4500
B14: Pupil Led Factors
B15: 1) Basic Entitlement Age Weighted Pupil Unit (AWPU) | C15: Reception uplift | D15: No | E15: Pupil Units | G15: 0
C16: Description | D16: Amount per pupil | F16: Pupil Units | H16: Sub Total | I16: Total | J16: Proportion of total pre MFG funding (%) | K16: Notional SEN (%)
C17: Primary (Years R-6) | D17: 2735.805975 | F17: 23727.73333 | H17: 64914474.63 | I17: 126233810 | J17: 0.3759849347 | K17: 0.12
C18: Key Stage 3 (Years 7-9) | D18: 3847.258275 | F18: 9389.916667 | H18: 36125434.6 | J18: 0.2092386828 | K18: 0.097
C19: Key Stage 4 (Years 10-11) | D19: 4368.12705 | F19: 5767.666667 | H19: 25193900.78 | J19: 0.1459231889 | K19: 0.0863
C20: Description | D20: Primary amount per pupil | E20: Secondary amount per pupil | F20: Eligible proportion of primary NOR | G20: Eligible proportion of secondary NOR | H20: Sub Total | I20: Total | J20: Proportion of total pre MFG funding (%) | K20: Primary Notional SEN (%) | L20: Secondary Notional SEN (%)
B21: 2) Deprivation | C21: FSM | D21: 437.8 | E21: 437.8 | F21: 4737.624311 | G21: 2359.822115 | H21: 3107262.045 | I21: 20211982.2 | J21: 0.1170678936 | K21: 0.3525 | L21: 0.3525
C22: FSM6 | D22: 537.3 | E22: 781.075 | F22: 6809.595285 | G22: 4891.680143 | H22: 7479564.614 | K22: 0.3525 | L22: 0.3525
C23: IDACI Band F | D23: 199 | E23: 288.55 | F23: 2304.738985 | G23: 1417.037923 | H23: 867529.3509 | K23: 0.3525 | L23: 0.3525
C24: IDACI Band E | D24: 238.8 | E24: 388.05 | F24: 2050.535996 | G24: 1218.86976 | H24: 962650.4063 | K24: 0.3525 | L24: 0.3525
C25: IDACI Band D | D25: 358.2 | E25: 512.425 | F25: 2257.681949 | G25: 1227.949185 | H25: 1437933.535 | K25: 0.3525 | L25: 0.3525
C26: IDACI Band C | D26: 388.05 | E26: 557.2 | F26: 2919.302323 | G26: 1660.354292 | H26: 2057984.678 | K26: 0.3525 | L26: 0.3525
C27: IDACI Band B | D27: 417.9 | E27: 597 | F27: 3961.895787 | G27: 2253.886773 | H27: 3001246.653 | K27: 0.3525 | L27: 0.3525
C28: IDACI Band A | D28: 572.125 | E28: 805.95 | F28: 1289.82259 | G28: 694.6723413 | H28: 1297810.923 | K28: 0.3525 | L28: 0.3525
C29: Description | D29: Primary amount per pupil | E29: Secondary amount per pupil | F29: Eligible proportion of primary NOR | G29: Eligible proportion of secondary NOR | H29: Sub Total | I29: Total | J29: Proportion of total pre MFG funding (%) | K29: Primary Notional SEN (%) | L29: Secondary Notional SEN (%)
B30: 3) Looked After Children (LAC) | C30: LAC X March 17 | D30: 0 | F30: 124.0105258 | H30: 0 | I30: 3490754.867 | J30: 0 | K30: 0
B31: 4) English as an Additional Language (EAL) | C31: EAL 3 Primary | D31: 512.425 | F31: 4305.274976 | H31: 2206130.53 | J31: 0.01706601586 | K31: 0.4005
C32: EAL 3 Secondary | E32: 1378.075 | G32: 537.2332977 | H32: 740347.7767 | L32: 0.4005
B33: 5) Mobility | C33: Pupils starting school outside of normal entry dates | D33: 1158.18 | E33: 1950.2 | F33: 287.4120438 | G33: 108.4 | H33: 544276.5609 | J33: 0.003152452336 | K33: 1 | L33: 1
C34: Description | D34: Weighting | E34: Amount per pupil (primary or secondary respectively) | F34: Percentage of eligible pupils | G34: Eligible proportion of primary and secondary NOR respectively | H34: Sub Total | I34: Total | J34: Proportion of total pre MFG funding (%) | K34: Primary Notional SEN (%) | L34: Secondary Notional SEN (%)
B35: 6) Prior attainment | C35: Primary Low Attainment | E35: 508.445 | F35: 0.3953630664 | G35: 9381.069408 | H35: 4769757.835 | I35: 10307541.08 | J35: 0.05970132519 | K35: 0.3525
C36: Secondary low attainment (year 7) | D36: 0.63585523 | E36: 1542.25 | F36: 0.2520833108 | G36: 3590.716967 | H36: 5537783.243 | L36: 0.3525
C37: Secondary low attainment (year 8) | D37: 0.58045405 | F37: 0.2492041556
C38: Secondary low attainment (year 9) | D38: 0.48019237 | F38: 0.2427383062
C39: Secondary low attainment (years 10 to 11) | F39: 0.2185553266
B42: Other Factors
B44: Factor | E44: Lump Sum per Primary School (£) | F44: Lump Sum per Secondary School (£) | G44: Lump Sum per Middle School (£) | H44: Lump Sum per All-through School (£) | I44: Total (£) | J44: Proportion of total pre MFG funding (%) | K44: Notional SEN (%)
B45: 7) Lump Sum | E45: 110000 | F45: 110000 | I45: 9633800 | J45: 0.05579901378
B46: 8) Sparsity factor | E46: 25000 | F46: 65000 | I46: 0 | J46: 0
B47: Please provide alternative distance and pupil number thresholds for the sparsity factor below. Please leave blank if you want to use the default thresholds. Also specify whether you want to use a tapered lump sum or the NFF weighting for any of the phases.
B48: Primary distance threshold (miles) | D48: Primary pupil number average year group threshold | H48: Fixed, tapered or NFF sparsity primary lump sum? | J48: Fixed
B49: Secondary distance threshold (miles) | D49: Secondary pupil number average year group threshold | H49: Fixed, tapered or NFF sparsity secondary lump sum? | J49: Fixed
B50: Middle schools distance threshold (miles) | D50: Middle school pupil number average year group threshold | H50: Fixed, tapered or NFF sparsity middle school lump sum? | J50: Fixed
B51: All-through schools distance threshold (miles) | D51: All-through pupil number average year group threshold | H51: Fixed, tapered or NFF sparsity all-through lump sum? | J51: Fixed
B52: 9) Fringe Payments | I52: 0 | J52: 0
B53: 10) Split Sites | I53: 0 | J53: 0
B54: 11) Rates | I54: 1596989.15 | J54: 0.00924976848
B55: 12) PFI funding | I55: 1129105 | J55: 0.006539781338
B56: 13 ) Exceptional circumstances (can only be used with prior agreement of ESFA)
B57: Circumstance | I57: Total (£) | J57: Proportion of total pre MFG funding (%) | K57: Notional SEN (%)
B58: Additional lump sum for schools amalgamated during FY18-19 | I58: 0 | J58: 0 | K58: 0 | L58: 0
B59: Additional sparsity lump sum for small schools | I59: 0 | J59: 0
B60: Exceptional Circumstance3 | I60: 0 | J60: 0
B61: Exceptional Circumstance4 | I61: 0 | J61: 0
B62: Exceptional Circumstance5 | I62: 0 | J62: 0
B63: Exceptional Circumstance6 | I63: 0 | J63: 0
B64: Exceptional Circumstance7 | I64: 0 | J64: 0
B66: Total Funding for Schools Block Formula (excluding minimum per pupil funding level, funding floor protection and MFG Funding Total) | I66: 172603982.3 | J66: 0.999723057
B68: 14) Additional funding to meet minimum per pupil funding level | I68: 47814.70555 | J68: 0.0002769429938
B69: Total Funding for Schools Block Formula (excluding funding floor protection and MFG Funding Total) | I69: 172651797 | J69: 1
B71: 15) Funding floor protection (select Yes if applying this protection) | G71: No | I71: 0 | J71: 0
B72: Total Funding for Schools Block Formula (excluding MFG Funding Total) | I72: 172651797
B74: 16) Minimum Funding Guarantee | G74: 0 | I74: 613692.0845
B75: Apply capping and scaling factors? (gains may be capped above a specific ceiling and/or scaled) | I75: Yes
B76: Apply alternative gains cap for schools gaining more than 15%? | I76: No
B77: Capping Factor (%) | C77: 0.03 | D77: Scaling Factor (%) | F77: 0.5
B79: Total deduction if capping and scaling factors are applied | I79: -305198.5368
I80: Total (£) | J80: Proportion of Total funding(%) | K80: Notional SEN (%)
B81: MFG Net Total Funding (MFG + deduction from capping and scaling) | I81: 308493.5476 | J81: 0.001774463495
B82: Total Funding for Schools Block Formula | I82: 172960290.6 | K82: 25950610.83
B84: High Needs threshold (only fill in if, exceptionally, a high needs threshold different from £6,000 has been approved)
B85: Additional funding from the high needs budget | I85: 0
B86: Growth fund (if applicable) | I86: 891439
B87: Falling rolls fund (if applicable) | I87: 0
B89: Other Adjustment to 18-19 Budget Shares | I89: 0
B90: Total Funding For Schools Block Formula (including growth and falling rolls funding) | I90: 173851729.6
B91: % Distributed through Basic Entitlement | I91: 0.7311468064
B92: % Pupil Led Funding | I92: 0.9281344934
B93: Primary: Secondary Ratio | I93: 1 : | J93: 1.356264002
B95: Total funding for schools block formula contains funding from outside of the 2019-20 Schools Block allocation? | I95: No

Sheet School Formula Budget 2019-20
C1: Early Years, Schools and High Needs Block Formula Budgets 2019/20
L3: =VLOOKUP(B5,'School & Nursery Setting Lookup'!A:G,5,FALSE) -> 0
B4: Please select your School or Nursery Setting Name in the cell below | F4: DfE No or Ofsted ID | H4: Setting Type
B5: CLICK ON THE ARROW BUTTON TO SELECT YOUR SCHOOL FROM THE LIST | F5: =VLOOKUP(B5,'School & Nursery Setting Lookup'!A:E,3,FALSE) -> 12345 | H5: =VLOOKUP(B5,'School & Nursery Setting Lookup'!A:G,4,FALSE) -> 0
C7: Early Years Nursery Funding 2019/20
B10: 1. Base Rate(s) per hour, per provider type. Setting Type | D10: Amount (£) | E10: May 2019 Term Hours | F10: Oct 2019 Term Hours | G10: Jan 2020 Term Hours | H10: Anticipated Total Budget (£) | L10: May 2019 Term Hours | M10: Oct 2019 Term Hours | N10: Jan 2020 Term Hours | P10: Anticipated Total Budget (£)
B11: M = Maintained Nursery at a School / Academy | C11: 4.23 | D11: per hour | E11: =IF($L$3=1,L11,0)+IF(L3=6,T11) -> 0 | F11: =IF($L$3=1,M11,0)+IF(L3=6,U11) -> 0 | G11: =IF($L$3=1,N11,0)+IF(L3=6,V11) -> 0 | H11: =IF($H$5=6,Q11,R11) -> 0 | L11: =VLOOKUP($F$5,'2019-20 Nursery Budget'!D:G,2,FALSE) ->  | M11: =VLOOKUP($F$5,'2019-20 Nursery Budget'!D:G,3,FALSE) ->  | N11: =VLOOKUP($F$5,'2019-20 Nursery Budget'!D:G,4,FALSE) ->  | P11: ='2019-20 Nursery Budget'!J241 -> 4175597.97 | Q11: =IF(F$5=12345,0,P11) -> 0 | R11: =SUM($E11+$F11+$G11)*$C11 -> 0 | T11: ='2019-20 Nursery Budget'!E241 -> 365652 | U11: ='2019-20 Nursery Budget'!F241 -> 307591 | V11: ='2019-20 Nursery Budget'!G241 -> 313896
B12: S = Stand Alone Maintained Nursery School | C12: 4.23 | E12: =IF($L$3=2,L12,0)+IF(L3=6,T12) -> 0 | F12: =IF($L$3=2,M12,0)+IF(L3=6,U12) -> 0 | G12: =IF($L$3=2,N12,0)+IF(L3=6,V12) -> 0 | H12: =IF($H$5=6,Q12,R12) -> 0 | L12: =VLOOKUP($F$5,'2019-20 Nursery Budget'!D:G,2,FALSE) ->  | M12: =VLOOKUP($F$5,'2019-20 Nursery Budget'!D:G,3,FALSE) ->  | N12: =VLOOKUP($F$5,'2019-20 Nursery Budget'!D:G,4,FALSE) ->  | P12: ='2019-20 Nursery Budget'!J242 -> 1261512.9 | Q12: =IF(F$5=12345,0,P12) -> 0 | R12: =SUM($E12+$F12+$G12)*$C12 -> 0 | T12: ='2019-20 Nursery Budget'!E242 -> 105300 | U12: ='2019-20 Nursery Budget'!F242 -> 98070 | V12: ='2019-20 Nursery Budget'!G242 -> 94860
B13: P = Pre School | C13: 4.23 | E13: =IF($L$3=3,L13,0)+IF(L3=6,T13) -> 0 | F13: =IF($L$3=3,M13,0)+IF(L3=6,U13) -> 0 | G13: =IF($L$3=3,N13,0)+IF(L3=6,V13) -> 0 | H13: =IF($H$5=6,Q13,R13) -> 0 | L13: =VLOOKUP($F$5,'2019-20 Nursery Budget'!D:G,2,FALSE) ->  | M13: =VLOOKUP($F$5,'2019-20 Nursery Budget'!D:G,3,FALSE) ->  | N13: =VLOOKUP($F$5,'2019-20 Nursery Budget'!D:G,4,FALSE) ->  | P13: ='2019-20 Nursery Budget'!J243 -> 4325598 | Q13: 0 | R13: 0 | T13: ='2019-20 Nursery Budget'!E243 -> 330395 | U13: ='2019-20 Nursery Budget'!F243 -> 329178 | V13: ='2019-20 Nursery Budget'!G243 -> 363027
B14: D = Day Nursery | C14: 4.23 | E14: =IF($L$3=4,L14,0)+IF(L3=6,T14) -> 0 | F14: =IF($L$3=4,M14,0)+IF(L3=6,U14) -> 0 | G14: =IF($L$3=4,N14,0)+IF(L3=6,V14) -> 0 | H14: =IF($H$5=6,Q14,R14) -> 0 | L14: =VLOOKUP($F$5,'2019-20 Nursery Budget'!D:G,2,FALSE) ->  | M14: =VLOOKUP($F$5,'2019-20 Nursery Budget'!D:G,3,FALSE) ->  | N14: =VLOOKUP($F$5,'2019-20 Nursery Budget'!D:G,4,FALSE) ->  | P14: ='2019-20 Nursery Budget'!J244 -> 3517245 | Q14: 0 | R14: =SUM($E14+$F14+$G14)*$C14 -> 0 | T14: ='2019-20 Nursery Budget'!E244 -> 277970 | U14: ='2019-20 Nursery Budget'!F244 -> 278140 | V14: ='2019-20 Nursery Budget'!G244 -> 275390
B15: Deprivation (Mandatory) Supplement | C15: Amount (£) | D15: Unit | E15: May 2019 Term Hours | F15: Oct 2019 Term Hours | G15: Jan 2020 Term Hours | H15: Anticipated Total Budget (£)
B16: IMD - top 20% most deprived | C16: 0.6 | D16: per hour | E16: =IF($L$3=0,0,L16) -> 0 | F16: =IF($L$3=0,0,M16) -> 0 | G16: 0 | H16: =SUM(E16+F16+G16)*C16 -> 0 | L16: =VLOOKUP($F$5,'2019-20 Nursery Budget'!D:AD,24,FALSE) ->  | M16: =VLOOKUP($F$5,'2019-20 Nursery Budget'!D:AD,25,FALSE) ->  | N16: =VLOOKUP($F$5,'2019-20 Nursery Budget'!D:AD,26,FALSE) ->  | P16: ='2019-20 Nursery Budget'!R230 -> 681127
B17: IMD - 20% to 40% most deprived | C17: 0.2 | D17: per hour | E17: =IF($L$3=0,0,L17) -> 0 | F17: =IF($L$3=0,0,M17) -> 0 | G17: =IF($L$3=0,0,N17) -> 0 | H17: =SUM(E17+F17+G17)*C17 -> 0 | L17: =VLOOKUP($F$5,'2019-20 Nursery Budget'!$D:$AH,28,FALSE) ->  | M17: =VLOOKUP($F$5,'2019-20 Nursery Budget'!$D:$AH,29,FALSE) ->  | N17: =VLOOKUP($F$5,'2019-20 Nursery Budget'!$D:$AH,30,FALSE) ->  | P17: ='2019-20 Nursery Budget'!S230 -> 153767
B18: EAL | C18: 0.2 | D18: per hour | E18: =IF($L$3=0,0,L18) -> 0 | F18: 0 | G18: 0 | H18: =SUM(E18+F18+G18)*C18 -> 0 | L18: =VLOOKUP($F$5,'2019-20 Nursery Budget'!$D:$AL,32,FALSE) ->  | M18: =VLOOKUP($F$5,'2019-20 Nursery Budget'!$D:$AL,33,FALSE) ->  | N18: =VLOOKUP($F$5,'2019-20 Nursery Budget'!$D:$AL,34,FALSE) ->  | P18: ='2019-20 Nursery Budget'!T230 -> 107890
B19: Other Supplements | C19: Amount (£) | D19: Unit | E19: Number of units | H19: Anticipated Total Budget (£)
B20: Disability Access Fund (see guidance notes) | C20: =IF(L3=6,71955,0) -> 0 | D20: lump sum | E20: =+IF(L3=6,1,0) -> 0 | H20: =IF(H5=6,'2019-20 Nursery Budget'!AA268,0) -> 0 | P20: ='2019-20 Nursery Budget'!AA268 -> 71955
B21: SEN Locality Funding (see guidance notes) | C21: =IF(L3=6,250000,0) -> 0 | D21: lump sum | E21: =+IF(L3=6,1,0) -> 0 | H21: =IF(H5=6,250000,0) -> 0 | P21: ='2019-20 Nursery Budget'!AA263 -> 250000
B22: 3. Other formula factors and lump sums (if applicable) | C22: Amount (£) | D22: Unit | E22: Number of units | H22: Anticipated Total Budget (£)
B23: Base for Stand Alone Maintained Nurseries | C23: 100000 | D23: lump sum | E23: =IF($L$3=2,1,0) -> 0 | H23: =IF(L3=6,700000,$E23*$C23) -> 0 | P23: ='2019-20 Nursery Budget'!M259 -> 700000
B24: Stand Alone Maintained Nursery Supplement Funding | C24: 1.34 | D24: per hour | E24: =IF($L$3=2,E12,"-") -> - | F24: =IF($L$3=2,F12,"-") -> - | G24: - | H24: =IF(L3=6,'2019-20 Nursery Budget'!K36,(SUM(E24:G24)*C24)) -> 0 | P24: ='2019-20 Nursery Budget'!N259 -> 399627
B25: TOTAL FUNDING FOR EARLY YEARS SINGLE FUNDING FORMULA excluding Rates* | H25: =SUM(H11:H24) -> 0 | P25: =SUM(P11:P24) -> 15644319.87
B26: *Please note Early Years budgets are adjusted for actual hour take up in year
C29: High Needs Formula Budget 2019/20
D33: TA Hours funding (£) | G33: Number | H33: Total (£)
B34: TA Hours | C34: Schools to be notified separately. Not part of base budget | E34: 0 | G34: 0 | H34: =$G34*$E34 -> 0
D35: Element 1 & 2 Place Rate | G35: Number | H35: Total (£)
B36: Element 2 (Place led funding) - ERS Nursery | C36: See Separate breakdown | E36: 10000 | G36: =(SUMIF('ERS 2019-20'!B:B,'School Formula Budget 2019-20'!F$5,'ERS 2019-20'!J:J)) -> 0 | H36: =$G36*$E36 -> 0
D37: Element 1 & 2 Place Rate | G37: Number | H37: Total (£)
B38: Element 2 (Place led funding) - ERS Pre 16 | C38: See Separate breakdown | E38: 6000 | G38: =SUMIF('ERS 2019-20'!B:B,'School Formula Budget 2019-20'!F$5,'ERS 2019-20'!L:L)+SUMIF('ERS 2019-20'!B:B,'School Formula Budget 2019-20'!F$5,'ERS 2019-20'!M:M) -> 0 | H38: =$G38*$E38 -> 0
D39: Element 1 & 2 Place Rate | G39: Places | H39: Total (£)
B40: Element 2 (Place led funding) - ERS Post 16 | C40: See Separate breakdown | E40: 6000 | G40: =(SUMIF('ERS 2019-20'!B:B,'School Formula Budget 2019-20'!F$5,'ERS 2019-20'!N:N)) -> 0 | H40: =$G40*$E40 -> 0
D41: Indicative Element 3 Pupils (banding) funding | G41: Number | H41: Total (£)
B42: Element 3 - Derby City Pupils (banding) funding Pre & Post 16* | C42: See Separate breakdown | E42: =SUMIF('ERS 2019-20'!B:B,F5,'ERS 2019-20'!T:T) -> 0 | G42: 1 | H42: =$G42*$E42 -> 0
D43: Other Funding | G43: Number | H43: Total (£)
B44: ERS - Other | C44: See Separate breakdown | E44: =SUMIF('ERS 2019-20'!B:B,F5,'ERS 2019-20'!U:U)+SUMIF('ERS 2019-20'!B:B,F5,'ERS 2019-20'!V:V) -> 0 | G44: 1 | H44: =$G44*$E44 -> 0
G45: Number | H45: Total (£)
B46: High Needs Funding from Derby City / EFA* | C46: Including both Pre 16 & Post 16 Funding | H46: =H42+H44+H34+H36+H38+H40 -> 0
D48: ERS Pupil Top up funding | G48: Number | H48: Total (£)
B49: Other LA Top up funding (Income not Budget)* | C49: See Separate breakdown | E49: =SUMIF('ERS 2019-20'!B:B,F5,'ERS 2019-20'!Y:Y) -> 0 | G49: 1 | H49: =$G49*$E49 -> 0
B52: *Please note that High Needs top up funding follows the pupil, therefore funding will be adjusted in year where there are pupil movements
B55: =B5 -> CLICK ON THE ARROW BUTTON TO SELECT YOUR SCHOOL FROM THE LIST | F55: =F5 -> 12345 | H55: =H5 -> 0
C57: Schools Block Funding 2019/20
B61: Factor | C61: Description | D61: Primary amount per pupil | E61: Secondary KS3 amount per pupil | F61: Secondary KS4 amount per pupil | G61: Number of Pupils (Net of High Needs Places) | H61: Sub total (£) | I61: Delegated SEN % | J61: Delegated SEN funding within School Budget £
B62: 1) Basic Entitlement - Age Weighted Pupil Funding (AWPU) | C62: Primary (including reception) | D62: ='APT Proforma'!D17 -> 2735.805975 | G62: =VLOOKUP($F$5,AWPU!$B:$M,9,FALSE) ->  | H62: =G62*D62 ->  | I62: 0.12 | J62: =D62*G62*I62 -> 
C63: Key Stage 3 | E63: ='APT Proforma'!D18 -> 3847.258275 | G63: =VLOOKUP($F$5,AWPU!$B:$M,10,FALSE) ->  | H63: =G63*E63 ->  | I63: 0.097 | J63: =E63*G63*I63 -> 
C64: Key Stage 4 | F64: ='APT Proforma'!D19 -> 4368.12705 | G64: =VLOOKUP($F$5,AWPU!$B:$M,11,FALSE) ->  | H64: =G64*F64 ->  | I64: 0.0863 | J64: =F64*G64*I64 ->  | L64: Prim | M64: Sec
F65: Total | G65: =SUM(G62:G64) ->  | H65: =SUM(H62:H64) ->  | J65: =SUM(J62:J64) ->  | L65: =G65 ->  | M65: =G63+G64 -> 
B67: De-delegation - see separate breakdown | C67: Primary (including reception) | D67: ='DE-DEL'!B124*-1 -> -70.398 | G67: =VLOOKUP($F$5,'DE-DEL'!$B:$M,9,FALSE) ->  | H67: =G67*D67 -> 
C68: Secondary | E68: ='DE-DEL'!C124*-1 -> -59.218 | F68: =E68 -> -59.218 | G68: =VLOOKUP($F$5,'DE-DEL'!$B:$M,10,FALSE)+VLOOKUP($F$5,'DE-DEL'!$B:$M,11,FALSE) ->  | H68: =G68*F68 -> 
F69: Total | G69: =SUM(G67:G68) ->  | H69: =SUM(H67:H68) -> 
D70: Primary amount per pupil | E70: Secondary amount per pupil | F70: Number of eligible primary pupils | G70: Number of eligible secondary pupils | H70: Sub total (£) | I70: Notional SEN % | J70: Notional SEN within School Budget £
B71: 2) Deprivation | N71: =SUM(E11+F11+G11)*"C11" ->  | Q71: 17742138.39 | R71: Bemrose | T71: Adj
C72: FSM Current | D72: ='APT Proforma'!D21 -> 437.8 | E72: ='APT Proforma'!E21 -> 437.8 | F72: =VLOOKUP($F$5,DEP!$B:$AG,19,FALSE) ->  | G72: =VLOOKUP($F$5,DEP!$B:$AG,20,FALSE)+IF($F$5=4177,DEP!U105) ->  | H72: =$D72*$F72+($E72*$G72) ->  | I72: 0.3525 | J72: =I72*H72 ->  | L72: =DEP!R109 -> 0 | M72: =DEP!S109 -> 11701.27543 | R72: 92.66225166 | S72: 412.0506706 | T72: 306.6276423 | U72: =S72-T72 -> 105.4230284
C73: FSM Ever 6 | D73: ='APT Proforma'!D22 -> 537.3 | E73: ='APT Proforma'!E22 -> 781.075 | F73: =VLOOKUP($F$5,DEP!$B:$AG,17,FALSE) ->  | G73: =VLOOKUP($F$5,DEP!$B:$AG,18,FALSE)+IF($F$5=4177,DEP!S105) ->  | H73: =$D73*$F73+($E73*$G73) ->  | I73: 0.3525 | J73: =I73*H73 -> 
C74: IDACI Band F 0.2 - 0.25 | D74: ='APT Proforma'!D23 -> 199 | E74: ='APT Proforma'!E23 -> 288.55 | F74: =VLOOKUP($F$5,DEP!$B:$AG,21,FALSE) ->  | G74: =VLOOKUP($F$5,DEP!$B:$AG,22,FALSE)+IF($F$5=4177,DEP!W105) ->  | H74: =$D74*$F74+($E74*$G74) ->  | I74: 0.3525 | L74: =DEP!V109 -> 0 | M74: =DEP!W109 -> 3721.776909 | R74: 21.16981132 | S74: 54.55524862 | T74: 9.296235679 | U74: =S74-T74 -> 45.25901294
C75: IDACI Band E 0.25 - 0.3 | D75: ='APT Proforma'!D24 -> 238.8 | E75: ='APT Proforma'!E24 -> 388.05 | F75: =VLOOKUP($F$5,DEP!$B:$AG,23,FALSE) ->  | G75: =VLOOKUP($F$5,DEP!$B:$AG,24,FALSE)+IF($F$5=4177,DEP!Y105) ->  | I75: 0.3525 | L75: =DEP!X109 -> 0 | M75: =DEP!Y109 -> 3269.405756 | R75: 46.0754717 | S75: 32.92127072 | T75: 109.695581 | U75: -76.7743103
C76: IDACI Band D 0.3 - 0.35 | D76: ='APT Proforma'!D25 -> 358.2 | E76: ='APT Proforma'!E25 -> 512.425 | F76: =VLOOKUP($F$5,DEP!$B:$AG,25,FALSE) ->  | G76: =VLOOKUP($F$5,DEP!$B:$AG,26,FALSE)+IF($F$5=4177,DEP!AA105) ->  | I76: 0.3525 | L76: =DEP!Z109 -> 0 | M76: =DEP!AA109 -> 3485.631134 | R76: 26.1509434 | S76: 81.83287293 | T76: 158.0360065 | U76: -76.20313362
C77: IDACI Band C 0.35 - 0.4 | D77: ='APT Proforma'!D26 -> 388.05 | E77: ='APT Proforma'!E26 -> 557.2 | F77: =VLOOKUP($F$5,DEP!$B:$AG,27,FALSE) ->  | G77: =VLOOKUP($F$5,DEP!$B:$AG,28,FALSE)+IF($F$5=4177,DEP!AC105) ->  | I77: 0.3525 | L77: =DEP!AB109 -> 0 | M77: =DEP!AC109 -> 4579.656615 | R77: 85.9245283 | S77: 211.6367403 | T77: 153.3878887 | U77: 58.24885162
C78: IDACI Band B 0.4 - 0.5 | D78: ='APT Proforma'!D27 -> 417.9 | E78: ='APT Proforma'!E27 -> 597 | F78: =VLOOKUP($F$5,DEP!$B:$AG,29,FALSE) ->  | G78: =VLOOKUP($F$5,DEP!$B:$AG,30,FALSE)+IF($F$5=4177,DEP!AE105) ->  | I78: 0.3525 | L78: =DEP!AD109 -> 0 | M78: =DEP!AE109 -> 6215.78256 | R78: 31.13207547 | S78: 221.0428177 | T78: 56.70703764 | U78: 164.33578
C79: IDACI Band A 0.5 -1.0 | D79: ='APT Proforma'!D28 -> 572.125 | E79: ='APT Proforma'!E28 -> 805.95 | F79: =VLOOKUP($F$5,DEP!$B:$AG,31,FALSE) ->  | G79: =VLOOKUP($F$5,DEP!$B:$AG,32,FALSE)+IF($F$5=4177,DEP!AG105) ->  | I79: 0.3525 | J79: =I79*H79 ->  | L79: =DEP!AF109 -> 0 | M79: =DEP!AG109 -> 1984.494931 | R79: 4.981132075 | S79: 35.74309392 | T79: 46.4811784 | U79: -10.73808447
E80: Total | F80: =SUM(F71:F79) ->  | G80: =SUM(G71:G79) ->  | H80: =SUM(H71:H79) ->  | J80: =SUM(J72:J79) -> 
D81: Amount per pupil | G81: Number of Pupils | H81: Total (£) | J81: Total (£)
B82: 3) Low cost, high incidence SEN (Prior Attainment) | C82: Primary Low prior attainment | E82: ='APT Proforma'!E35 -> 508.445 | G82: =VLOOKUP($F$5,LCHI!B:H,6,FALSE) ->  | H82: =$G82*$E82 ->  | I82: 0.3525 | J82: =I82*H82 -> 
C83: Secondary pupils not achieving (KS2 English or Maths) | E83: ='APT Proforma'!E36 -> 1542.25 | G83: =VLOOKUP($F$5,LCHI!B:H,7,FALSE) ->  | H83: =$G83*$E83 ->  | I83: 0.3525 | J83: =I83*H83 -> 
D84: Amount per pupil | G84: Number of Pupils | H84: Total (£) | J84: Total (£)
B85: 4) English as an Additional Language | C85: Primary pupils EAL funded for first 3 years in Statutory Education | E85: ='APT Proforma'!D31 -> 512.425 | G85: =VLOOKUP($F$5,EAL!B:D,2,FALSE) ->  | H85: =$G85*$E85 ->  | I85: 0.4005 | J85: =I85*H85 -> 
C86: Secondary pupils EAL funded for first 3 years in Statutory Education | E86: ='APT Proforma'!E32 -> 1378.075 | G86: =VLOOKUP($F$5,EAL!B:D,3,FALSE) ->  | H86: =$G86*$E86 ->  | I86: 0.4005 | J86: =I86*H86 -> 
D87: % of NOR | E87: Amount per pupil | G87: Number of Pupils | H87: Total (£) | J87: Total (£)
B88: 5) Mobility | C88: Primary pupils included in the October School Census who did not start in August or September (Last 3 academic years) | D88: =VLOOKUP($F$5,'2019 Mob Factor % to units'!B:G,5,FALSE) ->  | E88: ='APT Proforma'!D33 -> 1158.18 | G88: =VLOOKUP($F$5,MOB!$B:$D,2,FALSE) ->  | H88: =$G88*$E88 ->  | I88: 1 | J88: =I88*H88 -> 
B89: Mobility is calculated after deducting 10% threshold level | C89: Secondary pupils included in the October School Census who did not start in August or September (Last 3 academic years) | D89: =VLOOKUP($F$5,'2019 Mob Factor % to units'!B:G,6,FALSE) ->  | E89: ='APT Proforma'!E33 -> 1950.2 | G89: =VLOOKUP($F$5,MOB!B:D,3,FALSE) ->  | H89: =$G89*$E89 ->  | I89: 1 | J89: =I89*H89 -> 
D90: Amount of lump sum | G90: Number | H90: Total (£)
B91: 6) Lump Sum | E91: =VLOOKUP($F$5,'Summary for Prints'!B:AB,8,FALSE) ->  | G91: 1 | H91: =$G91*$E91 -> 
D92: Amount of split site funding | G92: Number | H92: Total (£)
B93: 7) Split Site | E93: 0 | G93: 1 | H93: =$G93*$E93 -> 0
D94: Amount of PFI funding | G94: Number | H94: Total (£)
B95: PFI to be paid back to the LA | E95: =VLOOKUP($F$5,'Summary for Prints'!B:AB,11,FALSE) ->  | G95: 1 | H95: =$G95*$E95 -> 
D96: Minimum Funding Guarantee (0%) | G96: Number | H96: Total (£)
B97: Minimum Funding Guarantee | E97: =VLOOKUP($F$5,'Summary for Prints'!B:AB,13,FALSE)+VLOOKUP($F$5,'Summary for Prints'!B:AB,16,FALSE) ->  | G97: 1 | H97: =$G97*$E97 ->  | J97: Total Delegated SEN funding within the School Budget
D98: CAP | G98: Number | H98: Total (£)
B99: Schools Block Total excluding Rates | H99: =H65+H80+H82+H83+H85+H86+H88+H89+H91+H93+H95+H97+H69 ->  | J99: =J65+J80+J82+J83+J85+J86+J88+J89+J91+J93+J95+J69 -> 
B101: Additional Funding | C101: KS1 Class Factor
G103: Number | H103: Total (£)
B104: KS1 Class Factor (Teacher required for 1:30 pupils ratio) | E104: =VLOOKUP($F$5,'Summary for Prints'!B:AB,20,FALSE) ->  | G104: 1 | H104: =$G104*$E104 -> 
C106: RATES
G108: Number | H108: Total (£)
B109: RATES 2019-20 (Including previous year adjustments) | E109: =VLOOKUP($F$5,'Summary for Prints'!B:AB,10,FALSE) ->  | G109: 1 | H109: =$G109*$E109 -> 
B112: School Budget INCLUDING Early Years, Schools Block and High Needs (excl other LA Top up), KS1 Class Factor, Contingency, & INCLUDING RATES | I112: =$H25+$H46+$H99+$H104+$H109 ->  | K112: ='Summary for Prints'!AJ155+'Summary for Prints'!AK507 -> 0 | L112: =K112-I112 -> 
B114: School Budget INCLUDING Early Years, Schools Block and High Needs (excl other LA Top up), KS1 Class Factor, Contingency, & EXCLUDING RATES | I114: =I112-H109 ->  | K114: ='Summary for Prints'!AJ155+'Summary for Prints'!AJ507 -> 0 | L114: =K114-I114 -> 
C117: Sixth Form
D119: Indicative Sixth Form (not yet known) | G119: Number | H119: Total (£)
B120: Indicative Sixth Form | C120: Figures not yet confirmed | E120: 0 | G120: 1 | H120: =E120*G120 -> 0
C122: De-delegation from Maintained Schools 2019-20
D123: Primary Rate | E123: Secondary Rate | F123: Primary net NOR | G123: Secondary Net NOR | H123: Total (£)
B124: CFR code E23 | C124: Contingencies (SIFD & Contingencies) | D124: ='DE-DEL'!B116*-1 -> -6.44 | E124: ='DE-DEL'!C116*-1 -> -6.44 | F124: =VLOOKUP($F$5,'DE-DEL'!$B:$M,9,FALSE) ->  | G124: =VLOOKUP($F$5,'DE-DEL'!$B:$M,10,FALSE)+VLOOKUP($F$5,'DE-DEL'!$B:$M,11,FALSE) ->  | H124: =D124*F124+E124*G124 -> 
D125: Rate | E125: Rate | F125: Prim Net NOR | G125: Sec Net NOR | H125: Total (£)
B126: CFR Code E28 | C126: FSM | D126: 0 | E126: 0 | F126: =VLOOKUP($F$5,'DE-DEL'!$B:$M,9,FALSE) ->  | G126: =VLOOKUP($F$5,'DE-DEL'!$B:$M,10,FALSE)+VLOOKUP($F$5,'DE-DEL'!$B:$M,11,FALSE) ->  | H126: =D126*F126+E126*G126 -> 
D127: Rate | E127: Rate | F127: Prim Net NOR | G127: Sec Net NOR | H127: Total (£)
B128: CFR code E23 | C128: Insurance | D128: ='DE-DEL'!B118*-1 -> -13.948 | E128: ='DE-DEL'!C118*-1 -> -13.948 | F128: =VLOOKUP($F$5,'DE-DEL'!$B:$M,9,FALSE) ->  | G128: =VLOOKUP($F$5,'DE-DEL'!$B:$M,10,FALSE)+VLOOKUP($F$5,'DE-DEL'!$B:$M,11,FALSE) ->  | H128: =D128*F128+E128*G128 -> 
D129: Rate | E129: Rate | F129: Prim Net NOR | G129: Sec Net NOR | H129: Total (£)
B130: CFR code E19 | C130: Licences/Subscriptions | D130: ='DE-DEL'!B119 -> 0 | E130: ='DE-DEL'!C119 -> 0 | F130: =VLOOKUP($F$5,'DE-DEL'!$B:$M,9,FALSE) ->  | G130: =VLOOKUP($F$5,'DE-DEL'!$B:$M,10,FALSE)+VLOOKUP($F$5,'DE-DEL'!$B:$M,11,FALSE) ->  | H130: =D130*F130+E130*G130 -> 
D131: Rate | E131: Rate | F131: Prim Net NOR | G131: Sec Net NOR | H131: Total (£)
B132: CFR code E19 | C132: Staff Costs Supply | D132: ='DE-DEL'!B120*-1 -> -24.66 | E132: ='DE-DEL'!C120*-1 -> -24.66 | F132: =VLOOKUP($F$5,'DE-DEL'!$B:$M,9,FALSE) ->  | G132: =VLOOKUP($F$5,'DE-DEL'!$B:$M,10,FALSE)+VLOOKUP($F$5,'DE-DEL'!$B:$M,11,FALSE) ->  | H132: =D132*F132+E132*G132 -> 
D133: Rate | E133: Rate | F133: Prim Net NOR | G133: Sec Net NOR | H133: Total (£)
B134: CFR code E27 | C134: Support UAG and Bilingual | D134: ='DE-DEL'!B121*-1 -> -14.17 | E134: ='DE-DEL'!C121*-1 -> -14.17 | F134: =VLOOKUP($F$5,'DE-DEL'!$B:$M,9,FALSE) ->  | G134: =VLOOKUP($F$5,'DE-DEL'!$B:$M,10,FALSE)+VLOOKUP($F$5,'DE-DEL'!$B:$M,11,FALSE) ->  | H134: =D134*F134+E134*G134 -> 
D135: Rate | E135: Rate | F135: Prim Net NOR | G135: Sec Net NOR | H135: Total (£)
B136: CFR code E27 | C136: Behaviour Support | D136: ='DE-DEL'!B122*-1 -> -11.18 | E136: ='DE-DEL'!C122*-1 -> 0 | F136: =VLOOKUP($F$5,'DE-DEL'!$B:$M,9,FALSE) ->  | G136: =VLOOKUP($F$5,'DE-DEL'!$B:$M,10,FALSE)+VLOOKUP($F$5,'DE-DEL'!$B:$M,11,FALSE) ->  | H136: =D136*F136+E136*G136 -> 
D137: Rate | E137: Rate | F137: Prim Net NOR | G137: Sec Net NOR | H137: Total (£)
B138: CFR code E27 | C138: Museums | D138: ='DE-DEL'!B123*-1 -> 0 | E138: ='DE-DEL'!C123*-1 -> 0 | F138: =VLOOKUP($F$5,'DE-DEL'!$B:$M,9,FALSE) ->  | G138: =VLOOKUP($F$5,'DE-DEL'!$B:$M,10,FALSE)+VLOOKUP($F$5,'DE-DEL'!$B:$M,11,FALSE) ->  | H138: =D138*F138+E138*G138 -> 
H139: Total (£)
B140: CFR Code I01 | C140: LA Services De-delegated from maintained schools | H140: =H124+H126+H128+H130+H132+H134+H136+H138 -> 
C145: Academies & other non maintained Schools - to be confirmed
D146: Primary Rate | E146: Secondary Rate | F146: Primary net NOR | G146: Secondary Net NOR | H146: Total (£)
C147: Staff Costs Supply | D147: -21.14 | E147: -21.14 | F147: =IF($H$140>0,,L$65) ->  | G147: =IF($H$140>0,,M$65) ->  | H147: =D147*F147+E147*G147 -> 
D148: Rate | E148: Rate | F148: Prim Net NOR | G148: Sec Net NOR | H148: Total (£)
C149: Support UAG and Bilingual | D149: -9.7 | E149: -11.93 | F149: =IF($H$140>0,,L$65) ->  | G149: =IF($H$140>0,,M$65) ->  | H149: =D149*F149+E149*G149 -> 
D150: Rate | E150: Rate | F150: Prim Net NOR | G150: Sec Net NOR | H150: Total (£)
C151: Behaviour Support - Secondary Hard to Place & Support to Inclusion | D151: -21.89 | E151: -16.8 | F151: =IF($H$140>0,,L$65) ->  | G151: =IF($H$140>0,,M$65) ->  | H151: =D151*F151+E151*G151 -> 
H152: Total (£)
C153: LA Services to be Invoiced to non maintained schools | H153: =H151+H149+H147 -> 

Sheet Special Schools & PRU
A1: Special School Budgets 2019/20
A2: Please select your school in the cell below
A3: CLICK ON THE ARROW BUTTON TO SELECT YOUR SCHOOL FROM THE LIST
C4: DFE
C5: =VLOOKUP($A$3,'Special Schools List'!A:C,3,FALSE) -> All
A7: High Needs Formula Indicative 2019/20
B8: Places | C8: Rate | D8: Total (£)
A9: Element 1 & 2 (Place led funding) - Special Schools Pre 16 | B9: =SUMIF('Special Schools 2019-20'!C:C,C5,'Special Schools 2019-20'!I:I) -> 639 | C9: 10000 | D9: =C9*B9 -> 6390000
B10: Places | C10: Rate | D10: Total (£)
A11: Element 1 & 2 (Place led funding) - Special Schools Post 16 | B11: =SUMIF('Special Schools 2019-20'!C:C,C5,'Special Schools 2019-20'!J:J) -> 68 | C11: 10000 | D11: =C11*B11 -> 680000
B12: Places | D12: Total (£)
A13: Element 1 & 2 (Place led funding) - Alternative Provision | B13: =SUMIF('Special Schools 2019-20'!C:C,C5,'Special Schools 2019-20'!H:H) -> 96 | C13: 10000 | D13: =B13*C13 -> 960000
D14: Total (£)
A15: Element 3 - Derby City Pupils (banding) funding Pre 16* | B15: See separate breakdown sheet | D15: =SUMIF('Special Schools 2019-20'!$C:$C,$C$5,'Special Schools 2019-20'!$T:$T) -> 7522513.251
D16: Total (£)
A17: Element 3 - Derby City Pupils (banding) funding Post 16* | B17: See separate breakdown sheet | D17: =SUMIF('Special Schools 2019-20'!$C:$C,$C$5,'Special Schools 2019-20'!$U:$U) -> 709507.5
D18: Total (£)
A19: Residential Places | B19: See separate breakdown sheet | D19: =SUMIF('Special Schools 2019-20'!$C:$C,$C$5,'Special Schools 2019-20'!$V:$V) -> 234360
D20: Total (£)
A21: Other - Exceptional Payments | B21: See separate breakdown sheet | D21: =SUMIF('Special Schools 2019-20'!$C:$C,$C$5,'Special Schools 2019-20'!$W:$W) -> 141667
D22: Total (£)
A23: MFG | D23: =SUMIF('Special Schools 2019-20'!$C:$C,$C$5,'Special Schools 2019-20'!$Y:$Y) -> 80450
D24: Total (£)
A25: PFI | D25: =SUMIF('Special Schools 2019-20'!$C:$C,$C$5,'Special Schools 2019-20'!$Z:$Z) -> 94219.29285
D26: Total (£)
A27: High Needs Funding from Derby City LA / EFA* | D27: =D9+D11+D13+D15+D17+D21+D25+D19+D23 -> 16812717.04
B28: No.of Pupils | D28: Total (£)
A29: Element 3 - Other LA (banding) funding (Income not Budget)* | B29: =SUMIF('Special Schools 2019-20'!C:C,C5,'Special Schools 2019-20'!M:M)+SUMIF('Special Schools 2019-20'!C:C,C5,'Special Schools 2019-20'!N:N) -> 47 | C29: See separate breakdown sheet | D29: =SUMIF('Special Schools 2019-20'!$C:$C,$C$5,'Special Schools 2019-20'!$AB:$AB) -> 383004
A31: *Please note that High Needs top up funding follows the pupil, therefore funding will be adjusted in year where there are pupil movements

Sheet ERS 2019-20 (hidden)
A1: ERS Funding
K2: NO of places
A3: School | B3: DfE | C3: School Type | D3: Phase | E3: 2018/19 places as per SLA - Pre/post 16 | F3: Banding 2018/19 | G3: Banding 2019/20 | H3: Banding 2020/21 | J3: Nursery | K3: Element 2 Places funded (Average for Alvaston and Leesbrooke) | L3: DCC Pre 16 E3 | M3: Other LA Pre 16 E3 | N3: DCC Post 16 | O3: Total | P3: Vacant Places E3 | Q3: TOTAL including VACANT places | S3: Element 1 & 2 (Place Funding) | T3: Element 3 (Top Up Funding DCC) | U3: Exceptional Payments | V3: Other Adjustments | W3: Reduction in Element 3 - £6k for every empty place (cap at E3 funding) | X3: TOTAL DCC | Y3: Element 3 (Top Up Funding Other LA) | Z3: Total School Funding | AA3: Vacant top up funding (element 3) | AB3: comments | AC3: Check to individual sheets | AD3: Variance | AF3: 2018/19 Budget incl OOA (place funding reduced to £6k for comparison) | AG3: Variance | AH3: 2018/19 Budget excl OOA (place funding reduced to £6k for comparison) | AI3: Variance
S4: 6000
S5: 0 | W5: =IF(P5>0,0,IF((P5*-6000)<T5,(-P5*-6000),-T5)) -> 0
A6: Allestree Woodlands Community School | B6: 5414 | C6: Hearing impairment | D6: Secondary | E6: 14 | F6: 6000 | G6: 6000 | H6: 6000 | K6: 14 | L6: 12 | M6: 2 | O6: =SUM(L6:M6) -> 14 | P6: =+O6-K6 -> 0 | Q6: =IF(O6>E6,O6,(O6-P6)) -> 14 | S6: =K6*6000 -> 84000 | T6: 66000 | U6: 0 | X6: =SUM(S6:W6) -> 150000 | Y6: =+M6*F6 -> 12000 | Z6: =SUM(X6:Y6) -> 162000 | AA6: 6000 | AC6: 162000 | AD6: =+Z6-AC6 -> 0 | AF6: 162000 | AG6: =+Z6-AF6 -> 0 | AH6: 156000 | AI6: =+X6-AH6 -> -6000
A7: Alvaston Junior Community School | B7: 2442 | C7: Social Emotional and Mental Heath | D7: Primary | E7: 12 | F7: 5500 | G7: 5500 | H7: 5500 | K7: =12-(7/12*5) -> 9.083333333 | L7: 8.08333333 | M7: 1 | O7: 9.08333333 | P7: =+O7-K7 -> -3.333331833e-09 | Q7: =IF(O7>E7,O7,(O7-P7)) -> 9.083333333 | S7: 54500 | T7: 34375 | U7: 0 | X7: =SUM(S7:W7) -> 88875 | Y7: =+M7*F7 -> 5500 | Z7: =SUM(X7:Y7) -> 94375 | AA7: 0 | AB7: Adjust for decomission places | AC7: 94375 | AD7: =+Z7-AC7 -> 0 | AF7: 127000 | AG7: =+Z7-AF7 -> -32625 | AH7: 127000 | AI7: =+X7-AH7 -> -38125
A8: Brackensdale Infant School | B8: 2432 | C8: Communication and Interaction ASD | D8: Primary | E8: 20 | F8: 8000 | G8: 8000 | H8: 8000 | K8: 20 | L8: 20 | M8: 0 | O8: 20 | P8: 0 | Q8: =IF(O8>E8,O8,(O8-P8)) -> 20 | S8: 120000 | T8: 160000 | U8: 0 | X8: =SUM(S8:W8) -> 280000 | Y8: =+M8*F8 -> 0 | Z8: =SUM(X8:Y8) -> 280000 | AA8: 0 | AD8: 280000 | AF8: 280000 | AG8: 0 | AH8: 280000 | AI8: 0
A9: Brackensdale Junior School | B9: 2432 | C9: Communication and Interaction ASD | D9: Primary | E9: 33 | F9: 8700 | G9: 8400 | H9: 8000 | K9: 33 | L9: 33 | M9: 0 | O9: 33 | P9: 0 | Q9: 33 | S9: 198000 | T9: 275800 | U9: 0 | X9: =SUM(S9:W9) -> 473800 | Y9: 0 | Z9: 473800 | AA9: 0 | AB9: Adjust for decomission places | AC9: 753800 | AD9: -280000 | AF9: 523600 | AG9: -49800 | AH9: 523600 | AI9: -49800
A10: Lees Brook Community | B10: 4006 | C10: Social Emotional and Mental Heath | D10: Secondary | E10: 16 | F10: 5500 | G10: 5500 | H10: 5500 | K10: =16-(7/12*12) -> 9 | L10: 9 | M10: 0 | O10: 9 | P10: 0 | Q10: 9 | S10: 54000 | T10: 22000 | U10: 0 | X10: 76000 | Y10: 0 | Z10: 76000 | AA10: 0 | AB10: Adjust for decomission places | AC10: 128000 | AD10: -52000 | AF10: 134500 | AG10: -58500 | AH10: 134500 | AI10: -58500
A11: Lees Brook Community - Post 16 | B11: 4006 | C11: Social Emotional and Mental Heath | D11: Secondary | E11: 5 | F11: =+F10 -> 5500 | G11: =+G10 -> 5500 | H11: =+H10 -> 5500 | K11: 5 | L11: 0 | M11: 0 | N11: 5 | O11: 0 | P11: -5 | Q11: =IF(O11>E11,O11,(O11-P11)) -> 5 | S11: 30000 | T11: 22000 | U11: 0 | X11: =SUM(S11:W11) -> 52000 | Y11: =+M11*F11 -> 0 | Z11: =SUM(X11:Y11) -> 52000 | AA11: 5500 | AC11: 0 | AD11: =+Z11-AC11 -> 52000 | AF11: 46500 | AG11: =+Z11-AF11 -> 5500 | AH11: 46500 | AI11: =+X11-AH11 -> 5500
A12: Markeaton Primary School | B12: 2436 | C12: Visual Impairment | D12: Primary | E12: 4 | F12: 22980 | G12: 22980 | H12: 22980 | K12: 4 | L12: 4 | M12: 0 | O12: 4 | P12: 0 | Q12: 4 | S12: 24000 | T12: 68940 | U12: 0 | X12: 92940 | Y12: 0 | Z12: 92940 | AA12: 22980 | AC12: 92940 | AD12: 0 | AF12: 92940 | AG12: 0 | AH12: 92940 | AI12: 0
A13: Reigate Primary School | B13: 2020 | C13: Hearing impairment | D13: Primary | E13: 26 | F13: 6000 | G13: 6000 | H13: 6000 | K13: 26 | L13: 24 | M13: 2 | O13: 26 | P13: 0 | Q13: 26 | S13: =K13*6000 -> 156000 | T13: 96000 | U13: 0 | X13: 252000 | Y13: 12000 | Z13: 264000 | AA13: 48000 | AC13: 264000 | AD13: 0 | AF13: 270000 | AG13: -6000 | AH13: 258000 | AI13: -6000
A14: Saint Benedict Catholic School | B14: 4607 | C14: Visual Impairment | D14: Secondary | E14: 20 | F14: 10000 | G14: 10000 | H14: 10000 | K14: 20 | L14: 20 | M14: 0 | O14: 20 | P14: 0 | Q14: 20 | S14: =K14*6000 -> 120000 | T14: 130000 | U14: 2662 | V14: 25000 | X14: 277662 | Y14: 0 | Z14: 277662 | AA14: 70000 | AB14: Parapetetic teacher?? | AC14: 308662 | AD14: -31000 | AE14: OK - teacher | AF14: 337662 | AG14: -60000 | AH14: 297662 | AI14: -20000
A15: Saint Benedict Catholic School - Post 16 | B15: 4607 | C15: Visual Impairment | D15: Secondary | E15: 6 | F15: =+F14 -> 10000 | G15: =+G14 -> 10000 | H15: =+H14 -> 10000 | K15: 6 | L15: 0 | M15: 0 | N15: 6 | O15: 0 | P15: -6 | Q15: =IF(O15>E15,O15,(O15-P15)) -> 6 | S15: =K15*6000 -> 36000 | T15: 20000 | U15: 0 | X15: =SUM(S15:W15) -> 56000 | Y15: =+M15*F15 -> 0 | Z15: =SUM(X15:Y15) -> 56000 | AA15: 40000 | AC15: 0 | AD15: =+Z15-AC15 -> 56000 | AF15: 76000 | AG15: =+Z15-AF15 -> -20000 | AH15: 56000 | AI15: 0
A16: Springfield | B16: 2466 | C16: Communication and Interaction ASD | D16: Primary | E16: 25 | F16: 8000 | G16: 8000 | H16: 8000 | K16: 30 | L16: 30 | M16: 0 | O16: 30 | P16: 0 | Q16: 30 | S16: =K16*6000 -> 180000 | T16: 200000 | U16: 0 | X16: 380000 | Y16: 0 | Z16: 380000 | AA16: 40000 | AC16: 380000 | AD16: 0 | AF16: 274000 | AG16: 106000 | AH16: 274000 | AI16: 106000
A17: The Bemrose Community School | B17: 4177 | C17: Communication and Interaction ASD | D17: Secondary | E17: 45 | F17: 9000 | G17: 9000 | H17: 9000 | K17: 45 | L17: 45 | M17: 0 | O17: 45 | P17: 0 | Q17: 45 | S17: =K17*6000 -> 270000 | T17: 279000 | U17: 0 | X17: 549000 | Y17: 0 | Z17: 549000 | AA17: 126000 | AC17: 549000 | AD17: 0 | AF17: 540000 | AG17: 9000 | AH17: 540000 | AI17: 9000
A18: TOTAL ERS Schools | E18: =SUM(E6:E17) -> 226 | K18: =SUM(K6:K17) -> 221.0833333 | L18: 205.0833333 | M18: 5 | N18: 11 | O18: 210.0833333 | P18: -11 | Q18: 221.0833333 | S18: =SUM(S6:S17) -> 1326500 | T18: =SUM(T6:T17) -> 1374115 | U18: 2662 | V18: 25000 | W18: 0 | X18: 2728277 | Y18: 29500 | Z18: 2757777 | AA18: 358480
A20: Central Nursery | B20: 1006 | D20: Nursery | E20: 14.2055 | J20: 14.2055 | L20: 0 | O20: =SUM(L20:M20) -> 0 | P20: =+O20-J20 -> -14.2055 | Q20: =IF(O20>E20,O20,(O20-P20)) -> 14.2055 | S20: =J20*10000 -> 142055 | T20: 0 | W20: =IF(P20>0,0,IF((P20*-6000)<T20,(-P20*-6000),-T20)) -> 0 | X20: 142055 | Z20: 142055 | AA20: 0 | AC20: 0 | AF20: 142055 | AG20: =+Z20-AF20 -> 0 | AH20: 142055 | AI20: 0
A21: Lord St Nursery | B21: 1005 | D21: Nursery | E21: 11 | J21: 11 | L21: 0 | O21: =SUM(L21:M21) -> 0 | P21: =+O21-J21 -> -11 | Q21: =IF(O21>E21,O21,(O21-P21)) -> 11 | S21: =J21*10000 -> 110000 | T21: 0 | W21: =IF(P21>0,0,IF((P21*-6000)<T21,(-P21*-6000),-T21)) -> 0 | X21: 110000 | Z21: 110000 | AA21: 0 | AC21: 0 | AF21: 110000 | AG21: =+Z21-AF21 -> 0 | AH21: 110000 | AI21: 0
A22: Lakeside | B22: 2434 | E22: 0 | F22: 0 | G22: 0 | H22: 0 | J22: 0 | L22: 0 | M22: 0 | O22: 0 | P22: =+O22-J22 -> 0 | Q22: =IF(O22>E22,O22,(O22-P22)) -> 0 | S22: =J22*10000 -> 0 | T22: =+L22*F22 -> 0 | U22: 0 | W22: =IF(P22>0,0,IF((P22*-6000)<T22,(-P22*-6000),-T22)) -> 0 | X22: =SUM(S22:W22) -> 0 | Y22: =+M22*F22 -> 0 | Z22: =SUM(X22:Y22) -> 0 | AA22: =IF(P22<0,-P22*F22,0) -> 0 | AC22: 0 | AF22: 42000 | AG22: -42000 | AH22: 42000 | AI22: =+X22-AH22 -> -42000
A24: Total | B24: All | E24: =SUM(E18:E23) -> 251.2055 | J24: =SUM(J18:J23) -> 25.2055 | K24: 221.0833333 | L24: 205.0833333 | M24: 5 | N24: 11 | O24: 210.0833333 | P24: -36.2055 | Q24: 246.2888333 | S24: =SUM(S18:S23) -> 1578555 | T24: 1374115 | U24: 2662 | V24: 25000 | W24: 0 | X24: 2980332 | Y24: 29500 | Z24: 3009832 | AA24: 358480 | AC24: =SUM(AC6:AC23) -> 2732777 | AD24: =SUM(AD6:AD23) -> 25000 | AF24: =SUM(AF4:AF23) -> 3158257 | AG24: =SUM(AG6:AG23) -> -148425 | AH24: =SUM(AH6:AH23) -> 3080257 | AI24: =SUM(AI6:AI23) -> -99925
A25: 50% of Vacant places as contingency | S25: =((SUM(K6:K17)*6000)+S20+S21+S22)-S24 -> 0 | X25: =AA24/2 -> 179240
A26: TOTAL ERS Budget | X26: =SUM(X24:X25) -> 3159572
S29: =SUM(S6,S7,S10,S13,S14) -> 468500 | T29: Academy place funding - pre 16
S30: =SUM(S15,S11) -> 66000 | T30: Academy place funding - post 16
S32: Breakdown of full and vacant places
T33: Places | U33: £ Element 2 / HN | V33: £ Element 1 / APWU | W33: TOTAL E1 & 2
S34: Full Places | T34: 191 | U34: =+T34*6000 -> 1146000 | V34: =+T34*4000 -> 764000 | W34: =SUM(U34:V34) -> 1910000
S35: Vacant Places | T35: 38 | U35: =+T35*10000 -> 380000 | V35: 0 | W35: =SUM(U35:V35) -> 380000
S36: Total Funded | T36: =SUM(T34:T35) -> 229 | U36: =SUM(U34:U35) -> 1526000 | V36: =SUM(V34:V35) -> 764000 | W36: =SUM(W34:W35) -> 2290000
A37: Brackensdale transition by March 2020 | U37: =+S24-U36 -> 52555

Sheet 2019-20 FORMULA (hidden)
AD1: Primary: | AE1: 3300
AD2: Secondary: | AE2: 4500
AD3: All Through: | AE3: =((AE1*7)+(AE2*5))/12 -> 3800
A4: School | B4: DfE Number | C4: AWPU inc delegated Budget £ | D4: Deprivation £ | E4: LAC £ | F4: LCHI SEN £ | G4: EAL £ | H4: Mobility £ | I4: Lump Sum £ | J4: Split Site £ | K4: Rates £ (based on 18-19 values) | L4: PFI £ | M4: Pre MFG Total | N4: MFG | O4: No Cap | P4: Budget before De-Delegation | Q4: Minimum funding adjustment | R4: Budget before de-delegation (incl. min funding adj) | S4: De-delegation tbc | T4: Net School budget | U4: KS1 Class Factor (link info From KS1 working papers) | V4: ERS | W4: TA & OOC TA Hours | X4: TA Hours OOC | Y4: Sixth Form | Z4: Nursery | AA4: Contingency | AB4: Total | AC4: NOR | AD4: Budget before de-delegation / NOR Funding per child - min fund £3,500- P, £4,800 - S & £4,042 - A | AE4: Minimum funding adjustment (see above) | AH4: Lookup | AK4: 18/19 School budget before de-del incl KS1 | AL4: 18/19 MFG | AM4: Variance 19/20 to 18/19 | AN4: Change - MFG | AO4: % change in year
A5: Akaal Primary School | B5: 2014 | C5: 429065.5703 | D5: 59076.56956 | E5: 0 | F5: 20398.89223 | G5: 58584.06565 | H5: 8352.844883 | I5: 110000 | J5: 0 | K5: 946 | L5: 0 | M5: =SUM(C5:L5) -> 686423.9426 | N5: 0 | O5: 0 | P5: =SUM(M5:O5) -> 686423.9426 | Q5: =AE5 -> 0 | R5: =P5+Q5 -> 686423.9426 | S5: 0 | T5: =R5+S5 -> 686423.9426 | U5: 2200 | V5: =SUMIF('ERS 2019-20'!B:B,'2019-20 FORMULA'!B:B,'ERS 2019-20'!X:X) -> 0 | Z5: =SUMIF('2019-20 Nursery Budget'!D:D,'2019-20 FORMULA'!B:B,'2019-20 Nursery Budget'!X:X) -> 0 | AA5: 0 | AB5: =SUM(T5:AA5) -> 688623.9426 | AC5: 156.8333333 | AD5: =P5/AC5 -> 4376.77328 | AE5: =IF(AD5<$AE$1,((AC5*$AE$1)-(P5)),0) -> 0 | AH5: 8312014 | AK5: 547791.5171 | AL5: 0 | AM5: =+P5+U5-AK5 -> 140832.4256 | AN5: =+N5-AL5 -> 0 | AO5: =+AM5/(U5+P5) -> 0.2045128217
A6: Allenton Community Primary School | B6: 2012 | C6: 1091586.584 | D6: 350161.9052 | E6: 0 | F6: 102710.6867 | G6: 35869.75 | H6: 9381.258 | I6: 110000 | J6: 0 | K6: 7705 | L6: 0 | M6: =SUM(C6:L6) -> 1707415.184 | N6: 90750.66885 | O6: 0 | P6: 1798165.853 | Q6: 0 | R6: 1798165.853 | S6: 0 | T6: 1798165.853 | U6: 5789 | V6: =SUMIF('ERS 2019-20'!B:B,'2019-20 FORMULA'!B:B,'ERS 2019-20'!X:X) -> 0 | Z6: =SUMIF('2019-20 Nursery Budget'!D:D,'2019-20 FORMULA'!B:B,'2019-20 Nursery Budget'!X:X) -> 0 | AA6: 0 | AB6: =SUM(T6:AA6) -> 1803954.853 | AC6: 399 | AD6: 4506.681335 | AE6: 0 | AF6: 2012 new number | AH6: 8312400 | AK6: 1748814.723 | AL6: -12480.76557 | AM6: 55140.13003 | AN6: 103231.4344 | AO6: 0.03056624723
A7: Alvaston Infant and Nursery School | B7: 2443 | C7: 730460.1953 | D7: 129234.2182 | E7: 0 | F7: 26835.25413 | G7: 13913.64153 | H7: 0 | I7: 110000 | J7: 0 | K7: 19052.875 | L7: 0 | M7: 1029496.184 | N7: 0 | O7: 0 | P7: 1029496.184 | Q7: 0 | R7: 1029496.184 | S7: -18796.266 | T7: 1010699.918 | U7: 6600 | V7: =SUMIF('ERS 2019-20'!B:B,'2019-20 FORMULA'!B:B,'ERS 2019-20'!X:X) -> 0 | Z7: =SUMIF('2019-20 Nursery Budget'!D:D,'2019-20 FORMULA'!B:B,'2019-20 Nursery Budget'!X:X) -> 132772.55 | AA7: 0 | AB7: =SUM(T7:AA7) -> 1150072.468 | AC7: 267 | AD7: 3855.790952 | AE7: 0 | AH7: 8312443 | AK7: 1016425.532 | AL7: -6917.847565 | AM7: 19670.65188 | AN7: 6917.847565 | AO7: 0.01898535308
A8: Alvaston Junior School | B8: 2442 | C8: 935645.6434 | D8: 182570.8925 | E8: 0 | F8: 85877.29629 | G8: 8711.225 | H8: 0 | I8: 110000 | J8: 0 | K8: 4211.375 | L8: 0 | M8: 1327016.432 | N8: 0 | O8: 0 | P8: 1327016.432 | Q8: 0 | R8: 1327016.432 | S8: 0 | T8: 1327016.432 | U8: 0 | V8: =SUMIF('ERS 2019-20'!B:B,'2019-20 FORMULA'!B:B,'ERS 2019-20'!X:X) -> 88875 | Z8: =SUMIF('2019-20 Nursery Budget'!D:D,'2019-20 FORMULA'!B:B,'2019-20 Nursery Budget'!X:X) -> 0 | AA8: 0 | AB8: 1415891.432 | AC8: 342 | AD8: 3880.165007 | AE8: 0 | AH8: 8312442 | AK8: 1363680.582 | AL8: 0 | AM8: -36664.14961 | AN8: 0 | AO8: -0.02762900949
A9: Arboretum Primary School | B9: 2629 | C9: 1436298.137 | D9: 357497.5999 | E9: 0 | F9: 156864.6981 | G9: 126422.8939 | H9: 6369.99 | I9: 110000 | J9: 0 | K9: 67582 | L9: 0 | M9: 2261035.319 | N9: 12337.87729 | O9: 0 | P9: 2273373.196 | Q9: 0 | R9: 2273373.196 | S9: -36958.95 | T9: 2236414.246 | U9: 13082 | V9: =SUMIF('ERS 2019-20'!B:B,'2019-20 FORMULA'!B:B,'ERS 2019-20'!X:X) -> 0 | Z9: =SUMIF('2019-20 Nursery Budget'!D:D,'2019-20 FORMULA'!B:B,'2019-20 Nursery Budget'!X:X) -> 198445.2 | AA9: 0 | AB9: 2447941.446 | AC9: 525 | AD9: 4330.234659 | AE9: 0 | AH9: 8312629 | AK9: 2291374.339 | AL9: 67288.78531 | AM9: -4919.143231 | AN9: -54950.90803 | AO9: -0.002151427782
A10: Ash Croft Primary School | B10: 2509 | C10: 574519.2547 | D10: 108182.37 | E10: 0 | F10: 38133.375 | G10: 26219.51269 | H10: 33587.22 | I10: 110000 | J10: 0 | K10: 3266.5 | L10: 0 | M10: 893908.2324 | N10: 0 | O10: 0 | P10: 893908.2324 | Q10: 0 | R10: 893908.2324 | S10: 0 | T10: 893908.2324 | U10: 10071 | V10: =SUMIF('ERS 2019-20'!B:B,'2019-20 FORMULA'!B:B,'ERS 2019-20'!X:X) -> 0 | Z10: =SUMIF('2019-20 Nursery Budget'!D:D,'2019-20 FORMULA'!B:B,'2019-20 Nursery Budget'!X:X) -> 0 | AA10: 0 | AB10: 903979.2324 | AC10: 210 | AD10: 4256.705869 | AE10: 0 | AH10: 8312509 | AK10: 973668.0966 | AL10: -5515.489401 | AM10: -69688.86421 | AN10: 5515.489401 | AO10: -0.07709122257 | AP10: NOR 23 pupils lower in 19/20
A11: Ashgate Primary School | B11: 2005 | C11: 891872.7478 | D11: 225744.444 | E11: 0 | F11: 58773.00092 | G11: 24287.49131 | H11: 0 | I11: 110000 | J11: 0 | K11: 20440 | L11: 0 | M11: 1331117.684 | N11: 0 | O11: 0 | P11: 1331117.684 | Q11: 0 | R11: 1331117.684 | S11: -22949.748 | T11: 1308167.936 | U11: 11808 | V11: =SUMIF('ERS 2019-20'!B:B,'2019-20 FORMULA'!B:B,'ERS 2019-20'!X:X) -> 0 | Z11: =SUMIF('2019-20 Nursery Budget'!D:D,'2019-20 FORMULA'!B:B,'2019-20 Nursery Budget'!X:X) -> 0 | AA11: 0 | AB11: 1319975.936 | AC11: 326 | AD11: 4083.18308 | AE11: 0 | AH11: 8312005 | AK11: 1335268.802 | AL11: 4694.740186 | AM11: 7656.881791 | AN11: -4694.740186 | AO11: 0.005701642229
A12: Asterdale Primary School | B12: 2464 | C12: 547161.195 | D12: 83589.59747 | E12: 0 | F12: 31241.8012 | G12: 3068.413174 | H12: 0 | I12: 110000 | J12: 0 | K12: 15838.5 | L12: 0 | M12: 790899.5068 | N12: 0 | O12: 0 | P12: 790899.5068 | Q12: 0 | R12: 790899.5068 | S12: -14079.6 | T12: 776819.9068 | U12: 16901 | V12: =SUMIF('ERS 2019-20'!B:B,'2019-20 FORMULA'!B:B,'ERS 2019-20'!X:X) -> 0 | Z12: =SUMIF('2019-20 Nursery Budget'!D:D,'2019-20 FORMULA'!B:B,'2019-20 Nursery Budget'!X:X) -> 101837.8 | AA12: 0 | AB12: 895558.7068 | AC12: 200 | AD12: 3954.497534 | AE12: 0 | AH12: 8312464 | AK12: 789752.6594 | AL12: 0 | AM12: 18047.84742 | AN12: 0 | AO12: 0.022341961
A13: Beaufort Community Primary School | B13: 2004 | C13: 807062.7626 | D13: 252588.296 | E13: 0 | F13: 65396.1959 | G13: 9302.484615 | H13: 8686.35 | I13: 110000 | J13: 0 | K13: 18429 | L13: 0 | M13: 1271465.089 | N13: 29481.1826 | O13: 0 | P13: 1300946.272 | Q13: 0 | R13: 1300946.272 | S13: -20767.41 | T13: 1280178.862 | U13: 15975 | V13: =SUMIF('ERS 2019-20'!B:B,'2019-20 FORMULA'!B:B,'ERS 2019-20'!X:X) -> 0 | Z13: =SUMIF('2019-20 Nursery Budget'!D:D,'2019-20 FORMULA'!B:B,'2019-20 Nursery Budget'!X:X) -> 98941.8 | AA13: 0 | AB13: 1395095.662 | AC13: 295 | AD13: 4409.987362 | AE13: 0 | AH13: 8312004 | AK13: 1327393.296 | AL13: 40921.97736 | AM13: -10472.02464 | AN13: -11440.79476 | AO13: -0.007951898768
A14: Becket Primary School | B14: 2405 | C14: 560840.2249 | D14: 162002.8953 | E14: 0 | F14: 36584.4697 | G14: 32414.54143 | H14: 6369.99 | I14: 110000 | J14: 0 | K14: 14739.5 | L14: 0 | M14: 922951.6213 | N14: 0 | O14: 0 | P14: 922951.6213 | Q14: 0 | R14: 922951.6213 | S14: -14431.59 | T14: 908520.0313 | U14: 2200 | V14: =SUMIF('ERS 2019-20'!B:B,'2019-20 FORMULA'!B:B,'ERS 2019-20'!X:X) -> 0 | Z14: =SUMIF('2019-20 Nursery Budget'!D:D,'2019-20 FORMULA'!B:B,'2019-20 Nursery Budget'!X:X) -> 45108.3 | AA14: 0 | AB14: 955828.3313 | AC14: 205 | AD14: 4502.203031 | AE14: 0 | AH14: 8312405 | AK14: 910829.7144 | AL14: 0 | AM14: 14321.90692 | AN14: 0 | AO14: 0.01548060511
A15: Bishop Lonsdale Church of England Aided Primary School | B15: 2011 | C15: 571783.4488 | D15: 111206.0537 | E15: 0 | F15: 39451.6785 | G15: 12494.62958 | H15: 0 | I15: 110000 | J15: 0 | K15: 5987.25 | L15: 0 | M15: 850923.0605 | N15: 0 | O15: 0 | P15: 850923.0605 | Q15: 0 | R15: 850923.0605 | S15: 0 | T15: 850923.0605 | U15: 2663 | V15: =SUMIF('ERS 2019-20'!B:B,'2019-20 FORMULA'!B:B,'ERS 2019-20'!X:X) -> 0 | Z15: =SUMIF('2019-20 Nursery Budget'!D:D,'2019-20 FORMULA'!B:B,'2019-20 Nursery Budget'!X:X) -> 68752.8 | AA15: 0 | AB15: 922338.8605 | AC15: 209 | AD15: 4071.402203 | AE15: 0 | AF15: 2011 new number | AH15: 8312011 | AK15: 841089.3451 | AL15: 0 | AM15: 12496.7154 | AN15: 0 | AO15: 0.01464025243
A16: Borrow Wood Primary School | B16: 5201 | C16: 982154.345 | D16: 60858.7516 | E16: 0 | F16: 51902.00062 | G16: 2901.586356 | H16: 0 | I16: 110000 | J16: 0 | K16: 25047 | L16: 0 | M16: 1232863.684 | N16: -1909.796306 | O16: 0 | P16: 1230953.887 | Q16: 0 | R16: 1230953.887 | S16: -25272.882 | T16: 1205681.005 | U16: 12734 | V16: =SUMIF('ERS 2019-20'!B:B,'2019-20 FORMULA'!B:B,'ERS 2019-20'!X:X) -> 0 | Z16: =SUMIF('2019-20 Nursery Budget'!D:D,'2019-20 FORMULA'!B:B,'2019-20 Nursery Budget'!X:X) -> 60722.1 | AA16: 0 | AB16: 1279137.105 | AC16: 359 | AD16: 3428.840912 | AE16: 0 | AH16: 8315201 | AK16: 1281089.77 | AL16: -5121.498058 | AM16: -37401.88307 | AN16: 3211.701752 | AO16: -0.03007336765
A17: Brackensdale ER (Enhanced Resource) Primary School | B17: 2432 | C17: 1289932.517 | D17: 299107.013 | E17: 0 | F17: 109025.3227 | G17: 15743.90495 | H17: 0 | I17: 110000 | J17: 0 | K17: 21366.75 | L17: 0 | M17: 1845175.508 | N17: 38343.13102 | O17: 0 | P17: 1883518.639 | Q17: 0 | R17: 1883518.639 | S17: -33192.657 | T17: 1850325.982 | U17: 21764 | V17: =SUMIF('ERS 2019-20'!B:B,'2019-20 FORMULA'!B:B,'ERS 2019-20'!X:X) -> 753800 | Z17: =SUMIF('2019-20 Nursery Budget'!D:D,'2019-20 FORMULA'!B:B,'2019-20 Nursery Budget'!X:X) -> 110546 | AA17: 0 | AB17: 2736435.982 | AC17: 471.5 | AD17: 3994.737304 | AE17: 0 | AH17: 8312432 | AK17: 1969429.914 | AL17: 84875.8316 | AM17: -64147.27473 | AN17: -46532.70058 | AO17: -0.03366811486 | AP17: Lump Sum and MFG
A18: Breadsall Hill Top Primary School | B18: 2018 | C18: 1036870.465 | D18: 186586.3475 | E18: 0 | F18: 85580.0492 | G18: 14407.20141 | H18: 0 | I18: 110000 | J18: 0 | K18: 5014.75 | L18: 0 | M18: 1438458.813 | N18: -4242.463183 | O18: 0 | P18: 1434216.349 | Q18: 0 | R18: 1434216.349 | S18: 0 | T18: 1434216.349 | U18: 12734 | V18: =SUMIF('ERS 2019-20'!B:B,'2019-20 FORMULA'!B:B,'ERS 2019-20'!X:X) -> 0 | Z18: =SUMIF('2019-20 Nursery Budget'!D:D,'2019-20 FORMULA'!B:B,'2019-20 Nursery Budget'!X:X) -> 125247.3 | AA18: 0 | AB18: 1572197.649 | AC18: 379 | AD18: 3784.212004 | AE18: 0 | AH18: 8312447 | AK18: 1521375.172 | AL18: 0 | AM18: -74424.82246 | AN18: -4242.463183 | AO18: -0.05143564359 | AP18: NOR 36 pupils lower in 19/20
A19: Brookfield Primary School | B19: 2512 | C19: 582726.6727 | D19: 26262.10259 | E19: 0 | F19: 37535.37435 | G19: 22067.87664 | H19: 0 | I19: 110000 | J19: 0 | K19: 19831 | L19: 0 | M19: 798423.0262 | N19: -2005.725793 | O19: 0 | P19: 796417.3005 | Q19: 0 | R19: 796417.3005 | S19: -14994.774 | T19: 781422.5265 | U19: 2200 | V19: =SUMIF('ERS 2019-20'!B:B,'2019-20 FORMULA'!B:B,'ERS 2019-20'!X:X) -> 0 | Z19: =SUMIF('2019-20 Nursery Budget'!D:D,'2019-20 FORMULA'!B:B,'2019-20 Nursery Budget'!X:X) -> 78270.8 | AA19: 0 | AB19: 861893.3265 | AC19: 213 | AD19: 3739.048359 | AE19: 0 | AH19: 8312512 | AK19: 776483.9839 | AL19: 0 | AM19: 22133.31656 | AN19: -2005.725793 | AO19: 0.02771454681
A20: Carlyle Infant School | B20: 2456 | C20: 489709.2695 | D20: 35602.16208 | E20: 0 | F20: 21414.50706 | G20: 16051.71312 | H20: 0 | I20: 110000 | J20: 0 | K20: 12885 | L20: 0 | M20: 685662.6518 | N20: 0 | O20: 0 | P20: 685662.6518 | Q20: 0 | R20: 685662.6518 | S20: -12601.242 | T20: 673061.4098 | U20: 4863 | V20: =SUMIF('ERS 2019-20'!B:B,'2019-20 FORMULA'!B:B,'ERS 2019-20'!X:X) -> 0 | Z20: =SUMIF('2019-20 Nursery Budget'!D:D,'2019-20 FORMULA'!B:B,'2019-20 Nursery Budget'!X:X) -> 170872.4 | AA20: 0 | AB20: 848796.8098 | AC20: 179 | AD20: 3830.517608 | AE20: 0 | AH20: 8312456 | AK20: 677261.9549 | AL20: 0 | AM20: 13263.69691 | AN20: 0 | AO20: 0.01920811614
A21: Cavendish Close Infant School | B21: 2449 | C21: 705837.9415 | D21: 93192.38824 | E21: 0 | F21: 63246.92625 | G21: 8554.483235 | H21: 0 | I21: 110000 | J21: 0 | K21: 14004 | L21: 0 | M21: 994835.7393 | N21: -16931.58916 | O21: 0 | P21: 977904.1501 | Q21: 0 | R21: 977904.1501 | S21: -18162.684 | T21: 959741.4661 | U21: 7526 | V21: =SUMIF('ERS 2019-20'!B:B,'2019-20 FORMULA'!B:B,'ERS 2019-20'!X:X) -> 0 | Z21: =SUMIF('2019-20 Nursery Budget'!D:D,'2019-20 FORMULA'!B:B,'2019-20 Nursery Budget'!X:X) -> 196625.8 | AA21: 0 | AB21: 1163893.266 | AC21: 258 | AD21: 3790.326163 | AE21: 0 | AH21: 8312449 | AK21: 952795.4896 | AL21: -18260.95475 | AM21: 32634.66047 | AN21: 1329.36559 | AO21: 0.0331171727
A22: Cavendish Close Junior School | B22: 2019 | C22: 891872.7478 | D22: 128309.2994 | E22: 0 | F22: 77488.27731 | G22: 2562.125 | H22: 0 | I22: 110000 | J22: 0 | K22: 5464.5 | L22: 0 | M22: 1215696.95 | N22: -4036.325124 | O22: 0 | P22: 1211660.624 | Q22: 0 | R22: 1211660.624 | S22: 0 | T22: 1211660.624 | U22: 0 | V22: =SUMIF('ERS 2019-20'!B:B,'2019-20 FORMULA'!B:B,'ERS 2019-20'!X:X) -> 0 | Z22: =SUMIF('2019-20 Nursery Budget'!D:D,'2019-20 FORMULA'!B:B,'2019-20 Nursery Budget'!X:X) -> 0 | AA22: 0 | AB22: 1211660.624 | AC22: 326 | AD22: 3716.750382 | AE22: 0 | AH22: 8312448 | AK22: 1232372.965 | AL22: -13115.06915 | AM22: -20712.34024 | AN22: 9078.744029 | AO22: -0.01709417622
A23: Chaddesden Park Junior School | B23: 2467 | C23: 952060.4793 | D23: 158556.6202 | E23: 0 | F23: 62978.23831 | G23: 3531.166337 | H23: 0 | I23: 110000 | J23: 0 | K23: -7537 | L23: 0 | M23: 1279589.504 | N23: -8464.518771 | O23: 0 | P23: 1271124.985 | Q23: 0 | R23: 1271124.985 | S23: 0 | T23: 1271124.985 | U23: 11345 | V23: =SUMIF('ERS 2019-20'!B:B,'2019-20 FORMULA'!B:B,'ERS 2019-20'!X:X) -> 0 | Z23: =SUMIF('2019-20 Nursery Budget'!D:D,'2019-20 FORMULA'!B:B,'2019-20 Nursery Budget'!X:X) -> 98088.2 | AA23: 0 | AB23: 1380558.185 | AC23: 348 | AD23: 3652.658004 | AE23: 0 | AH23: 8312467 | AK23: 1316514.421 | AL23: -819.9074835 | AM23: -34044.43549 | AN23: -7644.611287 | AO23: -0.02654599007
A24: Chellaston Infant School | B24: 2455 | C24: 973946.9271 | D24: 78629.12667 | E24: 0 | F24: 50195.05765 | G24: 23563.00958 | H24: 0 | I24: 110000 | J24: 0 | K24: 25220 | L24: 0 | M24: 1261554.121 | N24: -3131.507308 | O24: 0 | P24: 1258422.614 | Q24: 0 | R24: 1258422.614 | S24: -25061.688 | T24: 1233360.926 | U24: 10652 | V24: =SUMIF('ERS 2019-20'!B:B,'2019-20 FORMULA'!B:B,'ERS 2019-20'!X:X) -> 0 | Z24: =SUMIF('2019-20 Nursery Budget'!D:D,'2019-20 FORMULA'!B:B,'2019-20 Nursery Budget'!X:X) -> 0 | AA24: 0 | AB24: 1244012.926 | AC24: 356 | AD24: 3534.894982 | AE24: 0 | AH24: 8312455 | AK24: 1231530.548 | AL24: -4557.202638 | AM24: 37544.06589 | AN24: 1425.69533 | AO24: 0.02958381287
A25: Chellaston Junior School | B25: 5203 | C25: 1400732.659 | D25: 108620.51 | E25: 0 | F25: 94947.77331 | G25: 4099.4 | H25: 0 | I25: 110000 | J25: 0 | K25: 6099.9 | L25: 0 | M25: 1724500.243 | N25: -6084.236734 | O25: 0 | P25: 1718416.006 | Q25: 0 | R25: 1718416.006 | S25: -36043.776 | T25: 1682372.23 | U25: 0 | V25: =SUMIF('ERS 2019-20'!B:B,'2019-20 FORMULA'!B:B,'ERS 2019-20'!X:X) -> 0 | Z25: =SUMIF('2019-20 Nursery Budget'!D:D,'2019-20 FORMULA'!B:B,'2019-20 Nursery Budget'!X:X) -> 0 | AA25: 0 | AB25: 1682372.23 | AC25: 512 | AD25: 3356.281261 | AE25: 0 | AH25: 8315203 | AK25: 1641481.996 | AL25: -1606.405906 | AM25: 76934.00958 | AN25: -4477.830828 | AO25: 0.04477030551
A26: Cherry Tree Hill Primary School | B26: 2451 | C26: 1540258.764 | D26: 184652.2273 | E26: 0 | F26: 109502.7743 | G26: 8795.587652 | H26: 0 | I26: 110000 | J26: 0 | K26: 34688.5 | L26: 0 | M26: 1987897.853 | N26: -17752.7743 | O26: 0 | P26: 1970145.079 | Q26: 0 | R26: 1970145.079 | S26: -39634.074 | T26: 1930511.005 | U26: 15397 | V26: =SUMIF('ERS 2019-20'!B:B,'2019-20 FORMULA'!B:B,'ERS 2019-20'!X:X) -> 0 | Z26: =SUMIF('2019-20 Nursery Budget'!D:D,'2019-20 FORMULA'!B:B,'2019-20 Nursery Budget'!X:X) -> 131677.2 | AA26: 0 | AB26: 2077585.205 | AC26: 563 | AD26: 3499.369589 | AE26: 0 | AH26: 8312451 | AK26: 1870642.383 | AL26: -30282.96151 | AM26: 114899.6963 | AN26: 12530.1872 | AO26: 0.05786817491
A27: Cottons Farm Primary School | B27: 2023 | C27: 298202.8513 | D27: 103302.2455 | E27: 0 | F27: 32487.88224 | G27: 17454.47656 | H27: 0 | I27: 110000 | J27: 0 | K27: 4804.2 | L27: 25320 | M27: =SUM(C27:L27) -> 591571.6556 | N27: 0 | O27: 0 | P27: =SUM(M27:O27) -> 591571.6556 | Q27: =AE27 -> 0 | R27: =P27+Q27 -> 591571.6556 | S27: 0 | T27: =R27+S27 -> 591571.6556 | U27: 10071 | V27: =SUMIF('ERS 2019-20'!B:B,'2019-20 FORMULA'!B:B,'ERS 2019-20'!X:X) -> 0 | Z27: =SUMIF('2019-20 Nursery Budget'!D:D,'2019-20 FORMULA'!B:B,'2019-20 Nursery Budget'!X:X) -> 17605.2 | AA27: 0 | AB27: =SUM(T27:AA27) -> 619247.8556 | AC27: 109 | AD27: =P27/AC27 -> 5427.262895 | AE27: =IF(AD27<$AE$1,((AC27*$AE$1)-(P27)),0) -> 0 | AH27: 8312430 | AK27: 710626 | AL27: 370 | AM27: =+P27+U27-AK27 -> -108983.3444 | AN27: =+N27-AL27 -> -370 | AO27: =+AM27/(U27+P27) -> -0.1811429814 | AP27: NOR 20 pupils lower in 19/20
A28: Dale Community Primary School | B28: 2409 | C28: 1504693.286 | D28: 323305.35 | E28: 0 | F28: 144977.1169 | G28: 120785.8929 | H28: 0 | I28: 110000 | J28: 0 | K28: 37666 | L28: 0 | M28: 2241427.646 | N28: -6414.925217 | O28: 0 | P28: 2235012.721 | Q28: 0 | R28: 2235012.721 | S28: -38718.9 | T28: 2196293.821 | U28: 14934 | V28: =SUMIF('ERS 2019-20'!B:B,'2019-20 FORMULA'!B:B,'ERS 2019-20'!X:X) -> 0 | Z28: =SUMIF('2019-20 Nursery Budget'!D:D,'2019-20 FORMULA'!B:B,'2019-20 Nursery Budget'!X:X) -> 0 | AA28: 0 | AB28: 2211227.821 | AC28: 550 | AD28: 4063.659492 | AE28: 0 | AH28: 8312409 | AK28: 2151407.642 | AL28: 2980.000107 | AM28: 98539.07883 | AN28: -9394.925325 | AO28: 0.04379618323
A29: Derby St Chad's CE (VC) Nursery and Infant School | B29: 3158 | C29: 328296.717 | D29: 67998.3 | E29: 0 | F29: 33693.96716 | G29: 57647.8125 | H29: 1158.18 | I29: 110000 | J29: 0 | K29: 1637.5 | L29: 0 | M29: 600432.4767 | N29: 0 | O29: 0 | P29: 600432.4767 | Q29: 0 | R29: 600432.4767 | S29: 0 | T29: 600432.4767 | U29: 13660 | V29: =SUMIF('ERS 2019-20'!B:B,'2019-20 FORMULA'!B:B,'ERS 2019-20'!X:X) -> 0 | Z29: =SUMIF('2019-20 Nursery Budget'!D:D,'2019-20 FORMULA'!B:B,'2019-20 Nursery Budget'!X:X) -> 43561.1 | AA29: 0 | AB29: 657653.5767 | AC29: 120 | AD29: 5003.603972 | AE29: 0 | AH29: 8313158 | AK29: 590201.35 | AL29: 15733.88718 | AM29: 23891.12671 | AN29: -15733.88718 | AO29: 0.03890477024
A30: Derwent Community School | B30: 2016 | C30: 662065.0459 | D30: 219453.7446 | E30: 0 | F30: 58622.9099 | G30: 18718.01509 | H30: 0 | I30: 110000 | J30: 0 | K30: 5721 | L30: 0 | M30: 1074580.716 | N30: 0 | O30: 0 | P30: 1074580.716 | Q30: 0 | R30: 1074580.716 | S30: 0 | T30: 1074580.716 | U30: 2200 | V30: =SUMIF('ERS 2019-20'!B:B,'2019-20 FORMULA'!B:B,'ERS 2019-20'!X:X) -> 0 | Z30: =SUMIF('2019-20 Nursery Budget'!D:D,'2019-20 FORMULA'!B:B,'2019-20 Nursery Budget'!X:X) -> 76281.3 | AA30: 0 | AB30: 1153062.016 | AC30: 242 | AD30: 4440.41618 | AE30: 0 | AH30: 8312619 | AK30: 1063536.349 | AL30: 0 | AM30: 13244.36603 | AN30: 0 | AO30: 0.01229996585
A31: Firs Estate Primary School | B31: 2013 | C31: 1006776.599 | D31: 293398.9758 | E31: 0 | F31: 120540.5762 | G31: 93426.44742 | H31: 85242.048 | I31: 110000 | J31: 0 | K31: 1452.5 | L31: 0 | M31: 1710837.146 | N31: -2133.595786 | O31: 0 | P31: 1708703.55 | Q31: 0 | R31: 1708703.55 | S31: 0 | T31: 1708703.55 | U31: 14123 | V31: =SUMIF('ERS 2019-20'!B:B,'2019-20 FORMULA'!B:B,'ERS 2019-20'!X:X) -> 0 | Z31: =SUMIF('2019-20 Nursery Budget'!D:D,'2019-20 FORMULA'!B:B,'2019-20 Nursery Budget'!X:X) -> 32814.6 | AA31: 0 | AB31: 1755641.15 | AC31: 368 | AD31: 4643.216169 | AE31: 0 | AH31: 8312518 | AK31: 1663281.32 | AL31: 0 | AM31: 59545.23068 | AN31: -2133.595786 | AO31: 0.03456252208
A32: Gayton Community Junior School | B32: 2457 | C32: 1012248.211 | D32: 90045.04077 | E32: 0 | F32: 89904.87417 | G32: 17934.875 | H32: 0 | I32: 110000 | J32: 0 | K32: 21869 | L32: 0 | M32: 1342002.001 | N32: 0 | O32: 0 | P32: 1342002.001 | Q32: 0 | R32: 1342002.001 | S32: -26047.26 | T32: 1315954.741 | U32: 0 | V32: =SUMIF('ERS 2019-20'!B:B,'2019-20 FORMULA'!B:B,'ERS 2019-20'!X:X) -> 0 | Z32: =SUMIF('2019-20 Nursery Budget'!D:D,'2019-20 FORMULA'!B:B,'2019-20 Nursery Budget'!X:X) -> 0 | AA32: 0 | AB32: 1315954.741 | AC32: 370 | AD32: 3627.032434 | AE32: 0 | AH32: 8312457 | AK32: 1291688.862 | AL32: -6130.034059 | AM32: 50313.13872 | AN32: 6130.034059 | AO32: 0.0374911056
A33: Grampian Primary Academy | B33: 2010 | C33: 571783.4488 | D33: 160916.949 | E33: 0 | F33: 34200.23149 | G33: 16154.26969 | H33: 0 | I33: 110000 | J33: 0 | K33: 3950 | L33: 0 | M33: 897004.899 | N33: 15334.9562 | O33: 0 | P33: 912339.8552 | Q33: 0 | R33: 912339.8552 | S33: 0 | T33: 912339.8552 | U33: 2200 | V33: =SUMIF('ERS 2019-20'!B:B,'2019-20 FORMULA'!B:B,'ERS 2019-20'!X:X) -> 0 | Z33: =SUMIF('2019-20 Nursery Budget'!D:D,'2019-20 FORMULA'!B:B,'2019-20 Nursery Budget'!X:X) -> 103330.4 | AA33: 0 | AB33: 1017870.255 | AC33: 209 | AD33: 4365.262465 | AE33: 0 | AH33: 8312010 | AK33: 900176.1666 | AL33: 24729.15516 | AM33: 14363.68862 | AN33: -9394.198963 | AO33: 0.0157059187
A34: Griffe Field Primary School | B34: 2002 | C34: 1165453.345 | D34: 22191.59646 | E34: 0 | F34: 58851.44059 | G34: 26314.77863 | H34: 0 | I34: 110000 | J34: 0 | K34: 10246.6 | L34: 0 | M34: 1393057.761 | N34: 0 | O34: 0 | P34: 1393057.761 | Q34: 12742.23898 | R34: 1405800 | S34: 0 | T34: 1405800 | U34: 20027 | V34: =SUMIF('ERS 2019-20'!B:B,'2019-20 FORMULA'!B:B,'ERS 2019-20'!X:X) -> 0 | Z34: =SUMIF('2019-20 Nursery Budget'!D:D,'2019-20 FORMULA'!B:B,'2019-20 Nursery Budget'!X:X) -> 120377.9 | AA34: 0 | AB34: 1546204.9 | AC34: 426 | AD34: 3270.088641 | AE34: 12742.23898 | AH34: 8312002 | AK34: 1414990.17 | AL34: 0 | AM34: -1905.408891 | AN34: 0 | AO34: -0.001348403821
A35: Hackwood Primary School | B35: 9998 | C35: 47603.02396 | D35: 2010.447558 | E35: 0 | F35: 0 | G35: 1040.702492 | H35: 0 | I35: 63799.84699 | J35: 0 | K35: 3324.84 | L35: 0 | M35: 117778.861 | N35: 0 | O35: 0 | P35: 117778.861 | Q35: 0 | R35: 117778.861 | S35: 0 | T35: 117778.861 | U35: 8033.8 | V35: =SUMIF('ERS 2019-20'!B:B,'2019-20 FORMULA'!B:B,'ERS 2019-20'!X:X) -> 0 | Z35: =SUMIF('2019-20 Nursery Budget'!D:D,'2019-20 FORMULA'!B:B,'2019-20 Nursery Budget'!X:X) -> 0 | AA35: 0 | AB35: 125812.661 | AC35: 17.4 | AD35: 6768.900058 | AE35: 0 | AH35: 8319998 | AK35: 0 | AL35: 0 | AM35: 125812.661 | AN35: 0 | AO35: 1
A36: Hardwick Primary School | B36: 3544 | C36: 1474599.421 | D36: 393763.29 | E36: 0 | F36: 160204.4426 | G36: 125701.3828 | H36: 8223.078 | I36: 110000 | J36: 0 | K36: 13383 | L36: 144033 | M36: 2429907.614 | N36: 0 | O36: 0 | P36: 2429907.614 | Q36: 0 | R36: 2429907.614 | S36: 0 | T36: 2429907.614 | U36: 4400 | V36: =SUMIF('ERS 2019-20'!B:B,'2019-20 FORMULA'!B:B,'ERS 2019-20'!X:X) -> 0 | Z36: =SUMIF('2019-20 Nursery Budget'!D:D,'2019-20 FORMULA'!B:B,'2019-20 Nursery Budget'!X:X) -> 117570.2 | AA36: 0 | AB36: 2551877.814 | AC36: 539 | AD36: 4508.177391 | AE36: 0 | AH36: 8313544 | AK36: 2391047.343 | AL36: 18161.22129 | AM36: 43260.27097 | AN36: -18161.22129 | AO36: 0.0177710782
A37: Homefields Primary School | B37: 2006 | C37: 864514.6881 | D37: 9004.241047 | E37: 0 | F37: 47960.78209 | G37: 9926.516475 | H37: 0 | I37: 110000 | J37: 0 | K37: 36209 | L37: 0 | M37: 1077615.228 | N37: -2951.368842 | O37: 0 | P37: =SUM(M37:O37) -> 1074663.859 | Q37: 0 | R37: 1074663.859 | S37: -22245.768 | T37: 1052418.091 | U37: 11345 | V37: =SUMIF('ERS 2019-20'!B:B,'2019-20 FORMULA'!B:B,'ERS 2019-20'!X:X) -> 0 | Z37: =SUMIF('2019-20 Nursery Budget'!D:D,'2019-20 FORMULA'!B:B,'2019-20 Nursery Budget'!X:X) -> 114485.3 | AA37: 0 | AB37: 1178248.391 | AC37: 316 | AD37: 3400.834996 | AE37: 0 | AH37: 8312006 | AK37: 1023434.183 | AL37: -8346.651142 | AM37: 62574.67551 | AN37: 5395.2823 | AO37: 0.05761893653
A38: Lakeside Community Primary School | B38: 2434 | C38: 1630540.361 | D38: 383164.7488 | E38: 0 | F38: 139481.6858 | G38: 25699.46751 | H38: 0 | I38: 110000 | J38: 0 | K38: 10769.4 | L38: 155118 | M38: 2454773.663 | N38: 0 | O38: 0 | P38: 2454773.663 | Q38: 0 | R38: 2454773.663 | S38: 0 | T38: 2454773.663 | U38: 8915 | V38: =SUMIF('ERS 2019-20'!B:B,'2019-20 FORMULA'!B:B,'ERS 2019-20'!X:X) -> 0 | Z38: =SUMIF('2019-20 Nursery Budget'!D:D,'2019-20 FORMULA'!B:B,'2019-20 Nursery Budget'!X:X) -> 211484.94 | AA38: 0 | AB38: 2675173.603 | AC38: 596 | AD38: 4118.747757 | AE38: 0 | AH38: 8312434 | AK38: 2432800.157 | AL38: 0 | AM38: 30888.5061 | AN38: 0 | AO38: 0.01253750385
A39: Lawn Primary School | B39: 2522 | C39: 1184603.987 | D39: 58613.09791 | E39: 0 | F39: 55194.21117 | G39: 16700.64704 | H39: 1968.906 | I39: 110000 | J39: 0 | K39: 20446 | L39: 0 | M39: 1447526.849 | N39: 0 | O39: 0 | P39: 1447526.849 | Q39: 0 | R39: 1447526.849 | S39: -30482.334 | T39: 1417044.515 | U39: 20027 | V39: =SUMIF('ERS 2019-20'!B:B,'2019-20 FORMULA'!B:B,'ERS 2019-20'!X:X) -> 0 | Z39: =SUMIF('2019-20 Nursery Budget'!D:D,'2019-20 FORMULA'!B:B,'2019-20 Nursery Budget'!X:X) -> 0 | AA39: 0 | AB39: 1437071.515 | AC39: 433 | AD39: 3343.018128 | AE39: 0 | AH39: 8312522 | AK39: 1404548.68 | AL39: 0 | AM39: 63005.16969 | AN39: 0 | AO39: 0.04293210074
A40: Markeaton Primary School | B40: 2436 | C40: 1102529.808 | D40: 122332.5949 | E40: 0 | F40: 54560.05962 | G40: 10235.05445 | H40: 0 | I40: 110000 | J40: 0 | K40: 27298 | L40: 0 | M40: 1426955.517 | N40: -3500.157919 | O40: 0 | P40: 1423455.359 | Q40: 0 | R40: 1423455.359 | S40: -28370.394 | T40: 1395084.965 | U40: 4400 | V40: =SUMIF('ERS 2019-20'!B:B,'2019-20 FORMULA'!B:B,'ERS 2019-20'!X:X) -> 92940 | Z40: =SUMIF('2019-20 Nursery Budget'!D:D,'2019-20 FORMULA'!B:B,'2019-20 Nursery Budget'!X:X) -> 0 | AA40: 0 | AB40: 1492424.965 | AC40: 403 | AD40: 3532.147293 | AE40: 0 | AH40: 8312436 | AK40: 1340335.702 | AL40: 0 | AM40: 87519.65714 | AN40: -3500.157919 | AO40: 0.06129448378
A41: Meadow Farm Community Primary School | B41: 2452 | C41: 478766.0456 | D41: 78909.36647 | E41: 0 | F41: 41727.55517 | G41: 7771.779167 | H41: 5211.81 | I41: 110000 | J41: 0 | K41: 16944.5 | L41: 0 | M41: 739331.0564 | N41: -9538.168949 | O41: 0 | P41: 729792.8875 | Q41: 0 | R41: 729792.8875 | S41: -12319.65 | T41: 717473.2375 | U41: 4515 | V41: =SUMIF('ERS 2019-20'!B:B,'2019-20 FORMULA'!B:B,'ERS 2019-20'!X:X) -> 0 | Z41: =SUMIF('2019-20 Nursery Budget'!D:D,'2019-20 FORMULA'!B:B,'2019-20 Nursery Budget'!X:X) -> 60015.8 | AA41: 0 | AB41: 782004.0375 | AC41: 175 | AD41: 4170.245071 | AE41: 0 | AH41: 8312452 | AK41: 710598.9009 | AL41: 0 | AM41: 23708.98654 | AN41: -9538.168949 | AO41: 0.03228752808
A42: Mickleover Primary School | B42: 2627 | C42: 1146302.704 | D42: 46052.84506 | E42: 0 | F42: 60259.4487 | G42: 18540.0789 | H42: 0 | I42: 110000 | J42: 0 | K42: 17978 | L42: 0 | M42: 1399133.076 | N42: -5825.536334 | O42: 0 | P42: 1393307.54 | Q42: 0 | R42: 1393307.54 | S42: -29496.762 | T42: 1363810.778 | U42: 4400 | V42: =SUMIF('ERS 2019-20'!B:B,'2019-20 FORMULA'!B:B,'ERS 2019-20'!X:X) -> 0 | Z42: =SUMIF('2019-20 Nursery Budget'!D:D,'2019-20 FORMULA'!B:B,'2019-20 Nursery Budget'!X:X) -> 0 | AA42: 0 | AB42: 1368210.778 | AC42: 419 | AD42: 3325.316324 | AE42: 0 | AH42: 8312627 | AK42: 1359401.844 | AL42: -2344.757814 | AM42: 38305.69552 | AN42: -3480.77852 | AO42: 0.02740608778
A43: Landau Forte Academy Moorhead | B43: 2009 | C43: 714045.3595 | D43: 189854.6211 | E43: 0 | F43: 52334.02901 | G43: 9682.745701 | H43: 0 | I43: 110000 | J43: 0 | K43: 3446 | L43: 0 | M43: 1079362.755 | N43: 4693.483837 | O43: 0 | P43: 1084056.239 | Q43: 0 | R43: 1084056.239 | S43: 0 | T43: 1084056.239 | U43: 13660 | V43: =SUMIF('ERS 2019-20'!B:B,'2019-20 FORMULA'!B:B,'ERS 2019-20'!X:X) -> 0 | Z43: =SUMIF('2019-20 Nursery Budget'!D:D,'2019-20 FORMULA'!B:B,'2019-20 Nursery Budget'!X:X) -> 0 | AA43: 0 | AB43: 1097716.239 | AC43: 261 | AD43: 4153.472181 | AE43: 0 | AH43: 8312009 | AK43: 1072173.338 | AL43: 29694.28246 | AM43: 25542.90088 | AN43: -25000.79862 | AO43: 0.0232691291
A44: Oakwood Infant and Nursery School | B44: 2473 | C44: 735931.8073 | D44: 147558.5 | E44: 0 | F44: 45334.44154 | G44: 9240.826257 | H44: 0 | I44: 110000 | J44: 0 | K44: 18238.375 | L44: 0 | M44: 1066303.95 | N44: 0 | O44: 0 | P44: 1066303.95 | Q44: 0 | R44: 1066303.95 | S44: -18937.062 | T44: 1047366.888 | U44: 6600 | V44: =SUMIF('ERS 2019-20'!B:B,'2019-20 FORMULA'!B:B,'ERS 2019-20'!X:X) -> 0 | Z44: =SUMIF('2019-20 Nursery Budget'!D:D,'2019-20 FORMULA'!B:B,'2019-20 Nursery Budget'!X:X) -> 205291.8 | AA44: 0 | AB44: 1259258.688 | AC44: 269 | AD44: 3963.955205 | AE44: 0 | AH44: 8312473 | AK44: 1085545.506 | AL44: -3909.934696 | AM44: -12641.55551 | AN44: 3909.934696 | AO44: -0.01178256032
A45: Oakwood Junior School | B45: 2471 | C45: 943853.0614 | D45: 206022.9809 | E45: 0 | F45: 97567.28609 | G45: 1537.275 | H45: 0 | I45: 110000 | J45: 0 | K45: 18238.375 | L45: 0 | M45: 1377218.978 | N45: 0 | O45: 0 | P45: 1377218.978 | Q45: 0 | R45: 1377218.978 | S45: -24287.31 | T45: 1352931.668 | U45: 0 | V45: =SUMIF('ERS 2019-20'!B:B,'2019-20 FORMULA'!B:B,'ERS 2019-20'!X:X) -> 0 | Z45: =SUMIF('2019-20 Nursery Budget'!D:D,'2019-20 FORMULA'!B:B,'2019-20 Nursery Budget'!X:X) -> 0 | AA45: 0 | AB45: 1352931.668 | AC45: 345 | AD45: 3991.939068 | AE45: 0 | AH45: 8312471 | AK45: 1356285.66 | AL45: 0 | AM45: 20933.31826 | AN45: 0 | AO45: 0.01519970215
A46: Osmaston Primary School | B46: 2420 | C46: 1630540.361 | D46: 542429.1684 | E46: 0 | F46: 148065.9212 | G46: 70657.82275 | H46: 12045.072 | I46: 110000 | J46: 0 | K46: 5759.6 | L46: 0 | M46: 2519497.945 | N46: 111555.8885 | O46: 0 | P46: 2631053.834 | Q46: 0 | R46: 2631053.834 | S46: 0 | T46: 2631053.834 | U46: 14471 | V46: =SUMIF('ERS 2019-20'!B:B,'2019-20 FORMULA'!B:B,'ERS 2019-20'!X:X) -> 0 | Z46: =SUMIF('2019-20 Nursery Budget'!D:D,'2019-20 FORMULA'!B:B,'2019-20 Nursery Budget'!X:X) -> 124973.8 | AA46: 0 | AB46: 2770498.634 | AC46: 596 | AD46: 4414.519856 | AE46: 0 | AH46: 8312420 | AK46: 2640240.82 | AL46: 133238.8206 | AM46: 5284.014033 | AN46: -21682.93202 | AO46: 0.001997340552
A47: Parkview Primary School | B47: 2003 | C47: 574519.2547 | D47: 17268.4413 | E47: 0 | F47: 32991.79635 | G47: 3586.975 | H47: 0 | I47: 110000 | J47: 0 | K47: 32000 | L47: 0 | M47: 770366.4674 | N47: -2552.21849 | O47: 0 | P47: 767814.2489 | Q47: 0 | R47: 767814.2489 | S47: -14783.58 | T47: 753030.6689 | U47: 2200 | V47: =SUMIF('ERS 2019-20'!B:B,'2019-20 FORMULA'!B:B,'ERS 2019-20'!X:X) -> 0 | Z47: =SUMIF('2019-20 Nursery Budget'!D:D,'2019-20 FORMULA'!B:B,'2019-20 Nursery Budget'!X:X) -> 89902.16 | AA47: 0 | AB47: 845132.8289 | AC47: 210 | AD47: 3656.258328 | AE47: 0 | AH47: 8312003 | AK47: 745631.7971 | AL47: -5064.682854 | AM47: 24382.45183 | AN47: 2512.464364 | AO47: 0.0316649359
A48: Pear Tree Community Junior School | B48: 2017 | C48: 954796.2853 | D48: 290157.8359 | E48: 0 | F48: 127855.0451 | G48: 67127.675 | H48: 26753.958 | I48: 110000 | J48: 0 | K48: 3335 | L48: 0 | M48: 1580025.799 | N48: 11654.43102 | O48: 0 | P48: 1591680.23 | Q48: 0 | R48: 1591680.23 | S48: 0 | T48: 1591680.23 | U48: 0 | V48: =SUMIF('ERS 2019-20'!B:B,'2019-20 FORMULA'!B:B,'ERS 2019-20'!X:X) -> 0 | Z48: =SUMIF('2019-20 Nursery Budget'!D:D,'2019-20 FORMULA'!B:B,'2019-20 Nursery Budget'!X:X) -> 0 | AA48: 0 | AB48: 1591680.23 | AC48: 349 | AD48: 4560.688339 | AE48: 0 | AH48: 8312423 | AK48: 1608468.365 | AL48: 31050.21156 | AM48: -16788.13487 | AN48: -19395.78054 | AO48: -0.01054742941
A49: Pear Tree Infant School | B49: 2424 | C49: 694894.7176 | D49: 181452.0542 | E49: 0 | F49: 60672.16174 | G49: 106219.2236 | H49: 18067.608 | I49: 110000 | J49: 0 | K49: 9610.5 | L49: 0 | M49: 1180916.265 | N49: 25462.45737 | O49: 0 | P49: 1206378.722 | Q49: 0 | R49: 1206378.722 | S49: -17881.092 | T49: 1188497.63 | U49: 11230 | V49: =SUMIF('ERS 2019-20'!B:B,'2019-20 FORMULA'!B:B,'ERS 2019-20'!X:X) -> 0 | Z49: =SUMIF('2019-20 Nursery Budget'!D:D,'2019-20 FORMULA'!B:B,'2019-20 Nursery Budget'!X:X) -> 0 | AA49: 0 | AB49: 1199727.63 | AC49: 254 | AD49: 4749.522529 | AE49: 0 | AH49: 8312424 | AK49: 1250092.118 | AL49: 69361.08037 | AM49: -32483.39525 | AN49: -43898.623 | AO49: -0.02667802443
A50: Portway Infant School | B50: 2439 | C50: 659329.24 | D50: 24870.025 | E50: 0 | F50: 22797.25488 | G50: 4283.043642 | H50: 0 | I50: 110000 | J50: 0 | K50: 12154 | L50: 0 | M50: 833433.5635 | N50: -2276.92266 | O50: 0 | P50: 831156.6408 | Q50: 0 | R50: 831156.6408 | S50: -16965.918 | T50: 814190.7228 | U50: 17249 | V50: =SUMIF('ERS 2019-20'!B:B,'2019-20 FORMULA'!B:B,'ERS 2019-20'!X:X) -> 0 | Z50: =SUMIF('2019-20 Nursery Budget'!D:D,'2019-20 FORMULA'!B:B,'2019-20 Nursery Budget'!X:X) -> 0 | AA50: 0 | AB50: 831439.7228 | AC50: 241 | AD50: 3448.782742 | AE50: 0 | AH50: 8312439 | AK50: 884395.9802 | AL50: 0 | AM50: -35990.3394 | AN50: -2276.92266 | AO50: -0.04242114581
A51: Portway Junior School | B51: 2440 | C51: 971211.1211 | D51: 52159.22293 | E51: 0 | F51: 43568.47672 | G51: 512.425 | H51: 0 | I51: 110000 | J51: 0 | K51: 35245 | L51: 0 | M51: 1212696.246 | N51: -4078.793911 | O51: 0 | P51: 1208617.452 | Q51: 0 | R51: 1208617.452 | S51: -24991.29 | T51: 1183626.162 | U51: 0 | V51: =SUMIF('ERS 2019-20'!B:B,'2019-20 FORMULA'!B:B,'ERS 2019-20'!X:X) -> 0 | Z51: =SUMIF('2019-20 Nursery Budget'!D:D,'2019-20 FORMULA'!B:B,'2019-20 Nursery Budget'!X:X) -> 0 | AA51: 0 | AB51: 1183626.162 | AC51: 355 | AD51: 3404.556202 | AE51: 0 | AH51: 8312440 | AK51: 1128795.215 | AL51: -3588.274942 | AM51: 79822.2373 | AN51: -490.5189689 | AO51: 0.06604425344
A52: Ravensdale Infant and Nursery School | B52: 2462 | C52: 708573.7475 | D52: 73834.74932 | E52: 0 | F52: 37284.94569 | G52: 23148.50145 | H52: 0 | I52: 110000 | J52: 0 | K52: 18089.25 | L52: 0 | M52: 970931.194 | N52: 0 | O52: 0 | P52: 970931.194 | Q52: 0 | R52: 970931.194 | S52: -18233.082 | T52: 952698.112 | U52: 7989 | V52: =SUMIF('ERS 2019-20'!B:B,'2019-20 FORMULA'!B:B,'ERS 2019-20'!X:X) -> 0 | Z52: =SUMIF('2019-20 Nursery Budget'!D:D,'2019-20 FORMULA'!B:B,'2019-20 Nursery Budget'!X:X) -> 101154 | AA52: 0 | AB52: 1061841.112 | AC52: 259 | AD52: 3748.769089 | AE52: 0 | AH52: 8312462 | AK52: 960296.2908 | AL52: 0 | AM52: 18623.90317 | AN52: 0 | AO52: 0.01902494533
A53: Ravensdale Junior School | B53: 2463 | C53: 952060.4793 | D53: 107129.5623 | E53: 0 | F53: 69966.0198 | G53: 14860.325 | H53: 0 | I53: 110000 | J53: 0 | K53: 18089.25 | L53: 0 | M53: 1272105.636 | N53: 0 | O53: 0 | P53: 1272105.636 | Q53: 0 | R53: 1272105.636 | S53: -24498.504 | T53: 1247607.132 | U53: 0 | V53: =SUMIF('ERS 2019-20'!B:B,'2019-20 FORMULA'!B:B,'ERS 2019-20'!X:X) -> 0 | Z53: =SUMIF('2019-20 Nursery Budget'!D:D,'2019-20 FORMULA'!B:B,'2019-20 Nursery Budget'!X:X) -> 0 | AA53: 0 | AB53: 1247607.132 | AC53: 348 | AD53: 3655.475967 | AE53: 0 | AH53: 8312463 | AK53: 1245466.984 | AL53: -1022.030137 | AM53: 26638.652 | AN53: 1022.030137 | AO53: 0.02094059741
A54: Redwood Primary School | B54: 2505 | C54: 1603182.301 | D54: 327669.1149 | E54: 0 | F54: 133259.7874 | G54: 75638.97661 | H54: 13203.252 | I54: 110000 | J54: 0 | K54: 33542.75 | L54: 0 | M54: 2296496.182 | N54: -43.78537339 | O54: 0 | P54: 2296452.397 | Q54: 0 | R54: 2296452.397 | S54: -41253.228 | T54: 2255199.169 | U54: 6252 | V54: =SUMIF('ERS 2019-20'!B:B,'2019-20 FORMULA'!B:B,'ERS 2019-20'!X:X) -> 0 | Z54: =SUMIF('2019-20 Nursery Budget'!D:D,'2019-20 FORMULA'!B:B,'2019-20 Nursery Budget'!X:X) -> 189387.3 | AA54: 0 | AB54: 2450838.469 | AC54: 586 | AD54: 3918.860746 | AE54: 0 | AH54: 8312505 | AK54: 2193465.377 | AL54: 0 | AM54: 109239.0195 | AN54: -43.78537339 | AO54: 0.04743944537
A55: Reigate Park Primary School | B55: 2020 | C55: 946588.8673 | D55: 200585.2328 | E55: 0 | F55: 86102.65433 | G55: 22017.52908 | H55: 0 | I55: 110000 | J55: 0 | K55: 4608 | L55: 0 | M55: 1369902.284 | N55: -4703.245295 | O55: 0 | P55: 1365199.038 | Q55: 0 | R55: 1365199.038 | S55: 0 | T55: 1365199.038 | U55: 13660 | V55: =SUMIF('ERS 2019-20'!B:B,'2019-20 FORMULA'!B:B,'ERS 2019-20'!X:X) -> 252000 | Z55: =SUMIF('2019-20 Nursery Budget'!D:D,'2019-20 FORMULA'!B:B,'2019-20 Nursery Budget'!X:X) -> 70559 | AA55: 0 | AB55: 1701418.038 | AC55: 346 | AD55: 3945.66196 | AE55: 0 | AH55: 8312000 | AK55: 1298338 | AL55: -14616.33385 | AM55: 80521.03824 | AN55: 9913.088557 | AO55: 0.05839686001
A56: Ridgeway Infant School | B56: 2458 | C56: 727724.3893 | D56: 72312.73264 | E56: 0 | F56: 40800.58089 | G56: 69667.02556 | H56: 0 | I56: 110000 | J56: 0 | K56: 12149.5 | L56: 0 | M56: 1032654.228 | N56: -12431.67176 | O56: 0 | P56: 1020222.557 | Q56: 0 | R56: 1020222.557 | S56: -18725.868 | T56: 1001496.689 | U56: 8452 | V56: =SUMIF('ERS 2019-20'!B:B,'2019-20 FORMULA'!B:B,'ERS 2019-20'!X:X) -> 0 | Z56: =SUMIF('2019-20 Nursery Budget'!D:D,'2019-20 FORMULA'!B:B,'2019-20 Nursery Budget'!X:X) -> 0 | AA56: 0 | AB56: 1009948.689 | AC56: 266 | AD56: 3835.423145 | AE56: 0 | AH56: 8312458 | AK56: 986480.1784 | AL56: -17505.84097 | AM56: 42194.37823 | AN56: 5074.169214 | AO56: 0.04101819955
A57: Roe Farm Primary School | B57: 2001 | C57: 1116208.838 | D57: 279105.9927 | E57: 0 | F57: 97127.68994 | G57: 8268.281356 | H57: 7180.716 | I57: 110000 | J57: 0 | K57: 22275 | L57: 0 | M57: 1640166.518 | N57: 0 | O57: 0 | P57: 1640166.518 | Q57: 0 | R57: 1640166.518 | S57: -28722.384 | T57: 1611444.134 | U57: 7178 | V57: =SUMIF('ERS 2019-20'!B:B,'2019-20 FORMULA'!B:B,'ERS 2019-20'!X:X) -> 0 | Z57: =SUMIF('2019-20 Nursery Budget'!D:D,'2019-20 FORMULA'!B:B,'2019-20 Nursery Budget'!X:X) -> 154372.8 | AA57: 0 | AB57: 1772994.934 | AC57: 408 | AD57: 4020.015975 | AE57: 0 | AH57: 8312001 | AK57: 1573465.358 | AL57: 17307.39116 | AM57: 73879.15948 | AN57: -17307.39116 | AO57: 0.04484742486
A58: Rosehill Infant and Nursery School | B58: 2429 | C58: 399427.6723 | D58: 84167.00825 | E58: 0 | F58: 34322.77108 | G58: 59700.10051 | H58: 0 | I58: 110000 | J58: 0 | K58: 10322.5 | L58: 0 | M58: 697940.0522 | N58: 22800.47119 | O58: 0 | P58: 720740.5234 | Q58: 0 | R58: 720740.5234 | S58: -10278.108 | T58: 710462.4154 | U58: 10419 | V58: =SUMIF('ERS 2019-20'!B:B,'2019-20 FORMULA'!B:B,'ERS 2019-20'!X:X) -> 0 | Z58: =SUMIF('2019-20 Nursery Budget'!D:D,'2019-20 FORMULA'!B:B,'2019-20 Nursery Budget'!X:X) -> 107016.2 | AA58: 0 | AB58: 827897.6154 | AC58: 146 | AD58: 4936.578927 | AE58: 0 | AH58: 8312429 | AK58: 739317.0284 | AL58: 31817.64333 | AM58: -8157.505 | AN58: -9017.17214 | AO58: -0.01115694283
A59: Shelton Infant School | B59: 2444 | C59: 569047.6428 | D59: 93324.46884 | E59: 0 | F59: 30001.86099 | G59: 18764.85915 | H59: 0 | I59: 110000 | J59: 0 | K59: 13274 | L59: 0 | M59: 834412.8318 | N59: 0 | O59: 0 | P59: 834412.8318 | Q59: 0 | R59: 834412.8318 | S59: -14642.784 | T59: 819770.0478 | U59: 17712 | V59: =SUMIF('ERS 2019-20'!B:B,'2019-20 FORMULA'!B:B,'ERS 2019-20'!X:X) -> 0 | Z59: =SUMIF('2019-20 Nursery Budget'!D:D,'2019-20 FORMULA'!B:B,'2019-20 Nursery Budget'!X:X) -> 136462.2 | AA59: 0 | AB59: 973944.2478 | AC59: 208 | AD59: 4011.600153 | AE59: 0 | AH59: 8312444 | AK59: 847389.0342 | AL59: 0 | AM59: 4735.797589 | AN59: 0 | AO59: 0.005557633591
A60: Shelton Junior School | B60: 5209 | C60: 714045.3595 | D60: 145254.9179 | E60: 0 | F60: 66352.0725 | G60: 9736.075 | H60: 0 | I60: 110000 | J60: 0 | K60: 3561 | L60: 0 | M60: 1048949.425 | N60: 0 | O60: 0 | P60: 1048949.425 | Q60: 0 | R60: 1048949.425 | S60: -18373.878 | T60: 1030575.547 | U60: 0 | V60: =SUMIF('ERS 2019-20'!B:B,'2019-20 FORMULA'!B:B,'ERS 2019-20'!X:X) -> 0 | Z60: =SUMIF('2019-20 Nursery Budget'!D:D,'2019-20 FORMULA'!B:B,'2019-20 Nursery Budget'!X:X) -> 0 | AA60: 0 | AB60: 1030575.547 | AC60: 261 | AD60: 4018.963314 | AE60: 0 | AH60: 8315209 | AK60: 1048608.203 | AL60: 0 | AM60: 341.2219444 | AN60: 0 | AO60: 0.0003252987573
A61: Silverhill Primary School | B61: 2469 | C61: 1140831.092 | D61: 47296.68555 | E61: 0 | F61: 47115.90333 | G61: 13168.03067 | H61: 0 | I61: 110000 | J61: 0 | K61: 16942.5 | L61: 0 | M61: 1375354.211 | N61: 0 | O61: 0 | P61: 1375354.211 | Q61: 745.7888647 | R61: 1376100 | S61: -29355.966 | T61: 1346744.034 | U61: 4400 | V61: =SUMIF('ERS 2019-20'!B:B,'2019-20 FORMULA'!B:B,'ERS 2019-20'!X:X) -> 0 | Z61: =SUMIF('2019-20 Nursery Budget'!D:D,'2019-20 FORMULA'!B:B,'2019-20 Nursery Budget'!X:X) -> 0 | AA61: 0 | AB61: 1351144.034 | AC61: 417 | AD61: 3298.211537 | AE61: 745.7888647 | AH61: 8312469 | AK61: 1363890.635 | AL61: 0 | AM61: 15863.57598 | AN61: 0 | AO61: 0.01149739269
A62: Springfield Primary School | B62: 2466 | C62: 809798.5686 | D62: 90679.84868 | E62: 0 | F62: 52024.59457 | G62: 3070.40081 | H62: 3937.812 | I62: 110000 | J62: 0 | K62: 16194.5 | L62: 0 | M62: 1085705.725 | N62: 3386.166896 | O62: 0 | P62: 1089091.892 | Q62: 0 | R62: 1089091.892 | S62: -20837.808 | T62: 1068254.084 | U62: 9493 | V62: =SUMIF('ERS 2019-20'!B:B,'2019-20 FORMULA'!B:B,'ERS 2019-20'!X:X) -> 380000 | Z62: =SUMIF('2019-20 Nursery Budget'!D:D,'2019-20 FORMULA'!B:B,'2019-20 Nursery Budget'!X:X) -> 0 | AA62: 0 | AB62: 1457747.084 | AC62: 296 | AD62: 3679.364499 | AE62: 0 | AH62: 8312466 | AK62: 1067152.524 | AL62: 8603.27611 | AM62: 31432.36781 | AN62: -5217.109214 | AO62: 0.02861168768
A63: St Alban's Catholic Primary School | B63: 3543 | C63: 839892.4343 | D63: 90638.26917 | E63: 0 | F63: 48442.53569 | G63: 18996.46491 | H63: 0 | I63: 110000 | J63: 0 | K63: 5571 | L63: 0 | M63: 1113540.704 | N63: -631.9918769 | O63: 0 | P63: 1112908.712 | Q63: 0 | R63: 1112908.712 | S63: 0 | T63: 1112908.712 | U63: 12734 | V63: =SUMIF('ERS 2019-20'!B:B,'2019-20 FORMULA'!B:B,'ERS 2019-20'!X:X) -> 0 | Z63: =SUMIF('2019-20 Nursery Budget'!D:D,'2019-20 FORMULA'!B:B,'2019-20 Nursery Budget'!X:X) -> 194483.5 | AA63: 0 | AB63: 1320126.212 | AC63: 307 | AD63: 3625.109812 | AE63: 0 | AH63: 8313543 | AK63: 1088763.832 | AL63: 0 | AM63: 36878.87985 | AN63: -631.9918769 | AO63: 0.03276250932
A64: St George's Catholic Voluntary Academy | B64: 3531 | C64: 924702.4195 | D64: 115952.1607 | E64: 0 | F64: 56091.36993 | G64: 14778.12713 | H64: 0 | I64: 110000 | J64: 0 | K64: 4086 | L64: 0 | M64: 1225610.077 | N64: 0 | O64: 0 | P64: 1225610.077 | Q64: 0 | R64: 1225610.077 | S64: 0 | T64: 1225610.077 | U64: 11345 | V64: =SUMIF('ERS 2019-20'!B:B,'2019-20 FORMULA'!B:B,'ERS 2019-20'!X:X) -> 0 | Z64: =SUMIF('2019-20 Nursery Budget'!D:D,'2019-20 FORMULA'!B:B,'2019-20 Nursery Budget'!X:X) -> 0 | AA64: 0 | AB64: 1236955.077 | AC64: 338 | AD64: 3626.065318 | AE64: 0 | AH64: 8313531 | AK64: 1221337.197 | AL64: 0 | AM64: 15617.88009 | AN64: 0 | AO64: 0.01262606895
A65: St James' Church of England Aided Infant School | B65: 3526 | C65: 229807.7019 | D65: 51988.75 | E65: 0 | F65: 15605.35038 | G65: 34138.1069 | H65: 3011.268 | I65: 110000 | J65: 0 | K65: 1131.5 | L65: 0 | M65: 445682.6772 | N65: 11049.69915 | O65: 0 | P65: 456732.3763 | Q65: 0 | R65: 456732.3763 | S65: -5913.432 | T65: 450818.9443 | U65: 4052 | V65: =SUMIF('ERS 2019-20'!B:B,'2019-20 FORMULA'!B:B,'ERS 2019-20'!X:X) -> 0 | Z65: =SUMIF('2019-20 Nursery Budget'!D:D,'2019-20 FORMULA'!B:B,'2019-20 Nursery Budget'!X:X) -> 42159.8 | AA65: 0 | AB65: 497030.7443 | AC65: 84 | AD65: 5437.290194 | AE65: 0 | AH65: 8313526 | AK65: 458354.354 | AL65: 17956.70266 | AM65: 2430.022294 | AN65: -6907.003507 | AO65: 0.005273664687
A66: St James' Church of England Aided Junior School | B66: 3535 | C66: 809798.5686 | D66: 209079.9392 | E66: 0 | F66: 98352.88719 | G66: 49011.53401 | H66: 2779.632 | I66: 110000 | J66: 0 | K66: 3297 | L66: 0 | M66: 1282319.561 | N66: 0 | O66: 0 | P66: 1282319.561 | Q66: 0 | R66: 1282319.561 | S66: -20837.808 | T66: 1261481.753 | U66: 0 | V66: =SUMIF('ERS 2019-20'!B:B,'2019-20 FORMULA'!B:B,'ERS 2019-20'!X:X) -> 0 | Z66: =SUMIF('2019-20 Nursery Budget'!D:D,'2019-20 FORMULA'!B:B,'2019-20 Nursery Budget'!X:X) -> 0 | AA66: 0 | AB66: 1261481.753 | AC66: 296 | AD66: 4332.160679 | AE66: 0 | AH66: 8313535 | AK66: 1247625.674 | AL66: 3670.495135 | AM66: 34693.88744 | AN66: -3670.495135 | AO66: 0.02705557062
A67: St John Fisher Catholic Voluntary Academy | B67: 2008 | C67: 623763.7623 | D67: 106783.4 | E67: 0 | F67: 46980.318 | G67: 17025.9 | H67: 0 | I67: 110000 | J67: 0 | K67: 2829 | L67: 0 | M67: 907382.3803 | N67: 0 | O67: 0 | P67: 907382.3803 | Q67: 0 | R67: 907382.3803 | S67: 0 | T67: 907382.3803 | U67: 2663 | V67: =SUMIF('ERS 2019-20'!B:B,'2019-20 FORMULA'!B:B,'ERS 2019-20'!X:X) -> 0 | Z67: =SUMIF('2019-20 Nursery Budget'!D:D,'2019-20 FORMULA'!B:B,'2019-20 Nursery Budget'!X:X) -> 0 | AA67: 0 | AB67: 910045.3803 | AC67: 228 | AD67: 3979.747282 | AE67: 0 | AH67: 8312008 | AK67: 893444.6691 | AL67: 0 | AM67: 16600.71124 | AN67: 0 | AO67: 0.01824163015
A68: St Joseph's Catholic Primary School, Derby | B68: 3542 | C68: 1036870.465 | D68: 169303.2874 | E68: 0 | F68: 54426.90256 | G68: 81772.24211 | H68: 0 | I68: 110000 | J68: 0 | K68: 6555.6 | L68: 0 | M68: 1458928.497 | N68: -1436.315736 | O68: 0 | P68: =SUM(M68:O68) -> 1457492.181 | Q68: 0 | R68: 1457492.181 | S68: 0 | T68: 1457492.181 | U68: 6252 | V68: =SUMIF('ERS 2019-20'!B:B,'2019-20 FORMULA'!B:B,'ERS 2019-20'!X:X) -> 0 | Z68: =SUMIF('2019-20 Nursery Budget'!D:D,'2019-20 FORMULA'!B:B,'2019-20 Nursery Budget'!X:X) -> 0 | AA68: 0 | AB68: 1463744.181 | AC68: 379 | AD68: 3845.625807 | AE68: 0 | AH68: 8313542 | AK68: 1347326.618 | AL68: 1749.426054 | AM68: 116417.5627 | AN68: -3185.741791 | AO68: 0.07953409085
A69: St Mary's Catholic Primary School and Nursery | B69: 3528 | C69: 891872.7478 | D69: 127999.2973 | E69: 0 | F69: 76593.47639 | G69: 46727.42657 | H69: 0 | I69: 110000 | J69: 0 | K69: 8779.1 | L69: 0 | M69: 1261972.048 | N69: -4553.512405 | O69: 0 | P69: 1257418.536 | Q69: =AE69 -> 0 | R69: =P69+Q69 -> 1257418.536 | S69: 0 | T69: =R69+S69 -> 1257418.536 | U69: 16438 | V69: =SUMIF('ERS 2019-20'!B:B,'2019-20 FORMULA'!B:B,'ERS 2019-20'!X:X) -> 0 | Z69: =SUMIF('2019-20 Nursery Budget'!D:D,'2019-20 FORMULA'!B:B,'2019-20 Nursery Budget'!X:X) -> 101619.7 | AA69: 0 | AB69: 1375476.236 | AC69: 326 | AD69: =P69/AC69 -> 3857.112073 | AE69: =IF(AD69<$AE$1,((AC69*$AE$1)-(P69)),0) -> 0 | AH69: 8313528 | AK69: 1318066.626 | AL69: 0 | AM69: =+P69+U69-AK69 -> -44210.09062 | AN69: =+N69-AL69 -> -4553.512405 | AO69: =+AM69/(U69+P69) -> -0.03470570616 | AP69: NOR 24 pupils lower in 19/20
A70: St Peter's Church of England Aided Junior School | B70: 3534 | C70: 681215.6878 | D70: 47463.90949 | E70: 0 | F70: 51939.61231 | G70: 12810.625 | H70: 0 | I70: 110000 | J70: 0 | K70: 3692 | L70: 0 | M70: =SUM(C70:L70) -> 907121.8346 | N70: -5911.15729 | O70: 0 | P70: 901210.6773 | Q70: 0 | R70: 901210.6773 | S70: -17529.102 | T70: 883681.5753 | U70: 0 | V70: =SUMIF('ERS 2019-20'!B:B,'2019-20 FORMULA'!B:B,'ERS 2019-20'!X:X) -> 0 | Z70: =SUMIF('2019-20 Nursery Budget'!D:D,'2019-20 FORMULA'!B:B,'2019-20 Nursery Budget'!X:X) -> 0 | AA70: 0 | AB70: 883681.5753 | AC70: 249 | AD70: 3619.319989 | AE70: 0 | AH70: 8313534 | AK70: 881137.0552 | AL70: 0 | AM70: 20073.62212 | AN70: -5911.15729 | AO70: 0.02227406158
A71: St Werburgh's Church of England VA Primary School | B71: 3532 | C71: 864514.6881 | D71: 41210.22854 | E71: 0 | F71: 40167.155 | G71: 1199.454074 | H71: 0 | I71: 110000 | J71: 0 | K71: 5479 | L71: 0 | M71: 1062570.526 | N71: -7753.918072 | O71: 0 | P71: 1054816.608 | Q71: 0 | R71: 1054816.608 | S71: -22245.768 | T71: 1032570.84 | U71: 10882 | V71: =SUMIF('ERS 2019-20'!B:B,'2019-20 FORMULA'!B:B,'ERS 2019-20'!X:X) -> 0 | Z71: =SUMIF('2019-20 Nursery Budget'!D:D,'2019-20 FORMULA'!B:B,'2019-20 Nursery Budget'!X:X) -> 0 | AA71: 0 | AB71: =SUM(T71:AA71) -> 1043452.84 | AC71: 316 | AD71: 3338.027239 | AE71: 0 | AH71: 8313532 | AK71: 1027554.098 | AL71: -5139.020006 | AM71: 38144.5101 | AN71: -2614.898066 | AO71: 0.03579296231
A72: Village Primary School | B72: 3546 | C72: 1701671.316 | D72: 421128.4519 | E72: 0 | F72: 131176.7219 | G72: 93461.69662 | H72: 0 | I72: 110000 | J72: 0 | K72: 14988.23 | L72: 0 | M72: 2472426.417 | N72: 0 | O72: 0 | P72: 2472426.417 | Q72: 0 | R72: 2472426.417 | S72: 0 | T72: 2472426.417 | U72: 6600 | V72: =SUMIF('ERS 2019-20'!B:B,'2019-20 FORMULA'!B:B,'ERS 2019-20'!X:X) -> 0 | Z72: =SUMIF('2019-20 Nursery Budget'!D:D,'2019-20 FORMULA'!B:B,'2019-20 Nursery Budget'!X:X) -> 189794.92 | AA72: 0 | AB72: 2668821.337 | AC72: 622 | AD72: 3974.962085 | AE72: 0 | AH72: 8313546 | AK72: 2483337.461 | AL72: 9876.249655 | AM72: -4311.043588 | AN72: -9876.249655 | AO72: -0.001739006716
A73: Walter Evans Church of England Aided Primary School | B73: 3530 | C73: 1014984.017 | D73: 21233.85278 | E73: 0 | F73: 35179.16241 | G73: 3598.290379 | H73: 0 | I73: 110000 | J73: 0 | K73: 4978 | L73: 0 | M73: 1189973.322 | N73: -1067.217474 | O73: 0 | P73: 1188906.105 | Q73: 35393.89518 | R73: 1224300 | S73: 0 | T73: 1224300 | U73: 7178 | V73: =SUMIF('ERS 2019-20'!B:B,'2019-20 FORMULA'!B:B,'ERS 2019-20'!X:X) -> 0 | Z73: =SUMIF('2019-20 Nursery Budget'!D:D,'2019-20 FORMULA'!B:B,'2019-20 Nursery Budget'!X:X) -> 118826.9 | AA73: 0 | AB73: 1350304.9 | AC73: 371 | AD73: 3204.598665 | AE73: 35393.89518 | AH73: 8313530 | AK73: 1147531.945 | AL73: -1404.121053 | AM73: 48552.15999 | AN73: 336.9035792 | AO73: 0.04059259696
A74: Wren Park Primary School | B74: 2459 | C74: 1069700.136 | D74: 33435.64403 | E74: 0 | F74: 49700.49875 | G74: 35392.61175 | H74: 0 | I74: 110000 | J74: 0 | K74: 19321 | L74: 0 | M74: 1317549.891 | N74: 0 | O74: 0 | P74: 1317549.891 | Q74: 0 | R74: 1317549.891 | S74: -27525.618 | T74: 1290024.273 | U74: 5789 | V74: =SUMIF('ERS 2019-20'!B:B,'2019-20 FORMULA'!B:B,'ERS 2019-20'!X:X) -> 0 | Z74: =SUMIF('2019-20 Nursery Budget'!D:D,'2019-20 FORMULA'!B:B,'2019-20 Nursery Budget'!X:X) -> 0 | AA74: 0 | AB74: 1295813.273 | AC74: 391 | AD74: 3369.692815 | AE74: 0 | AH74: 8312459 | AK74: 1291828.206 | AL74: -2143.256856 | AM74: 31510.68489 | AN74: 2143.256856 | AO74: 0.02381150068
A75: Wyndham Primary Academy | B75: 2007 | C75: 1214697.853 | D75: 346353.734 | E75: 0 | F75: 70775.544 | G75: 36236.34125 | H75: 0 | I75: 110000 | J75: 0 | K75: 3638.65 | L75: 0 | M75: =SUM(C75:L75) -> 1781702.122 | N75: 87663.5005 | O75: 0 | P75: =SUM(M75:O75) -> 1869365.623 | Q75: =AE75 -> 0 | R75: =P75+Q75 -> 1869365.623 | S75: 0 | T75: =R75+S75 -> 1869365.623 | U75: 20027 | V75: =SUMIF('ERS 2019-20'!B:B,'2019-20 FORMULA'!B:B,'ERS 2019-20'!X:X) -> 0 | Z75: =SUMIF('2019-20 Nursery Budget'!D:D,'2019-20 FORMULA'!B:B,'2019-20 Nursery Budget'!X:X) -> 145040.2 | AA75: 0 | AB75: =SUM(T75:AA75) -> 2034432.823 | AC75: 444 | AD75: =P75/AC75 -> 4210.282934 | AE75: =IF(AD75<$AE$1,((AC75*$AE$1)-(P75)),0) -> 0 | AH75: 8312007 | AK75: 1876176.633 | AL75: 77041.57618 | AM75: =+P75+U75-AK75 -> 13215.99003 | AN75: =+N75-AL75 -> 10621.92433 | AO75: =+AM75/(U75+P75) -> 0.006994835203
A76: Zaytouna | B76: 4000 | C76: 733196.0013 | D76: 144005.9868 | E76: 0 | F76: 47258.9341 | G76: 67510.91723 | H76: 15287.976 | I76: 110000 | J76: 0 | K76: 17047 | L76: 0 | M76: 1134306.815 | N76: 38164.03484 | O76: 0 | P76: 1172470.85 | Q76: 0 | R76: 1172470.85 | S76: 0 | T76: 1172470.85 | U76: 2200 | V76: =SUMIF('ERS 2019-20'!B:B,'2019-20 FORMULA'!B:B,'ERS 2019-20'!X:X) -> 0 | Z76: =SUMIF('2019-20 Nursery Budget'!D:D,'2019-20 FORMULA'!B:B,'2019-20 Nursery Budget'!X:X) -> 0 | AA76: 0 | AB76: =SUM(T76:AA76) -> 1174670.85 | AC76: 268 | AD76: 4374.891232 | AE76: 0 | AH76: 8314000 | AK76: 1214367.318 | AL76: 34783.92913 | AM76: -39696.46788 | AN76: 3380.105707 | AO76: -0.03379369453
Z77: =SUMIF('2019-20 Nursery Budget'!D:D,'2019-20 FORMULA'!B:B,'2019-20 Nursery Budget'!X:X) -> 0
A78: Total Primary | B78: Total Primary | C78: =SUM(C5:C77) -> 64104676.06 | D78: 10856404.3 | E78: 0 | F78: 4706986.595 | G78: 2161166.755 | H78: 276818.9689 | I78: 7873799.847 | J78: 0 | K78: 982450.12 | L78: 324471 | M78: 91286773.64 | N78: 360314.5092 | O78: 0 | P78: 91647088.15 | Q78: 48881.92302 | R78: 91695970.08 | S78: -957447.999 | T78: 90738522.08 | U78: 586879.8 | V78: 1567615 | W78: 0 | X78: 0 | Y78: 0 | Z78: 4486479.27 | AA78: 0 | AB78: 97379496.15 | AC78: 23431.73333 | AE78: =SUM(AE5:AE77) -> 48881.92302 | AK78: =SUM(AK5:AK77) -> 90657491.97 | AL78: =SUM(AL5:AL77) -> 556013.6421 | AM78: =SUM(AM5:AM77) -> 1576475.981 | AN78: =SUM(AN5:AN77) -> -195699.1329
Z79: 0
A80: Chellaston Academy | B80: 5402 | C80: 5725846.953 | D80: 252198.6447 | E80: 0 | F80: 294321.6547 | G80: 6996.311012 | H80: 0 | I80: 110000 | J80: 0 | K80: 43417 | L80: 0 | M80: =SUM(C80:L80) -> 6432780.564 | N80: 0 | O80: 0 | P80: =SUM(M80:O80) -> 6432780.564 | Q80: =AE80 -> 0 | R80: =P80+Q80 -> 6432780.564 | S80: 0 | T80: =R80+S80 -> 6432780.564 | V80: =SUMIF('ERS 2019-20'!B:B,'2019-20 FORMULA'!B:B,'ERS 2019-20'!X:X) -> 0 | Z80: =SUMIF('2019-20 Nursery Budget'!D:D,'2019-20 FORMULA'!B:B,'2019-20 Nursery Budget'!X:X) -> 0 | AB80: =SUM(T80:AA80) -> 6432780.564 | AC80: 1414.416667 | AD80: =P80/AC80 -> 4548.00959 | AE80: =IF(AD80<$AE$2,((AC80*$AE$2)-(P80)),0) -> 0 | AH80: 8315402 | AK80: 6049749.46 | AL80: 0 | AM80: =+P80+U80-AK80 -> 383031.1034 | AN80: =+N80-AL80 -> 0 | AO80: =+AM80/(U80+P80) -> 0.05954362964
A81: da Vinci Community College | B81: 4007 | C81: 2343917.455 | D81: 578674.6356 | E81: 0 | F81: 274111.9292 | G81: 28939.575 | H81: 0 | I81: 110000 | J81: 0 | K81: 28431 | L81: 23560 | M81: 3387634.595 | N81: -4752.843628 | O81: 0 | P81: 3382881.751 | Q81: 0 | R81: 3382881.751 | S81: 0 | T81: 3382881.751 | V81: =SUMIF('ERS 2019-20'!B:B,'2019-20 FORMULA'!B:B,'ERS 2019-20'!X:X) -> 0 | Z81: =SUMIF('2019-20 Nursery Budget'!D:D,'2019-20 FORMULA'!B:B,'2019-20 Nursery Budget'!X:X) -> 0 | AB81: 3382881.751 | AC81: 580 | AD81: 5832.554743 | AE81: 0 | AH81: 8314608 | AK81: 3217538.816 | AL81: -14455.79291 | AM81: 165342.9346 | AN81: 9702.949282 | AO81: 0.04887635655
A82: Derby Cathedral School | B82: 4004 | C82: 1074026.265 | D82: 149226.5236 | E82: 0 | F82: 60154.61747 | G82: 4635.091616 | H82: 0 | I82: 110000 | J82: 0 | K82: 14329.03 | L82: 0 | M82: =SUM(C82:L82) -> 1412371.528 | N82: 95020.36237 | O82: 0 | P82: 1507391.89 | Q82: 0 | R82: 1507391.89 | S82: 0 | T82: 1507391.89 | V82: =SUMIF('ERS 2019-20'!B:B,'2019-20 FORMULA'!B:B,'ERS 2019-20'!X:X) -> 0 | Z82: =SUMIF('2019-20 Nursery Budget'!D:D,'2019-20 FORMULA'!B:B,'2019-20 Nursery Budget'!X:X) -> 0 | AB82: =IF(ISERROR(SUM(T82:AA82)),0,SUM(T82:AA82)) -> 1507391.89 | AC82: 279.1666658 | AD82: 5399.612758 | AE82: 0 | AH82: 8319999 | AK82: 598691.7789 | AL82: 0 | AM82: 908700.1113 | AN82: 95020.36237 | AO82: 0.6028293752
A83: Derby Moor Community Sports College | B83: 4178 | C83: 5244196.46 | D83: 947131.2085 | E83: 0 | F83: 502418.8903 | G83: 46963.34539 | H83: 0 | I83: 110000 | J83: 0 | K83: 31414 | L83: 0 | M83: 6882123.904 | N83: -4825.945301 | O83: 0 | P83: 6877297.959 | Q83: 0 | R83: 6877297.959 | S83: 0 | T83: 6877297.959 | V83: =SUMIF('ERS 2019-20'!B:B,'2019-20 FORMULA'!B:B,'ERS 2019-20'!X:X) -> 0 | Z83: =SUMIF('2019-20 Nursery Budget'!D:D,'2019-20 FORMULA'!B:B,'2019-20 Nursery Budget'!X:X) -> 0 | AB83: 6877297.959 | AC83: 1295 | AD83: 5310.654794 | AE83: 0 | AH83: 8314178 | AK83: 6725606.161 | AL83: -73764.92313 | AM83: 151691.7982 | AN83: 68938.97783 | AO83: 0.02205688907
A84: Lees Brook Community Sports College | B84: 4006 | C84: 4326594.986 | D84: 524626.0848 | E84: 0 | F84: 398104.6705 | G84: 20690.49813 | H84: 0 | I84: 110000 | J84: 0 | K84: 27072 | L84: 0 | M84: 5407088.239 | N84: -40314.25343 | O84: 0 | P84: 5366773.986 | Q84: 0 | R84: 5366773.986 | S84: 0 | T84: 5366773.986 | V84: =SUMIF('ERS 2019-20'!B:B,'2019-20 FORMULA'!B:B,'ERS 2019-20'!X:X) -> 128000 | Z84: =SUMIF('2019-20 Nursery Budget'!D:D,'2019-20 FORMULA'!B:B,'2019-20 Nursery Budget'!X:X) -> 0 | AB84: 5494773.986 | AC84: 1068 | AD84: 5025.069275 | AE84: 0 | AH84: 8314181 | AK84: 5108166.165 | AL84: -43823.23376 | AM84: 258607.8203 | AN84: 3508.980331 | AO84: 0.04818682899
A85: Littleover Community School | B85: 4182 | C85: 5964546.025 | D85: 263503.0219 | E85: 0 | F85: 356864.5012 | G85: 46918.34108 | H85: 0 | I85: 110000 | J85: 0 | K85: 144299 | L85: 0 | M85: 6886130.889 | N85: 0 | O85: 0 | P85: 6886130.889 | Q85: 0 | R85: 6886130.889 | S85: -87109.678 | T85: 6799021.211 | V85: =SUMIF('ERS 2019-20'!B:B,'2019-20 FORMULA'!B:B,'ERS 2019-20'!X:X) -> 0 | Z85: =SUMIF('2019-20 Nursery Budget'!D:D,'2019-20 FORMULA'!B:B,'2019-20 Nursery Budget'!X:X) -> 0 | AB85: 6799021.211 | AC85: 1471 | AD85: 4681.258252 | AE85: 0 | AH85: 8314182 | AK85: 6659023.818 | AL85: 0 | AM85: 227107.0713 | AN85: 0 | AO85: 0.03298035936
A86: Merrill College | B86: 4001 | C86: 3042911.4 | D86: 927912.8064 | E86: 0 | F86: 420298.1905 | G86: 90051.3371 | H86: 98290.08 | I86: 110000 | J86: 0 | K86: 48790 | L86: 361154 | M86: 5099407.814 | N86: 0 | O86: 0 | P86: 5099407.814 | Q86: 0 | R86: 5099407.814 | S86: 0 | T86: 5099407.814 | V86: =SUMIF('ERS 2019-20'!B:B,'2019-20 FORMULA'!B:B,'ERS 2019-20'!X:X) -> 0 | Z86: =SUMIF('2019-20 Nursery Budget'!D:D,'2019-20 FORMULA'!B:B,'2019-20 Nursery Budget'!X:X) -> 0 | AB86: 5099407.814 | AC86: 756 | AD86: 6745.248431 | AE86: 0 | AH86: 8314001 | AK86: 4587969.022 | AL86: -46070.81315 | AM86: 511438.7923 | AN86: 46070.81315 | AO86: 0.1002937617
A87: Murray Park School | B87: 5406 | C87: 3654377.48 | D87: 589154.5615 | E87: 0 | F87: 392306.1002 | G87: 43005.12717 | H87: 0 | I87: 110000 | J87: 0 | K87: 25335 | L87: 0 | M87: 4814178.269 | N87: -29362.69422 | O87: 0 | P87: 4784815.575 | Q87: 0 | R87: 4784815.575 | S87: -53651.508 | T87: 4731164.067 | V87: =SUMIF('ERS 2019-20'!B:B,'2019-20 FORMULA'!B:B,'ERS 2019-20'!X:X) -> 0 | Z87: =SUMIF('2019-20 Nursery Budget'!D:D,'2019-20 FORMULA'!B:B,'2019-20 Nursery Budget'!X:X) -> 0 | AB87: 4731164.067 | AC87: 906 | AD87: 5281.253394 | AE87: 0 | AH87: 8315406 | AK87: 4436670.573 | AL87: -76974.81622 | AM87: 348145.0022 | AN87: 47612.12199 | AO87: 0.07276038057
A88: Noel Baker Community School and Language College | B88: 4005 | C88: 4421012.659 | D88: 892010.9863 | E88: 0 | F88: 394376.215 | G88: 15186.63936 | H88: 0 | I88: 110000 | J88: 0 | K88: 27839 | L88: 419920 | M88: 6280345.5 | N88: -33915.75425 | O88: 0 | P88: 6246429.746 | Q88: 0 | R88: 6246429.746 | S88: 0 | T88: 6246429.746 | V88: =SUMIF('ERS 2019-20'!B:B,'2019-20 FORMULA'!B:B,'ERS 2019-20'!X:X) -> 0 | Z88: =SUMIF('2019-20 Nursery Budget'!D:D,'2019-20 FORMULA'!B:B,'2019-20 Nursery Budget'!X:X) -> 0 | AB88: 6246429.746 | AC88: 1092 | AD88: 5720.17376 | AE88: 0 | AH88: 8315407 | AK88: 6509723.68 | AL88: -45839.13342 | AM88: -263293.9338 | AN88: 11923.37917 | AO88: -0.04215110783 | AP88: NOR 88 pupils lower in 19/20
A89: Saint Benedict Catholic Voluntary Academy | B89: 4607 | C89: 4780086.447 | D89: 854430.6844 | E89: 0 | F89: 439770.9005 | G89: 60635.3 | H89: 0 | I89: 110000 | J89: 0 | K89: 28349 | L89: 0 | M89: 6273272.332 | N89: -11850.58357 | O89: 0 | P89: 6261421.748 | Q89: 0 | R89: 6261421.748 | S89: 0 | T89: 6261421.748 | V89: =SUMIF('ERS 2019-20'!B:B,'2019-20 FORMULA'!B:B,'ERS 2019-20'!X:X) -> 333662 | Z89: =SUMIF('2019-20 Nursery Budget'!D:D,'2019-20 FORMULA'!B:B,'2019-20 Nursery Budget'!X:X) -> 0 | AB89: 6595083.748 | AC89: 1181 | AD89: 5301.796569 | AE89: 0 | AH89: 8314607 | AK89: 6030229.206 | AL89: -62487.94983 | AM89: 231192.5423 | AN89: 50637.36626 | AO89: 0.03692333013
A90: City of Derby Academy | B90: 4008 | C90: 3681947.672 | D90: 792710.7503 | E90: 0 | F90: 507063.4253 | G90: 186040.125 | H90: 0 | I90: 110000 | J90: 0 | K90: 39981 | L90: 0 | M90: 5317742.973 | N90: -11677.02783 | O90: 0 | P90: 5306065.945 | Q90: 0 | R90: 5306065.945 | S90: 0 | T90: 5306065.945 | V90: =SUMIF('ERS 2019-20'!B:B,'2019-20 FORMULA'!B:B,'ERS 2019-20'!X:X) -> 0 | Z90: =SUMIF('2019-20 Nursery Budget'!D:D,'2019-20 FORMULA'!B:B,'2019-20 Nursery Budget'!X:X) -> 0 | AB90: 5306065.945 | AC90: 911 | AD90: 5824.441213 | AE90: 0 | AH90: 8314002 | AK90: 4949770.297 | AL90: -13025.68788 | AM90: 356295.6477 | AN90: 1348.660049 | AO90: 0.06714874098
A91: West Park School | B91: 5412 | C91: 5362419.729 | D91: 530126.9664 | E91: 0 | F91: 361496.7694 | G91: 11024.6 | H91: 0 | I91: 110000 | J91: 0 | K91: 27328 | L91: 0 | M91: 6402396.065 | N91: 0 | O91: 0 | P91: 6402396.065 | Q91: 0 | R91: 6402396.065 | S91: 0 | T91: 6402396.065 | V91: =SUMIF('ERS 2019-20'!B:B,'2019-20 FORMULA'!B:B,'ERS 2019-20'!X:X) -> 0 | Z91: =SUMIF('2019-20 Nursery Budget'!D:D,'2019-20 FORMULA'!B:B,'2019-20 Nursery Budget'!X:X) -> 0 | AB91: 6402396.065 | AC91: 1326 | AD91: 4828.35299 | AE91: 0 | AH91: 8315412 | AK91: 6130888.955 | AL91: -51169.82494 | AM91: 271507.11 | AN91: 51169.82494 | AO91: 0.04240710934
A92: Allestree Woodlands School | B92: 5414 | C92: 4483208.176 | D92: 393544.2404 | E92: 0 | F92: 301850.1285 | G92: 9646.525 | H92: 0 | I92: 110000 | J92: 0 | K92: 31414 | L92: 0 | M92: 5329663.07 | N92: -14332.10665 | O92: 0 | P92: 5315330.963 | Q92: 0 | R92: 5315330.963 | S92: 0 | T92: 5315330.963 | V92: =SUMIF('ERS 2019-20'!B:B,'2019-20 FORMULA'!B:B,'ERS 2019-20'!X:X) -> 150000 | Z92: =SUMIF('2019-20 Nursery Budget'!D:D,'2019-20 FORMULA'!B:B,'2019-20 Nursery Budget'!X:X) -> 0 | AB92: 5465330.963 | AC92: 1106 | AD92: 4805.90503 | AE92: 0 | AH92: 8315414 | AK92: 5081502.543 | AL92: -27272.3447 | AM92: 233828.4194 | AN92: 12940.23805 | AO92: 0.0439913189
A93: Derby Manufacturing UTC | B93: 4003 | C93: 720740.9633 | D93: 111334.1513 | E93: 0 | F93: 67644.25633 | G93: 0 | H93: 0 | I93: 110000 | J93: 0 | K93: 26817 | L93: 0 | M93: 1036536.371 | N93: -3372.442336 | O93: 0 | P93: 1033163.929 | Q93: 0 | R93: 1033163.929 | S93: 0 | T93: 1033163.929 | V93: =SUMIF('ERS 2019-20'!B:B,'2019-20 FORMULA'!B:B,'ERS 2019-20'!X:X) -> 0 | Z93: =SUMIF('2019-20 Nursery Budget'!D:D,'2019-20 FORMULA'!B:B,'2019-20 Nursery Budget'!X:X) -> 0 | AB93: 1033163.929 | AC93: 165 | AD93: 6261.599567 | AE93: 0 | AH93: 8316905 | AK93: 818788.7435 | AL93: 0 | AM93: 214375.1851 | AN93: -3372.442336 | AO93: 0.2074938731
A94: Landau Forte College (Fox Street) | B94: 6905 | C94: 3429472.717 | D94: 563830.1825 | E94: 0 | F94: 214514.9755 | G94: 8268.45 | H94: 0 | I94: 110000 | J94: 0 | K94: 47249 | L94: 0 | M94: =SUM(C94:L94) -> 4373335.325 | N94: -9498.663807 | O94: 0 | P94: 4363836.661 | Q94: 0 | R94: 4363836.661 | S94: 0 | T94: 4363836.661 | V94: =SUMIF('ERS 2019-20'!B:B,'2019-20 FORMULA'!B:B,'ERS 2019-20'!X:X) -> 0 | Z94: =SUMIF('2019-20 Nursery Budget'!D:D,'2019-20 FORMULA'!B:B,'2019-20 Nursery Budget'!X:X) -> 0 | AB94: =SUM(T94:AA94) -> 4363836.661 | AC94: 847 | AD94: 5152.109399 | AE94: 0 | AH94: 8316905 | AK94: 4220546.86 | AL94: -20261.35842 | AM94: 143289.8013 | AN94: 10762.69461 | AO94: 0.03283573892
A96: Total Secondary | B96: Total Secondary | C96: =SUM(C80:C95) -> 58255305.39 | D96: 8370415.449 | E96: 0 | F96: 4985297.225 | G96: 579001.2659 | H96: 98290.08 | I96: 1650000 | J96: 0 | K96: 592064.03 | L96: 804634 | M96: 75335007.44 | N96: -68881.95266 | O96: 0 | P96: 75266125.48 | Q96: =SUM(Q80:Q95) -> 0 | R96: =SUM(R80:R95) -> 75266125.48 | S96: -140761.186 | T96: 75125364.3 | U96: 0 | V96: 611662 | W96: 0 | X96: 0 | Y96: 0 | Z96: 0 | AA96: 0 | AB96: 75737026.3 | AC96: 14397.58333 | AE96: 0 | AK96: =SUM(AK80:AK95) -> 71124866.08 | AL96: =SUM(AL80:AL95) -> -475145.8784 | AM96: =SUM(AM80:AM95) -> 4141259.406 | AN96: =SUM(AN80:AN95) -> 406263.9257
A98: The Bemrose School | B98: 4177 | C98: 3873828.558 | D98: 985162.457 | E98: 0 | F98: 615257.258 | G98: 206310.2855 | H98: 169167.512 | I98: 110000 | J98: 0 | K98: 22475 | L98: 0 | M98: =SUM(C98:L98) -> 5982201.071 | N98: 15993.90259 | O98: 0 | P98: =SUM(M98:O98) -> 5998194.973 | Q98: =AE98 -> 0 | R98: =P98+Q98 -> 5998194.973 | S98: -65843.488 | T98: =R98+S98 -> 5932351.485 | U98: 12734 | V98: =SUMIF('ERS 2019-20'!B:B,'2019-20 FORMULA'!B:B,'ERS 2019-20'!X:X) -> 549000 | Z98: =SUMIF('2019-20 Nursery Budget'!D:D,'2019-20 FORMULA'!B:B,'2019-20 Nursery Budget'!X:X) -> 44985.7 | AB98: =IF(ISERROR(SUM(T98:AA98)),0,SUM(T98:AA98)) -> 6539071.185 | AC98: 1056 | AD98: =P98/AC98 -> 5680.108876 | AE98: =IF(AD98<$AE$3,((AC98*$AE$3)-(P98)),0) -> 0 | AH98: 8314177 | AK98: 5803605.117 | AL98: 95521.7715 | AM98: =+P98+U98-AK98 -> 207323.8563 | AN98: =+N98-AL98 -> -79527.86891 | AO98: =+AM98/(U98+P98) -> 0.03449115057
A100: Total All Through School | B100: Total All Through | C100: =C98 -> 3873828.558 | D100: =D98 -> 985162.457 | E100: 0 | F100: 615257.258 | G100: 206310.2855 | H100: 169167.512 | I100: 110000 | J100: 0 | K100: 22475 | L100: 0 | M100: 5982201.071 | N100: 15993.90259 | O100: 0 | P100: 5998194.973 | Q100: =Q98 -> 0 | R100: 5998194.973 | S100: -65843.488 | T100: 5932351.485 | U100: 12734 | V100: 549000 | W100: 0 | X100: 0 | Y100: 0 | Z100: 44985.7 | AA100: 0 | AB100: 6539071.185 | AC100: 1056 | AE100: 0 | AK100: =AK98 -> 5803605.117 | AL100: =AL98 -> 95521.7715 | AM100: =AM98 -> 207323.8563 | AN100: =AN98 -> -79527.86891
B102: ALL School Block | C102: =SUM(C96+C78+C100) -> 126233810 | D102: 20211982.2 | E102: 0 | F102: 10307541.08 | G102: 2946478.306 | H102: 544276.5609 | I102: 9633799.847 | J102: 0 | K102: 1596989.15 | L102: 1129105 | M102: 172603982.1 | N102: 307426.4592 | O102: 0 | P102: =P78+P96+P100 -> 172911408.6 | Q102: =Q78+Q96+Q100 -> 48881.92302 | R102: =R78+R96+R100 -> 172960290.5 | S102: -1164052.673 | T102: 171796237.9 | U102: 599613.8 | V102: 2728277 | W102: 0 | X102: 0 | Y102: 0 | Z102: 4531464.97 | AA102: 0 | AB102: 179655593.6 | AC102: 38885.31667 | AE102: 48881.92302 | AK102: =AK100+AK96+AK78 -> 167585963.2 | AL102: =AL100+AL96+AL78 -> 176389.5353 | AM102: =AM100+AM96+AM78 -> 5925059.243 | AN102: =AN100+AN96+AN78 -> 131036.9239
Q104: Budget | R104: 172082417.7 | AB104: 173851730 | AC104: APT
AB105: =S102 -> -1164052.673 | AC105: de-delegation
R106: =R102-R104 -> 877872.8561 | AB106: =-10*29166 -> -291660 | AC106: growth
AB107: =AB102-AB104-AB105-AB106 -> 7259576.303 | AC107: balance - added to growth
A109: Summary Totals 2019-20 | B109: Primary | C109: =C78 -> 64104676.06 | D109: 10856404.3 | E109: 0 | F109: 4706986.595 | G109: 2161166.755 | H109: 276818.9689 | I109: 7873799.847 | J109: 0 | K109: 982450.12 | L109: 324471 | M109: 91286773.64 | N109: 360314.5092 | O109: 0 | P109: 91647088.15 | Q109: =Q78 -> 48881.92302 | R109: =R78 -> 91695970.08 | S109: -957447.999 | T109: 90738522.08 | U109: 586879.8 | V109: 1567615 | W109: 0 | X109: 0 | Y109: 0 | Z109: 4486479.27 | AA109: 0 | AB109: 97379496.15 | AK109: =AK78 -> 90657491.97 | AL109: =AL78 -> 556013.6421
B110: Secondary | C110: =C96 -> 58255305.39 | D110: 8370415.449 | E110: 0 | F110: 4985297.225 | G110: 579001.2659 | H110: 98290.08 | I110: 1650000 | J110: 0 | K110: 592064.03 | L110: 804634 | M110: 75335007.44 | N110: -68881.95266 | O110: 0 | P110: 75266125.48 | Q110: =Q96 -> 0 | R110: =R96 -> 75266125.48 | S110: -140761.186 | T110: 75125364.3 | U110: 0 | V110: 611662 | W110: 0 | X110: 0 | Y110: 0 | Z110: 0 | AA110: 0 | AB110: 75737026.3 | AK110: =AK96 -> 71124866.08 | AL110: =AL96 -> -475145.8784
B111: All Through | C111: =C100 -> 3873828.558 | D111: 985162.457 | E111: 0 | F111: 615257.258 | G111: 206310.2855 | H111: 169167.512 | I111: 110000 | J111: 0 | K111: 22475 | L111: 0 | M111: 5982201.071 | N111: 15993.90259 | O111: 0 | P111: 5998194.973 | Q111: =Q100 -> 0 | R111: =R100 -> 5998194.973 | S111: -65843.488 | T111: 5932351.485 | U111: 12734 | V111: 549000 | W111: 0 | X111: 0 | Y111: 0 | Z111: 44985.7 | AA111: 0 | AB111: 6539071.185 | AK111: =AK100 -> 5803605.117 | AL111: =AL100 -> 95521.7715
B112: ALL School Block | C112: =SUM(C109:C111) -> 126233810 | D112: =SUM(D109:D111) -> 20211982.2 | E112: 0 | F112: 10307541.08 | G112: 2946478.306 | H112: 544276.5609 | I112: 9633799.847 | J112: 0 | K112: 1596989.15 | L112: 1129105 | M112: 172603982.1 | N112: 307426.4592 | O112: 0 | P112: 172911408.6 | Q112: =SUM(Q109:Q111) -> 48881.92302 | R112: =SUM(R109:R111) -> 172960290.5 | S112: -1164052.673 | T112: 171796237.9 | U112: 599613.8 | V112: 2728277 | W112: 0 | X112: 0 | Y112: 0 | Z112: 4531464.97 | AA112: 0 | AB112: 179655593.6 | AK112: =SUM(AK109:AK111) -> 167585963.2 | AL112: =SUM(AL109:AL111) -> 176389.5353
A114: Final APT 2018-19 | B114: Primary | C114: 62124739.97 | D114: 10312130.96 | E114: 0 | F114: 4908121.411 | G114: 2060540.816 | H114: 492251.3296 | I114: 7887000 | J114: 0 | K114: 1150658.225 | L114: 315021 | M114: 89250463.71 | N114: 556013.3507 | O114: 0 | P114: 89806477.06 | Q114: 0 | R114: 0 | S114: -1282479.106 | T114: 88523997.95 | U114: 851014.89 | V114: 0 | W114: 0 | X114: 0 | Y114: 0 | AB114: =SUM(T114:AA114) -> 89375012.84 | AK114: 86297432.5 | AL114: 174374.0189
B115: Secondary | C115: 55194401.04 | D115: 8041242.134 | E115: 0 | F115: 4841326.771 | G115: 558349.3446 | H115: 21756 | I115: 1604166.667 | J115: 0 | K115: 545341 | L115: 793429 | M115: 71600011.96 | N115: -475145.8784 | O115: 0 | P115: 71124866.08 | Q115: 0 | R115: 0 | S115: -133489.594 | T115: 70991376.48 | U115: 0 | V115: 0 | W115: 0 | X115: 0 | Y115: 0 | AB115: =SUM(T115:AA115) -> 70991376.48 | AK115: 65898450.61 | AL115: 45461.88307
B116: All Through | C116: 3621891.829 | D116: 922494.4831 | E116: 0 | F116: 612827.6307 | G116: 206829.8033 | H116: 180959.3192 | I116: 110000 | J116: 0 | K116: 21560 | L116: 0 | M116: 5676563.065 | N116: 95521.7715 | O116: 0 | P116: 5772084.837 | Q116: 0 | R116: 0 | S116: -61865.45325 | T116: 5710219.384 | U116: 0 | V116: 0 | W116: 0 | X116: 0 | Y116: 0 | AB116: =SUM(T116:AA116) -> 5710219.384 | AK116: 5780827.764 | AL116: 223804.4443
B117: ALL School Block | C117: =SUM(C114:C116) -> 120941032.8 | D117: =SUM(D114:D116) -> 19275867.57 | E117: 0 | F117: 10362275.81 | G117: 2825719.964 | H117: 694966.6488 | I117: 9601166.667 | J117: 0 | K117: 1717559.225 | L117: 1108450 | M117: 166527038.7 | N117: 176389.2438 | O117: 0 | P117: 166703428 | Q117: =SUM(Q114:Q116) -> 0 | R117: 0 | S117: -1477834.154 | T117: 165225593.8 | U117: 851014.89 | V117: 0 | W117: 0 | X117: 0 | Y117: 0 | Z117: 0 | AA117: 0 | AB117: 166076608.7 | AK117: =SUM(AK114:AK116) -> 157976710.9 | AL117: =SUM(AL114:AL116) -> 443640.3463
A119: Difference between 2019/20 and 2018/19 | B119: Primary | C119: =C109-C114 -> 1979936.089 | D119: =D109-D114 -> 544273.3427 | E119: 0 | F119: -201134.8158 | G119: 100625.9388 | H119: -215432.3607 | I119: -13200.15301 | J119: 0 | K119: -168208.105 | L119: 9450 | M119: 2036309.936 | N119: -195698.8415 | O119: 0 | P119: 1840611.095 | Q119: 48881.92302 | R119: 91695970.08 | S119: 325031.1075 | T119: 2214524.125 | U119: -264135.09 | V119: 1567615 | W119: 0 | X119: 0 | Y119: 0 | Z119: 4486479.27 | AA119: 0 | AB119: 8004483.305 | AK119: =AK109-AK114 -> 4360059.475 | AL119: 381639.6232
B120: Secondary | C120: =C110-C115 -> 3060904.347 | D120: 329173.315 | E120: 0 | F120: 143970.4537 | G120: 20651.92124 | H120: 76534.08 | I120: 45833.33333 | J120: 0 | K120: 46723.03 | L120: 11205 | M120: 3734995.48 | N120: 406263.9257 | O120: 0 | P120: 4141259.406 | Q120: 0 | R120: 75266125.48 | S120: -7271.592 | T120: 4133987.814 | U120: 0 | V120: 611662 | W120: 0 | X120: 0 | Y120: 0 | Z120: 0 | AA120: 0 | AB120: 4745649.814 | AK120: 5226415.463 | AL120: -520607.7614
B121: All Through | C121: =C111-C116 -> 251936.729 | D121: 62667.97395 | E121: 0 | F121: 2429.627298 | G121: -519.5177863 | H121: -11791.80723 | I121: 0 | J121: 0 | K121: 915 | L121: 0 | M121: 305638.0052 | N121: -79527.86891 | O121: 0 | P121: 226110.1363 | Q121: 0 | R121: 5998194.973 | S121: -3978.03475 | T121: 222132.1015 | U121: 12734 | V121: 549000 | W121: 0 | X121: 0 | Y121: 0 | Z121: 44985.7 | AA121: 0 | AB121: 828851.8015 | AK121: 22777.35309 | AL121: -128282.6728
B122: ALL School Block | C122: =SUM(C119:C121) -> 5292777.165 | D122: =SUM(D119:D121) -> 936114.6316 | E122: 0 | F122: -54734.7348 | G122: 120758.3422 | H122: -150690.088 | I122: 32633.18033 | J122: 0 | K122: -120570.075 | L122: 20655 | M122: 6076943.421 | N122: 131037.2153 | O122: 0 | P122: 6207980.636 | Q122: =SUM(Q119:Q121) -> 48881.92302 | R122: =SUM(R119:R121) -> 172960290.5 | S122: 313781.4807 | T122: 6570644.04 | U122: -251401.09 | V122: 2728277 | W122: 0 | X122: 0 | Y122: 0 | Z122: 4531464.97 | AA122: 0 | AB122: 13578984.92 | AK122: =SUM(AK119:AK121) -> 9609252.291 | AL122: =SUM(AL119:AL121) -> -267250.8111
M126: ok
V128: ERS | W128: TA Hours
AA129: Excl Rates
A130: Ashgate Nursery | B130: 1014 | K130: 11986 | M130: =SUM(C130:L130) -> 11986 | P130: =SUM(M130:O130) -> 11986 | T130: =SUM(P130+S130) -> 11986 | V130: =SUMIF('ERS 2019-20'!B:B,'2019-20 FORMULA'!B:B,'ERS 2019-20'!X:X) -> 0 | Z130: =SUMIF('2019-20 Nursery Budget'!D:D,'2019-20 FORMULA'!B:B,'2019-20 Nursery Budget'!X:X) -> 282520.7 | AA130: =Z130-T130 -> 270534.7 | AB130: =Z130 -> 282520.7
A131: Castle Nursery | B131: 1017 | K131: 0 | M131: 0 | P131: 0 | T131: 0 | V131: =SUMIF('ERS 2019-20'!B:B,'2019-20 FORMULA'!B:B,'ERS 2019-20'!X:X) -> 0 | Z131: =SUMIF('2019-20 Nursery Budget'!D:D,'2019-20 FORMULA'!B:B,'2019-20 Nursery Budget'!X:X) -> 0 | AA131: =Z131-T131 -> 0 | AB131: =Z131 -> 0
A132: Central Nursery | B132: 1006 | K132: 14498 | M132: 14498 | P132: 14498 | T132: 14498 | V132: =SUMIF('ERS 2019-20'!B:B,'2019-20 FORMULA'!B:B,'ERS 2019-20'!X:X) -> 142055 | Z132: =SUMIF('2019-20 Nursery Budget'!D:D,'2019-20 FORMULA'!B:B,'2019-20 Nursery Budget'!X:X) -> 386602.9 | AA132: 372104.9 | AB132: 386602.9
A133: Harrington Nursery School | B133: 1008 | K133: 5801 | M133: 5801 | P133: 5801 | T133: 5801 | V133: =SUMIF('ERS 2019-20'!B:B,'2019-20 FORMULA'!B:B,'ERS 2019-20'!X:X) -> 0 | Z133: =SUMIF('2019-20 Nursery Budget'!D:D,'2019-20 FORMULA'!B:B,'2019-20 Nursery Budget'!X:X) -> 387832.4 | AA133: 382031.4 | AB133: 387832.4
A134: Lord Street Nursery | B134: 1005 | K134: 15606 | M134: 15606 | P134: 15606 | T134: 15606 | V134: =SUMIF('ERS 2019-20'!B:B,'2019-20 FORMULA'!B:B,'ERS 2019-20'!X:X) -> 110000 | Z134: =SUMIF('2019-20 Nursery Budget'!D:D,'2019-20 FORMULA'!B:B,'2019-20 Nursery Budget'!X:X) -> 400423 | AA134: 384817 | AB134: 400423
A135: Stonehill Nursery | B135: 1010 | K135: 5519 | M135: 5519 | P135: 5519 | T135: 5519 | V135: =SUMIF('ERS 2019-20'!B:B,'2019-20 FORMULA'!B:B,'ERS 2019-20'!X:X) -> 0 | Z135: =SUMIF('2019-20 Nursery Budget'!D:D,'2019-20 FORMULA'!B:B,'2019-20 Nursery Budget'!X:X) -> 323133.3 | AA135: 317614.3 | AB135: 323133.3
A136: Walbrook Nursery | B136: 1009 | K136: 10203 | M136: 10203 | P136: 10203 | T136: 10203 | V136: =SUMIF('ERS 2019-20'!B:B,'2019-20 FORMULA'!B:B,'ERS 2019-20'!X:X) -> 0 | Z136: =SUMIF('2019-20 Nursery Budget'!D:D,'2019-20 FORMULA'!B:B,'2019-20 Nursery Budget'!X:X) -> 386761.8 | AA136: 376558.8 | AB136: 386761.8
A137: Whitecross Nursery | B137: 1015 | K137: 7334 | M137: 7334 | P137: 7334 | T137: 7334 | V137: =SUMIF('ERS 2019-20'!B:B,'2019-20 FORMULA'!B:B,'ERS 2019-20'!X:X) -> 0 | Z137: =SUMIF('2019-20 Nursery Budget'!D:D,'2019-20 FORMULA'!B:B,'2019-20 Nursery Budget'!X:X) -> 401121.8 | AA137: 393787.8 | AB137: 401121.8
A138: Nursery | K138: =SUM(K130:K137) -> 70947 | M138: =SUM(M130:M137) -> 70947 | P138: 70947 | T138: =SUM(T130:T137) -> 70947 | V138: =SUM(V130:V137) -> 252055 | W138: =SUM(W130:W137) -> 0 | Z138: =SUM(Z130:Z137) -> 2568395.9 | AB138: =SUM(AB130:AB137) -> 2568395.9
AA139: Rates
V140: Total ALL | W140: Total ALL | Z140: =V138+W138 -> 252055 | AA140: High Needs
C141: =C102 -> 126233810 | D141: 20211982.2 | E141: 0 | F141: 10307541.08 | G141: 2946478.306 | H141: 544276.5609 | I141: 9633799.847 | J141: 0 | K141: =K102+K138 -> 1667936.15 | L141: 1129105 | M141: 172674929.1 | N141: 307426.4592 | O141: 0 | P141: 172982355.6 | R141: =R102+R138 -> 172960290.5 | S141: -1164052.673 | T141: 171867184.9 | U141: 599613.8 | V141: 2980332 | W141: 0 | X141: 0 | Y141: 0 | Z141: 7099860.87 | AA141: 0 | AB141: 182223989.5
B143: 1 | C143: 2 | D143: 3 | E143: 4 | F143: 5 | G143: 6 | H143: 7 | I143: 8 | J143: 9 | K143: 10 | L143: 11 | M143: 12 | N143: 13 | O143: 14 | P143: 15 | R143: 16 | S143: 17 | T143: 18 | U143: 19 | V143: 20 | W143: 21 | X143: 22 | Y143: 23 | Z143: 24 | AA143: 25 | AB143: 26 | AD143: 27 | AF143: 28 | AG143: 29 | AH143: 30 | AI143: 31 | AJ143: 32 | AK143: 33 | AL143: 34 | AM143: 35 | AN143: 36
S148: 1008 | T148: Harrington Nursery School
S149: 1005 | T149: Lord Street Nursery | AA149: Schools with Nurseries | AB149: 4112808.628
S150: 1006 | T150: Central Nursery | AA150: Stand Alone Nursery | AB150: 2364476.901
S151: 1010 | T151: Stonehill Nursery | AA151: Sub Total Schools | AB151: =AB150+AB149 -> 6477285.529

Sheet Special Schools 2019-20 (hidden)
A1: Special Schools Funding
K2: NO of places | S2: 10000 | AI2: Excluding Exceptional and PFI
A3: School | B3: School Type | C3: DfE | D3: Phase | E3: Banding 2018/19 | F3: Banding2019/20 | I3: E1&2 places - Pre | J3: E1&2 places - Post | K3: DCC Pre 16 | L3: DCC Post 16 | M3: Other LA Pre 16 | N3: Other LA Post 16 | O3: Total | P3: September adjustment | Q3: Vacant Places (Neg - empty places. Pos - add children no place funding) | S3: Element 1 & 2 (Place Funding) | T3: Element 3 (Top Up Funding DCC) - Pre 16 | U3: Element 3 (Top Up Funding DCC) - Post 16 | V3: Element 3 Residential Places | W3: Exceptional Payments | X3: Other Adjustments including Sept NOR adjustments | Y3: MFG funding | Z3: PFI | AA3: TOTAL DCC | AB3: Element 3 (Top Up Funding Other LA) | AC3: Total School Funding | AD3: Vacant top up funding (element 3) | AE3: Comments | AF3: Check to individual sheets | AG3: Variance | AH3: Comments | AI3: 2018/19 Budget incl OOA | AJ3: Variance | AK3: 2018/19 Budget excl OOA | AL3: Variance | AM3: MFG %
A6: Ivy House School | B6: PMLD | C6: 7026 | D6: All | E6: 15916 | F6: 14802 | I6: 81 | J6: 11 | K6: 73 | L6: 10 | M6: 1 | N6: 1 | O6: =SUM(K6:N6) -> 85 | Q6: =+O6-I6 -> 4 | S6: 920000 | T6: =(+K6)*F6 -> 1080546 | U6: =(L6)*F6 -> 148020 | W6: 90000 | X6: 0 | AA6: =SUM(S6:Z6) -> 2238566 | AB6: =(+M6+N6)*F6 -> 29604 | AC6: =SUM(AA6:AB6) -> 2268170 | AD6: =IF(Q6-P6<0,Q6*F6,0) -> 0 | AF6: 2268170 | AG6: =+AC6-AF6 -> 0 | AI6: =2215112+60000 -> 2275112 | AJ6: =+AC6-AI6 -> -6942 | AK6: =60000+2167364 -> 2227364 | AL6: =+AA6-AK6 -> 11202 | AM6: =-(AI6/(AC6))+1 -> -0.00306061715
A7: St Andrews School - Day | B7: SLD | C7: 7027 | D7: Secondary | E7: 10500 | F7: 9765 | I7: 68 | J7: 33 | K7: 61 | L7: 30 | M7: 6 | N7: 3 | O7: =SUM(K7:N7) -> 100 | Q7: =+O7-I7 -> 32 | S7: 1010000 | T7: =(+K7)*F7 -> 595665 | U7: =(L7)*F7 -> 292950 | W7: 0 | X7: 0 | AA7: 1898615 | AB7: 87885 | AC7: =SUM(AA7:AB7) -> 1986500 | AD7: =IF(Q7-P7<0,Q7*F7,0) -> 0 | AF7: 1986500 | AG7: =+AC7-AF7 -> 0 | AI7: 2007500 | AJ7: =+AC7-AI7 -> -21000 | AK7: 1913000 | AL7: =+AA7-AK7 -> -14385 | AM7: -0.01057135666
A8: St Andrews School - Residential | B8: SLD | C8: 7027 | D8: Secondary | E8: 21000 | F8: 19530 | I8: 12 | K8: 12 | M8: 0 | O8: 12 | Q8: 0 | S8: 120000 | U8: 0 | V8: =(+K8)*F8 -> 234360 | X8: 0 | Y8: 12150 | AA8: 366510 | AB8: 0 | AC8: 366510 | AD8: 0 | AI8: 372000 | AJ8: -5490 | AK8: 372000 | AL8: -5490 | AM8: -0.01497912745
A9: St Clares School | B9: SLD | C9: 7025 | D9: Secondary | E9: 6500 | F9: 6045 | I9: 130 | K9: =116-1.75 -> 114.25 | L9: 0 | M9: 17 | N9: 0 | O9: 131.25 | Q9: 1.25 | S9: 1300000 | T9: 690641.25 | U9: 0 | W9: 10000 | AA9: 2000641.25 | AB9: 102765 | AC9: 2103406.25 | AD9: 0 | AF9: 2103406.25 | AG9: =+AC9-AF9 -> 0 | AI9: =1973500-10000 -> 1963500 | AJ9: 139906.25 | AK9: =1882500-10000 -> 1872500 | AL9: 128141.25 | AM9: 0.0665141363
A10: St Giles School | B10: SLD | C10: 7024 | D10: Primary | E10: 11000 | F10: 10230 | I10: 117 | K10: =117-1.1666666 -> 115.8333334 | M10: 2 | O10: 117.8333334 | Q10: 0.8333334 | S10: 1170000 | T10: 1184975.001 | U10: 0 | W10: 10000 | AA10: 2364975.001 | AB10: 20460 | AC10: 2385435.001 | AD10: 0 | AF10: 2385435 | AG10: =+AC10-AF10 -> 0.0006820000708 | AI10: =2414000-20000 -> 2394000 | AJ10: -8564.999318 | AK10: =2392000-20000 -> 2372000 | AL10: -7024.999318 | AM10: -0.003590539803
A11: St Martins School & Horizons | B11: SLD | C11: 7021 | D11: Secondary | E11: 9000 | F11: 8370 | I11: 141 | J11: 24 | K11: =131 -> 131 | L11: =35-2.91666666666 -> 32.08333333 | M11: 10 | N11: 7 | O11: 180.0833333 | Q11: 39.08333333 | S11: 1650000 | T11: 1096470 | U11: 268537.5 | W11: 31667 | Z11: =(88810.72*1.03)*1.03 -> 94219.29285 | AA11: 3140893.793 | AB11: 142290 | AC11: 3283183.793 | AD11: 0 | AF11: 3188964.5 | AG11: =+AC11-AF11 -> 94219.29285 | AH11: PFI | AI11: =3130142.0416-103142 -> 3027000.042 | AJ11: 256183.7512 | AK11: =2986142.0416-103142 -> 2883000.042 | AL11: 257893.7512 | AM11: 0.07802906185
Q12: 0 | T12: 0 | U12: 0 | AD12: 0
A13: The Kingsmead School | B13: SEMH | C13: 7029 | D13: Secondary | E13: 17735 | F13: 16494 | H13: 0 | I13: 90 | K13: 90 | O13: 90 | Q13: 0 | S13: 900000 | T13: 1484460 | U13: 0 | AA13: 2384460 | AB13: =(+M13+N13)*F13 -> 0 | AC13: 2384460 | AD13: 0 | AI13: 2218800 | AJ13: 165660 | AK13: 2218800 | AL13: 165660 | AM13: =-(AI13/(AC13))+1 -> 0.06947484965
A14: KS 1/2 PRU | C14: 1104 | D14: Primary | E14: 14194.44 | F14: 13201 | H14: 36 | K14: 36 | O14: 36 | Q14: 36 | S14: 360000 | T14: 475236 | U14: 0 | Y14: 22900 | AA14: =SUM(S14:Z14) -> 858136 | AB14: =(+M14+N14)*F14 -> 0 | AC14: =SUM(AA14:AB14) -> 858136 | AD14: 0 | AI14: 870999.84 | AJ14: -12863.84 | AK14: 870999.84 | AL14: -12863.84 | AM14: =-(AI14/(AC14))+1 -> -0.01499044441
A15: KS 3/4 PRU | C15: 1103 | D15: Secondary | E15: 16389.42 | F15: 15242 | H15: 60 | K15: 60 | O15: 60 | Q15: 60 | S15: 600000 | T15: 914520 | U15: 0 | Y15: 45400 | AA15: =SUM(S15:Z15) -> 1559920 | AB15: =(+M15+N15)*F15 -> 0 | AC15: =SUM(AA15:AB15) -> 1559920 | AD15: 0 | AI15: 1583365.2 | AJ15: -23445.2 | AK15: 1583365.2 | AL15: -23445.2 | AM15: =-(AI15/(AC15))+1 -> -0.01502974512
A16: Derby Pride - top up only (E3)
A18: Total | C18: All | H18: =SUM(H4:H17) -> 96 | I18: 639 | J18: 68 | K18: 693.0833334 | L18: 72.08333333 | M18: 36 | N18: 11 | O18: =SUM(O4:O17) -> 812.1666667 | P18: 0 | Q18: 173.1666667 | R18: 0 | S18: 8030000 | T18: 7522513.251 | U18: 709507.5 | V18: 234360 | W18: 141667 | X18: 0 | Y18: 80450 | Z18: 94219.29285 | AA18: 16812717.04 | AB18: 383004 | AC18: 17195721.04 | AD18: 0 | AE18: 0 | AF18: 11932475.75 | AG18: 94219.29353 | AH18: 0 | AI18: 16712277.08 | AJ18: 483443.9619 | AK18: 16313029.08 | AL18: 499687.9619
A20: Lookup table for year group | AC20: Balance to this
A21: 2 yr old | B21: Pre 16
A22: Nursery 1 | B22: Pre 16 | AC22: ='Special Schools & PRU'!D27+'Special Schools & PRU'!D29 -> 17195721.04
A23: Nursery 2 | B23: Pre 16
A24: Reception | B24: Pre 16
A25: NC Year 1 | B25: Pre 16 | AC25: =AC18-AC22 -> 0
A26: NC Year 2 | B26: Pre 16
A27: NC Year 3 | B27: Pre 16
A28: NC Year 4 | B28: Pre 16
A29: NC Year 5 | B29: Pre 16
A30: NC Year 6 | B30: Pre 16
A31: NC Year 7 | B31: Pre 16
A32: NC Year 8 | B32: Pre 16
A33: NC Year 9 | B33: Pre 16
A34: NC Year 10 | B34: Pre 16
A35: NC Year 11 | B35: Pre 16
A36: NC Year 12 | B36: Post 16
A37: NC Year 13 | B37: Post 16
A38: NC Year 14 | B38: Post 16

Sheet Summary for Prints (hidden)
AD1: Primary: | AE1: 3300
AD2: Secondary: | AE2: 4500
AD3: All Through: | AE3: =((AE1*7)+(AE2*5))/12 -> 3800
A4: School | B4: DfE Number | C4: AWPU inc delegated Budget £ | D4: Deprivation £ | E4: LAC £ | F4: LCHI SEN £ | G4: EAL £ | H4: Mobility £ | I4: Lump Sum £ | J4: Split Site £ | K4: Rates £ (based on 18-19 values) | L4: PFI £ | M4: Pre MFG Total | N4: MFG | O4: No Cap | P4: Budget before De-Delegation | Q4: Minimum funding adjustment | R4: Budget before de-delegation (incl. min funding adj) | S4: De-delegation tbc | T4: Net School budget | U4: KS1 Class Factor (link info From KS1 working papers) | V4: ERS | W4: TA & OOC TA Hours | X4: TA Hours OOC | Y4: Sixth Form | Z4: Schools with Nurseries excl Rates, TA, ERS | AA4: Contingency | AB4: Total | AC4: NOR | AD4: Budget before de-delegation / NOR Funding per child - min fund £3,500- P, £4,800 - S & £4,042 - A | AE4: Minimum funding adjustment (see above) | AH4: Lookup | AK4: 18/19 School budget before de-del incl KS1 | AL4: 18/19 MFG | AM4: Variance 19/20 to 18/19 | AN4: Change - MFG | AO4: % change in year
A5: Akaal Primary School | B5: 2014 | C5: 429065.5703 | D5: 59076.56956 | E5: 0 | F5: 20398.89223 | G5: 58584.06565 | H5: 8352.844883 | I5: 110000 | J5: 0 | K5: 946 | L5: 0 | M5: =SUM(C5:L5) -> 686423.9426 | N5: 0 | O5: 0 | P5: =SUM(M5:O5) -> 686423.9426 | Q5: =AE5 -> 0 | R5: =P5+Q5 -> 686423.9426 | S5: 0 | T5: =R5+S5 -> 686423.9426 | U5: 2200 | AA5: 0 | AB5: =SUM(T5:AA5) -> 688623.9426 | AC5: 156.8333333 | AD5: =P5/AC5 -> 4376.77328 | AE5: =IF(AD5<$AE$1,((AC5*$AE$1)-(P5)),0) -> 0 | AH5: 8312014 | AK5: 547791.5171 | AL5: 0 | AM5: =+P5+U5-AK5 -> 140832.4256 | AN5: =+N5-AL5 -> 0 | AO5: =+AM5/(U5+P5) -> 0.2045128217
A6: Allenton Community Primary School | B6: 2012 | C6: 1091586.584 | D6: 350161.9052 | E6: 0 | F6: 102710.6867 | G6: 35869.75 | H6: 9381.258 | I6: 110000 | J6: 0 | K6: 7705 | L6: 0 | M6: =SUM(C6:L6) -> 1707415.184 | N6: 90750.66885 | O6: 0 | P6: 1798165.853 | Q6: 0 | R6: 1798165.853 | S6: 0 | T6: 1798165.853 | U6: 5789 | AA6: 0 | AB6: =SUM(T6:AA6) -> 1803954.853 | AC6: 399 | AD6: 4506.681335 | AE6: 0 | AF6: 2012 new number | AH6: 8312400 | AK6: 1748814.723 | AL6: -12480.76557 | AM6: 55140.13003 | AN6: 103231.4344 | AO6: 0.03056624723
A7: Alvaston Infant and Nursery School | B7: 2443 | C7: 730460.1953 | D7: 129234.2182 | E7: 0 | F7: 26835.25413 | G7: 13913.64153 | H7: 0 | I7: 110000 | J7: 0 | K7: 19052.875 | L7: 0 | M7: 1029496.184 | N7: 0 | O7: 0 | P7: 1029496.184 | Q7: 0 | R7: 1029496.184 | S7: -18796.266 | T7: 1010699.918 | U7: 6600 | AA7: 0 | AB7: =SUM(T7:AA7) -> 1017299.918 | AC7: 267 | AD7: 3855.790952 | AE7: 0 | AH7: 8312443 | AK7: 1016425.532 | AL7: -6917.847565 | AM7: 19670.65188 | AN7: 6917.847565 | AO7: 0.01898535308
A8: Alvaston Junior School | B8: 2442 | C8: 935645.6434 | D8: 182570.8925 | E8: 0 | F8: 85877.29629 | G8: 8711.225 | H8: 0 | I8: 110000 | J8: 0 | K8: 4211.375 | L8: 0 | M8: 1327016.432 | N8: 0 | O8: 0 | P8: 1327016.432 | Q8: 0 | R8: 1327016.432 | S8: 0 | T8: 1327016.432 | U8: 0 | AA8: 0 | AB8: 1327016.432 | AC8: 342 | AD8: 3880.165007 | AE8: 0 | AH8: 8312442 | AK8: 1363680.582 | AL8: 0 | AM8: -36664.14961 | AN8: 0 | AO8: -0.02762900949
A9: Arboretum Primary School | B9: 2629 | C9: 1436298.137 | D9: 357497.5999 | E9: 0 | F9: 156864.6981 | G9: 126422.8939 | H9: 6369.99 | I9: 110000 | J9: 0 | K9: 67582 | L9: 0 | M9: 2261035.319 | N9: 12337.87729 | O9: 0 | P9: 2273373.196 | Q9: 0 | R9: 2273373.196 | S9: -36958.95 | T9: 2236414.246 | U9: 13082 | AA9: 0 | AB9: 2249496.246 | AC9: 525 | AD9: 4330.234659 | AE9: 0 | AH9: 8312629 | AK9: 2291374.339 | AL9: 67288.78531 | AM9: -4919.143231 | AN9: -54950.90803 | AO9: -0.002151427782
A10: Ash Croft Primary School | B10: 2509 | C10: 574519.2547 | D10: 108182.37 | E10: 0 | F10: 38133.375 | G10: 26219.51269 | H10: 33587.22 | I10: 110000 | J10: 0 | K10: 3266.5 | L10: 0 | M10: 893908.2324 | N10: 0 | O10: 0 | P10: 893908.2324 | Q10: 0 | R10: 893908.2324 | S10: 0 | T10: 893908.2324 | U10: 10071 | AA10: 0 | AB10: 903979.2324 | AC10: 210 | AD10: 4256.705869 | AE10: 0 | AH10: 8312509 | AK10: 973668.0966 | AL10: -5515.489401 | AM10: -69688.86421 | AN10: 5515.489401 | AO10: -0.07709122257 | AP10: NOR 23 pupils lower in 19/20
A11: Ashgate Primary School | B11: 2005 | C11: 891872.7478 | D11: 225744.444 | E11: 0 | F11: 58773.00092 | G11: 24287.49131 | H11: 0 | I11: 110000 | J11: 0 | K11: 20440 | L11: 0 | M11: 1331117.684 | N11: 0 | O11: 0 | P11: 1331117.684 | Q11: 0 | R11: 1331117.684 | S11: -22949.748 | T11: 1308167.936 | U11: 11808 | AA11: 0 | AB11: 1319975.936 | AC11: 326 | AD11: 4083.18308 | AE11: 0 | AH11: 8312005 | AK11: 1335268.802 | AL11: 4694.740186 | AM11: 7656.881791 | AN11: -4694.740186 | AO11: 0.005701642229
A12: Asterdale Primary School | B12: 2464 | C12: 547161.195 | D12: 83589.59747 | E12: 0 | F12: 31241.8012 | G12: 3068.413174 | H12: 0 | I12: 110000 | J12: 0 | K12: 15838.5 | L12: 0 | M12: 790899.5068 | N12: 0 | O12: 0 | P12: 790899.5068 | Q12: 0 | R12: 790899.5068 | S12: -14079.6 | T12: 776819.9068 | U12: 16901 | AA12: 0 | AB12: 793720.9068 | AC12: 200 | AD12: 3954.497534 | AE12: 0 | AH12: 8312464 | AK12: 789752.6594 | AL12: 0 | AM12: 18047.84742 | AN12: 0 | AO12: 0.022341961
A13: Beaufort Community Primary School | B13: 2004 | C13: 807062.7626 | D13: 252588.296 | E13: 0 | F13: 65396.1959 | G13: 9302.484615 | H13: 8686.35 | I13: 110000 | J13: 0 | K13: 18429 | L13: 0 | M13: 1271465.089 | N13: 29481.1826 | O13: 0 | P13: 1300946.272 | Q13: 0 | R13: 1300946.272 | S13: -20767.41 | T13: 1280178.862 | U13: 15975 | AA13: 0 | AB13: 1296153.862 | AC13: 295 | AD13: 4409.987362 | AE13: 0 | AH13: 8312004 | AK13: 1327393.296 | AL13: 40921.97736 | AM13: -10472.02464 | AN13: -11440.79476 | AO13: -0.007951898768
A14: Becket Primary School | B14: 2405 | C14: 560840.2249 | D14: 162002.8953 | E14: 0 | F14: 36584.4697 | G14: 32414.54143 | H14: 6369.99 | I14: 110000 | J14: 0 | K14: 14739.5 | L14: 0 | M14: 922951.6213 | N14: 0 | O14: 0 | P14: 922951.6213 | Q14: 0 | R14: 922951.6213 | S14: -14431.59 | T14: 908520.0313 | U14: 2200 | AA14: 0 | AB14: 910720.0313 | AC14: 205 | AD14: 4502.203031 | AE14: 0 | AH14: 8312405 | AK14: 910829.7144 | AL14: 0 | AM14: 14321.90692 | AN14: 0 | AO14: 0.01548060511
A15: Bishop Lonsdale Church of England Aided Primary School | B15: 2011 | C15: 571783.4488 | D15: 111206.0537 | E15: 0 | F15: 39451.6785 | G15: 12494.62958 | H15: 0 | I15: 110000 | J15: 0 | K15: 5987.25 | L15: 0 | M15: 850923.0605 | N15: 0 | O15: 0 | P15: 850923.0605 | Q15: 0 | R15: 850923.0605 | S15: 0 | T15: 850923.0605 | U15: 2663 | AA15: 0 | AB15: 853586.0605 | AC15: 209 | AD15: 4071.402203 | AE15: 0 | AF15: 2011 new number | AH15: 8312011 | AK15: 841089.3451 | AL15: 0 | AM15: 12496.7154 | AN15: 0 | AO15: 0.01464025243
A16: Borrow Wood Primary School | B16: 5201 | C16: 982154.345 | D16: 60858.7516 | E16: 0 | F16: 51902.00062 | G16: 2901.586356 | H16: 0 | I16: 110000 | J16: 0 | K16: 25047 | L16: 0 | M16: 1232863.684 | N16: -1909.796306 | O16: 0 | P16: 1230953.887 | Q16: 0 | R16: 1230953.887 | S16: -25272.882 | T16: 1205681.005 | U16: 12734 | AA16: 0 | AB16: 1218415.005 | AC16: 359 | AD16: 3428.840912 | AE16: 0 | AH16: 8315201 | AK16: 1281089.77 | AL16: -5121.498058 | AM16: -37401.88307 | AN16: 3211.701752 | AO16: -0.03007336765
A17: Brackensdale ER (Enhanced Resource) Primary School | B17: 2432 | C17: 1289932.517 | D17: 299107.013 | E17: 0 | F17: 109025.3227 | G17: 15743.90495 | H17: 0 | I17: 110000 | J17: 0 | K17: 21366.75 | L17: 0 | M17: 1845175.508 | N17: 38343.13102 | O17: 0 | P17: 1883518.639 | Q17: 0 | R17: 1883518.639 | S17: -33192.657 | T17: 1850325.982 | U17: 21764 | AA17: 0 | AB17: 1872089.982 | AC17: 471.5 | AD17: 3994.737304 | AE17: 0 | AH17: 8312432 | AK17: 1969429.914 | AL17: 84875.8316 | AM17: -64147.27473 | AN17: -46532.70058 | AO17: -0.03366811486 | AP17: Lump Sum and MFG
A18: Breadsall Hill Top Primary School | B18: 2018 | C18: 1036870.465 | D18: 186586.3475 | E18: 0 | F18: 85580.0492 | G18: 14407.20141 | H18: 0 | I18: 110000 | J18: 0 | K18: 5014.75 | L18: 0 | M18: 1438458.813 | N18: -4242.463183 | O18: 0 | P18: 1434216.349 | Q18: 0 | R18: 1434216.349 | S18: 0 | T18: 1434216.349 | U18: 12734 | AA18: 0 | AB18: 1446950.349 | AC18: 379 | AD18: 3784.212004 | AE18: 0 | AH18: 8312447 | AK18: 1521375.172 | AL18: 0 | AM18: -74424.82246 | AN18: -4242.463183 | AO18: -0.05143564359 | AP18: NOR 36 pupils lower in 19/20
A19: Brookfield Primary School | B19: 2512 | C19: 582726.6727 | D19: 26262.10259 | E19: 0 | F19: 37535.37435 | G19: 22067.87664 | H19: 0 | I19: 110000 | J19: 0 | K19: 19831 | L19: 0 | M19: 798423.0262 | N19: -2005.725793 | O19: 0 | P19: 796417.3005 | Q19: 0 | R19: 796417.3005 | S19: -14994.774 | T19: 781422.5265 | U19: 2200 | AA19: 0 | AB19: 783622.5265 | AC19: 213 | AD19: 3739.048359 | AE19: 0 | AH19: 8312512 | AK19: 776483.9839 | AL19: 0 | AM19: 22133.31656 | AN19: -2005.725793 | AO19: 0.02771454681
A20: Carlyle Infant School | B20: 2456 | C20: 489709.2695 | D20: 35602.16208 | E20: 0 | F20: 21414.50706 | G20: 16051.71312 | H20: 0 | I20: 110000 | J20: 0 | K20: 12885 | L20: 0 | M20: 685662.6518 | N20: 0 | O20: 0 | P20: 685662.6518 | Q20: 0 | R20: 685662.6518 | S20: -12601.242 | T20: 673061.4098 | U20: 4863 | AA20: 0 | AB20: 677924.4098 | AC20: 179 | AD20: 3830.517608 | AE20: 0 | AH20: 8312456 | AK20: 677261.9549 | AL20: 0 | AM20: 13263.69691 | AN20: 0 | AO20: 0.01920811614
A21: Cavendish Close Infant School | B21: 2449 | C21: 705837.9415 | D21: 93192.38824 | E21: 0 | F21: 63246.92625 | G21: 8554.483235 | H21: 0 | I21: 110000 | J21: 0 | K21: 14004 | L21: 0 | M21: 994835.7393 | N21: -16931.58916 | O21: 0 | P21: 977904.1501 | Q21: 0 | R21: 977904.1501 | S21: -18162.684 | T21: 959741.4661 | U21: 7526 | AA21: 0 | AB21: 967267.4661 | AC21: 258 | AD21: 3790.326163 | AE21: 0 | AH21: 8312449 | AK21: 952795.4896 | AL21: -18260.95475 | AM21: 32634.66047 | AN21: 1329.36559 | AO21: 0.0331171727
A22: Cavendish Close Junior School | B22: 2019 | C22: 891872.7478 | D22: 128309.2994 | E22: 0 | F22: 77488.27731 | G22: 2562.125 | H22: 0 | I22: 110000 | J22: 0 | K22: 5464.5 | L22: 0 | M22: 1215696.95 | N22: -4036.325124 | O22: 0 | P22: 1211660.624 | Q22: 0 | R22: 1211660.624 | S22: 0 | T22: 1211660.624 | U22: 0 | AA22: 0 | AB22: 1211660.624 | AC22: 326 | AD22: 3716.750382 | AE22: 0 | AH22: 8312448 | AK22: 1232372.965 | AL22: -13115.06915 | AM22: -20712.34024 | AN22: 9078.744029 | AO22: -0.01709417622
A23: Chaddesden Park Junior School | B23: 2467 | C23: 952060.4793 | D23: 158556.6202 | E23: 0 | F23: 62978.23831 | G23: 3531.166337 | H23: 0 | I23: 110000 | J23: 0 | K23: -7537 | L23: 0 | M23: 1279589.504 | N23: -8464.518771 | O23: 0 | P23: 1271124.985 | Q23: 0 | R23: 1271124.985 | S23: 0 | T23: 1271124.985 | U23: 11345 | AA23: 0 | AB23: 1282469.985 | AC23: 348 | AD23: 3652.658004 | AE23: 0 | AH23: 8312467 | AK23: 1316514.421 | AL23: -819.9074835 | AM23: -34044.43549 | AN23: -7644.611287 | AO23: -0.02654599007
A24: Chellaston Infant School | B24: 2455 | C24: 973946.9271 | D24: 78629.12667 | E24: 0 | F24: 50195.05765 | G24: 23563.00958 | H24: 0 | I24: 110000 | J24: 0 | K24: 25220 | L24: 0 | M24: 1261554.121 | N24: -3131.507308 | O24: 0 | P24: 1258422.614 | Q24: 0 | R24: 1258422.614 | S24: -25061.688 | T24: 1233360.926 | U24: 10652 | AA24: 0 | AB24: 1244012.926 | AC24: 356 | AD24: 3534.894982 | AE24: 0 | AH24: 8312455 | AK24: 1231530.548 | AL24: -4557.202638 | AM24: 37544.06589 | AN24: 1425.69533 | AO24: 0.02958381287
A25: Chellaston Junior School | B25: 5203 | C25: 1400732.659 | D25: 108620.51 | E25: 0 | F25: 94947.77331 | G25: 4099.4 | H25: 0 | I25: 110000 | J25: 0 | K25: 6099.9 | L25: 0 | M25: 1724500.243 | N25: -6084.236734 | O25: 0 | P25: 1718416.006 | Q25: 0 | R25: 1718416.006 | S25: -36043.776 | T25: 1682372.23 | U25: 0 | AA25: 0 | AB25: 1682372.23 | AC25: 512 | AD25: 3356.281261 | AE25: 0 | AH25: 8315203 | AK25: 1641481.996 | AL25: -1606.405906 | AM25: 76934.00958 | AN25: -4477.830828 | AO25: 0.04477030551
A26: Cherry Tree Hill Primary School | B26: 2451 | C26: 1540258.764 | D26: 184652.2273 | E26: 0 | F26: 109502.7743 | G26: 8795.587652 | H26: 0 | I26: 110000 | J26: 0 | K26: 34688.5 | L26: 0 | M26: 1987897.853 | N26: -17752.7743 | O26: 0 | P26: 1970145.079 | Q26: 0 | R26: 1970145.079 | S26: -39634.074 | T26: 1930511.005 | U26: 15397 | AA26: 0 | AB26: 1945908.005 | AC26: 563 | AD26: 3499.369589 | AE26: 0 | AH26: 8312451 | AK26: 1870642.383 | AL26: -30282.96151 | AM26: 114899.6963 | AN26: 12530.1872 | AO26: 0.05786817491
A27: Cottons Farm Primary School | B27: 2023 | C27: 298202.8513 | D27: 103302.2455 | E27: 0 | F27: 32487.88224 | G27: 17454.47656 | H27: 0 | I27: 110000 | J27: 0 | K27: 4804.2 | L27: 25320 | M27: =SUM(C27:L27) -> 591571.6556 | N27: 0 | O27: 0 | P27: =SUM(M27:O27) -> 591571.6556 | Q27: =AE27 -> 0 | R27: =P27+Q27 -> 591571.6556 | S27: 0 | T27: =R27+S27 -> 591571.6556 | U27: 10071 | AA27: 0 | AB27: =SUM(T27:AA27) -> 601642.6556 | AC27: 109 | AD27: =P27/AC27 -> 5427.262895 | AE27: =IF(AD27<$AE$1,((AC27*$AE$1)-(P27)),0) -> 0 | AH27: 8312430 | AK27: 710626 | AL27: 370 | AM27: =+P27+U27-AK27 -> -108983.3444 | AN27: =+N27-AL27 -> -370 | AO27: =+AM27/(U27+P27) -> -0.1811429814 | AP27: NOR 20 pupils lower in 19/20
A28: Dale Community Primary School | B28: 2409 | C28: 1504693.286 | D28: 323305.35 | E28: 0 | F28: 144977.1169 | G28: 120785.8929 | H28: 0 | I28: 110000 | J28: 0 | K28: 37666 | L28: 0 | M28: 2241427.646 | N28: -6414.925217 | O28: 0 | P28: 2235012.721 | Q28: 0 | R28: 2235012.721 | S28: -38718.9 | T28: 2196293.821 | U28: 14934 | AA28: 0 | AB28: 2211227.821 | AC28: 550 | AD28: 4063.659492 | AE28: 0 | AH28: 8312409 | AK28: 2151407.642 | AL28: 2980.000107 | AM28: 98539.07883 | AN28: -9394.925325 | AO28: 0.04379618323
A29: Derby St Chad's CE (VC) Nursery and Infant School | B29: 3158 | C29: 328296.717 | D29: 67998.3 | E29: 0 | F29: 33693.96716 | G29: 57647.8125 | H29: 1158.18 | I29: 110000 | J29: 0 | K29: 1637.5 | L29: 0 | M29: 600432.4767 | N29: 0 | O29: 0 | P29: 600432.4767 | Q29: 0 | R29: 600432.4767 | S29: 0 | T29: 600432.4767 | U29: 13660 | AA29: 0 | AB29: 614092.4767 | AC29: 120 | AD29: 5003.603972 | AE29: 0 | AH29: 8313158 | AK29: 590201.35 | AL29: 15733.88718 | AM29: 23891.12671 | AN29: -15733.88718 | AO29: 0.03890477024
A30: Derwent Community School | B30: 2016 | C30: 662065.0459 | D30: 219453.7446 | E30: 0 | F30: 58622.9099 | G30: 18718.01509 | H30: 0 | I30: 110000 | J30: 0 | K30: 5721 | L30: 0 | M30: 1074580.716 | N30: 0 | O30: 0 | P30: 1074580.716 | Q30: 0 | R30: 1074580.716 | S30: 0 | T30: 1074580.716 | U30: 2200 | AA30: 0 | AB30: 1076780.716 | AC30: 242 | AD30: 4440.41618 | AE30: 0 | AH30: 8312619 | AK30: 1063536.349 | AL30: 0 | AM30: 13244.36603 | AN30: 0 | AO30: 0.01229996585
A31: Firs Estate Primary School | B31: 2013 | C31: 1006776.599 | D31: 293398.9758 | E31: 0 | F31: 120540.5762 | G31: 93426.44742 | H31: 85242.048 | I31: 110000 | J31: 0 | K31: 1452.5 | L31: 0 | M31: 1710837.146 | N31: -2133.595786 | O31: 0 | P31: 1708703.55 | Q31: 0 | R31: 1708703.55 | S31: 0 | T31: 1708703.55 | U31: 14123 | AA31: 0 | AB31: 1722826.55 | AC31: 368 | AD31: 4643.216169 | AE31: 0 | AH31: 8312518 | AK31: 1663281.32 | AL31: 0 | AM31: 59545.23068 | AN31: -2133.595786 | AO31: 0.03456252208
A32: Gayton Community Junior School | B32: 2457 | C32: 1012248.211 | D32: 90045.04077 | E32: 0 | F32: 89904.87417 | G32: 17934.875 | H32: 0 | I32: 110000 | J32: 0 | K32: 21869 | L32: 0 | M32: 1342002.001 | N32: 0 | O32: 0 | P32: 1342002.001 | Q32: 0 | R32: 1342002.001 | S32: -26047.26 | T32: 1315954.741 | U32: 0 | AA32: 0 | AB32: 1315954.741 | AC32: 370 | AD32: 3627.032434 | AE32: 0 | AH32: 8312457 | AK32: 1291688.862 | AL32: -6130.034059 | AM32: 50313.13872 | AN32: 6130.034059 | AO32: 0.0374911056
A33: Grampian Primary Academy | B33: 2010 | C33: 571783.4488 | D33: 160916.949 | E33: 0 | F33: 34200.23149 | G33: 16154.26969 | H33: 0 | I33: 110000 | J33: 0 | K33: 3950 | L33: 0 | M33: 897004.899 | N33: 15334.9562 | O33: 0 | P33: 912339.8552 | Q33: 0 | R33: 912339.8552 | S33: 0 | T33: 912339.8552 | U33: 2200 | AA33: 0 | AB33: 914539.8552 | AC33: 209 | AD33: 4365.262465 | AE33: 0 | AH33: 8312010 | AK33: 900176.1666 | AL33: 24729.15516 | AM33: 14363.68862 | AN33: -9394.198963 | AO33: 0.0157059187
A34: Griffe Field Primary School | B34: 2002 | C34: 1165453.345 | D34: 22191.59646 | E34: 0 | F34: 58851.44059 | G34: 26314.77863 | H34: 0 | I34: 110000 | J34: 0 | K34: 10246.6 | L34: 0 | M34: 1393057.761 | N34: 0 | O34: 0 | P34: 1393057.761 | Q34: 12742.23898 | R34: 1405800 | S34: 0 | T34: 1405800 | U34: 20027 | AA34: 0 | AB34: 1425827 | AC34: 426 | AD34: 3270.088641 | AE34: 12742.23898 | AH34: 8312002 | AK34: 1414990.17 | AL34: 0 | AM34: -1905.408891 | AN34: 0 | AO34: -0.001348403821
A35: Hackwood Primary School | B35: 9998 | C35: 47603.02396 | D35: 2010.447558 | E35: 0 | F35: 0 | G35: 1040.702492 | H35: 0 | I35: 63799.84699 | J35: 0 | K35: 3324.84 | L35: 0 | M35: 117778.861 | N35: 0 | O35: 0 | P35: 117778.861 | Q35: 0 | R35: 117778.861 | S35: 0 | T35: 117778.861 | U35: 8033.8 | AA35: 0 | AB35: 125812.661 | AC35: 17.4 | AD35: 6768.900058 | AE35: 0 | AH35: 8319998 | AK35: 0 | AL35: 0 | AM35: 125812.661 | AN35: 0 | AO35: 1
A36: Hardwick Primary School | B36: 3544 | C36: 1474599.421 | D36: 393763.29 | E36: 0 | F36: 160204.4426 | G36: 125701.3828 | H36: 8223.078 | I36: 110000 | J36: 0 | K36: 13383 | L36: 144033 | M36: 2429907.614 | N36: 0 | O36: 0 | P36: 2429907.614 | Q36: 0 | R36: 2429907.614 | S36: 0 | T36: 2429907.614 | U36: 4400 | AA36: 0 | AB36: 2434307.614 | AC36: 539 | AD36: 4508.177391 | AE36: 0 | AH36: 8313544 | AK36: 2391047.343 | AL36: 18161.22129 | AM36: 43260.27097 | AN36: -18161.22129 | AO36: 0.0177710782
A37: Homefields Primary School | B37: 2006 | C37: 864514.6881 | D37: 9004.241047 | E37: 0 | F37: 47960.78209 | G37: 9926.516475 | H37: 0 | I37: 110000 | J37: 0 | K37: 36209 | L37: 0 | M37: 1077615.228 | N37: -2951.368842 | O37: 0 | P37: =SUM(M37:O37) -> 1074663.859 | Q37: 0 | R37: 1074663.859 | S37: -22245.768 | T37: 1052418.091 | U37: 11345 | AA37: 0 | AB37: 1063763.091 | AC37: 316 | AD37: 3400.834996 | AE37: 0 | AH37: 8312006 | AK37: 1023434.183 | AL37: -8346.651142 | AM37: 62574.67551 | AN37: 5395.2823 | AO37: 0.05761893653
A38: Lakeside Community Primary School | B38: 2434 | C38: 1630540.361 | D38: 383164.7488 | E38: 0 | F38: 139481.6858 | G38: 25699.46751 | H38: 0 | I38: 110000 | J38: 0 | K38: 10769.4 | L38: 155118 | M38: 2454773.663 | N38: 0 | O38: 0 | P38: 2454773.663 | Q38: 0 | R38: 2454773.663 | S38: 0 | T38: 2454773.663 | U38: 8915 | AA38: 0 | AB38: 2463688.663 | AC38: 596 | AD38: 4118.747757 | AE38: 0 | AH38: 8312434 | AK38: 2432800.157 | AL38: 0 | AM38: 30888.5061 | AN38: 0 | AO38: 0.01253750385
A39: Lawn Primary School | B39: 2522 | C39: 1184603.987 | D39: 58613.09791 | E39: 0 | F39: 55194.21117 | G39: 16700.64704 | H39: 1968.906 | I39: 110000 | J39: 0 | K39: 20446 | L39: 0 | M39: 1447526.849 | N39: 0 | O39: 0 | P39: 1447526.849 | Q39: 0 | R39: 1447526.849 | S39: -30482.334 | T39: 1417044.515 | U39: 20027 | AA39: 0 | AB39: 1437071.515 | AC39: 433 | AD39: 3343.018128 | AE39: 0 | AH39: 8312522 | AK39: 1404548.68 | AL39: 0 | AM39: 63005.16969 | AN39: 0 | AO39: 0.04293210074
A40: Markeaton Primary School | B40: 2436 | C40: 1102529.808 | D40: 122332.5949 | E40: 0 | F40: 54560.05962 | G40: 10235.05445 | H40: 0 | I40: 110000 | J40: 0 | K40: 27298 | L40: 0 | M40: 1426955.517 | N40: -3500.157919 | O40: 0 | P40: 1423455.359 | Q40: 0 | R40: 1423455.359 | S40: -28370.394 | T40: 1395084.965 | U40: 4400 | AA40: 0 | AB40: 1399484.965 | AC40: 403 | AD40: 3532.147293 | AE40: 0 | AH40: 8312436 | AK40: 1340335.702 | AL40: 0 | AM40: 87519.65714 | AN40: -3500.157919 | AO40: 0.06129448378
A41: Meadow Farm Community Primary School | B41: 2452 | C41: 478766.0456 | D41: 78909.36647 | E41: 0 | F41: 41727.55517 | G41: 7771.779167 | H41: 5211.81 | I41: 110000 | J41: 0 | K41: 16944.5 | L41: 0 | M41: 739331.0564 | N41: -9538.168949 | O41: 0 | P41: 729792.8875 | Q41: 0 | R41: 729792.8875 | S41: -12319.65 | T41: 717473.2375 | U41: 4515 | AA41: 0 | AB41: 721988.2375 | AC41: 175 | AD41: 4170.245071 | AE41: 0 | AH41: 8312452 | AK41: 710598.9009 | AL41: 0 | AM41: 23708.98654 | AN41: -9538.168949 | AO41: 0.03228752808
A42: Mickleover Primary School | B42: 2627 | C42: 1146302.704 | D42: 46052.84506 | E42: 0 | F42: 60259.4487 | G42: 18540.0789 | H42: 0 | I42: 110000 | J42: 0 | K42: 17978 | L42: 0 | M42: 1399133.076 | N42: -5825.536334 | O42: 0 | P42: 1393307.54 | Q42: 0 | R42: 1393307.54 | S42: -29496.762 | T42: 1363810.778 | U42: 4400 | AA42: 0 | AB42: 1368210.778 | AC42: 419 | AD42: 3325.316324 | AE42: 0 | AH42: 8312627 | AK42: 1359401.844 | AL42: -2344.757814 | AM42: 38305.69552 | AN42: -3480.77852 | AO42: 0.02740608778
A43: Landau Forte Academy Moorhead | B43: 2009 | C43: 714045.3595 | D43: 189854.6211 | E43: 0 | F43: 52334.02901 | G43: 9682.745701 | H43: 0 | I43: 110000 | J43: 0 | K43: 3446 | L43: 0 | M43: 1079362.755 | N43: 4693.483837 | O43: 0 | P43: 1084056.239 | Q43: 0 | R43: 1084056.239 | S43: 0 | T43: 1084056.239 | U43: 13660 | AA43: 0 | AB43: 1097716.239 | AC43: 261 | AD43: 4153.472181 | AE43: 0 | AH43: 8312009 | AK43: 1072173.338 | AL43: 29694.28246 | AM43: 25542.90088 | AN43: -25000.79862 | AO43: 0.0232691291
A44: Oakwood Infant and Nursery School | B44: 2473 | C44: 735931.8073 | D44: 147558.5 | E44: 0 | F44: 45334.44154 | G44: 9240.826257 | H44: 0 | I44: 110000 | J44: 0 | K44: 18238.375 | L44: 0 | M44: 1066303.95 | N44: 0 | O44: 0 | P44: 1066303.95 | Q44: 0 | R44: 1066303.95 | S44: -18937.062 | T44: 1047366.888 | U44: 6600 | AA44: 0 | AB44: 1053966.888 | AC44: 269 | AD44: 3963.955205 | AE44: 0 | AH44: 8312473 | AK44: 1085545.506 | AL44: -3909.934696 | AM44: -12641.55551 | AN44: 3909.934696 | AO44: -0.01178256032
A45: Oakwood Junior School | B45: 2471 | C45: 943853.0614 | D45: 206022.9809 | E45: 0 | F45: 97567.28609 | G45: 1537.275 | H45: 0 | I45: 110000 | J45: 0 | K45: 18238.375 | L45: 0 | M45: 1377218.978 | N45: 0 | O45: 0 | P45: 1377218.978 | Q45: 0 | R45: 1377218.978 | S45: -24287.31 | T45: 1352931.668 | U45: 0 | AA45: 0 | AB45: 1352931.668 | AC45: 345 | AD45: 3991.939068 | AE45: 0 | AH45: 8312471 | AK45: 1356285.66 | AL45: 0 | AM45: 20933.31826 | AN45: 0 | AO45: 0.01519970215
A46: Osmaston Primary School | B46: 2420 | C46: 1630540.361 | D46: 542429.1684 | E46: 0 | F46: 148065.9212 | G46: 70657.82275 | H46: 12045.072 | I46: 110000 | J46: 0 | K46: 5759.6 | L46: 0 | M46: 2519497.945 | N46: 111555.8885 | O46: 0 | P46: 2631053.834 | Q46: 0 | R46: 2631053.834 | S46: 0 | T46: 2631053.834 | U46: 14471 | AA46: 0 | AB46: 2645524.834 | AC46: 596 | AD46: 4414.519856 | AE46: 0 | AH46: 8312420 | AK46: 2640240.82 | AL46: 133238.8206 | AM46: 5284.014033 | AN46: -21682.93202 | AO46: 0.001997340552
A47: Parkview Primary School | B47: 2003 | C47: 574519.2547 | D47: 17268.4413 | E47: 0 | F47: 32991.79635 | G47: 3586.975 | H47: 0 | I47: 110000 | J47: 0 | K47: 32000 | L47: 0 | M47: 770366.4674 | N47: -2552.21849 | O47: 0 | P47: 767814.2489 | Q47: 0 | R47: 767814.2489 | S47: -14783.58 | T47: 753030.6689 | U47: 2200 | AA47: 0 | AB47: 755230.6689 | AC47: 210 | AD47: 3656.258328 | AE47: 0 | AH47: 8312003 | AK47: 745631.7971 | AL47: -5064.682854 | AM47: 24382.45183 | AN47: 2512.464364 | AO47: 0.0316649359
A48: Pear Tree Community Junior School | B48: 2017 | C48: 954796.2853 | D48: 290157.8359 | E48: 0 | F48: 127855.0451 | G48: 67127.675 | H48: 26753.958 | I48: 110000 | J48: 0 | K48: 3335 | L48: 0 | M48: 1580025.799 | N48: 11654.43102 | O48: 0 | P48: 1591680.23 | Q48: 0 | R48: 1591680.23 | S48: 0 | T48: 1591680.23 | U48: 0 | AA48: 0 | AB48: 1591680.23 | AC48: 349 | AD48: 4560.688339 | AE48: 0 | AH48: 8312423 | AK48: 1608468.365 | AL48: 31050.21156 | AM48: -16788.13487 | AN48: -19395.78054 | AO48: -0.01054742941
A49: Pear Tree Infant School | B49: 2424 | C49: 694894.7176 | D49: 181452.0542 | E49: 0 | F49: 60672.16174 | G49: 106219.2236 | H49: 18067.608 | I49: 110000 | J49: 0 | K49: 9610.5 | L49: 0 | M49: 1180916.265 | N49: 25462.45737 | O49: 0 | P49: 1206378.722 | Q49: 0 | R49: 1206378.722 | S49: -17881.092 | T49: 1188497.63 | U49: 11230 | AA49: 0 | AB49: 1199727.63 | AC49: 254 | AD49: 4749.522529 | AE49: 0 | AH49: 8312424 | AK49: 1250092.118 | AL49: 69361.08037 | AM49: -32483.39525 | AN49: -43898.623 | AO49: -0.02667802443
A50: Portway Infant School | B50: 2439 | C50: 659329.24 | D50: 24870.025 | E50: 0 | F50: 22797.25488 | G50: 4283.043642 | H50: 0 | I50: 110000 | J50: 0 | K50: 12154 | L50: 0 | M50: 833433.5635 | N50: -2276.92266 | O50: 0 | P50: 831156.6408 | Q50: 0 | R50: 831156.6408 | S50: -16965.918 | T50: 814190.7228 | U50: 17249 | AA50: 0 | AB50: 831439.7228 | AC50: 241 | AD50: 3448.782742 | AE50: 0 | AH50: 8312439 | AK50: 884395.9802 | AL50: 0 | AM50: -35990.3394 | AN50: -2276.92266 | AO50: -0.04242114581
A51: Portway Junior School | B51: 2440 | C51: 971211.1211 | D51: 52159.22293 | E51: 0 | F51: 43568.47672 | G51: 512.425 | H51: 0 | I51: 110000 | J51: 0 | K51: 35245 | L51: 0 | M51: 1212696.246 | N51: -4078.793911 | O51: 0 | P51: 1208617.452 | Q51: 0 | R51: 1208617.452 | S51: -24991.29 | T51: 1183626.162 | U51: 0 | AA51: 0 | AB51: 1183626.162 | AC51: 355 | AD51: 3404.556202 | AE51: 0 | AH51: 8312440 | AK51: 1128795.215 | AL51: -3588.274942 | AM51: 79822.2373 | AN51: -490.5189689 | AO51: 0.06604425344
A52: Ravensdale Infant and Nursery School | B52: 2462 | C52: 708573.7475 | D52: 73834.74932 | E52: 0 | F52: 37284.94569 | G52: 23148.50145 | H52: 0 | I52: 110000 | J52: 0 | K52: 18089.25 | L52: 0 | M52: 970931.194 | N52: 0 | O52: 0 | P52: 970931.194 | Q52: 0 | R52: 970931.194 | S52: -18233.082 | T52: 952698.112 | U52: 7989 | AA52: 0 | AB52: 960687.112 | AC52: 259 | AD52: 3748.769089 | AE52: 0 | AH52: 8312462 | AK52: 960296.2908 | AL52: 0 | AM52: 18623.90317 | AN52: 0 | AO52: 0.01902494533
A53: Ravensdale Junior School | B53: 2463 | C53: 952060.4793 | D53: 107129.5623 | E53: 0 | F53: 69966.0198 | G53: 14860.325 | H53: 0 | I53: 110000 | J53: 0 | K53: 18089.25 | L53: 0 | M53: 1272105.636 | N53: 0 | O53: 0 | P53: 1272105.636 | Q53: 0 | R53: 1272105.636 | S53: -24498.504 | T53: 1247607.132 | U53: 0 | AA53: 0 | AB53: 1247607.132 | AC53: 348 | AD53: 3655.475967 | AE53: 0 | AH53: 8312463 | AK53: 1245466.984 | AL53: -1022.030137 | AM53: 26638.652 | AN53: 1022.030137 | AO53: 0.02094059741
A54: Redwood Primary School | B54: 2505 | C54: 1603182.301 | D54: 327669.1149 | E54: 0 | F54: 133259.7874 | G54: 75638.97661 | H54: 13203.252 | I54: 110000 | J54: 0 | K54: 33542.75 | L54: 0 | M54: 2296496.182 | N54: -43.78537339 | O54: 0 | P54: 2296452.397 | Q54: 0 | R54: 2296452.397 | S54: -41253.228 | T54: 2255199.169 | U54: 6252 | AA54: 0 | AB54: 2261451.169 | AC54: 586 | AD54: 3918.860746 | AE54: 0 | AH54: 8312505 | AK54: 2193465.377 | AL54: 0 | AM54: 109239.0195 | AN54: -43.78537339 | AO54: 0.04743944537
A55: Reigate Park Primary School | B55: 2020 | C55: 946588.8673 | D55: 200585.2328 | E55: 0 | F55: 86102.65433 | G55: 22017.52908 | H55: 0 | I55: 110000 | J55: 0 | K55: 4608 | L55: 0 | M55: 1369902.284 | N55: -4703.245295 | O55: 0 | P55: 1365199.038 | Q55: 0 | R55: 1365199.038 | S55: 0 | T55: 1365199.038 | U55: 13660 | AA55: 0 | AB55: 1378859.038 | AC55: 346 | AD55: 3945.66196 | AE55: 0 | AH55: 8312000 | AK55: 1298338 | AL55: -14616.33385 | AM55: 80521.03824 | AN55: 9913.088557 | AO55: 0.05839686001
A56: Ridgeway Infant School | B56: 2458 | C56: 727724.3893 | D56: 72312.73264 | E56: 0 | F56: 40800.58089 | G56: 69667.02556 | H56: 0 | I56: 110000 | J56: 0 | K56: 12149.5 | L56: 0 | M56: 1032654.228 | N56: -12431.67176 | O56: 0 | P56: 1020222.557 | Q56: 0 | R56: 1020222.557 | S56: -18725.868 | T56: 1001496.689 | U56: 8452 | AA56: 0 | AB56: 1009948.689 | AC56: 266 | AD56: 3835.423145 | AE56: 0 | AH56: 8312458 | AK56: 986480.1784 | AL56: -17505.84097 | AM56: 42194.37823 | AN56: 5074.169214 | AO56: 0.04101819955
A57: Roe Farm Primary School | B57: 2001 | C57: 1116208.838 | D57: 279105.9927 | E57: 0 | F57: 97127.68994 | G57: 8268.281356 | H57: 7180.716 | I57: 110000 | J57: 0 | K57: 22275 | L57: 0 | M57: 1640166.518 | N57: 0 | O57: 0 | P57: 1640166.518 | Q57: 0 | R57: 1640166.518 | S57: -28722.384 | T57: 1611444.134 | U57: 7178 | AA57: 0 | AB57: 1618622.134 | AC57: 408 | AD57: 4020.015975 | AE57: 0 | AH57: 8312001 | AK57: 1573465.358 | AL57: 17307.39116 | AM57: 73879.15948 | AN57: -17307.39116 | AO57: 0.04484742486
A58: Rosehill Infant and Nursery School | B58: 2429 | C58: 399427.6723 | D58: 84167.00825 | E58: 0 | F58: 34322.77108 | G58: 59700.10051 | H58: 0 | I58: 110000 | J58: 0 | K58: 10322.5 | L58: 0 | M58: 697940.0522 | N58: 22800.47119 | O58: 0 | P58: 720740.5234 | Q58: 0 | R58: 720740.5234 | S58: -10278.108 | T58: 710462.4154 | U58: 10419 | AA58: 0 | AB58: 720881.4154 | AC58: 146 | AD58: 4936.578927 | AE58: 0 | AH58: 8312429 | AK58: 739317.0284 | AL58: 31817.64333 | AM58: -8157.505 | AN58: -9017.17214 | AO58: -0.01115694283
A59: Shelton Infant School | B59: 2444 | C59: 569047.6428 | D59: 93324.46884 | E59: 0 | F59: 30001.86099 | G59: 18764.85915 | H59: 0 | I59: 110000 | J59: 0 | K59: 13274 | L59: 0 | M59: 834412.8318 | N59: 0 | O59: 0 | P59: 834412.8318 | Q59: 0 | R59: 834412.8318 | S59: -14642.784 | T59: 819770.0478 | U59: 17712 | AA59: 0 | AB59: 837482.0478 | AC59: 208 | AD59: 4011.600153 | AE59: 0 | AH59: 8312444 | AK59: 847389.0342 | AL59: 0 | AM59: 4735.797589 | AN59: 0 | AO59: 0.005557633591
A60: Shelton Junior School | B60: 5209 | C60: 714045.3595 | D60: 145254.9179 | E60: 0 | F60: 66352.0725 | G60: 9736.075 | H60: 0 | I60: 110000 | J60: 0 | K60: 3561 | L60: 0 | M60: 1048949.425 | N60: 0 | O60: 0 | P60: 1048949.425 | Q60: 0 | R60: 1048949.425 | S60: -18373.878 | T60: 1030575.547 | U60: 0 | AA60: 0 | AB60: 1030575.547 | AC60: 261 | AD60: 4018.963314 | AE60: 0 | AH60: 8315209 | AK60: 1048608.203 | AL60: 0 | AM60: 341.2219444 | AN60: 0 | AO60: 0.0003252987573
A61: Silverhill Primary School | B61: 2469 | C61: 1140831.092 | D61: 47296.68555 | E61: 0 | F61: 47115.90333 | G61: 13168.03067 | H61: 0 | I61: 110000 | J61: 0 | K61: 16942.5 | L61: 0 | M61: 1375354.211 | N61: 0 | O61: 0 | P61: 1375354.211 | Q61: 745.7888647 | R61: 1376100 | S61: -29355.966 | T61: 1346744.034 | U61: 4400 | AA61: 0 | AB61: 1351144.034 | AC61: 417 | AD61: 3298.211537 | AE61: 745.7888647 | AH61: 8312469 | AK61: 1363890.635 | AL61: 0 | AM61: 15863.57598 | AN61: 0 | AO61: 0.01149739269
A62: Springfield Primary School | B62: 2466 | C62: 809798.5686 | D62: 90679.84868 | E62: 0 | F62: 52024.59457 | G62: 3070.40081 | H62: 3937.812 | I62: 110000 | J62: 0 | K62: 16194.5 | L62: 0 | M62: 1085705.725 | N62: 3386.166896 | O62: 0 | P62: 1089091.892 | Q62: 0 | R62: 1089091.892 | S62: -20837.808 | T62: 1068254.084 | U62: 9493 | AA62: 0 | AB62: 1077747.084 | AC62: 296 | AD62: 3679.364499 | AE62: 0 | AH62: 8312466 | AK62: 1067152.524 | AL62: 8603.27611 | AM62: 31432.36781 | AN62: -5217.109214 | AO62: 0.02861168768
A63: St Alban's Catholic Primary School | B63: 3543 | C63: 839892.4343 | D63: 90638.26917 | E63: 0 | F63: 48442.53569 | G63: 18996.46491 | H63: 0 | I63: 110000 | J63: 0 | K63: 5571 | L63: 0 | M63: 1113540.704 | N63: -631.9918769 | O63: 0 | P63: 1112908.712 | Q63: 0 | R63: 1112908.712 | S63: 0 | T63: 1112908.712 | U63: 12734 | AA63: 0 | AB63: 1125642.712 | AC63: 307 | AD63: 3625.109812 | AE63: 0 | AH63: 8313543 | AK63: 1088763.832 | AL63: 0 | AM63: 36878.87985 | AN63: -631.9918769 | AO63: 0.03276250932
A64: St George's Catholic Voluntary Academy | B64: 3531 | C64: 924702.4195 | D64: 115952.1607 | E64: 0 | F64: 56091.36993 | G64: 14778.12713 | H64: 0 | I64: 110000 | J64: 0 | K64: 4086 | L64: 0 | M64: 1225610.077 | N64: 0 | O64: 0 | P64: 1225610.077 | Q64: 0 | R64: 1225610.077 | S64: 0 | T64: 1225610.077 | U64: 11345 | AA64: 0 | AB64: 1236955.077 | AC64: 338 | AD64: 3626.065318 | AE64: 0 | AH64: 8313531 | AK64: 1221337.197 | AL64: 0 | AM64: 15617.88009 | AN64: 0 | AO64: 0.01262606895
A65: St James' Church of England Aided Infant School | B65: 3526 | C65: 229807.7019 | D65: 51988.75 | E65: 0 | F65: 15605.35038 | G65: 34138.1069 | H65: 3011.268 | I65: 110000 | J65: 0 | K65: 1131.5 | L65: 0 | M65: 445682.6772 | N65: 11049.69915 | O65: 0 | P65: 456732.3763 | Q65: 0 | R65: 456732.3763 | S65: -5913.432 | T65: 450818.9443 | U65: 4052 | AA65: 0 | AB65: 454870.9443 | AC65: 84 | AD65: 5437.290194 | AE65: 0 | AH65: 8313526 | AK65: 458354.354 | AL65: 17956.70266 | AM65: 2430.022294 | AN65: -6907.003507 | AO65: 0.005273664687
A66: St James' Church of England Aided Junior School | B66: 3535 | C66: 809798.5686 | D66: 209079.9392 | E66: 0 | F66: 98352.88719 | G66: 49011.53401 | H66: 2779.632 | I66: 110000 | J66: 0 | K66: 3297 | L66: 0 | M66: 1282319.561 | N66: 0 | O66: 0 | P66: 1282319.561 | Q66: 0 | R66: 1282319.561 | S66: -20837.808 | T66: 1261481.753 | U66: 0 | AA66: 0 | AB66: 1261481.753 | AC66: 296 | AD66: 4332.160679 | AE66: 0 | AH66: 8313535 | AK66: 1247625.674 | AL66: 3670.495135 | AM66: 34693.88744 | AN66: -3670.495135 | AO66: 0.02705557062
A67: St John Fisher Catholic Voluntary Academy | B67: 2008 | C67: 623763.7623 | D67: 106783.4 | E67: 0 | F67: 46980.318 | G67: 17025.9 | H67: 0 | I67: 110000 | J67: 0 | K67: 2829 | L67: 0 | M67: 907382.3803 | N67: 0 | O67: 0 | P67: 907382.3803 | Q67: 0 | R67: 907382.3803 | S67: 0 | T67: 907382.3803 | U67: 2663 | AA67: 0 | AB67: 910045.3803 | AC67: 228 | AD67: 3979.747282 | AE67: 0 | AH67: 8312008 | AK67: 893444.6691 | AL67: 0 | AM67: 16600.71124 | AN67: 0 | AO67: 0.01824163015
A68: St Joseph's Catholic Primary School, Derby | B68: 3542 | C68: 1036870.465 | D68: 169303.2874 | E68: 0 | F68: 54426.90256 | G68: 81772.24211 | H68: 0 | I68: 110000 | J68: 0 | K68: 6555.6 | L68: 0 | M68: 1458928.497 | N68: -1436.315736 | O68: 0 | P68: =SUM(M68:O68) -> 1457492.181 | Q68: 0 | R68: 1457492.181 | S68: 0 | T68: 1457492.181 | U68: 6252 | AA68: 0 | AB68: 1463744.181 | AC68: 379 | AD68: 3845.625807 | AE68: 0 | AH68: 8313542 | AK68: 1347326.618 | AL68: 1749.426054 | AM68: 116417.5627 | AN68: -3185.741791 | AO68: 0.07953409085
A69: St Mary's Catholic Primary School and Nursery | B69: 3528 | C69: 891872.7478 | D69: 127999.2973 | E69: 0 | F69: 76593.47639 | G69: 46727.42657 | H69: 0 | I69: 110000 | J69: 0 | K69: 8779.1 | L69: 0 | M69: 1261972.048 | N69: -4553.512405 | O69: 0 | P69: 1257418.536 | Q69: =AE69 -> 0 | R69: =P69+Q69 -> 1257418.536 | S69: 0 | T69: =R69+S69 -> 1257418.536 | U69: 16438 | AA69: 0 | AB69: 1273856.536 | AC69: 326 | AD69: =P69/AC69 -> 3857.112073 | AE69: =IF(AD69<$AE$1,((AC69*$AE$1)-(P69)),0) -> 0 | AH69: 8313528 | AK69: 1318066.626 | AL69: 0 | AM69: =+P69+U69-AK69 -> -44210.09062 | AN69: =+N69-AL69 -> -4553.512405 | AO69: =+AM69/(U69+P69) -> -0.03470570616 | AP69: NOR 24 pupils lower in 19/20
A70: St Peter's Church of England Aided Junior School | B70: 3534 | C70: 681215.6878 | D70: 47463.90949 | E70: 0 | F70: 51939.61231 | G70: 12810.625 | H70: 0 | I70: 110000 | J70: 0 | K70: 3692 | L70: 0 | M70: =SUM(C70:L70) -> 907121.8346 | N70: -5911.15729 | O70: 0 | P70: 901210.6773 | Q70: 0 | R70: 901210.6773 | S70: -17529.102 | T70: 883681.5753 | U70: 0 | AA70: 0 | AB70: 883681.5753 | AC70: 249 | AD70: 3619.319989 | AE70: 0 | AH70: 8313534 | AK70: 881137.0552 | AL70: 0 | AM70: 20073.62212 | AN70: -5911.15729 | AO70: 0.02227406158
A71: St Werburgh's Church of England VA Primary School | B71: 3532 | C71: 864514.6881 | D71: 41210.22854 | E71: 0 | F71: 40167.155 | G71: 1199.454074 | H71: 0 | I71: 110000 | J71: 0 | K71: 5479 | L71: 0 | M71: 1062570.526 | N71: -7753.918072 | O71: 0 | P71: 1054816.608 | Q71: 0 | R71: 1054816.608 | S71: -22245.768 | T71: 1032570.84 | U71: 10882 | AA71: 0 | AB71: =SUM(T71:AA71) -> 1043452.84 | AC71: 316 | AD71: 3338.027239 | AE71: 0 | AH71: 8313532 | AK71: 1027554.098 | AL71: -5139.020006 | AM71: 38144.5101 | AN71: -2614.898066 | AO71: 0.03579296231
A72: Village Primary School | B72: 3546 | C72: 1701671.316 | D72: 421128.4519 | E72: 0 | F72: 131176.7219 | G72: 93461.69662 | H72: 0 | I72: 110000 | J72: 0 | K72: 14988.23 | L72: 0 | M72: 2472426.417 | N72: 0 | O72: 0 | P72: 2472426.417 | Q72: 0 | R72: 2472426.417 | S72: 0 | T72: 2472426.417 | U72: 6600 | AA72: 0 | AB72: 2479026.417 | AC72: 622 | AD72: 3974.962085 | AE72: 0 | AH72: 8313546 | AK72: 2483337.461 | AL72: 9876.249655 | AM72: -4311.043588 | AN72: -9876.249655 | AO72: -0.001739006716
A73: Walter Evans Church of England Aided Primary School | B73: 3530 | C73: 1014984.017 | D73: 21233.85278 | E73: 0 | F73: 35179.16241 | G73: 3598.290379 | H73: 0 | I73: 110000 | J73: 0 | K73: 4978 | L73: 0 | M73: 1189973.322 | N73: -1067.217474 | O73: 0 | P73: 1188906.105 | Q73: 35393.89518 | R73: 1224300 | S73: 0 | T73: 1224300 | U73: 7178 | AA73: 0 | AB73: 1231478 | AC73: 371 | AD73: 3204.598665 | AE73: 35393.89518 | AH73: 8313530 | AK73: 1147531.945 | AL73: -1404.121053 | AM73: 48552.15999 | AN73: 336.9035792 | AO73: 0.04059259696
A74: Wren Park Primary School | B74: 2459 | C74: 1069700.136 | D74: 33435.64403 | E74: 0 | F74: 49700.49875 | G74: 35392.61175 | H74: 0 | I74: 110000 | J74: 0 | K74: 19321 | L74: 0 | M74: 1317549.891 | N74: 0 | O74: 0 | P74: 1317549.891 | Q74: 0 | R74: 1317549.891 | S74: -27525.618 | T74: 1290024.273 | U74: 5789 | AA74: 0 | AB74: 1295813.273 | AC74: 391 | AD74: 3369.692815 | AE74: 0 | AH74: 8312459 | AK74: 1291828.206 | AL74: -2143.256856 | AM74: 31510.68489 | AN74: 2143.256856 | AO74: 0.02381150068
A75: Wyndham Primary Academy | B75: 2007 | C75: 1214697.853 | D75: 346353.734 | E75: 0 | F75: 70775.544 | G75: 36236.34125 | H75: 0 | I75: 110000 | J75: 0 | K75: 3638.65 | L75: 0 | M75: =SUM(C75:L75) -> 1781702.122 | N75: 87663.5005 | O75: 0 | P75: =SUM(M75:O75) -> 1869365.623 | Q75: =AE75 -> 0 | R75: =P75+Q75 -> 1869365.623 | S75: 0 | T75: =R75+S75 -> 1869365.623 | U75: 20027 | AA75: 0 | AB75: =SUM(T75:AA75) -> 1889392.623 | AC75: 444 | AD75: =P75/AC75 -> 4210.282934 | AE75: =IF(AD75<$AE$1,((AC75*$AE$1)-(P75)),0) -> 0 | AH75: 8312007 | AK75: 1876176.633 | AL75: 77041.57618 | AM75: =+P75+U75-AK75 -> 13215.99003 | AN75: =+N75-AL75 -> 10621.92433 | AO75: =+AM75/(U75+P75) -> 0.006994835203
A76: Zaytouna | B76: 4000 | C76: 733196.0013 | D76: 144005.9868 | E76: 0 | F76: 47258.9341 | G76: 67510.91723 | H76: 15287.976 | I76: 110000 | J76: 0 | K76: 17047 | L76: 0 | M76: 1134306.815 | N76: 38164.03484 | O76: 0 | P76: 1172470.85 | Q76: 0 | R76: 1172470.85 | S76: 0 | T76: 1172470.85 | U76: 2200 | AA76: 0 | AB76: =SUM(T76:AA76) -> 1174670.85 | AC76: 268 | AD76: 4374.891232 | AE76: 0 | AH76: 8314000 | AK76: 1214367.318 | AL76: 34783.92913 | AM76: -39696.46788 | AN76: 3380.105707 | AO76: -0.03379369453
A78: Total Primary | B78: Total Primary | C78: =SUM(C5:C77) -> 64104676.06 | D78: 10856404.3 | E78: 0 | F78: 4706986.595 | G78: 2161166.755 | H78: 276818.9689 | I78: 7873799.847 | J78: 0 | K78: 982450.12 | L78: 324471 | M78: 91286773.64 | N78: 360314.5092 | O78: 0 | P78: 91647088.15 | Q78: 48881.92302 | R78: 91695970.08 | S78: -957447.999 | T78: 90738522.08 | U78: 586879.8 | V78: 0 | W78: 0 | X78: 0 | Y78: 0 | Z78: 0 | AA78: 0 | AB78: 91325401.88 | AC78: 23431.73333 | AE78: =SUM(AE5:AE77) -> 48881.92302 | AK78: =SUM(AK5:AK77) -> 90657491.97 | AL78: =SUM(AL5:AL77) -> 556013.6421 | AM78: =SUM(AM5:AM77) -> 1576475.981 | AN78: =SUM(AN5:AN77) -> -195699.1329
Z79: 0
A80: Chellaston Academy | B80: 5402 | C80: 5725846.953 | D80: 252198.6447 | E80: 0 | F80: 294321.6547 | G80: 6996.311012 | H80: 0 | I80: 110000 | J80: 0 | K80: 43417 | L80: 0 | M80: =SUM(C80:L80) -> 6432780.564 | N80: 0 | O80: 0 | P80: =SUM(M80:O80) -> 6432780.564 | Q80: =AE80 -> 0 | R80: =P80+Q80 -> 6432780.564 | S80: 0 | T80: =R80+S80 -> 6432780.564 | AB80: =SUM(T80:AA80) -> 6432780.564 | AC80: 1414.416667 | AD80: =P80/AC80 -> 4548.00959 | AE80: =IF(AD80<$AE$2,((AC80*$AE$2)-(P80)),0) -> 0 | AH80: 8315402 | AK80: 6049749.46 | AL80: 0 | AM80: =+P80+U80-AK80 -> 383031.1034 | AN80: =+N80-AL80 -> 0 | AO80: =+AM80/(U80+P80) -> 0.05954362964
A81: da Vinci Community College | B81: 4007 | C81: 2343917.455 | D81: 578674.6356 | E81: 0 | F81: 274111.9292 | G81: 28939.575 | H81: 0 | I81: 110000 | J81: 0 | K81: 28431 | L81: 23560 | M81: 3387634.595 | N81: -4752.843628 | O81: 0 | P81: 3382881.751 | Q81: 0 | R81: 3382881.751 | S81: 0 | T81: 3382881.751 | AB81: 3382881.751 | AC81: 580 | AD81: 5832.554743 | AE81: 0 | AH81: 8314608 | AK81: 3217538.816 | AL81: -14455.79291 | AM81: 165342.9346 | AN81: 9702.949282 | AO81: 0.04887635655
A82: Derby Cathedral School | B82: 4004 | C82: 1074026.265 | D82: 149226.5236 | E82: 0 | F82: 60154.61747 | G82: 4635.091616 | H82: 0 | I82: 110000 | J82: 0 | K82: 14329.03 | L82: 0 | M82: =SUM(C82:L82) -> 1412371.528 | N82: 95020.36237 | O82: 0 | P82: 1507391.89 | Q82: 0 | R82: 1507391.89 | S82: 0 | T82: 1507391.89 | AB82: =IF(ISERROR(SUM(T82:AA82)),0,SUM(T82:AA82)) -> 1507391.89 | AC82: 279.1666658 | AD82: 5399.612758 | AE82: 0 | AH82: 8319999 | AK82: 598691.7789 | AL82: 0 | AM82: 908700.1113 | AN82: 95020.36237 | AO82: 0.6028293752
A83: Derby Moor Community Sports College | B83: 4178 | C83: 5244196.46 | D83: 947131.2085 | E83: 0 | F83: 502418.8903 | G83: 46963.34539 | H83: 0 | I83: 110000 | J83: 0 | K83: 31414 | L83: 0 | M83: 6882123.904 | N83: -4825.945301 | O83: 0 | P83: 6877297.959 | Q83: 0 | R83: 6877297.959 | S83: 0 | T83: 6877297.959 | AB83: 6877297.959 | AC83: 1295 | AD83: 5310.654794 | AE83: 0 | AH83: 8314178 | AK83: 6725606.161 | AL83: -73764.92313 | AM83: 151691.7982 | AN83: 68938.97783 | AO83: 0.02205688907
A84: Lees Brook Community Sports College | B84: 4006 | C84: 4326594.986 | D84: 524626.0848 | E84: 0 | F84: 398104.6705 | G84: 20690.49813 | H84: 0 | I84: 110000 | J84: 0 | K84: 27072 | L84: 0 | M84: 5407088.239 | N84: -40314.25343 | O84: 0 | P84: 5366773.986 | Q84: 0 | R84: 5366773.986 | S84: 0 | T84: 5366773.986 | AB84: 5366773.986 | AC84: 1068 | AD84: 5025.069275 | AE84: 0 | AH84: 8314181 | AK84: 5108166.165 | AL84: -43823.23376 | AM84: 258607.8203 | AN84: 3508.980331 | AO84: 0.04818682899
A85: Littleover Community School | B85: 4182 | C85: 5964546.025 | D85: 263503.0219 | E85: 0 | F85: 356864.5012 | G85: 46918.34108 | H85: 0 | I85: 110000 | J85: 0 | K85: 144299 | L85: 0 | M85: 6886130.889 | N85: 0 | O85: 0 | P85: 6886130.889 | Q85: 0 | R85: 6886130.889 | S85: -87109.678 | T85: 6799021.211 | AB85: 6799021.211 | AC85: 1471 | AD85: 4681.258252 | AE85: 0 | AH85: 8314182 | AK85: 6659023.818 | AL85: 0 | AM85: 227107.0713 | AN85: 0 | AO85: 0.03298035936
A86: Merrill College | B86: 4001 | C86: 3042911.4 | D86: 927912.8064 | E86: 0 | F86: 420298.1905 | G86: 90051.3371 | H86: 98290.08 | I86: 110000 | J86: 0 | K86: 48790 | L86: 361154 | M86: 5099407.814 | N86: 0 | O86: 0 | P86: 5099407.814 | Q86: 0 | R86: 5099407.814 | S86: 0 | T86: 5099407.814 | AB86: 5099407.814 | AC86: 756 | AD86: 6745.248431 | AE86: 0 | AH86: 8314001 | AK86: 4587969.022 | AL86: -46070.81315 | AM86: 511438.7923 | AN86: 46070.81315 | AO86: 0.1002937617
A87: Murray Park School | B87: 5406 | C87: 3654377.48 | D87: 589154.5615 | E87: 0 | F87: 392306.1002 | G87: 43005.12717 | H87: 0 | I87: 110000 | J87: 0 | K87: 25335 | L87: 0 | M87: 4814178.269 | N87: -29362.69422 | O87: 0 | P87: 4784815.575 | Q87: 0 | R87: 4784815.575 | S87: -53651.508 | T87: 4731164.067 | AB87: 4731164.067 | AC87: 906 | AD87: 5281.253394 | AE87: 0 | AH87: 8315406 | AK87: 4436670.573 | AL87: -76974.81622 | AM87: 348145.0022 | AN87: 47612.12199 | AO87: 0.07276038057
A88: Noel Baker Community School and Language College | B88: 4005 | C88: 4421012.659 | D88: 892010.9863 | E88: 0 | F88: 394376.215 | G88: 15186.63936 | H88: 0 | I88: 110000 | J88: 0 | K88: 27839 | L88: 419920 | M88: 6280345.5 | N88: -33915.75425 | O88: 0 | P88: 6246429.746 | Q88: 0 | R88: 6246429.746 | S88: 0 | T88: 6246429.746 | AB88: 6246429.746 | AC88: 1092 | AD88: 5720.17376 | AE88: 0 | AH88: 8315407 | AK88: 6509723.68 | AL88: -45839.13342 | AM88: -263293.9338 | AN88: 11923.37917 | AO88: -0.04215110783 | AP88: NOR 88 pupils lower in 19/20
A89: Saint Benedict Catholic Voluntary Academy | B89: 4607 | C89: 4780086.447 | D89: 854430.6844 | E89: 0 | F89: 439770.9005 | G89: 60635.3 | H89: 0 | I89: 110000 | J89: 0 | K89: 28349 | L89: 0 | M89: 6273272.332 | N89: -11850.58357 | O89: 0 | P89: 6261421.748 | Q89: 0 | R89: 6261421.748 | S89: 0 | T89: 6261421.748 | AB89: 6261421.748 | AC89: 1181 | AD89: 5301.796569 | AE89: 0 | AH89: 8314607 | AK89: 6030229.206 | AL89: -62487.94983 | AM89: 231192.5423 | AN89: 50637.36626 | AO89: 0.03692333013
A90: City of Derby Academy | B90: 4008 | C90: 3681947.672 | D90: 792710.7503 | E90: 0 | F90: 507063.4253 | G90: 186040.125 | H90: 0 | I90: 110000 | J90: 0 | K90: 39981 | L90: 0 | M90: 5317742.973 | N90: -11677.02783 | O90: 0 | P90: 5306065.945 | Q90: 0 | R90: 5306065.945 | S90: 0 | T90: 5306065.945 | AB90: 5306065.945 | AC90: 911 | AD90: 5824.441213 | AE90: 0 | AH90: 8314002 | AK90: 4949770.297 | AL90: -13025.68788 | AM90: 356295.6477 | AN90: 1348.660049 | AO90: 0.06714874098
A91: West Park School | B91: 5412 | C91: 5362419.729 | D91: 530126.9664 | E91: 0 | F91: 361496.7694 | G91: 11024.6 | H91: 0 | I91: 110000 | J91: 0 | K91: 27328 | L91: 0 | M91: 6402396.065 | N91: 0 | O91: 0 | P91: 6402396.065 | Q91: 0 | R91: 6402396.065 | S91: 0 | T91: 6402396.065 | AB91: 6402396.065 | AC91: 1326 | AD91: 4828.35299 | AE91: 0 | AH91: 8315412 | AK91: 6130888.955 | AL91: -51169.82494 | AM91: 271507.11 | AN91: 51169.82494 | AO91: 0.04240710934
A92: Allestree Woodlands School | B92: 5414 | C92: 4483208.176 | D92: 393544.2404 | E92: 0 | F92: 301850.1285 | G92: 9646.525 | H92: 0 | I92: 110000 | J92: 0 | K92: 31414 | L92: 0 | M92: 5329663.07 | N92: -14332.10665 | O92: 0 | P92: 5315330.963 | Q92: 0 | R92: 5315330.963 | S92: 0 | T92: 5315330.963 | AB92: 5315330.963 | AC92: 1106 | AD92: 4805.90503 | AE92: 0 | AH92: 8315414 | AK92: 5081502.543 | AL92: -27272.3447 | AM92: 233828.4194 | AN92: 12940.23805 | AO92: 0.0439913189
A93: Derby Manufacturing UTC | B93: 4003 | C93: 720740.9633 | D93: 111334.1513 | E93: 0 | F93: 67644.25633 | G93: 0 | H93: 0 | I93: 110000 | J93: 0 | K93: 26817 | L93: 0 | M93: 1036536.371 | N93: -3372.442336 | O93: 0 | P93: 1033163.929 | Q93: 0 | R93: 1033163.929 | S93: 0 | T93: 1033163.929 | AB93: 1033163.929 | AC93: 165 | AD93: 6261.599567 | AE93: 0 | AH93: 8316905 | AK93: 818788.7435 | AL93: 0 | AM93: 214375.1851 | AN93: -3372.442336 | AO93: 0.2074938731
A94: Landau Forte College (Fox Street) | B94: 6905 | C94: 3429472.717 | D94: 563830.1825 | E94: 0 | F94: 214514.9755 | G94: 8268.45 | H94: 0 | I94: 110000 | J94: 0 | K94: 47249 | L94: 0 | M94: =SUM(C94:L94) -> 4373335.325 | N94: -9498.663807 | O94: 0 | P94: 4363836.661 | Q94: 0 | R94: 4363836.661 | S94: 0 | T94: 4363836.661 | AB94: =SUM(T94:AA94) -> 4363836.661 | AC94: 847 | AD94: 5152.109399 | AE94: 0 | AH94: 8316905 | AK94: 4220546.86 | AL94: -20261.35842 | AM94: 143289.8013 | AN94: 10762.69461 | AO94: 0.03283573892
A96: Total Secondary | B96: Total Secondary | C96: =SUM(C80:C95) -> 58255305.39 | D96: 8370415.449 | E96: 0 | F96: 4985297.225 | G96: 579001.2659 | H96: 98290.08 | I96: 1650000 | J96: 0 | K96: 592064.03 | L96: 804634 | M96: 75335007.44 | N96: -68881.95266 | O96: 0 | P96: 75266125.48 | Q96: =SUM(Q80:Q95) -> 0 | R96: =SUM(R80:R95) -> 75266125.48 | S96: -140761.186 | T96: 75125364.3 | U96: 0 | V96: 0 | W96: 0 | X96: 0 | Y96: 0 | Z96: 0 | AA96: 0 | AB96: 75125364.3 | AC96: 14397.58333 | AE96: 0 | AK96: =SUM(AK80:AK95) -> 71124866.08 | AL96: =SUM(AL80:AL95) -> -475145.8784 | AM96: =SUM(AM80:AM95) -> 4141259.406 | AN96: =SUM(AN80:AN95) -> 406263.9257
A98: The Bemrose School | B98: 4177 | C98: 3873828.558 | D98: 985162.457 | E98: 0 | F98: 615257.258 | G98: 206310.2855 | H98: 169167.512 | I98: 110000 | J98: 0 | K98: 22475 | L98: 0 | M98: =SUM(C98:L98) -> 5982201.071 | N98: 15993.90259 | O98: 0 | P98: =SUM(M98:O98) -> 5998194.973 | Q98: =AE98 -> 0 | R98: =P98+Q98 -> 5998194.973 | S98: -65843.488 | T98: =R98+S98 -> 5932351.485 | U98: 12734 | AB98: =IF(ISERROR(SUM(T98:AA98)),0,SUM(T98:AA98)) -> 5945085.485 | AC98: 1056 | AD98: =P98/AC98 -> 5680.108876 | AE98: =IF(AD98<$AE$3,((AC98*$AE$3)-(P98)),0) -> 0 | AH98: 8314177 | AK98: 5803605.117 | AL98: 95521.7715 | AM98: =+P98+U98-AK98 -> 207323.8563 | AN98: =+N98-AL98 -> -79527.86891 | AO98: =+AM98/(U98+P98) -> 0.03449115057
A100: Total All Through School | B100: Total All Through | C100: =C98 -> 3873828.558 | D100: =D98 -> 985162.457 | E100: 0 | F100: 615257.258 | G100: 206310.2855 | H100: 169167.512 | I100: 110000 | J100: 0 | K100: 22475 | L100: 0 | M100: 5982201.071 | N100: 15993.90259 | O100: 0 | P100: 5998194.973 | Q100: =Q98 -> 0 | R100: 5998194.973 | S100: -65843.488 | T100: 5932351.485 | U100: 12734 | V100: 0 | W100: 0 | X100: 0 | Y100: 0 | Z100: 0 | AA100: 0 | AB100: 5945085.485 | AC100: 1056 | AE100: 0 | AK100: =AK98 -> 5803605.117 | AL100: =AL98 -> 95521.7715 | AM100: =AM98 -> 207323.8563 | AN100: =AN98 -> -79527.86891
B102: ALL | C102: =SUM(C96+C78+C100) -> 126233810 | D102: 20211982.2 | E102: 0 | F102: 10307541.08 | G102: 2946478.306 | H102: 544276.5609 | I102: 9633799.847 | J102: 0 | K102: 1596989.15 | L102: 1129105 | M102: 172603982.1 | N102: 307426.4592 | O102: 0 | P102: =P78+P96+P100 -> 172911408.6 | Q102: =Q78+Q96+Q100 -> 48881.92302 | R102: =R78+R96+R100 -> 172960290.5 | S102: -1164052.673 | T102: 171796237.9 | U102: 599613.8 | V102: 0 | W102: 0 | X102: 0 | Y102: 0 | Z102: 0 | AA102: 0 | AB102: 172395851.7 | AC102: 38885.31667 | AE102: 48881.92302 | AK102: =AK100+AK96+AK78 -> 167585963.2 | AL102: =AL100+AL96+AL78 -> 176389.5353 | AM102: =AM100+AM96+AM78 -> 5925059.243 | AN102: =AN100+AN96+AN78 -> 131036.9239
Q104: Budget | R104: 172082417.7 | AB104: 173851730 | AC104: APT
AB105: =S102 -> -1164052.673 | AC105: de-delegation
R106: =R102-R104 -> 877872.8561 | AB106: =-10*29166 -> -291660 | AC106: growth
AB107: =AB102-AB104-AB105-AB106 -> -165.6673248 | AC107: balance - added to growth
A109: Summary Totals 2019-20 | B109: Primary | C109: =C78 -> 64104676.06 | D109: 10856404.3 | E109: 0 | F109: 4706986.595 | G109: 2161166.755 | H109: 276818.9689 | I109: 7873799.847 | J109: 0 | K109: 982450.12 | L109: 324471 | M109: 91286773.64 | N109: 360314.5092 | O109: 0 | P109: 91647088.15 | Q109: =Q78 -> 48881.92302 | R109: =R78 -> 91695970.08 | S109: -957447.999 | T109: 90738522.08 | U109: 586879.8 | V109: 0 | W109: 0 | X109: 0 | Y109: 0 | Z109: 0 | AA109: 0 | AB109: 91325401.88 | AK109: =AK78 -> 90657491.97 | AL109: =AL78 -> 556013.6421
B110: Secondary | C110: =C96 -> 58255305.39 | D110: 8370415.449 | E110: 0 | F110: 4985297.225 | G110: 579001.2659 | H110: 98290.08 | I110: 1650000 | J110: 0 | K110: 592064.03 | L110: 804634 | M110: 75335007.44 | N110: -68881.95266 | O110: 0 | P110: 75266125.48 | Q110: =Q96 -> 0 | R110: =R96 -> 75266125.48 | S110: -140761.186 | T110: 75125364.3 | U110: 0 | V110: 0 | W110: 0 | X110: 0 | Y110: 0 | Z110: 0 | AA110: 0 | AB110: 75125364.3 | AK110: =AK96 -> 71124866.08 | AL110: =AL96 -> -475145.8784
B111: All Through | C111: =C100 -> 3873828.558 | D111: 985162.457 | E111: 0 | F111: 615257.258 | G111: 206310.2855 | H111: 169167.512 | I111: 110000 | J111: 0 | K111: 22475 | L111: 0 | M111: 5982201.071 | N111: 15993.90259 | O111: 0 | P111: 5998194.973 | Q111: =Q100 -> 0 | R111: =R100 -> 5998194.973 | S111: -65843.488 | T111: 5932351.485 | U111: 12734 | V111: 0 | W111: 0 | X111: 0 | Y111: 0 | Z111: 0 | AA111: 0 | AB111: 5945085.485 | AK111: =AK100 -> 5803605.117 | AL111: =AL100 -> 95521.7715
B112: ALL School Block | C112: =SUM(C109:C111) -> 126233810 | D112: =SUM(D109:D111) -> 20211982.2 | E112: 0 | F112: 10307541.08 | G112: 2946478.306 | H112: 544276.5609 | I112: 9633799.847 | J112: 0 | K112: 1596989.15 | L112: 1129105 | M112: 172603982.1 | N112: 307426.4592 | O112: 0 | P112: 172911408.6 | Q112: =SUM(Q109:Q111) -> 48881.92302 | R112: =SUM(R109:R111) -> 172960290.5 | S112: -1164052.673 | T112: 171796237.9 | U112: 599613.8 | V112: 0 | W112: 0 | X112: 0 | Y112: 0 | Z112: 0 | AA112: 0 | AB112: 172395851.7 | AK112: =SUM(AK109:AK111) -> 167585963.2 | AL112: =SUM(AL109:AL111) -> 176389.5353
A114: Final APT 2018-19 | B114: Primary | C114: 62124739.97 | D114: 10312130.96 | E114: 0 | F114: 4908121.411 | G114: 2060540.816 | H114: 492251.3296 | I114: 7887000 | J114: 0 | K114: 1150658.225 | L114: 315021 | M114: 89250463.71 | N114: 556013.3507 | O114: 0 | P114: 89806477.06 | Q114: 0 | R114: 0 | S114: -1282479.106 | T114: 88523997.95 | U114: 851014.89 | V114: 0 | W114: 0 | X114: 0 | Y114: 0 | AB114: =SUM(T114:AA114) -> 89375012.84 | AK114: 86297432.5 | AL114: 174374.0189
B115: Secondary | C115: 55194401.04 | D115: 8041242.134 | E115: 0 | F115: 4841326.771 | G115: 558349.3446 | H115: 21756 | I115: 1604166.667 | J115: 0 | K115: 545341 | L115: 793429 | M115: 71600011.96 | N115: -475145.8784 | O115: 0 | P115: 71124866.08 | Q115: 0 | R115: 0 | S115: -133489.594 | T115: 70991376.48 | U115: 0 | V115: 0 | W115: 0 | X115: 0 | Y115: 0 | AB115: =SUM(T115:AA115) -> 70991376.48 | AK115: 65898450.61 | AL115: 45461.88307
B116: All Through | C116: 3621891.829 | D116: 922494.4831 | E116: 0 | F116: 612827.6307 | G116: 206829.8033 | H116: 180959.3192 | I116: 110000 | J116: 0 | K116: 21560 | L116: 0 | M116: 5676563.065 | N116: 95521.7715 | O116: 0 | P116: 5772084.837 | Q116: 0 | R116: 0 | S116: -61865.45325 | T116: 5710219.384 | U116: 0 | V116: 0 | W116: 0 | X116: 0 | Y116: 0 | AB116: =SUM(T116:AA116) -> 5710219.384 | AK116: 5780827.764 | AL116: 223804.4443
B117: ALL School Block | C117: =SUM(C114:C116) -> 120941032.8 | D117: =SUM(D114:D116) -> 19275867.57 | E117: 0 | F117: 10362275.81 | G117: 2825719.964 | H117: 694966.6488 | I117: 9601166.667 | J117: 0 | K117: 1717559.225 | L117: 1108450 | M117: 166527038.7 | N117: 176389.2438 | O117: 0 | P117: 166703428 | Q117: =SUM(Q114:Q116) -> 0 | R117: 0 | S117: -1477834.154 | T117: 165225593.8 | U117: 851014.89 | V117: 0 | W117: 0 | X117: 0 | Y117: 0 | Z117: 0 | AA117: 0 | AB117: 166076608.7 | AK117: =SUM(AK114:AK116) -> 157976710.9 | AL117: =SUM(AL114:AL116) -> 443640.3463
A119: Difference between 2019/20 and 2018/19 | B119: Primary | C119: =C109-C114 -> 1979936.089 | D119: =D109-D114 -> 544273.3427 | E119: 0 | F119: -201134.8158 | G119: 100625.9388 | H119: -215432.3607 | I119: -13200.15301 | J119: 0 | K119: -168208.105 | L119: 9450 | M119: 2036309.936 | N119: -195698.8415 | O119: 0 | P119: 1840611.095 | Q119: 48881.92302 | R119: 91695970.08 | S119: 325031.1075 | T119: 2214524.125 | U119: -264135.09 | V119: 0 | W119: 0 | X119: 0 | Y119: 0 | Z119: 0 | AA119: 0 | AB119: 1950389.035 | AK119: =AK109-AK114 -> 4360059.475 | AL119: 381639.6232
B120: Secondary | C120: =C110-C115 -> 3060904.347 | D120: 329173.315 | E120: 0 | F120: 143970.4537 | G120: 20651.92124 | H120: 76534.08 | I120: 45833.33333 | J120: 0 | K120: 46723.03 | L120: 11205 | M120: 3734995.48 | N120: 406263.9257 | O120: 0 | P120: 4141259.406 | Q120: 0 | R120: 75266125.48 | S120: -7271.592 | T120: 4133987.814 | U120: 0 | V120: 0 | W120: 0 | X120: 0 | Y120: 0 | Z120: 0 | AA120: 0 | AB120: 4133987.814 | AK120: 5226415.463 | AL120: -520607.7614
B121: All Through | C121: =C111-C116 -> 251936.729 | D121: 62667.97395 | E121: 0 | F121: 2429.627298 | G121: -519.5177863 | H121: -11791.80723 | I121: 0 | J121: 0 | K121: 915 | L121: 0 | M121: 305638.0052 | N121: -79527.86891 | O121: 0 | P121: 226110.1363 | Q121: 0 | R121: 5998194.973 | S121: -3978.03475 | T121: 222132.1015 | U121: 12734 | V121: 0 | W121: 0 | X121: 0 | Y121: 0 | Z121: 0 | AA121: 0 | AB121: 234866.1015 | AK121: 22777.35309 | AL121: -128282.6728
B122: ALL School Block | C122: =SUM(C119:C121) -> 5292777.165 | D122: =SUM(D119:D121) -> 936114.6316 | E122: 0 | F122: -54734.7348 | G122: 120758.3422 | H122: -150690.088 | I122: 32633.18033 | J122: 0 | K122: -120570.075 | L122: 20655 | M122: 6076943.421 | N122: 131037.2153 | O122: 0 | P122: 6207980.636 | Q122: =SUM(Q119:Q121) -> 48881.92302 | R122: =SUM(R119:R121) -> 172960290.5 | S122: 313781.4807 | T122: 6570644.04 | U122: -251401.09 | V122: 0 | W122: 0 | X122: 0 | Y122: 0 | Z122: 0 | AA122: 0 | AB122: 6319242.95 | AK122: =SUM(AK119:AK121) -> 9609252.291 | AL122: =SUM(AL119:AL121) -> -267250.8111
M126: ok
V128: ERS | W128: TA Hours
A130: Ashgate Nursery | B130: 1014 | K130: 11986 | M130: =SUM(C130:L130) -> 11986 | P130: =SUM(M130:O130) -> 11986 | T130: =SUM(P130+S130) -> 11986 | Z130: 251753.8578 | AB130: =SUM(T130:AA130) -> 263739.8578
A131: Castle Nursery | B131: 1017 | K131: 0 | M131: 0 | P131: 0 | T131: 0 | Z131: -0.006963723941 | AB131: -0.006963723941
A132: Central Nursery | B132: 1006 | K132: 14498 | M132: 14498 | P132: 14498 | T132: 14498 | Z132: 271635.3768 | AB132: 286133.3768
A133: Harrington Nursery School | B133: 1008 | K133: 5801 | M133: 5801 | P133: 5801 | T133: 5801 | Z133: 387772.0751 | AB133: 393573.0751
A134: Lord Street Nursery | B134: 1005 | K134: 15606 | M134: 15606 | P134: 15606 | T134: 15606 | Z134: 437385.692 | AB134: 452991.692
A135: Stonehill Nursery | B135: 1010 | K135: 5519 | M135: 5519 | P135: 5519 | T135: 5519 | Z135: 290418.3101 | AB135: 295937.3101
A136: Walbrook Nursery | B136: 1009 | K136: 10203 | M136: 10203 | P136: 10203 | T136: 10203 | Z136: 381335.5265 | AB136: 391538.5265
A137: Whitecross Nursery | B137: 1015 | K137: 7334 | M137: 7334 | P137: 7334 | T137: 7334 | Z137: 344176.0579 | AB137: 351510.0579
A138: Nursery | K138: =SUM(K130:K137) -> 70947 | M138: =SUM(M130:M137) -> 70947 | P138: 70947 | T138: =SUM(T130:T137) -> 70947 | V138: =SUM(V130:V137) -> 0 | W138: =SUM(W130:W137) -> 0 | Z138: =SUM(Z130:Z137) -> 2364476.889 | AB138: =SUM(AB130:AB137) -> 2435423.889
AA139: Rates
V140: Total ALL | W140: Total ALL | Z140: =V138+W138 -> 0 | AA140: High Needs
C141: =C102 -> 126233810 | D141: 20211982.2 | E141: 0 | F141: 10307541.08 | G141: 2946478.306 | H141: 544276.5609 | I141: 9633799.847 | J141: 0 | K141: =K102+K138 -> 1667936.15 | L141: 1129105 | M141: 172674929.1 | N141: 307426.4592 | O141: 0 | P141: 172982355.6 | R141: =R102+R138 -> 172960290.5 | S141: -1164052.673 | T141: 171867184.9 | U141: 599613.8 | V141: 0 | W141: 0 | X141: 0 | Y141: 0 | Z141: 2364476.889 | AA141: 0 | AB141: 174831275.5
B143: 1 | C143: 2 | D143: 3 | E143: 4 | F143: 5 | G143: 6 | H143: 7 | I143: 8 | J143: 9 | K143: 10 | L143: 11 | M143: 12 | N143: 13 | O143: 14 | P143: 15 | R143: 16 | S143: 17 | T143: 18 | U143: 19 | V143: 20 | W143: 21 | X143: 22 | Y143: 23 | Z143: 24 | AA143: 25 | AB143: 26 | AD143: 27 | AF143: 28 | AG143: 29 | AH143: 30 | AI143: 31 | AJ143: 32 | AK143: 33 | AL143: 34 | AM143: 35 | AN143: 36
R148: 1008 | S148: Harrington Nursery School
R149: 1005 | S149: Lord Street Nursery
R150: 1006 | S150: Central Nursery
A151: Alvaston Infant and Nursery School | B151: 2443 | R151: 1010 | S151: Stonehill Nursery
A152: Arboretum Primary School | B152: 2629
A153: Ashgate Nursery | B153: 1014
A154: Asterdale Primary School | B154: 2464
A155: Beaufort Community Primary School | B155: 2004
A156: Becket Primary School | B156: 2405
A157: Bemrose | B157: 4177
A158: Bishop Lonsdale Church of England (Aided) Primary School | B158: 2011
A159: Borrow Wood Primary School | B159: 5201
A160: Wyndham Primary Academy | B160: 2007
A161: Brackensdale Infant School | B161: 2433
A162: Breadsall Hill Top Primary School | B162: 2447
A163: Brookfield Primary School | B163: 2512
A164: Carlyle Infant School | B164: 2456
A165: Cavendish Close Infant School | B165: 2449
A166: Central Nursery | B166: 1006
A167: Chaddesden Park Primary School | B167: 2467
A168: Cherry Tree Hill Primary School | B168: 2451
A169: Derwent Community School | B169: 2619
A170: Firs Estate Primary School - converts to an Academy Jan 2018 | B170: 2518
A171: Grampian Primary School /Academy | B171: 2010
A172: Griffe Field Primary School | B172: 2002
A173: Hardwick Primary School | B173: 3544
A174: Harrington Nursery | B174: 1008
A175: Homefields Primary | B175: 2006
A176: Lakeside Community Primary School | B176: 2434
A177: Lord St Nursery | B177: 1005
A178: Meadow Farm Community Primary School | B178: 2452
A179: Osmaston Primary School | B179: 2420
A180: Oakwood Infant School | B180: 2473
A181: Parkview Primary School | B181: 2003
A182: Ravensdale Infant and Nursery School | B182: 2462
A183: Redwood Primary School | B183: 2505
A184: Reigate Primary School | B184: 2000
A185: Roe Farm Primary School | B185: 2001
A186: Rosehill Infant and Nursery School | B186: 2429
A187: Shelton Infant School | B187: 2444
A188: Cotton's Farm Primary School | B188: 2430
A189: St Alban's Catholic Primary School | B189: 3543
A190: St Chad's Church of England (Controlled) Nursery and Infant School | B190: 3158
A191: St James' Church of England (Aided) Infant School and Nursery | B191: 3526
A192: St Mary's Catholic Primary School | B192: 3528
A193: Stonehill Nursery | B193: 1010
A194: Village Primary School | B194: 3546
A195: Walbrook Nursery | B195: 1009
A196: Walter Evans Church of England (Aided) Primary School | B196: 3530
A197: Whitecross Nursery | B197: 1015
A199: Ace Nursery | B199: 206189
A200: Alvaston Achievers | B200: EY545705
A201: An-Noor Nursery | B201: EY362920
A202: Becket Sure Start Children's Centre | B202: EY380753
A203: Best Start Sinfin | B203: EY467568
A204: Bizzy Kidz | B204: EY450983
A205: Boulton Lane Park Pre-School Playgroup | B205: 206124
A206: Bramble Brook Pre-School Playgroup | B206: EY282068
A207: Busy Bees Pre-School | B207: 206126
A208: Busy Bees-Derby, Heatherton | B208: 206111
A209: Carlton Private Day Nursery | B209: 206091
A210: Childcare @ St James Centre | B210: EY396374
A211: Chuckles Pre-School Playgroup | B211: 206128
A212: Derby City Childminding Network - AR | B212: 205999
A213: Derby City Childminding Network - ALB | B213: EY398922
A214: Derby City Childminding Network - AJH | B214: 205921
A215: Derby City Childminding Network - AMD | B215: EY491735
A216: Derby City Childminding Network - AM | B216: EY000013
A217: Derby City Childminding Network - AN | B217: EY543687
A218: Derby City Childminding Network - AP | B218: EY536395
A219: Derby City Childminding Network - CR | B219: EY542496
A220: Derby City Childminding Network - CM | B220: EY421552
... 129 more rows

Sheet 2019-20 Nursery Budget (hidden)
J1: Standalone Costs | Q1: Deprivation | AA1: =R2 -> 0.6 | AE1: =S2 -> 0.2 | AI1: =T2 -> 0.2
J2: 100000 | K2: 1.34 | O2: 4.23 | Q2: 0 | R2: 0.6 | S2: 0.2 | T2: 0.2 | AA2: IMD 20% Most Deprived | AE2: IMD 20% to 40% Most Deprived | AI2: EAL
A3: School | B3: Cost Centre | C3: Setting Type | D3: OFSTED ID | E3: Summer | F3: Autumn | G3: Spring | H3: Total Forecast Hours | J3: Standalone Lump Sum | K3: Standalone Supplement | L3: Business Rates (NNDR) | M3: Total | O3: Base Costs | Q3: FSM | R3: IMD 20% Most Deprived | S3: IMD 20% to 40% Deprived | T3: EAL | V3: Total Deprivation | X3: Grand Total | AA3: Summer | AB3: Autumn | AC3: Spring | AD3: Total | AE3: Summer | AF3: Autumn | AG3: Spring | AH3: Total | AI3: Summer | AJ3: Autumn | AK3: Spring | AL3: Total
A4: Alvaston Infant and Nursery School | B4: E200201 | C4: M | D4: 2443 | E4: 9360 | F4: 11925 | G4: 8100 | H4: 29385 | J4: 0 | K4: 0 | L4: 0 | M4: =SUM(J4:L4) -> 0 | O4: 124298.55 | Q4: 0 | R4: 4518 | S4: 3339 | T4: 617 | V4: 8474 | X4: =V4+O4+M4 -> 132772.55 | AA4: =VLOOKUP($D4,'Nursery detail'!C:AF,17,FALSE)/$AA$1 -> 1532.331255 | AB4: =VLOOKUP($D4,'Nursery detail'!C:AG,18,FALSE)/$AA$1 -> 3157.180623 | AC4: =VLOOKUP($D4,'Nursery detail'!C:AH,19,FALSE)/$AA$1 -> 2840.488122 | AD4: =SUM(AA4:AC4) -> 7530 | AE4: =VLOOKUP($D4,'Nursery detail'!C:AF,21,FALSE)/$AE$1 -> 6777.030914 | AF4: =VLOOKUP($D4,'Nursery detail'!C:AG,22,FALSE)/$AE$1 -> 5134.630969 | AG4: =VLOOKUP($D4,'Nursery detail'!C:AH,23,FALSE)/$AE$1 -> 4783.338116 | AH4: =SUM(AE4:AG4) -> 16695 | AI4: =VLOOKUP($D4,'Nursery detail'!$C:$AF,25,FALSE)/$AI$1 -> 984.1600664 | AJ4: =VLOOKUP($D4,'Nursery detail'!$C:$AF,26,FALSE)/$AI$1 -> 1403.325599 | AK4: =VLOOKUP($D4,'Nursery detail'!$C:$AF,27,FALSE)/$AI$1 -> 697.5143345 | AL4: =SUM(AI4:AK4) -> 3085
A5: Arboretum Primary School | B5: E200401 | C5: M | D5: 2629 | E5: 13860 | F5: 13020 | G5: 12960 | H5: 39840 | J5: 0 | K5: 0 | L5: 0 | M5: 0 | O5: 168523.2 | Q5: 0 | R5: 22284 | S5: 782 | T5: 6856 | V5: 29922 | X5: =V5+O5+M5 -> 198445.2 | AA5: =VLOOKUP($D5,'Nursery detail'!C:AF,17,FALSE)/$AA$1 -> 12419.93033 | AB5: =VLOOKUP($D5,'Nursery detail'!C:AG,18,FALSE)/$AA$1 -> 13282.42549 | AC5: =VLOOKUP($D5,'Nursery detail'!C:AH,19,FALSE)/$AA$1 -> 11437.64417 | AD5: =SUM(AA5:AC5) -> 37140 | AE5: =VLOOKUP($D5,'Nursery detail'!C:AF,21,FALSE)/$AE$1 -> 681.5708507 | AF5: =VLOOKUP($D5,'Nursery detail'!C:AG,22,FALSE)/$AE$1 -> 0 | AG5: =VLOOKUP($D5,'Nursery detail'!C:AH,23,FALSE)/$AE$1 -> 3228.429149 | AH5: =SUM(AE5:AG5) -> 3910 | AI5: =VLOOKUP($D5,'Nursery detail'!$C:$AF,25,FALSE)/$AI$1 -> 12087.365 | AJ5: =VLOOKUP($D5,'Nursery detail'!$C:$AF,26,FALSE)/$AI$1 -> 10937.11575 | AK5: =VLOOKUP($D5,'Nursery detail'!$C:$AF,27,FALSE)/$AI$1 -> 11255.51925 | AL5: =SUM(AI5:AK5) -> 34280
A6: Ashgate Nursery | B6: E100101 | C6: S | D6: 1014 | E6: 10980 | F6: 9030 | G6: 9180 | H6: 29190 | J6: 100000 | K6: 39115 | L6: 11986 | M6: =SUM(J6:L6) -> 151101 | O6: 123473.7 | Q6: 0 | R6: 3869 | S6: 3413 | T6: 664 | V6: 7946 | X6: 282520.7 | AA6: =VLOOKUP($D6,'Nursery detail'!C:AF,17,FALSE)/$AA$1 -> 1692.791671 | AB6: =VLOOKUP($D6,'Nursery detail'!C:AG,18,FALSE)/$AA$1 -> 2113.896089 | AC6: =VLOOKUP($D6,'Nursery detail'!C:AH,19,FALSE)/$AA$1 -> 2641.645574 | AD6: 6448.333333 | AE6: =VLOOKUP($D6,'Nursery detail'!C:AF,21,FALSE)/$AE$1 -> 6127.213585 | AF6: =VLOOKUP($D6,'Nursery detail'!C:AG,22,FALSE)/$AE$1 -> 5980.014264 | AG6: =VLOOKUP($D6,'Nursery detail'!C:AH,23,FALSE)/$AE$1 -> 4957.772151 | AH6: 17065 | AI6: =VLOOKUP($D6,'Nursery detail'!$C:$AF,25,FALSE)/$AI$1 -> 565.4089967 | AJ6: =VLOOKUP($D6,'Nursery detail'!$C:$AF,26,FALSE)/$AI$1 -> 1579.664128 | AK6: =VLOOKUP($D6,'Nursery detail'!$C:$AF,27,FALSE)/$AI$1 -> 1174.926875 | AL6: 3320
A7: Asterdale Primary School | B7: E200701 | C7: M | D7: 2464 | E7: 8460 | F7: 7140 | G7: 6660 | H7: 22260 | J7: 0 | K7: 0 | L7: 0 | M7: =SUM(J7:L7) -> 0 | O7: 94159.8 | Q7: 0 | R7: 6911 | S7: 396 | T7: 371 | V7: 7678 | X7: 101837.8 | AA7: =VLOOKUP($D7,'Nursery detail'!C:AF,17,FALSE)/$AA$1 -> 4049.741288 | AB7: =VLOOKUP($D7,'Nursery detail'!C:AG,18,FALSE)/$AA$1 -> 4397.909091 | AC7: =VLOOKUP($D7,'Nursery detail'!C:AH,19,FALSE)/$AA$1 -> 3070.682955 | AD7: 11518.33333 | AE7: =VLOOKUP($D7,'Nursery detail'!C:AF,21,FALSE)/$AE$1 -> 445.5936121 | AF7: =VLOOKUP($D7,'Nursery detail'!C:AG,22,FALSE)/$AE$1 -> 232.990124 | AG7: =VLOOKUP($D7,'Nursery detail'!C:AH,23,FALSE)/$AE$1 -> 1301.416264 | AH7: 1980 | AI7: =VLOOKUP($D7,'Nursery detail'!$C:$AF,25,FALSE)/$AI$1 -> 614.7173489 | AJ7: =VLOOKUP($D7,'Nursery detail'!$C:$AF,26,FALSE)/$AI$1 -> 482.1312541 | AK7: =VLOOKUP($D7,'Nursery detail'!$C:$AF,27,FALSE)/$AI$1 -> 758.151397 | AL7: 1855
A8: Beaufort Community Primary School | B8: E200801 | C8: M | D8: 2004 | E8: 11700 | F8: 5040 | G8: 4320 | H8: 21060 | J8: 0 | K8: 0 | L8: 0 | M8: 0 | O8: 89083.8 | Q8: 0 | R8: 8601 | S8: 1110 | T8: 147 | V8: 9858 | X8: 98941.8 | AA8: =VLOOKUP($D8,'Nursery detail'!C:AF,17,FALSE)/$AA$1 -> 4507.969709 | AB8: =VLOOKUP($D8,'Nursery detail'!C:AG,18,FALSE)/$AA$1 -> 5044.786762 | AC8: =VLOOKUP($D8,'Nursery detail'!C:AH,19,FALSE)/$AA$1 -> 4782.243529 | AD8: 14335 | AE8: =VLOOKUP($D8,'Nursery detail'!C:AF,21,FALSE)/$AE$1 -> 1688.367458 | AF8: =VLOOKUP($D8,'Nursery detail'!C:AG,22,FALSE)/$AE$1 -> 1482.468987 | AG8: =VLOOKUP($D8,'Nursery detail'!C:AH,23,FALSE)/$AE$1 -> 2379.163555 | AH8: 5550 | AI8: =VLOOKUP($D8,'Nursery detail'!$C:$AF,25,FALSE)/$AI$1 -> 271.8602683 | AJ8: =VLOOKUP($D8,'Nursery detail'!$C:$AF,26,FALSE)/$AI$1 -> 0 | AK8: =VLOOKUP($D8,'Nursery detail'!$C:$AF,27,FALSE)/$AI$1 -> 463.1397317 | AL8: 735
A9: Becket Primary School | B9: E200901 | C9: M | D9: 2405 | E9: 5220 | F9: 2310 | G9: 1980 | H9: 9510 | J9: 0 | K9: 0 | L9: 0 | M9: 0 | O9: 40227.3 | Q9: 0 | R9: 2944 | S9: 882 | T9: 1055 | V9: 4881 | X9: 45108.3 | AA9: =VLOOKUP($D9,'Nursery detail'!C:AF,17,FALSE)/$AA$1 -> 1561.560062 | AB9: =VLOOKUP($D9,'Nursery detail'!C:AG,18,FALSE)/$AA$1 -> 1653.416537 | AC9: =VLOOKUP($D9,'Nursery detail'!C:AH,19,FALSE)/$AA$1 -> 1691.690068 | AD9: 4906.666667 | AE9: =VLOOKUP($D9,'Nursery detail'!C:AF,21,FALSE)/$AE$1 -> 1473.744254 | AF9: =VLOOKUP($D9,'Nursery detail'!C:AG,22,FALSE)/$AE$1 -> 1493.749832 | AG9: =VLOOKUP($D9,'Nursery detail'!C:AH,23,FALSE)/$AE$1 -> 1442.505914 | AH9: 4410 | AI9: =VLOOKUP($D9,'Nursery detail'!$C:$AF,25,FALSE)/$AI$1 -> 1682.640186 | AJ9: =VLOOKUP($D9,'Nursery detail'!$C:$AF,26,FALSE)/$AI$1 -> 2032.365401 | AK9: =VLOOKUP($D9,'Nursery detail'!$C:$AF,27,FALSE)/$AI$1 -> 1559.994413 | AL9: 5275
A10: Bemrose | B10: E300101 | C10: M | D10: 4177 | E10: 4320 | F10: 2310 | G10: 3060 | H10: 9690 | J10: 0 | K10: 0 | L10: 0 | M10: 0 | O10: 40988.7 | Q10: 0 | R10: 1832 | S10: 1336 | T10: 829 | V10: 3997 | X10: 44985.7 | AA10: =VLOOKUP($D10,'Nursery detail'!C:AF,17,FALSE)/$AA$1 -> 1322.309711 | AB10: =VLOOKUP($D10,'Nursery detail'!C:AG,18,FALSE)/$AA$1 -> 320.55993 | AC10: =VLOOKUP($D10,'Nursery detail'!C:AH,19,FALSE)/$AA$1 -> 1410.463692 | AD10: 3053.333333 | AE10: =VLOOKUP($D10,'Nursery detail'!C:AF,21,FALSE)/$AE$1 -> 1675.271834 | AF10: =VLOOKUP($D10,'Nursery detail'!C:AG,22,FALSE)/$AE$1 -> 2530.480533 | AG10: =VLOOKUP($D10,'Nursery detail'!C:AH,23,FALSE)/$AE$1 -> 2474.247632 | AH10: 6680 | AI10: =VLOOKUP($D10,'Nursery detail'!$C:$AF,25,FALSE)/$AI$1 -> 898.0444569 | AJ10: =VLOOKUP($D10,'Nursery detail'!$C:$AF,26,FALSE)/$AI$1 -> 1399.549803 | AK10: =VLOOKUP($D10,'Nursery detail'!$C:$AF,27,FALSE)/$AI$1 -> 1847.40574 | AL10: 4145
A11: Borrow Wood Primary School | B11: E201201 | C11: M | D11: 5201 | E11: 6300 | F11: 3990 | G11: 3780 | H11: 14070 | J11: 0 | K11: 0 | L11: 0 | M11: 0 | O11: 59516.1 | Q11: 0 | R11: 1117 | S11: 71 | T11: 18 | V11: 1206 | X11: 60722.1 | AA11: =VLOOKUP($D11,'Nursery detail'!C:AF,17,FALSE)/$AA$1 -> 551.1218562 | AB11: =VLOOKUP($D11,'Nursery detail'!C:AG,18,FALSE)/$AA$1 -> 904.1842952 | AC11: =VLOOKUP($D11,'Nursery detail'!C:AH,19,FALSE)/$AA$1 -> 406.3605153 | AD11: 1861.666667 | AE11: =VLOOKUP($D11,'Nursery detail'!C:AF,21,FALSE)/$AE$1 -> 87.00980392 | AF11: =VLOOKUP($D11,'Nursery detail'!C:AG,22,FALSE)/$AE$1 -> 0 | AG11: =VLOOKUP($D11,'Nursery detail'!C:AH,23,FALSE)/$AE$1 -> 267.9901961 | AH11: 355 | AI11: =VLOOKUP($D11,'Nursery detail'!$C:$AF,25,FALSE)/$AI$1 -> 0 | AJ11: =VLOOKUP($D11,'Nursery detail'!$C:$AF,26,FALSE)/$AI$1 -> 0 | AK11: =VLOOKUP($D11,'Nursery detail'!$C:$AF,27,FALSE)/$AI$1 -> 90 | AL11: 90
A12: Brackensdale ER (Enhanced Resource) Primary School | B12: E201401 | C12: M | D12: 2432 | E12: 9000 | F12: 6300 | G12: 9000 | H12: 24300 | J12: 0 | K12: 0 | L12: 0 | M12: 0 | O12: 102789 | Q12: 0 | R12: 4691 | S12: 2723 | T12: 343 | V12: 7757 | X12: 110546 | AA12: =VLOOKUP($D12,'Nursery detail'!C:AF,17,FALSE)/$AA$1 -> 2035.480641 | AB12: =VLOOKUP($D12,'Nursery detail'!C:AG,18,FALSE)/$AA$1 -> 3392.467735 | AC12: =VLOOKUP($D12,'Nursery detail'!C:AH,19,FALSE)/$AA$1 -> 2390.384958 | AD12: 7818.333333 | AE12: =VLOOKUP($D12,'Nursery detail'!C:AF,21,FALSE)/$AE$1 -> 5436.116152 | AF12: =VLOOKUP($D12,'Nursery detail'!C:AG,22,FALSE)/$AE$1 -> 3843.718492 | AG12: =VLOOKUP($D12,'Nursery detail'!C:AH,23,FALSE)/$AE$1 -> 4335.165356 | AH12: 13615 | AI12: =VLOOKUP($D12,'Nursery detail'!$C:$AF,25,FALSE)/$AI$1 -> 297.5421687 | AJ12: =VLOOKUP($D12,'Nursery detail'!$C:$AF,26,FALSE)/$AI$1 -> 991.8072289 | AK12: =VLOOKUP($D12,'Nursery detail'!$C:$AF,27,FALSE)/$AI$1 -> 425.6506024 | AL12: 1715
A13: Brookfield Primary School | B13: E201801 | C13: M | D13: 2512 | E13: 7920 | F13: 4200 | G13: 5940 | H13: 18060 | J13: 0 | K13: 0 | L13: 0 | M13: 0 | O13: 76393.8 | Q13: 0 | R13: 374 | S13: 74 | T13: 1429 | V13: 1877 | X13: 78270.8 | AA13: =VLOOKUP($D13,'Nursery detail'!C:AF,17,FALSE)/$AA$1 -> 145.5882353 | AB13: =VLOOKUP($D13,'Nursery detail'!C:AG,18,FALSE)/$AA$1 -> 0 | AC13: =VLOOKUP($D13,'Nursery detail'!C:AH,19,FALSE)/$AA$1 -> 477.745098 | AD13: 623.3333333 | AE13: =VLOOKUP($D13,'Nursery detail'!C:AF,21,FALSE)/$AE$1 -> 153.6923077 | AF13: =VLOOKUP($D13,'Nursery detail'!C:AG,22,FALSE)/$AE$1 -> 0 | AG13: =VLOOKUP($D13,'Nursery detail'!C:AH,23,FALSE)/$AE$1 -> 216.3076923 | AH13: 370 | AI13: =VLOOKUP($D13,'Nursery detail'!$C:$AF,25,FALSE)/$AI$1 -> 2262.386175 | AJ13: =VLOOKUP($D13,'Nursery detail'!$C:$AF,26,FALSE)/$AI$1 -> 2927.793874 | AK13: =VLOOKUP($D13,'Nursery detail'!$C:$AF,27,FALSE)/$AI$1 -> 1954.81995 | AL13: 7145
A14: Carlyle Infant School | B14: E201901 | C14: M | D14: 2456 | E14: 11880 | F14: 13860 | G14: 14040 | H14: 39780 | J14: 0 | K14: 0 | L14: 0 | M14: 0 | O14: 168269.4 | Q14: 0 | R14: 908 | S14: 850 | T14: 845 | V14: 2603 | X14: 170872.4 | AA14: =VLOOKUP($D14,'Nursery detail'!C:AF,17,FALSE)/$AA$1 -> 550.6998049 | AB14: =VLOOKUP($D14,'Nursery detail'!C:AG,18,FALSE)/$AA$1 -> 300.3817118 | AC14: =VLOOKUP($D14,'Nursery detail'!C:AH,19,FALSE)/$AA$1 -> 662.2518167 | AD14: 1513.333333 | AE14: =VLOOKUP($D14,'Nursery detail'!C:AF,21,FALSE)/$AE$1 -> 1381.208145 | AF14: =VLOOKUP($D14,'Nursery detail'!C:AG,22,FALSE)/$AE$1 -> 2109.481531 | AG14: =VLOOKUP($D14,'Nursery detail'!C:AH,23,FALSE)/$AE$1 -> 759.3103239 | AH14: 4250 | AI14: =VLOOKUP($D14,'Nursery detail'!$C:$AF,25,FALSE)/$AI$1 -> 1644.361618 | AJ14: =VLOOKUP($D14,'Nursery detail'!$C:$AF,26,FALSE)/$AI$1 -> 896.9245192 | AK14: =VLOOKUP($D14,'Nursery detail'!$C:$AF,27,FALSE)/$AI$1 -> 1683.713862 | AL14: 4225
A15: Cavendish Close Infant School | B15: E202001 | C15: M | D15: 2449 | E15: 14040 | F15: 16380 | G15: 14040 | H15: 44460 | J15: 0 | K15: 0 | L15: 0 | M15: 0 | O15: 188065.8 | Q15: 0 | R15: 4664 | S15: 3515 | T15: 381 | V15: 8560 | X15: 196625.8 | AA15: =VLOOKUP($D15,'Nursery detail'!C:AF,17,FALSE)/$AA$1 -> 2084.482045 | AB15: =VLOOKUP($D15,'Nursery detail'!C:AG,18,FALSE)/$AA$1 -> 3294.169869 | AC15: =VLOOKUP($D15,'Nursery detail'!C:AH,19,FALSE)/$AA$1 -> 2394.681419 | AD15: 7773.333333 | AE15: =VLOOKUP($D15,'Nursery detail'!C:AF,21,FALSE)/$AE$1 -> 6203.024903 | AF15: =VLOOKUP($D15,'Nursery detail'!C:AG,22,FALSE)/$AE$1 -> 6535.218275 | AG15: =VLOOKUP($D15,'Nursery detail'!C:AH,23,FALSE)/$AE$1 -> 4836.756822 | AH15: 17575 | AI15: =VLOOKUP($D15,'Nursery detail'!$C:$AF,25,FALSE)/$AI$1 -> 776.8294024 | AJ15: =VLOOKUP($D15,'Nursery detail'!$C:$AF,26,FALSE)/$AI$1 -> 398.9852565 | AK15: =VLOOKUP($D15,'Nursery detail'!$C:$AF,27,FALSE)/$AI$1 -> 729.1853411 | AL15: 1905
A16: Central Nursery | B16: E100301 | C16: S | D16: 1006 | E16: 18000 | F16: 14070 | G16: 14760 | H16: 46830 | J16: 100000 | K16: 62752 | L16: 14498 | M16: 177250 | O16: 198090.9 | Q16: 0 | R16: 6956 | S16: 2898 | T16: 1408 | V16: 11262 | X16: 386602.9 | AA16: =VLOOKUP($D16,'Nursery detail'!C:AF,17,FALSE)/$AA$1 -> 4867.122541 | AB16: =VLOOKUP($D16,'Nursery detail'!C:AG,18,FALSE)/$AA$1 -> 2651.116475 | AC16: =VLOOKUP($D16,'Nursery detail'!C:AH,19,FALSE)/$AA$1 -> 4075.094317 | AD16: 11593.33333 | AE16: =VLOOKUP($D16,'Nursery detail'!C:AF,21,FALSE)/$AE$1 -> 4552.708832 | AF16: =VLOOKUP($D16,'Nursery detail'!C:AG,22,FALSE)/$AE$1 -> 4768.448659 | AG16: =VLOOKUP($D16,'Nursery detail'!C:AH,23,FALSE)/$AE$1 -> 5168.842509 | AH16: 14490 | AI16: =VLOOKUP($D16,'Nursery detail'!$C:$AF,25,FALSE)/$AI$1 -> 2292.97495 | AJ16: =VLOOKUP($D16,'Nursery detail'!$C:$AF,26,FALSE)/$AI$1 -> 3060.904119 | AK16: =VLOOKUP($D16,'Nursery detail'!$C:$AF,27,FALSE)/$AI$1 -> 1686.120931 | AL16: 7040
A17: Cherry Tree Hill Primary School | B17: E202601 | C17: M | D17: 2451 | E17: 9360 | F17: 10920 | G17: 9360 | H17: 29640 | J17: 0 | K17: 0 | L17: 0 | M17: 0 | O17: 125377.2 | Q17: 0 | R17: 4053 | S17: 1959 | T17: 288 | V17: 6300 | X17: 131677.2 | AA17: =VLOOKUP($D17,'Nursery detail'!C:AF,17,FALSE)/$AA$1 -> 1557.305342 | AB17: =VLOOKUP($D17,'Nursery detail'!C:AG,18,FALSE)/$AA$1 -> 3300.810235 | AC17: =VLOOKUP($D17,'Nursery detail'!C:AH,19,FALSE)/$AA$1 -> 1896.884423 | AD17: 6755 | AE17: =VLOOKUP($D17,'Nursery detail'!C:AF,21,FALSE)/$AE$1 -> 4475.922681 | AF17: =VLOOKUP($D17,'Nursery detail'!C:AG,22,FALSE)/$AE$1 -> 2108.224451 | AG17: =VLOOKUP($D17,'Nursery detail'!C:AH,23,FALSE)/$AE$1 -> 3210.852868 | AH17: 9795 | AI17: =VLOOKUP($D17,'Nursery detail'!$C:$AF,25,FALSE)/$AI$1 -> 386.1640109 | AJ17: =VLOOKUP($D17,'Nursery detail'!$C:$AF,26,FALSE)/$AI$1 -> 654.7998445 | AK17: =VLOOKUP($D17,'Nursery detail'!$C:$AF,27,FALSE)/$AI$1 -> 399.0361446 | AL17: 1440
A18: Griffe Field Primary School | B18: E203301 | C18: M | D18: 2002 | E18: 8820 | F18: 10290 | G18: 8820 | H18: 27930 | J18: 0 | K18: 0 | L18: 0 | M18: 0 | O18: 118143.9 | Q18: 0 | R18: 89 | S18: 65 | T18: 2080 | V18: 2234 | X18: 120377.9 | AA18: =VLOOKUP($D18,'Nursery detail'!C:AF,17,FALSE)/$AA$1 -> 0 | AB18: =VLOOKUP($D18,'Nursery detail'!C:AG,18,FALSE)/$AA$1 -> 0 | AC18: =VLOOKUP($D18,'Nursery detail'!C:AH,19,FALSE)/$AA$1 -> 148.3333333 | AD18: 148.3333333 | AE18: =VLOOKUP($D18,'Nursery detail'!C:AF,21,FALSE)/$AE$1 -> 186.1279033 | AF18: =VLOOKUP($D18,'Nursery detail'!C:AG,22,FALSE)/$AE$1 -> 0 | AG18: =VLOOKUP($D18,'Nursery detail'!C:AH,23,FALSE)/$AE$1 -> 138.8720967 | AH18: 325 | AI18: =VLOOKUP($D18,'Nursery detail'!$C:$AF,25,FALSE)/$AI$1 -> 3383.208839 | AJ18: =VLOOKUP($D18,'Nursery detail'!$C:$AF,26,FALSE)/$AI$1 -> 4301.839777 | AK18: =VLOOKUP($D18,'Nursery detail'!$C:$AF,27,FALSE)/$AI$1 -> 2714.951385 | AL18: 10400
A19: Harrington Nursery | B19: E100401 | C19: S | D19: 1008 | E19: 14400 | F19: 16380 | G19: 14400 | H19: 45180 | J19: 100000 | K19: 60541 | L19: 5801 | M19: 166342 | O19: 191111.4 | Q19: 0 | R19: 24439 | S19: 769 | T19: 5171 | V19: 30379 | X19: 387832.4 | AA19: =VLOOKUP($D19,'Nursery detail'!C:AF,17,FALSE)/$AA$1 -> 13784.73321 | AB19: =VLOOKUP($D19,'Nursery detail'!C:AG,18,FALSE)/$AA$1 -> 14920.52486 | AC19: =VLOOKUP($D19,'Nursery detail'!C:AH,19,FALSE)/$AA$1 -> 12026.40859 | AD19: 40731.66667 | AE19: =VLOOKUP($D19,'Nursery detail'!C:AF,21,FALSE)/$AE$1 -> 183.3335153 | AF19: =VLOOKUP($D19,'Nursery detail'!C:AG,22,FALSE)/$AE$1 -> 195.720915 | AG19: =VLOOKUP($D19,'Nursery detail'!C:AH,23,FALSE)/$AE$1 -> 3465.94557 | AH19: 3845 | AI19: =VLOOKUP($D19,'Nursery detail'!$C:$AF,25,FALSE)/$AI$1 -> 7664.013993 | AJ19: =VLOOKUP($D19,'Nursery detail'!$C:$AF,26,FALSE)/$AI$1 -> 9613.677013 | AK19: =VLOOKUP($D19,'Nursery detail'!$C:$AF,27,FALSE)/$AI$1 -> 8577.308994 | AL19: 25855
A20: Homefields Primary | B20: E203501 | C20: M | D20: 2006 | E20: 9180 | F20: 8610 | G20: 8820 | H20: 26610 | J20: 0 | K20: 0 | L20: 0 | M20: 0 | O20: 112560.3 | Q20: 0 | R20: 213 | S20: 656 | T20: 1056 | V20: 1925 | X20: 114485.3 | AA20: =VLOOKUP($D20,'Nursery detail'!C:AF,17,FALSE)/$AA$1 -> 0 | AB20: =VLOOKUP($D20,'Nursery detail'!C:AG,18,FALSE)/$AA$1 -> 179.9696257 | AC20: =VLOOKUP($D20,'Nursery detail'!C:AH,19,FALSE)/$AA$1 -> 175.0303743 | AD20: 355 | AE20: =VLOOKUP($D20,'Nursery detail'!C:AF,21,FALSE)/$AE$1 -> 1275.791346 | AF20: =VLOOKUP($D20,'Nursery detail'!C:AG,22,FALSE)/$AE$1 -> 849.7065914 | AG20: =VLOOKUP($D20,'Nursery detail'!C:AH,23,FALSE)/$AE$1 -> 1154.502063 | AH20: 3280 | AI20: =VLOOKUP($D20,'Nursery detail'!$C:$AF,25,FALSE)/$AI$1 -> 1399.951551 | AJ20: =VLOOKUP($D20,'Nursery detail'!$C:$AF,26,FALSE)/$AI$1 -> 2294.907502 | AK20: =VLOOKUP($D20,'Nursery detail'!$C:$AF,27,FALSE)/$AI$1 -> 1585.140947 | AL20: 5280
A21: Lakeside Community Primary School | B21: E203601 | C21: M | D21: 2434 | E21: 17532 | F21: 14490 | G21: 13656 | H21: 45678 | J21: 0 | K21: 0 | L21: 0 | M21: 0 | O21: 193217.94 | Q21: 0 | R21: 12083 | S21: 4825 | T21: 1359 | V21: 18267 | X21: 211484.94 | AA21: =VLOOKUP($D21,'Nursery detail'!C:AF,17,FALSE)/$AA$1 -> 6060.423929 | AB21: =VLOOKUP($D21,'Nursery detail'!C:AG,18,FALSE)/$AA$1 -> 6904.2013 | AC21: =VLOOKUP($D21,'Nursery detail'!C:AH,19,FALSE)/$AA$1 -> 7173.708105 | AD21: 20138.33333 | AE21: =VLOOKUP($D21,'Nursery detail'!C:AF,21,FALSE)/$AE$1 -> 8876.093766 | AF21: =VLOOKUP($D21,'Nursery detail'!C:AG,22,FALSE)/$AE$1 -> 7586.413628 | AG21: =VLOOKUP($D21,'Nursery detail'!C:AH,23,FALSE)/$AE$1 -> 7662.492606 | AH21: 24125 | AI21: =VLOOKUP($D21,'Nursery detail'!$C:$AF,25,FALSE)/$AI$1 -> 1847.560155 | AJ21: =VLOOKUP($D21,'Nursery detail'!$C:$AF,26,FALSE)/$AI$1 -> 3216.376624 | AK21: =VLOOKUP($D21,'Nursery detail'!$C:$AF,27,FALSE)/$AI$1 -> 1731.063222 | AL21: 6795
A22: Lord St Nursery | B22: E100501 | C22: S | D22: 1005 | E22: 18540 | F22: 12600 | G22: 14760 | H22: 45900 | J22: 100000 | K22: 61506 | L22: 15606 | M22: 177112 | O22: 194157 | Q22: 0 | R22: 25080 | S22: 1009 | T22: 3065 | V22: 29154 | X22: 400423 | AA22: =VLOOKUP($D22,'Nursery detail'!C:AF,17,FALSE)/$AA$1 -> 14410.26598 | AB22: =VLOOKUP($D22,'Nursery detail'!C:AG,18,FALSE)/$AA$1 -> 14377.20979 | AC22: =VLOOKUP($D22,'Nursery detail'!C:AH,19,FALSE)/$AA$1 -> 13012.52422 | AD22: 41800 | AE22: =VLOOKUP($D22,'Nursery detail'!C:AF,21,FALSE)/$AE$1 -> 892.4652386 | AF22: =VLOOKUP($D22,'Nursery detail'!C:AG,22,FALSE)/$AE$1 -> 924.8947447 | AG22: =VLOOKUP($D22,'Nursery detail'!C:AH,23,FALSE)/$AE$1 -> 3227.640017 | AH22: 5045 | AI22: =VLOOKUP($D22,'Nursery detail'!$C:$AF,25,FALSE)/$AI$1 -> 5253.500652 | AJ22: =VLOOKUP($D22,'Nursery detail'!$C:$AF,26,FALSE)/$AI$1 -> 6739.101271 | AK22: =VLOOKUP($D22,'Nursery detail'!$C:$AF,27,FALSE)/$AI$1 -> 3332.398076 | AL22: 15325
A23: Meadow Farm Community Primary School | B23: E203901 | C23: M | D23: 2452 | E23: 6660 | F23: 3360 | G23: 3240 | H23: 13260 | J23: 0 | K23: 0 | L23: 0 | M23: 0 | O23: 56089.8 | Q23: 0 | R23: 3384 | S23: 244 | T23: 298 | V23: 3926 | X23: 60015.8 | AA23: =VLOOKUP($D23,'Nursery detail'!C:AF,17,FALSE)/$AA$1 -> 2218.85345 | AB23: =VLOOKUP($D23,'Nursery detail'!C:AG,18,FALSE)/$AA$1 -> 2104.841218 | AC23: =VLOOKUP($D23,'Nursery detail'!C:AH,19,FALSE)/$AA$1 -> 1316.305332 | AD23: 5640 | AE23: =VLOOKUP($D23,'Nursery detail'!C:AF,21,FALSE)/$AE$1 -> 249.9011449 | AF23: =VLOOKUP($D23,'Nursery detail'!C:AG,22,FALSE)/$AE$1 -> 726.9851487 | AG23: =VLOOKUP($D23,'Nursery detail'!C:AH,23,FALSE)/$AE$1 -> 243.1137064 | AH23: 1220 | AI23: =VLOOKUP($D23,'Nursery detail'!$C:$AF,25,FALSE)/$AI$1 -> 718.3595381 | AJ23: =VLOOKUP($D23,'Nursery detail'!$C:$AF,26,FALSE)/$AI$1 -> 447.8085432 | AK23: =VLOOKUP($D23,'Nursery detail'!$C:$AF,27,FALSE)/$AI$1 -> 323.8319187 | AL23: 1490
A24: Oakwood Infant School | B24: E204701 | C24: M | D24: 2473 | E24: 14040 | F24: 16380 | G24: 14040 | H24: 44460 | J24: 0 | K24: 0 | L24: 0 | M24: 0 | O24: 188065.8 | Q24: 0 | R24: 13038 | S24: 3548 | T24: 640 | V24: 17226 | X24: 205291.8 | AA24: =VLOOKUP($D24,'Nursery detail'!C:AF,17,FALSE)/$AA$1 -> 7984.621239 | AB24: =VLOOKUP($D24,'Nursery detail'!C:AG,18,FALSE)/$AA$1 -> 6972.692711 | AC24: =VLOOKUP($D24,'Nursery detail'!C:AH,19,FALSE)/$AA$1 -> 6772.68605 | AD24: 21730 | AE24: =VLOOKUP($D24,'Nursery detail'!C:AF,21,FALSE)/$AE$1 -> 5700.428283 | AF24: =VLOOKUP($D24,'Nursery detail'!C:AG,22,FALSE)/$AE$1 -> 6378.139795 | AG24: =VLOOKUP($D24,'Nursery detail'!C:AH,23,FALSE)/$AE$1 -> 5661.431921 | AH24: 17740 | AI24: =VLOOKUP($D24,'Nursery detail'!$C:$AF,25,FALSE)/$AI$1 -> 1348.503409 | AJ24: =VLOOKUP($D24,'Nursery detail'!$C:$AF,26,FALSE)/$AI$1 -> 1284.6559 | AK24: =VLOOKUP($D24,'Nursery detail'!$C:$AF,27,FALSE)/$AI$1 -> 566.8406911 | AL24: 3200
A25: Parkview Primary School | B25: E204901 | C25: M | D25: 2003 | E25: 7380 | F25: 6692 | G25: 7020 | H25: 21092 | J25: 0 | K25: 0 | L25: 0 | M25: 0 | O25: 89219.16 | Q25: 0 | R25: 424 | S25: 142 | T25: 117 | V25: 683 | X25: 89902.16 | AA25: =VLOOKUP($D25,'Nursery detail'!C:AF,17,FALSE)/$AA$1 -> 162.3008483 | AB25: =VLOOKUP($D25,'Nursery detail'!C:AG,18,FALSE)/$AA$1 -> 0 | AC25: =VLOOKUP($D25,'Nursery detail'!C:AH,19,FALSE)/$AA$1 -> 544.3658183 | AD25: 706.6666667 | AE25: =VLOOKUP($D25,'Nursery detail'!C:AF,21,FALSE)/$AE$1 -> 345.2589414 | AF25: =VLOOKUP($D25,'Nursery detail'!C:AG,22,FALSE)/$AE$1 -> 197.6374807 | AG25: =VLOOKUP($D25,'Nursery detail'!C:AH,23,FALSE)/$AE$1 -> 167.103578 | AH25: 710 | AI25: =VLOOKUP($D25,'Nursery detail'!$C:$AF,25,FALSE)/$AI$1 -> 160.1294547 | AJ25: =VLOOKUP($D25,'Nursery detail'!$C:$AF,26,FALSE)/$AI$1 -> 221.6215464 | AK25: =VLOOKUP($D25,'Nursery detail'!$C:$AF,27,FALSE)/$AI$1 -> 203.2489989 | AL25: 585
A26: Ravensdale Infant and Nursery School | B26: E205401 | C26: M | D26: 2462 | E26: 9180 | F26: 6300 | G26: 7920 | H26: 23400 | J26: 0 | K26: 0 | L26: 0 | M26: 0 | O26: 98982 | Q26: 0 | R26: 743 | S26: 950 | T26: 479 | V26: 2172 | X26: 101154 | AA26: =VLOOKUP($D26,'Nursery detail'!C:AF,17,FALSE)/$AA$1 -> 204.3258108 | AB26: =VLOOKUP($D26,'Nursery detail'!C:AG,18,FALSE)/$AA$1 -> 432.0031429 | AC26: =VLOOKUP($D26,'Nursery detail'!C:AH,19,FALSE)/$AA$1 -> 602.0043796 | AD26: 1238.333333 | AE26: =VLOOKUP($D26,'Nursery detail'!C:AF,21,FALSE)/$AE$1 -> 999.2342265 | AF26: =VLOOKUP($D26,'Nursery detail'!C:AG,22,FALSE)/$AE$1 -> 2323.933315 | AG26: =VLOOKUP($D26,'Nursery detail'!C:AH,23,FALSE)/$AE$1 -> 1426.832458 | AH26: 4750 | AI26: =VLOOKUP($D26,'Nursery detail'!$C:$AF,25,FALSE)/$AI$1 -> 621.2284446 | AJ26: =VLOOKUP($D26,'Nursery detail'!$C:$AF,26,FALSE)/$AI$1 -> 875.6362838 | AK26: =VLOOKUP($D26,'Nursery detail'!$C:$AF,27,FALSE)/$AI$1 -> 898.1352716 | AL26: 2395
A27: Redwood Primary School | B27: E205601 | C27: M | D27: 2505 | E27: 16200 | F27: 9450 | G27: 14760 | H27: 40410 | J27: 0 | K27: 0 | L27: 0 | M27: 0 | O27: 170934.3 | Q27: 0 | R27: 14232 | S27: 679 | T27: 3542 | V27: 18453 | X27: 189387.3 | AA27: =VLOOKUP($D27,'Nursery detail'!C:AF,17,FALSE)/$AA$1 -> 8056.59945 | AB27: =VLOOKUP($D27,'Nursery detail'!C:AG,18,FALSE)/$AA$1 -> 8995.232396 | AC27: =VLOOKUP($D27,'Nursery detail'!C:AH,19,FALSE)/$AA$1 -> 6668.168155 | AD27: 23720 | AE27: =VLOOKUP($D27,'Nursery detail'!C:AF,21,FALSE)/$AE$1 -> 153.99942 | AF27: =VLOOKUP($D27,'Nursery detail'!C:AG,22,FALSE)/$AE$1 -> 412.65864 | AG27: =VLOOKUP($D27,'Nursery detail'!C:AH,23,FALSE)/$AE$1 -> 2828.34194 | AH27: 3395 | AI27: =VLOOKUP($D27,'Nursery detail'!$C:$AF,25,FALSE)/$AI$1 -> 5600.79762 | AJ27: =VLOOKUP($D27,'Nursery detail'!$C:$AF,26,FALSE)/$AI$1 -> 6670.20558 | AK27: =VLOOKUP($D27,'Nursery detail'!$C:$AF,27,FALSE)/$AI$1 -> 5438.9968 | AL27: 17710
A28: Roe Farm Primary School | B28: E206001 | C28: M | D28: 2001 | E28: 13320 | F28: 9660 | G28: 10080 | H28: 33060 | J28: 0 | K28: 0 | L28: 0 | M28: 0 | O28: 139843.8 | Q28: 0 | R28: 12088 | S28: 1855 | T28: 586 | V28: 14529 | X28: 154372.8 | AA28: =VLOOKUP($D28,'Nursery detail'!C:AF,17,FALSE)/$AA$1 -> 6957.667212 | AB28: =VLOOKUP($D28,'Nursery detail'!C:AG,18,FALSE)/$AA$1 -> 6636.54411 | AC28: =VLOOKUP($D28,'Nursery detail'!C:AH,19,FALSE)/$AA$1 -> 6552.455345 | AD28: 20146.66667 | AE28: =VLOOKUP($D28,'Nursery detail'!C:AF,21,FALSE)/$AE$1 -> 3023.930756 | AF28: =VLOOKUP($D28,'Nursery detail'!C:AG,22,FALSE)/$AE$1 -> 2205.690669 | AG28: =VLOOKUP($D28,'Nursery detail'!C:AH,23,FALSE)/$AE$1 -> 4045.378574 | AH28: 9275 | AI28: =VLOOKUP($D28,'Nursery detail'!$C:$AF,25,FALSE)/$AI$1 -> 1081.126376 | AJ28: =VLOOKUP($D28,'Nursery detail'!$C:$AF,26,FALSE)/$AI$1 -> 744.7759476 | AK28: =VLOOKUP($D28,'Nursery detail'!$C:$AF,27,FALSE)/$AI$1 -> 1104.097677 | AL28: 2930
A29: Rosehill Infant and Nursery School | B29: E206101 | C29: M | D29: 2429 | E29: 9720 | F29: 5880 | G29: 5940 | H29: 21540 | J29: 0 | K29: 0 | L29: 0 | M29: 0 | O29: 91114.2 | Q29: 0 | R29: 12174 | S29: 754 | T29: 2974 | V29: 15902 | X29: 107016.2 | AA29: =VLOOKUP($D29,'Nursery detail'!C:AF,17,FALSE)/$AA$1 -> 6923.201583 | AB29: =VLOOKUP($D29,'Nursery detail'!C:AG,18,FALSE)/$AA$1 -> 7208.106997 | AC29: =VLOOKUP($D29,'Nursery detail'!C:AH,19,FALSE)/$AA$1 -> 6158.69142 | AD29: 20290 | AE29: =VLOOKUP($D29,'Nursery detail'!C:AF,21,FALSE)/$AE$1 -> 0 | AF29: =VLOOKUP($D29,'Nursery detail'!C:AG,22,FALSE)/$AE$1 -> 0 | AG29: =VLOOKUP($D29,'Nursery detail'!C:AH,23,FALSE)/$AE$1 -> 3770 | AH29: 3770 | AI29: =VLOOKUP($D29,'Nursery detail'!$C:$AF,25,FALSE)/$AI$1 -> 5077.087596 | AJ29: =VLOOKUP($D29,'Nursery detail'!$C:$AF,26,FALSE)/$AI$1 -> 4046.984605 | AK29: =VLOOKUP($D29,'Nursery detail'!$C:$AF,27,FALSE)/$AI$1 -> 5745.927799 | AL29: 14870
A30: Shelton Infant School | B30: E206201 | C30: M | D30: 2444 | E30: 9360 | F30: 10920 | G30: 9360 | H30: 29640 | J30: 0 | K30: 0 | L30: 0 | M30: 0 | O30: 125377.2 | Q30: 0 | R30: 8765 | S30: 1547 | T30: 773 | V30: 11085 | X30: 136462.2 | AA30: =VLOOKUP($D30,'Nursery detail'!C:AF,17,FALSE)/$AA$1 -> 3847.642147 | AB30: =VLOOKUP($D30,'Nursery detail'!C:AG,18,FALSE)/$AA$1 -> 6191.300068 | AC30: =VLOOKUP($D30,'Nursery detail'!C:AH,19,FALSE)/$AA$1 -> 4569.391119 | AD30: 14608.33333 | AE30: =VLOOKUP($D30,'Nursery detail'!C:AF,21,FALSE)/$AE$1 -> 2816.784187 | AF30: =VLOOKUP($D30,'Nursery detail'!C:AG,22,FALSE)/$AE$1 -> 2076.760913 | AG30: =VLOOKUP($D30,'Nursery detail'!C:AH,23,FALSE)/$AE$1 -> 2841.4549 | AH30: 7735 | AI30: =VLOOKUP($D30,'Nursery detail'!$C:$AF,25,FALSE)/$AI$1 -> 1331.184668 | AJ30: =VLOOKUP($D30,'Nursery detail'!$C:$AF,26,FALSE)/$AI$1 -> 1038.375251 | AK30: =VLOOKUP($D30,'Nursery detail'!$C:$AF,27,FALSE)/$AI$1 -> 1495.440081 | AL30: 3865
A31: St James' Church of England (Aided) Infant School and Nursery | B31: E207001 | C31: M | D31: 3526 | E31: 3240 | F31: 2520 | G31: 2700 | H31: 8460 | J31: 0 | K31: 0 | L31: 0 | M31: 0 | O31: 35785.8 | Q31: 0 | R31: 4884 | S31: 376 | T31: 1114 | V31: 6374 | X31: 42159.8 | AA31: =VLOOKUP($D31,'Nursery detail'!C:AF,17,FALSE)/$AA$1 -> 2825.026511 | AB31: =VLOOKUP($D31,'Nursery detail'!C:AG,18,FALSE)/$AA$1 -> 2825.026511 | AC31: =VLOOKUP($D31,'Nursery detail'!C:AH,19,FALSE)/$AA$1 -> 2489.946978 | AD31: 8140 | AE31: =VLOOKUP($D31,'Nursery detail'!C:AF,21,FALSE)/$AE$1 -> 0 | AF31: =VLOOKUP($D31,'Nursery detail'!C:AG,22,FALSE)/$AE$1 -> 0 | AG31: =VLOOKUP($D31,'Nursery detail'!C:AH,23,FALSE)/$AE$1 -> 1880 | AH31: 1880 | AI31: =VLOOKUP($D31,'Nursery detail'!$C:$AF,25,FALSE)/$AI$1 -> 1884.186828 | AJ31: =VLOOKUP($D31,'Nursery detail'!$C:$AF,26,FALSE)/$AI$1 -> 1756.876907 | AK31: =VLOOKUP($D31,'Nursery detail'!$C:$AF,27,FALSE)/$AI$1 -> 1928.936265 | AL31: 5570
A32: Stonehill Nursery | B32: E100601 | C32: S | D32: 1010 | E32: 12780 | F32: 10710 | G32: 11520 | H32: 35010 | J32: 100000 | K32: 46913 | L32: 5519 | M32: 152432 | O32: 148092.3 | Q32: 0 | R32: 17147 | S32: 1163 | T32: 4299 | V32: 22609 | X32: 323133.3 | AA32: =VLOOKUP($D32,'Nursery detail'!C:AF,17,FALSE)/$AA$1 -> 9750.755454 | AB32: =VLOOKUP($D32,'Nursery detail'!C:AG,18,FALSE)/$AA$1 -> 9924.611242 | AC32: =VLOOKUP($D32,'Nursery detail'!C:AH,19,FALSE)/$AA$1 -> 8902.966637 | AD32: 28578.33333 | AE32: =VLOOKUP($D32,'Nursery detail'!C:AF,21,FALSE)/$AE$1 -> 1438.752286 | AF32: =VLOOKUP($D32,'Nursery detail'!C:AG,22,FALSE)/$AE$1 -> 1142.926358 | AG32: =VLOOKUP($D32,'Nursery detail'!C:AH,23,FALSE)/$AE$1 -> 3233.321357 | AH32: 5815 | AI32: =VLOOKUP($D32,'Nursery detail'!$C:$AF,25,FALSE)/$AI$1 -> 6707.034132 | AJ32: =VLOOKUP($D32,'Nursery detail'!$C:$AF,26,FALSE)/$AI$1 -> 6850.262401 | AK32: =VLOOKUP($D32,'Nursery detail'!$C:$AF,27,FALSE)/$AI$1 -> 7937.703466 | AL32: 21495
A33: Walbrook Nursery | B33: E100701 | C33: S | D33: 1009 | E33: 12960 | F33: 16800 | G33: 14400 | H33: 44160 | J33: 100000 | K33: 59174 | L33: 10203 | M33: 169377 | O33: 186796.8 | Q33: 0 | R33: 22868 | S33: 1048 | T33: 6672 | V33: 30588 | X33: 386761.8 | AA33: =VLOOKUP($D33,'Nursery detail'!C:AF,17,FALSE)/$AA$1 -> 13257.6488 | AB33: =VLOOKUP($D33,'Nursery detail'!C:AG,18,FALSE)/$AA$1 -> 13214.32316 | AC33: =VLOOKUP($D33,'Nursery detail'!C:AH,19,FALSE)/$AA$1 -> 11641.36137 | AD33: 38113.33333 | AE33: =VLOOKUP($D33,'Nursery detail'!C:AF,21,FALSE)/$AE$1 -> 362.5928564 | AF33: =VLOOKUP($D33,'Nursery detail'!C:AG,22,FALSE)/$AE$1 -> 426.5798311 | AG33: =VLOOKUP($D33,'Nursery detail'!C:AH,23,FALSE)/$AE$1 -> 4450.827313 | AH33: 5240 | AI33: =VLOOKUP($D33,'Nursery detail'!$C:$AF,25,FALSE)/$AI$1 -> 12953.38329 | AJ33: =VLOOKUP($D33,'Nursery detail'!$C:$AF,26,FALSE)/$AI$1 -> 10517.24575 | AK33: =VLOOKUP($D33,'Nursery detail'!$C:$AF,27,FALSE)/$AI$1 -> 9889.370953 | AL33: 33360
A34: Whitecross Nursery | B34: E100801 | C34: S | D34: 1015 | E34: 17640 | F34: 18480 | G34: 15840 | H34: 51960 | J34: 100000 | K34: 69626 | L34: 7334 | M34: 176960 | O34: 219790.8 | Q34: 0 | R34: 2793 | S34: 1108 | T34: 470 | V34: 4371 | X34: 401121.8 | AA34: =VLOOKUP($D34,'Nursery detail'!C:AF,17,FALSE)/$AA$1 -> 1559.511866 | AB34: =VLOOKUP($D34,'Nursery detail'!C:AG,18,FALSE)/$AA$1 -> 1538.240422 | AC34: =VLOOKUP($D34,'Nursery detail'!C:AH,19,FALSE)/$AA$1 -> 1557.247711 | AD34: 4655 | AE34: =VLOOKUP($D34,'Nursery detail'!C:AF,21,FALSE)/$AE$1 -> 2486.961042 | AF34: =VLOOKUP($D34,'Nursery detail'!C:AG,22,FALSE)/$AE$1 -> 1053.531311 | AG34: =VLOOKUP($D34,'Nursery detail'!C:AH,23,FALSE)/$AE$1 -> 1999.507646 | AH34: 5540 | AI34: =VLOOKUP($D34,'Nursery detail'!$C:$AF,25,FALSE)/$AI$1 -> 746.6190369 | AJ34: =VLOOKUP($D34,'Nursery detail'!$C:$AF,26,FALSE)/$AI$1 -> 789.7532728 | AK34: =VLOOKUP($D34,'Nursery detail'!$C:$AF,27,FALSE)/$AI$1 -> 813.6276903 | AL34: 2350
A36: LA Maintained School sub-total | E36: 341352 | F36: 300017 | G36: 294456 | H36: 935825 | J36: 700000 | K36: 399627 | L36: =SUM(L4:L34) -> 70947 | M36: =SUM(M4:M34) -> 1170574 | O36: 3958539.75 | Q36: 0 | R36: 248166 | S36: 44086 | T36: 49946 | V36: 342198 | X36: =SUM(X4:X35) -> 5471311.75 | AA36: =SUM(AA4:AA35) -> 136882.012 | AB36: =SUM(AB4:AB35) -> 146238.1324 | AC36: 130489.8556 | AD36: 413610 | AE36: =SUM(AE4:AE35) -> 70150.13025 | AF36: =SUM(AF4:AF35) -> 62721.00546 | AG36: =SUM(AG4:AG35) -> 87558.86429 | AH36: =SUM(AH4:AH35) -> 220430 | AI36: 82542.33023 | AJ36: 88175.47096 | AK36: 79012.19881 | AL36: =SUM(AL4:AL35) -> 249730
A38: Academy Schools
A40: Ashwood Spencer Academy (Osmaston) Primary School | C40: M | D40: 2420 | E40: 9360 | F40: 7560 | G40: 8640 | H40: 25560 | J40: 0 | K40: 0 | L40: 0 | M40: 0 | O40: 108118.8 | Q40: 0 | R40: 14621 | S40: 430 | T40: 1804 | V40: 16855 | X40: 124973.8 | AA40: =VLOOKUP($D40,'Nursery detail'!C:AF,17,FALSE)/$AA$1 -> 8372.811203 | AB40: =VLOOKUP($D40,'Nursery detail'!C:AG,18,FALSE)/$AA$1 -> 8510.070403 | AC40: =VLOOKUP($D40,'Nursery detail'!C:AH,19,FALSE)/$AA$1 -> 7485.451726 | AD40: =SUM(AA40:AC40) -> 24368.33333 | AE40: =VLOOKUP($D40,'Nursery detail'!C:AF,21,FALSE)/$AE$1 -> 140.0310824 | AF40: =VLOOKUP($D40,'Nursery detail'!C:AG,22,FALSE)/$AE$1 -> 0 | AG40: =VLOOKUP($D40,'Nursery detail'!C:AH,23,FALSE)/$AE$1 -> 2009.968918 | AH40: =SUM(AE40:AG40) -> 2150 | AI40: =VLOOKUP($D40,'Nursery detail'!$C:$AF,25,FALSE)/$AI$1 -> 3148.437999 | AJ40: =VLOOKUP($D40,'Nursery detail'!$C:$AF,26,FALSE)/$AI$1 -> 3350.16858 | AK40: =VLOOKUP($D40,'Nursery detail'!$C:$AF,27,FALSE)/$AI$1 -> 2521.393421 | AL40: =SUM(AI40:AK40) -> 9020
A41: Bishop Lonsdale Church of England (Aided) Primary School | C41: M | D41: 2011 | E41: 6120 | F41: 4200 | G41: 5040 | H41: 15360 | J41: 0 | K41: 0 | L41: 0 | M41: 0 | O41: 64972.8 | Q41: 0 | R41: 661 | S41: 2433 | T41: 686 | V41: 3780 | X41: 68752.8 | AA41: =VLOOKUP($D41,'Nursery detail'!C:AF,17,FALSE)/$AA$1 -> 180.4092982 | AB41: =VLOOKUP($D41,'Nursery detail'!C:AG,18,FALSE)/$AA$1 -> 448.649439 | AC41: =VLOOKUP($D41,'Nursery detail'!C:AH,19,FALSE)/$AA$1 -> 472.6079294 | AD41: 1101.666667 | AE41: =VLOOKUP($D41,'Nursery detail'!C:AF,21,FALSE)/$AE$1 -> 4598.516729 | AF41: =VLOOKUP($D41,'Nursery detail'!C:AG,22,FALSE)/$AE$1 -> 3982.103714 | AG41: =VLOOKUP($D41,'Nursery detail'!C:AH,23,FALSE)/$AE$1 -> 3584.379558 | AH41: 12165 | AI41: =VLOOKUP($D41,'Nursery detail'!$C:$AF,25,FALSE)/$AI$1 -> 1587.93878 | AJ41: =VLOOKUP($D41,'Nursery detail'!$C:$AF,26,FALSE)/$AI$1 -> 740.4286911 | AK41: =VLOOKUP($D41,'Nursery detail'!$C:$AF,27,FALSE)/$AI$1 -> 1101.632529 | AL41: 3430
A42: Breadsall Hill Top Primary School | C42: M | D42: 2018 | E42: 10800 | F42: 6510 | G42: 10800 | H42: 28110 | J42: 0 | K42: 0 | L42: 0 | M42: 0 | O42: 118905.3 | Q42: 0 | R42: 3742 | S42: 2019 | T42: 581 | V42: 6342 | X42: 125247.3 | AA42: =VLOOKUP($D42,'Nursery detail'!C:AF,17,FALSE)/$AA$1 -> 2434.286068 | AB42: =VLOOKUP($D42,'Nursery detail'!C:AG,18,FALSE)/$AA$1 -> 2016.979885 | AC42: =VLOOKUP($D42,'Nursery detail'!C:AH,19,FALSE)/$AA$1 -> 1785.400713 | AD42: 6236.666667 | AE42: =VLOOKUP($D42,'Nursery detail'!C:AF,21,FALSE)/$AE$1 -> 4060.259543 | AF42: =VLOOKUP($D42,'Nursery detail'!C:AG,22,FALSE)/$AE$1 -> 4097.441406 | AG42: =VLOOKUP($D42,'Nursery detail'!C:AH,23,FALSE)/$AE$1 -> 1937.299051 | AH42: 10095 | AI42: =VLOOKUP($D42,'Nursery detail'!$C:$AF,25,FALSE)/$AI$1 -> 1515.547581 | AJ42: =VLOOKUP($D42,'Nursery detail'!$C:$AF,26,FALSE)/$AI$1 -> 697.6330136 | AK42: =VLOOKUP($D42,'Nursery detail'!$C:$AF,27,FALSE)/$AI$1 -> 691.8194051 | AL42: 2905
A43: Chaddesden Park Primary School | C43: M | D43: 2467 | E43: 8640 | F43: 6300 | G43: 7200 | H43: 22140 | J43: 0 | K43: 0 | L43: 0 | M43: 0 | O43: 93652.2 | Q43: 0 | R43: 1812 | S43: 2398 | T43: 226 | V43: 4436 | X43: 98088.2 | AA43: =VLOOKUP($D43,'Nursery detail'!C:AF,17,FALSE)/$AA$1 -> 1180.935205 | AB43: =VLOOKUP($D43,'Nursery detail'!C:AG,18,FALSE)/$AA$1 -> 778.8064066 | AC43: =VLOOKUP($D43,'Nursery detail'!C:AH,19,FALSE)/$AA$1 -> 1060.258389 | AD43: 3020 | AE43: =VLOOKUP($D43,'Nursery detail'!C:AF,21,FALSE)/$AE$1 -> 4197.099808 | AF43: =VLOOKUP($D43,'Nursery detail'!C:AG,22,FALSE)/$AE$1 -> 4326.85557 | AG43: =VLOOKUP($D43,'Nursery detail'!C:AH,23,FALSE)/$AE$1 -> 3466.044622 | AH43: 11990 | AI43: =VLOOKUP($D43,'Nursery detail'!$C:$AF,25,FALSE)/$AI$1 -> 273.8278027 | AJ43: =VLOOKUP($D43,'Nursery detail'!$C:$AF,26,FALSE)/$AI$1 -> 722.3388588 | AK43: =VLOOKUP($D43,'Nursery detail'!$C:$AF,27,FALSE)/$AI$1 -> 133.8333386 | AL43: 1130
A44: Cotton's Farm Primary School | C44: M | D44: 2023 | E44: 1980 | F44: 840 | G44: 720 | H44: 3540 | J44: 0 | K44: 0 | L44: 0 | M44: 0 | O44: 14974.2 | Q44: 0 | R44: 2044 | S44: 150 | T44: 437 | V44: 2631 | X44: 17605.2 | AA44: =VLOOKUP($D44,'Nursery detail'!C:AF,17,FALSE)/$AA$1 -> 1201.881615 | AB44: =VLOOKUP($D44,'Nursery detail'!C:AG,18,FALSE)/$AA$1 -> 1068.339213 | AC44: =VLOOKUP($D44,'Nursery detail'!C:AH,19,FALSE)/$AA$1 -> 1136.445838 | AD44: 3406.666667 | AE44: =VLOOKUP($D44,'Nursery detail'!C:AF,21,FALSE)/$AE$1 -> 0 | AF44: =VLOOKUP($D44,'Nursery detail'!C:AG,22,FALSE)/$AE$1 -> 81.78844057 | AG44: =VLOOKUP($D44,'Nursery detail'!C:AH,23,FALSE)/$AE$1 -> 668.2115594 | AH44: 750 | AI44: =VLOOKUP($D44,'Nursery detail'!$C:$AF,25,FALSE)/$AI$1 -> 633.8096261 | AJ44: =VLOOKUP($D44,'Nursery detail'!$C:$AF,26,FALSE)/$AI$1 -> 751.1817791 | AK44: =VLOOKUP($D44,'Nursery detail'!$C:$AF,27,FALSE)/$AI$1 -> 800.0085948 | AL44: 2185
A45: Derwent Community School | C45: M | D45: 2016 | E45: 6480 | F45: 4830 | G45: 4500 | H45: 15810 | J45: 0 | K45: 0 | L45: 0 | M45: 0 | O45: 66876.3 | Q45: 0 | R45: 8762 | S45: 315 | T45: 328 | V45: 9405 | X45: 76281.3 | AA45: =VLOOKUP($D45,'Nursery detail'!C:AF,17,FALSE)/$AA$1 -> 5186.560578 | AB45: =VLOOKUP($D45,'Nursery detail'!C:AG,18,FALSE)/$AA$1 -> 4905.515423 | AC45: =VLOOKUP($D45,'Nursery detail'!C:AH,19,FALSE)/$AA$1 -> 4511.257332 | AD45: 14603.33333 | AE45: =VLOOKUP($D45,'Nursery detail'!C:AF,21,FALSE)/$AE$1 -> 112.5500222 | AF45: =VLOOKUP($D45,'Nursery detail'!C:AG,22,FALSE)/$AE$1 -> 180.0800356 | AG45: =VLOOKUP($D45,'Nursery detail'!C:AH,23,FALSE)/$AE$1 -> 1282.369942 | AH45: 1575 | AI45: =VLOOKUP($D45,'Nursery detail'!$C:$AF,25,FALSE)/$AI$1 -> 577.8055146 | AJ45: =VLOOKUP($D45,'Nursery detail'!$C:$AF,26,FALSE)/$AI$1 -> 200.9758312 | AK45: =VLOOKUP($D45,'Nursery detail'!$C:$AF,27,FALSE)/$AI$1 -> 861.2186543 | AL45: 1640
A46: Firs Estate Primary School | C46: M | D46: 2013 | E46: 4680 | F46: 1260 | G46: 1080 | H46: 7020 | J46: 0 | K46: 0 | L46: 0 | M46: 0 | O46: 29694.6 | Q46: 0 | R46: 2023 | S46: 727 | T46: 370 | V46: 3120 | X46: 32814.6 | AA46: =VLOOKUP($D46,'Nursery detail'!C:AF,17,FALSE)/$AA$1 -> 999.2473245 | AB46: =VLOOKUP($D46,'Nursery detail'!C:AG,18,FALSE)/$AA$1 -> 1229.23282 | AC46: =VLOOKUP($D46,'Nursery detail'!C:AH,19,FALSE)/$AA$1 -> 1143.186522 | AD46: 3371.666667 | AE46: =VLOOKUP($D46,'Nursery detail'!C:AF,21,FALSE)/$AE$1 -> 1193.002982 | AF46: =VLOOKUP($D46,'Nursery detail'!C:AG,22,FALSE)/$AE$1 -> 1027.308123 | AG46: =VLOOKUP($D46,'Nursery detail'!C:AH,23,FALSE)/$AE$1 -> 1414.688895 | AH46: 3635 | AI46: =VLOOKUP($D46,'Nursery detail'!$C:$AF,25,FALSE)/$AI$1 -> 138.3560695 | AJ46: =VLOOKUP($D46,'Nursery detail'!$C:$AF,26,FALSE)/$AI$1 -> 794.266325 | AK46: =VLOOKUP($D46,'Nursery detail'!$C:$AF,27,FALSE)/$AI$1 -> 917.3776054 | AL46: 1850
A47: Grampian Primary School /Academy | C47: M | D47: 2010 | E47: 4860 | F47: 7980 | G47: 8640 | H47: 21480 | J47: 0 | K47: 0 | L47: 0 | M47: 0 | O47: 90860.4 | Q47: 0 | R47: 10334 | S47: 844 | T47: 1292 | V47: 12470 | X47: 103330.4 | AA47: =VLOOKUP($D47,'Nursery detail'!C:AF,17,FALSE)/$AA$1 -> 6283.053152 | AB47: =VLOOKUP($D47,'Nursery detail'!C:AG,18,FALSE)/$AA$1 -> 6012.044994 | AC47: =VLOOKUP($D47,'Nursery detail'!C:AH,19,FALSE)/$AA$1 -> 4928.235188 | AD47: 17223.33333 | AE47: =VLOOKUP($D47,'Nursery detail'!C:AF,21,FALSE)/$AE$1 -> 0 | AF47: =VLOOKUP($D47,'Nursery detail'!C:AG,22,FALSE)/$AE$1 -> 0 | AG47: =VLOOKUP($D47,'Nursery detail'!C:AH,23,FALSE)/$AE$1 -> 4220 | AH47: 4220 | AI47: =VLOOKUP($D47,'Nursery detail'!$C:$AF,25,FALSE)/$AI$1 -> 2415.389478 | AJ47: =VLOOKUP($D47,'Nursery detail'!$C:$AF,26,FALSE)/$AI$1 -> 1285.363513 | AK47: =VLOOKUP($D47,'Nursery detail'!$C:$AF,27,FALSE)/$AI$1 -> 2759.247008 | AL47: 6460
A48: Hardwick Primary School | C48: M | D48: 3544 | E48: 9360 | F48: 6720 | G48: 7560 | H48: 23640 | J48: 0 | K48: 0 | L48: 0 | M48: 0 | O48: 99997.2 | Q48: 0 | R48: 13345 | S48: 560 | T48: 3668 | V48: 17573 | X48: 117570.2 | AA48: =VLOOKUP($D48,'Nursery detail'!C:AF,17,FALSE)/$AA$1 -> 7624.238769 | AB48: =VLOOKUP($D48,'Nursery detail'!C:AG,18,FALSE)/$AA$1 -> 7677.617919 | AC48: =VLOOKUP($D48,'Nursery detail'!C:AH,19,FALSE)/$AA$1 -> 6939.809978 | AD48: 22241.66667 | AE48: =VLOOKUP($D48,'Nursery detail'!C:AF,21,FALSE)/$AE$1 -> 0 | AF48: =VLOOKUP($D48,'Nursery detail'!C:AG,22,FALSE)/$AE$1 -> 199.3543586 | AG48: =VLOOKUP($D48,'Nursery detail'!C:AH,23,FALSE)/$AE$1 -> 2600.645641 | AH48: 2800 | AI48: =VLOOKUP($D48,'Nursery detail'!$C:$AF,25,FALSE)/$AI$1 -> 7763.361612 | AJ48: =VLOOKUP($D48,'Nursery detail'!$C:$AF,26,FALSE)/$AI$1 -> 3256.378585 | AK48: =VLOOKUP($D48,'Nursery detail'!$C:$AF,27,FALSE)/$AI$1 -> 7320.259803 | AL48: 18340
A49: Reigate Primary School | C49: M | D49: 2020 | E49: 7920 | F49: 3360 | G49: 4320 | H49: 15600 | J49: 0 | K49: 0 | L49: 0 | M49: 0 | O49: 65988 | Q49: 0 | R49: 2346 | S49: 1950 | T49: 275 | V49: 4571 | X49: 70559 | AA49: =VLOOKUP($D49,'Nursery detail'!C:AF,17,FALSE)/$AA$1 -> 1317.377189 | AB49: =VLOOKUP($D49,'Nursery detail'!C:AG,18,FALSE)/$AA$1 -> 1464.59628 | AC49: =VLOOKUP($D49,'Nursery detail'!C:AH,19,FALSE)/$AA$1 -> 1128.026531 | AD49: 3910 | AE49: =VLOOKUP($D49,'Nursery detail'!C:AF,21,FALSE)/$AE$1 -> 3424.964326 | AF49: =VLOOKUP($D49,'Nursery detail'!C:AG,22,FALSE)/$AE$1 -> 3382.856539 | AG49: =VLOOKUP($D49,'Nursery detail'!C:AH,23,FALSE)/$AE$1 -> 2942.179135 | AH49: 9750 | AI49: =VLOOKUP($D49,'Nursery detail'!$C:$AF,25,FALSE)/$AI$1 -> 533.2926331 | AJ49: =VLOOKUP($D49,'Nursery detail'!$C:$AF,26,FALSE)/$AI$1 -> 0 | AK49: =VLOOKUP($D49,'Nursery detail'!$C:$AF,27,FALSE)/$AI$1 -> 841.7073669 | AL49: 1375
A50: St Alban's Catholic Primary School | C50: M | D50: 3543 | E50: 14940 | F50: 14070 | G50: 14040 | H50: 43050 | J50: 0 | K50: 0 | L50: 0 | M50: 0 | O50: 182101.5 | Q50: 0 | R50: 8418 | S50: 2070 | T50: 1894 | V50: 12382 | X50: 194483.5 | AA50: =VLOOKUP($D50,'Nursery detail'!C:AF,17,FALSE)/$AA$1 -> 4725.68651 | AB50: =VLOOKUP($D50,'Nursery detail'!C:AG,18,FALSE)/$AA$1 -> 4925.417052 | AC50: =VLOOKUP($D50,'Nursery detail'!C:AH,19,FALSE)/$AA$1 -> 4378.896438 | AD50: 14030 | AE50: =VLOOKUP($D50,'Nursery detail'!C:AF,21,FALSE)/$AE$1 -> 3881.349795 | AF50: =VLOOKUP($D50,'Nursery detail'!C:AG,22,FALSE)/$AE$1 -> 3021.009777 | AG50: =VLOOKUP($D50,'Nursery detail'!C:AH,23,FALSE)/$AE$1 -> 3447.640429 | AH50: 10350 | AI50: =VLOOKUP($D50,'Nursery detail'!$C:$AF,25,FALSE)/$AI$1 -> 3372.01144 | AJ50: =VLOOKUP($D50,'Nursery detail'!$C:$AF,26,FALSE)/$AI$1 -> 2476.645585 | AK50: =VLOOKUP($D50,'Nursery detail'!$C:$AF,27,FALSE)/$AI$1 -> 3621.342975 | AL50: 9470
A51: St Chad's Church of England (Controlled) Nursery and Infant School | C51: M | D51: 3158 | E51: 3600 | F51: 2730 | G51: 2340 | H51: 8670 | J51: 0 | K51: 0 | L51: 0 | M51: 0 | O51: 36674.1 | Q51: 0 | R51: 4915 | S51: 320 | T51: 1652 | V51: 6887 | X51: 43561.1 | AA51: =VLOOKUP($D51,'Nursery detail'!C:AF,17,FALSE)/$AA$1 -> 2792.0215 | AB51: =VLOOKUP($D51,'Nursery detail'!C:AG,18,FALSE)/$AA$1 -> 2908.355729 | AC51: =VLOOKUP($D51,'Nursery detail'!C:AH,19,FALSE)/$AA$1 -> 2491.289438 | AD51: 8191.666667 | AE51: =VLOOKUP($D51,'Nursery detail'!C:AF,21,FALSE)/$AE$1 -> 0 | AF51: =VLOOKUP($D51,'Nursery detail'!C:AG,22,FALSE)/$AE$1 -> 0 | AG51: =VLOOKUP($D51,'Nursery detail'!C:AH,23,FALSE)/$AE$1 -> 1600 | AH51: 1600 | AI51: =VLOOKUP($D51,'Nursery detail'!$C:$AF,25,FALSE)/$AI$1 -> 2649.407549 | AJ51: =VLOOKUP($D51,'Nursery detail'!$C:$AF,26,FALSE)/$AI$1 -> 2879.790814 | AK51: =VLOOKUP($D51,'Nursery detail'!$C:$AF,27,FALSE)/$AI$1 -> 2730.801637 | AL51: 8260
A52: St Mary's Catholic Primary School | C52: M | D52: 3528 | E52: 9540 | F52: 6090 | G52: 6660 | H52: 22290 | J52: 0 | K52: 0 | L52: 0 | M52: 0 | O52: 94286.7 | Q52: 0 | R52: 3359 | S52: 1660 | T52: 2314 | V52: 7333 | X52: 101619.7 | AA52: =VLOOKUP($D52,'Nursery detail'!C:AF,17,FALSE)/$AA$1 -> 1878.189005 | AB52: =VLOOKUP($D52,'Nursery detail'!C:AG,18,FALSE)/$AA$1 -> 1117.969646 | AC52: =VLOOKUP($D52,'Nursery detail'!C:AH,19,FALSE)/$AA$1 -> 2602.174682 | AD52: 5598.333333 | AE52: =VLOOKUP($D52,'Nursery detail'!C:AF,21,FALSE)/$AE$1 -> 2670.008062 | AF52: =VLOOKUP($D52,'Nursery detail'!C:AG,22,FALSE)/$AE$1 -> 4045.162591 | AG52: =VLOOKUP($D52,'Nursery detail'!C:AH,23,FALSE)/$AE$1 -> 1584.829347 | AH52: 8300 | AI52: =VLOOKUP($D52,'Nursery detail'!$C:$AF,25,FALSE)/$AI$1 -> 3849.575542 | AJ52: =VLOOKUP($D52,'Nursery detail'!$C:$AF,26,FALSE)/$AI$1 -> 4192.438972 | AK52: =VLOOKUP($D52,'Nursery detail'!$C:$AF,27,FALSE)/$AI$1 -> 3527.985486 | AL52: 11570
A53: Village Primary School | C53: M | D53: 3546 | E53: 13320 | F53: 12824 | G53: 12960 | H53: 39104 | J53: 0 | K53: 0 | L53: 0 | M53: 0 | O53: 165409.92 | Q53: 0 | R53: 20052 | S53: 948 | T53: 3385 | V53: 24385 | X53: 189794.92 | AA53: =VLOOKUP($D53,'Nursery detail'!C:AF,17,FALSE)/$AA$1 -> 11470.13946 | AB53: =VLOOKUP($D53,'Nursery detail'!C:AG,18,FALSE)/$AA$1 -> 12068.74943 | AC53: =VLOOKUP($D53,'Nursery detail'!C:AH,19,FALSE)/$AA$1 -> 9881.111113 | AD53: 33420 | AE53: =VLOOKUP($D53,'Nursery detail'!C:AF,21,FALSE)/$AE$1 -> 1041.717714 | AF53: =VLOOKUP($D53,'Nursery detail'!C:AG,22,FALSE)/$AE$1 -> 482.2767196 | AG53: =VLOOKUP($D53,'Nursery detail'!C:AH,23,FALSE)/$AE$1 -> 3216.005566 | AH53: 4740 | AI53: =VLOOKUP($D53,'Nursery detail'!$C:$AF,25,FALSE)/$AI$1 -> 6442.903974 | AJ53: =VLOOKUP($D53,'Nursery detail'!$C:$AF,26,FALSE)/$AI$1 -> 4353.313496 | AK53: =VLOOKUP($D53,'Nursery detail'!$C:$AF,27,FALSE)/$AI$1 -> 6128.78253 | AL53: 16925
A54: Walter Evans Church of England (Aided) Primary School | C54: M | D54: 3530 | E54: 8640 | F54: 10290 | G54: 9000 | H54: 27930 | J54: 0 | K54: 0 | L54: 0 | M54: 0 | O54: 118143.9 | Q54: 0 | R54: 394 | S54: 199 | T54: 90 | V54: 683 | X54: 118826.9 | AA54: =VLOOKUP($D54,'Nursery detail'!C:AF,17,FALSE)/$AA$1 -> 294.9101796 | AB54: =VLOOKUP($D54,'Nursery detail'!C:AG,18,FALSE)/$AA$1 -> 0 | AC54: =VLOOKUP($D54,'Nursery detail'!C:AH,19,FALSE)/$AA$1 -> 361.756487 | AD54: 656.6666667 | AE54: =VLOOKUP($D54,'Nursery detail'!C:AF,21,FALSE)/$AE$1 -> 451.8442623 | AF54: =VLOOKUP($D54,'Nursery detail'!C:AG,22,FALSE)/$AE$1 -> 147.5409836 | AG54: =VLOOKUP($D54,'Nursery detail'!C:AH,23,FALSE)/$AE$1 -> 395.6147541 | AH54: 995 | AI54: =VLOOKUP($D54,'Nursery detail'!$C:$AF,25,FALSE)/$AI$1 -> 111.878453 | AJ54: =VLOOKUP($D54,'Nursery detail'!$C:$AF,26,FALSE)/$AI$1 -> 0 | AK54: =VLOOKUP($D54,'Nursery detail'!$C:$AF,27,FALSE)/$AI$1 -> 338.121547 | AL54: 450
A55: Wyndham Primary Academy | C55: M | D55: 2007 | E55: 9360 | F55: 10080 | G55: 10800 | H55: 30240 | J55: 0 | K55: 0 | L55: 0 | M55: 0 | O55: 127915.2 | Q55: 0 | R55: 15019 | S55: 1001 | T55: 1105 | V55: 17125 | X55: 145040.2 | AA55: =VLOOKUP($D55,'Nursery detail'!C:AF,17,FALSE)/$AA$1 -> 8544.452728 | AB55: =VLOOKUP($D55,'Nursery detail'!C:AG,18,FALSE)/$AA$1 -> 8662.284031 | AC55: =VLOOKUP($D55,'Nursery detail'!C:AH,19,FALSE)/$AA$1 -> 7824.929908 | AD55: 25031.66667 | AE55: =VLOOKUP($D55,'Nursery detail'!C:AF,21,FALSE)/$AE$1 -> 1389.756698 | AF55: =VLOOKUP($D55,'Nursery detail'!C:AG,22,FALSE)/$AE$1 -> 1068.053759 | AG55: =VLOOKUP($D55,'Nursery detail'!C:AH,23,FALSE)/$AE$1 -> 2547.189543 | AH55: 5005 | AI55: =VLOOKUP($D55,'Nursery detail'!$C:$AF,25,FALSE)/$AI$1 -> 2710.974745 | AJ55: =VLOOKUP($D55,'Nursery detail'!$C:$AF,26,FALSE)/$AI$1 -> 694.4780984 | AK55: =VLOOKUP($D55,'Nursery detail'!$C:$AF,27,FALSE)/$AI$1 -> 2119.547156 | AL55: 5525
A57: Academy School sub-total | E57: 129600 | F57: 105644 | G57: 114300 | H57: 349544 | J57: 0 | K57: 0 | L57: 0 | M57: 0 | O57: 1478571.12 | Q57: 0 | R57: 111847 | S57: 18024 | T57: 20107 | V57: 149978 | X57: 1628549.12 | AA57: =SUM(AA40:AA56) -> 64486.19978 | AB57: =SUM(AB40:AB56) -> 63794.62867 | AC57: 58130.83821 | AD57: 186411.6667 | AE57: =SUM(AE40:AE56) -> 27161.10102 | AF57: =SUM(AF40:AF56) -> 26041.83202 | AG57: =SUM(AG40:AG56) -> 36917.06696 | AH57: =SUM(AH40:AH56) -> 90120 | AI57: =SUM(AI40:AI56) -> 37724.5188 | AJ57: =SUM(AJ40:AJ56) -> 26395.40214 | AK57: =SUM(AK40:AK56) -> 36415.07906 | AL57: =SUM(AL40:AL56) -> 100535
A59: Total Schools | E59: 470952 | F59: 405661 | G59: 408756 | H59: 1285369 | J59: 700000 | K59: 399627 | L59: 68853 | M59: 1168480 | O59: 5437110.87 | Q59: 0 | R59: 360013 | S59: 62110 | T59: 70053 | V59: 492176 | X59: =X36+X57 -> 7099860.87 | AA59: =AA36+AA57 -> 201368.2118 | AB59: =AB36+AB57 -> 210032.7611 | AC59: 188620.6938 | AD59: 600021.6667 | AE59: =AE36+AE57 -> 97311.23127 | AF59: 88762.83748 | AG59: 124475.9313 | AH59: 310550 | AI59: =AI36+AI57 -> 120266.849 | AJ59: 114570.8731 | AK59: 115427.2779 | AL59: 350265
E61: 470952 | F61: 405661 | G61: 408756 | H61: 1285369
A63: Provider | B63: Post Code | D63: OFSTED ID | E63: Summer | F63: Autumn | G63: Spring | H63: Total Forecast Hours | J63: Standalone Lump Sum | K63: Standalone Supplement | L63: Business Rates (NNDR) | M63: Total | O63: Base Costs | Q63: FSM | R63: IMD 20% Most Deprived | S63: IMD 20% to 40% Deprived | T63: EAL | V63: Total Deprivation | X63: Grand Total
A64: Adjustment to align hours with Spring 2019 actuals / any growth | C64: P | G64: 35359 | H64: 35359 | O64: 149568.57 | Q64: 0 | R64: 6124 | S64: 1748 | T64: 722 | V64: 8594 | X64: 158162.57 | AC64: =R64/AA1 -> 10206.66667 | AD64: =SUM(AA64:AC64) -> 10206.66667 | AG64: =S64/AE1 -> 8740 | AH64: =SUM(AG64) -> 8740 | AK64: =T64/AI1 -> 3610 | AL64: =SUM(AK64) -> 3610
A65: Ace Nursery | B65: DE23 8DH | C65: D | D65: 206189 | E65: 10800 | F65: 10500 | G65: 10440 | H65: 31740 | J65: 0 | K65: 0 | L65: 0 | M65: 0 | O65: 134260.2 | Q65: 0 | R65: 12794 | S65: 1400 | T65: 2593 | V65: 16787 | X65: 151047.2 | AA65: =VLOOKUP($D65,'Nursery detail'!C:AF,17,FALSE)/$AA$1 -> 7817.440971 | AB65: =VLOOKUP($D65,'Nursery detail'!C:AG,18,FALSE)/$AA$1 -> 6878.158743 | AC65: =VLOOKUP($D65,'Nursery detail'!C:AH,19,FALSE)/$AA$1 -> 6627.733619 | AD65: 21323.33333 | AE65: =VLOOKUP($D65,'Nursery detail'!C:AF,21,FALSE)/$AE$1 -> 1854.464878 | AF65: =VLOOKUP($D65,'Nursery detail'!C:AG,22,FALSE)/$AE$1 -> 2378.930185 | AG65: =VLOOKUP($D65,'Nursery detail'!C:AH,23,FALSE)/$AE$1 -> 2766.604937 | AH65: =SUM(AE65:AG65) -> 7000 | AI65: =VLOOKUP($D65,'Nursery detail'!$C:$AF,25,FALSE)/$AI$1 -> 5489.065188 | AJ65: =VLOOKUP($D65,'Nursery detail'!$C:$AF,26,FALSE)/$AI$1 -> 3719.575395 | AK65: =VLOOKUP($D65,'Nursery detail'!$C:$AF,27,FALSE)/$AI$1 -> 3756.359417 | AL65: =SUM(AI65:AK65) -> 12965
A66: Best Start Sinfin | B66: DE24 9HW | C66: D | D66: EY467568 | E66: 3060 | F66: 9030 | G66: 3060 | H66: 15150 | J66: 0 | K66: 0 | L66: 0 | M66: 0 | O66: 64084.5 | Q66: 0 | R66: 5971 | S66: 1050 | T66: 843 | V66: 7864 | X66: 71948.5 | AA66: =VLOOKUP($D66,'Nursery detail'!C:AF,17,FALSE)/$AA$1 -> 3745.820667 | AB66: =VLOOKUP($D66,'Nursery detail'!C:AG,18,FALSE)/$AA$1 -> 3745.820667 | AC66: =VLOOKUP($D66,'Nursery detail'!C:AH,19,FALSE)/$AA$1 -> 2460.025332 | AD66: 9951.666667 | AE66: =VLOOKUP($D66,'Nursery detail'!C:AF,21,FALSE)/$AE$1 -> 2053.432511 | AF66: =VLOOKUP($D66,'Nursery detail'!C:AG,22,FALSE)/$AE$1 -> 2053.432511 | AG66: =VLOOKUP($D66,'Nursery detail'!C:AH,23,FALSE)/$AE$1 -> 1143.134978 | AH66: 5250 | AI66: =VLOOKUP($D66,'Nursery detail'!$C:$AF,25,FALSE)/$AI$1 -> 2048.865625 | AJ66: =VLOOKUP($D66,'Nursery detail'!$C:$AF,26,FALSE)/$AI$1 -> 569.1293404 | AK66: =VLOOKUP($D66,'Nursery detail'!$C:$AF,27,FALSE)/$AI$1 -> 1597.005034 | AL66: =SUM(AI66:AK66) -> 4215
A67: Derwent Stepping Stones- St Marks Rd | B67: DE21 6AH | C67: P | D67: EY330097 | E67: 14400 | F67: 12180 | G67: 10440 | H67: 37020 | J67: 0 | K67: 0 | L67: 0 | M67: 0 | O67: 156594.6 | Q67: 0 | R67: 13642 | S67: 2122 | T67: 1076 | V67: 16840 | X67: 173434.6 | AA67: =VLOOKUP($D67,'Nursery detail'!C:AF,17,FALSE)/$AA$1 -> 6659.700243 | AB67: =VLOOKUP($D67,'Nursery detail'!C:AG,18,FALSE)/$AA$1 -> 8375.532786 | AC67: =VLOOKUP($D67,'Nursery detail'!C:AH,19,FALSE)/$AA$1 -> 7701.433638 | AD67: 22736.66667 | AE67: =VLOOKUP($D67,'Nursery detail'!C:AF,21,FALSE)/$AE$1 -> 3859.442537 | AF67: =VLOOKUP($D67,'Nursery detail'!C:AG,22,FALSE)/$AE$1 -> 3266.984253 | AG67: =VLOOKUP($D67,'Nursery detail'!C:AH,23,FALSE)/$AE$1 -> 3483.573209 | AH67: 10610 | AI67: =VLOOKUP($D67,'Nursery detail'!$C:$AF,25,FALSE)/$AI$1 -> 2400.156535 | AJ67: =VLOOKUP($D67,'Nursery detail'!$C:$AF,26,FALSE)/$AI$1 -> 2031.711453 | AK67: =VLOOKUP($D67,'Nursery detail'!$C:$AF,27,FALSE)/$AI$1 -> 948.1320115 | AL67: 5380
A68: Fun Time Nursery Limited | B68: DE23 8DD | C68: P | D68: EY478943 | E68: 9000 | F68: 5250 | G68: 8100 | H68: 22350 | J68: 0 | K68: 0 | L68: 0 | M68: 0 | O68: 94540.5 | Q68: 0 | R68: 7202 | S68: 853 | T68: 1438 | V68: 9493 | X68: 104033.5 | AA68: =VLOOKUP($D68,'Nursery detail'!C:AF,17,FALSE)/$AA$1 -> 3899.842661 | AB68: =VLOOKUP($D68,'Nursery detail'!C:AG,18,FALSE)/$AA$1 -> 4924.900119 | AC68: =VLOOKUP($D68,'Nursery detail'!C:AH,19,FALSE)/$AA$1 -> 3178.590554 | AD68: 12003.33333 | AE68: =VLOOKUP($D68,'Nursery detail'!C:AF,21,FALSE)/$AE$1 -> 1446.802293 | AF68: =VLOOKUP($D68,'Nursery detail'!C:AG,22,FALSE)/$AE$1 -> 1050.575756 | AG68: =VLOOKUP($D68,'Nursery detail'!C:AH,23,FALSE)/$AE$1 -> 1767.621951 | AH68: 4265 | AI68: =VLOOKUP($D68,'Nursery detail'!$C:$AF,25,FALSE)/$AI$1 -> 3879.412208 | AJ68: =VLOOKUP($D68,'Nursery detail'!$C:$AF,26,FALSE)/$AI$1 -> 383.2628944 | AK68: =VLOOKUP($D68,'Nursery detail'!$C:$AF,27,FALSE)/$AI$1 -> 2927.324897 | AL68: 7190
A69: Little Owls Playgroup | B69: DE22 4FN | C69: P | D69: EY492973 | E69: 11700 | F69: 10920 | G69: 10620 | H69: 33240 | J69: 0 | K69: 0 | L69: 0 | M69: 0 | O69: 140605.2 | Q69: 0 | R69: 1721 | S69: 5013 | T69: 1410 | V69: 8144 | X69: 148749.2 | AA69: =VLOOKUP($D69,'Nursery detail'!C:AF,17,FALSE)/$AA$1 -> 1184.48271 | AB69: =VLOOKUP($D69,'Nursery detail'!C:AG,18,FALSE)/$AA$1 -> 308.2425765 | AC69: =VLOOKUP($D69,'Nursery detail'!C:AH,19,FALSE)/$AA$1 -> 1375.608047 | AD69: 2868.333333 | AE69: =VLOOKUP($D69,'Nursery detail'!C:AF,21,FALSE)/$AE$1 -> 9181.55744 | AF69: =VLOOKUP($D69,'Nursery detail'!C:AG,22,FALSE)/$AE$1 -> 8647.181081 | AG69: =VLOOKUP($D69,'Nursery detail'!C:AH,23,FALSE)/$AE$1 -> 7236.261479 | AH69: 25065 | AI69: =VLOOKUP($D69,'Nursery detail'!$C:$AF,25,FALSE)/$AI$1 -> 2631.954127 | AJ69: =VLOOKUP($D69,'Nursery detail'!$C:$AF,26,FALSE)/$AI$1 -> 3098.464515 | AK69: =VLOOKUP($D69,'Nursery detail'!$C:$AF,27,FALSE)/$AI$1 -> 1319.581358 | AL69: 7050
A70: Little Scholars Private Day Nursery(1) Sunnyhill | B70: DE23 1GQ | C70: D | D70: EY550368 | E70: 6480 | F70: 5040 | G70: 5400 | H70: 16920 | J70: 0 | K70: 0 | L70: 0 | M70: 0 | O70: 71571.6 | Q70: 0 | R70: 2103 | S70: 963 | T70: 924 | V70: 3990 | X70: 75561.6 | AA70: =VLOOKUP($D70,'Nursery detail'!C:AF,17,FALSE)/$AA$1 -> 1018.287608 | AB70: =VLOOKUP($D70,'Nursery detail'!C:AG,18,FALSE)/$AA$1 -> 1478.488885 | AC70: =VLOOKUP($D70,'Nursery detail'!C:AH,19,FALSE)/$AA$1 -> 1008.223506 | AD70: 3505 | AE70: =VLOOKUP($D70,'Nursery detail'!C:AF,21,FALSE)/$AE$1 -> 1498.045285 | AF70: =VLOOKUP($D70,'Nursery detail'!C:AG,22,FALSE)/$AE$1 -> 1695.763656 | AG70: =VLOOKUP($D70,'Nursery detail'!C:AH,23,FALSE)/$AE$1 -> 1621.191059 | AH70: 4815 | AI70: =VLOOKUP($D70,'Nursery detail'!$C:$AF,25,FALSE)/$AI$1 -> 1318.098761 | AJ70: =VLOOKUP($D70,'Nursery detail'!$C:$AF,26,FALSE)/$AI$1 -> 1552.824142 | AK70: =VLOOKUP($D70,'Nursery detail'!$C:$AF,27,FALSE)/$AI$1 -> 1749.077097 | AL70: 4620
A71: The Orange Tree Day Nursery @ Derby | C71: D | D71: EY563570 | E71: 3600 | F71: 7770 | G71: 7920 | H71: 19290 | J71: 0 | K71: 0 | L71: 0 | M71: 0 | O71: 81596.7 | Q71: 0 | R71: 0 | S71: 0 | T71: 0 | V71: 0 | X71: 81596.7 | AA71: =VLOOKUP($D71,'Nursery detail'!C:AF,17,FALSE)/$AA$1 -> 0 | AB71: =VLOOKUP($D71,'Nursery detail'!C:AG,18,FALSE)/$AA$1 -> 0 | AC71: =VLOOKUP($D71,'Nursery detail'!C:AH,19,FALSE)/$AA$1 -> 0 | AD71: 0 | AE71: =VLOOKUP($D71,'Nursery detail'!C:AF,21,FALSE)/$AE$1 -> 0 | AF71: =VLOOKUP($D71,'Nursery detail'!C:AG,22,FALSE)/$AE$1 -> 0 | AG71: =VLOOKUP($D71,'Nursery detail'!C:AH,23,FALSE)/$AE$1 -> 0 | AH71: 0 | AI71: =VLOOKUP($D71,'Nursery detail'!$C:$AF,25,FALSE)/$AI$1 -> 0 | AJ71: =VLOOKUP($D71,'Nursery detail'!$C:$AF,26,FALSE)/$AI$1 -> 0 | AK71: =VLOOKUP($D71,'Nursery detail'!$C:$AF,27,FALSE)/$AI$1 -> 0 | AL71: 0
A72: Shelton Lock Pre-School | B72: DE24 9AD | C72: P | D72: EY541492 | E72: 1800 | F72: 2520 | G72: 2700 | H72: 7020 | J72: 0 | K72: 0 | L72: 0 | M72: 0 | O72: 29694.6 | Q72: 0 | R72: 1487 | S72: 563 | T72: 54 | V72: 2104 | X72: 31798.6 | AA72: =VLOOKUP($D72,'Nursery detail'!C:AF,17,FALSE)/$AA$1 -> 805.7563561 | AB72: =VLOOKUP($D72,'Nursery detail'!C:AG,18,FALSE)/$AA$1 -> 783.3742351 | AC72: =VLOOKUP($D72,'Nursery detail'!C:AH,19,FALSE)/$AA$1 -> 889.2027421 | AD72: 2478.333333 | AE72: =VLOOKUP($D72,'Nursery detail'!C:AF,21,FALSE)/$AE$1 -> 993.9530917 | AF72: =VLOOKUP($D72,'Nursery detail'!C:AG,22,FALSE)/$AE$1 -> 966.3432836 | AG72: =VLOOKUP($D72,'Nursery detail'!C:AH,23,FALSE)/$AE$1 -> 854.7036247 | AH72: 2815 | AI72: =VLOOKUP($D72,'Nursery detail'!$C:$AF,25,FALSE)/$AI$1 -> 13.47071584 | AJ72: =VLOOKUP($D72,'Nursery detail'!$C:$AF,26,FALSE)/$AI$1 -> 13.47071584 | AK72: =VLOOKUP($D72,'Nursery detail'!$C:$AF,27,FALSE)/$AI$1 -> 243.0585683 | AL72: 270
A73: Sunny Days Nursery | B73: DE21 4AA | C73: P | D73: EY484523 | E73: 7380 | F73: 7770 | G73: 6480 | H73: 21630 | J73: 0 | K73: 0 | L73: 0 | M73: 0 | O73: 91494.9 | Q73: 0 | R73: 1456 | S73: 1494 | T73: 102 | V73: 3052 | X73: 94546.9 | AA73: =VLOOKUP($D73,'Nursery detail'!C:AF,17,FALSE)/$AA$1 -> 895.6450129 | AB73: =VLOOKUP($D73,'Nursery detail'!C:AG,18,FALSE)/$AA$1 -> 769.58954 | AC73: =VLOOKUP($D73,'Nursery detail'!C:AH,19,FALSE)/$AA$1 -> 761.4321138 | AD73: 2426.666667 | AE73: =VLOOKUP($D73,'Nursery detail'!C:AF,21,FALSE)/$AE$1 -> 2211.30039 | AF73: =VLOOKUP($D73,'Nursery detail'!C:AG,22,FALSE)/$AE$1 -> 2479.347489 | AG73: =VLOOKUP($D73,'Nursery detail'!C:AH,23,FALSE)/$AE$1 -> 2779.352121 | AH73: 7470 | AI73: =VLOOKUP($D73,'Nursery detail'!$C:$AF,25,FALSE)/$AI$1 -> 25.01844229 | AJ73: =VLOOKUP($D73,'Nursery detail'!$C:$AF,26,FALSE)/$AI$1 -> 25.01844229 | AK73: =VLOOKUP($D73,'Nursery detail'!$C:$AF,27,FALSE)/$AI$1 -> 459.9631154 | AL73: 510
A74: Tiny Tots Nursery | B74: DE24 0JP | C74: P | D74: EY497405 | E74: 9000 | F74: 10500 | G74: 9000 | H74: 28500 | J74: 0 | K74: 0 | L74: 0 | M74: 0 | O74: 120555 | Q74: 0 | R74: 6917 | S74: 2270 | T74: 16 | V74: 9203 | X74: 129758 | AA74: =VLOOKUP($D74,'Nursery detail'!C:AF,17,FALSE)/$AA$1 -> 4087.082326 | AB74: =VLOOKUP($D74,'Nursery detail'!C:AG,18,FALSE)/$AA$1 -> 3466.480072 | AC74: =VLOOKUP($D74,'Nursery detail'!C:AH,19,FALSE)/$AA$1 -> 3974.770935 | AD74: 11528.33333 | AE74: =VLOOKUP($D74,'Nursery detail'!C:AF,21,FALSE)/$AE$1 -> 3546.19556 | AF74: =VLOOKUP($D74,'Nursery detail'!C:AG,22,FALSE)/$AE$1 -> 4710.332469 | AG74: =VLOOKUP($D74,'Nursery detail'!C:AH,23,FALSE)/$AE$1 -> 3093.471972 | AH74: 11350 | AI74: =VLOOKUP($D74,'Nursery detail'!$C:$AF,25,FALSE)/$AI$1 -> 4.191027189 | AJ74: =VLOOKUP($D74,'Nursery detail'!$C:$AF,26,FALSE)/$AI$1 -> 4.191027189 | AK74: =VLOOKUP($D74,'Nursery detail'!$C:$AF,27,FALSE)/$AI$1 -> 71.61794562 | AL74: 80
A75: Alvaston Achievers | B75: DE24 0PU | C75: P | D75: EY545705 | E75: 3602 | F75: 3602 | G75: 3602 | H75: 10806 | J75: 0 | K75: 0 | L75: 0 | M75: 0 | O75: 45709.38 | Q75: 0 | R75: 2785 | S75: 1072 | T75: 0 | V75: 3857 | X75: 49566.38 | AA75: =VLOOKUP($D75,'Nursery detail'!C:AF,17,FALSE)/$AA$1 -> 1399.845725 | AB75: =VLOOKUP($D75,'Nursery detail'!C:AG,18,FALSE)/$AA$1 -> 540.3034903 | AC75: =VLOOKUP($D75,'Nursery detail'!C:AH,19,FALSE)/$AA$1 -> 2701.517451 | AD75: 4641.666667 | AE75: =VLOOKUP($D75,'Nursery detail'!C:AF,21,FALSE)/$AE$1 -> 1760.505312 | AF75: =VLOOKUP($D75,'Nursery detail'!C:AG,22,FALSE)/$AE$1 -> 2699.621016 | AG75: =VLOOKUP($D75,'Nursery detail'!C:AH,23,FALSE)/$AE$1 -> 899.8736721 | AH75: 5360 | AI75: =VLOOKUP($D75,'Nursery detail'!$C:$AF,25,FALSE)/$AI$1 -> 0 | AJ75: =VLOOKUP($D75,'Nursery detail'!$C:$AF,26,FALSE)/$AI$1 -> 0 | AK75: =VLOOKUP($D75,'Nursery detail'!$C:$AF,27,FALSE)/$AI$1 -> 0 | AL75: 0
A76: An-Noor Nursery | B76: DE23 8FB | C76: D | D76: EY362920 | E76: 2970 | F76: 2970 | G76: 2970 | H76: 8910 | J76: 0 | K76: 0 | L76: 0 | M76: 0 | O76: 37689.3 | Q76: 0 | R76: 4648 | S76: 474 | T76: 1137 | V76: 6259 | X76: 43948.3 | AA76: =VLOOKUP($D76,'Nursery detail'!C:AF,17,FALSE)/$AA$1 -> 2686.977688 | AB76: =VLOOKUP($D76,'Nursery detail'!C:AG,18,FALSE)/$AA$1 -> 2639.837728 | AC76: =VLOOKUP($D76,'Nursery detail'!C:AH,19,FALSE)/$AA$1 -> 2419.851251 | AD76: 7746.666667 | AE76: =VLOOKUP($D76,'Nursery detail'!C:AF,21,FALSE)/$AE$1 -> 141.3831198 | AF76: =VLOOKUP($D76,'Nursery detail'!C:AG,22,FALSE)/$AE$1 -> 329.8939461 | AG76: =VLOOKUP($D76,'Nursery detail'!C:AH,23,FALSE)/$AE$1 -> 1898.722934 | AH76: 2370 | AI76: =VLOOKUP($D76,'Nursery detail'!$C:$AF,25,FALSE)/$AI$1 -> 1695.88215 | AJ76: =VLOOKUP($D76,'Nursery detail'!$C:$AF,26,FALSE)/$AI$1 -> 1978.529175 | AK76: =VLOOKUP($D76,'Nursery detail'!$C:$AF,27,FALSE)/$AI$1 -> 2010.588675 | AL76: 5685
A77: Becket Sure Start Children's Centre | B77: DE22 3WR | C77: D | D77: EY380753 | E77: 5325 | F77: 5325 | G77: 5325 | H77: 15975 | J77: 0 | K77: 0 | L77: 0 | M77: 0 | O77: 67574.25 | Q77: 0 | R77: 4305 | S77: 1674 | T77: 1086 | V77: 7065 | X77: 74639.25 | AA77: =VLOOKUP($D77,'Nursery detail'!C:AF,17,FALSE)/$AA$1 -> 1996.809127 | AB77: =VLOOKUP($D77,'Nursery detail'!C:AG,18,FALSE)/$AA$1 -> 2791.528536 | AC77: =VLOOKUP($D77,'Nursery detail'!C:AH,19,FALSE)/$AA$1 -> 2386.662337 | AD77: 7175 | AE77: =VLOOKUP($D77,'Nursery detail'!C:AF,21,FALSE)/$AE$1 -> 3328.645226 | AF77: =VLOOKUP($D77,'Nursery detail'!C:AG,22,FALSE)/$AE$1 -> 2533.775371 | AG77: =VLOOKUP($D77,'Nursery detail'!C:AH,23,FALSE)/$AE$1 -> 2507.579403 | AH77: 8370 | AI77: =VLOOKUP($D77,'Nursery detail'!$C:$AF,25,FALSE)/$AI$1 -> 2059.972957 | AJ77: =VLOOKUP($D77,'Nursery detail'!$C:$AF,26,FALSE)/$AI$1 -> 2196.370656 | AK77: =VLOOKUP($D77,'Nursery detail'!$C:$AF,27,FALSE)/$AI$1 -> 1173.656387 | AL77: 5430
A78: Bizzy Kidz | B78: DE23 6AP | C78: D | D78: EY450983 | E78: 16852 | F78: 16852 | G78: 16852 | H78: 50556 | J78: 0 | K78: 0 | L78: 0 | M78: 0 | O78: 213851.88 | Q78: 0 | R78: 10869 | S78: 2989 | T78: 198 | V78: 14056 | X78: 227907.88 | AA78: =VLOOKUP($D78,'Nursery detail'!C:AF,17,FALSE)/$AA$1 -> 5521.455108 | AB78: =VLOOKUP($D78,'Nursery detail'!C:AG,18,FALSE)/$AA$1 -> 7853.514047 | AC78: =VLOOKUP($D78,'Nursery detail'!C:AH,19,FALSE)/$AA$1 -> 4740.030845 | AD78: 18115 | AE78: =VLOOKUP($D78,'Nursery detail'!C:AF,21,FALSE)/$AE$1 -> 5566.172146 | AF78: =VLOOKUP($D78,'Nursery detail'!C:AG,22,FALSE)/$AE$1 -> 3708.06893 | AG78: =VLOOKUP($D78,'Nursery detail'!C:AH,23,FALSE)/$AE$1 -> 5670.758924 | AH78: 14945 | AI78: =VLOOKUP($D78,'Nursery detail'!$C:$AF,25,FALSE)/$AI$1 -> 256.3222573 | AJ78: =VLOOKUP($D78,'Nursery detail'!$C:$AF,26,FALSE)/$AI$1 -> 273.8694267 | AK78: =VLOOKUP($D78,'Nursery detail'!$C:$AF,27,FALSE)/$AI$1 -> 459.808316 | AL78: 990
A79: Boulton Lane Park Pre-School Playgroup | B79: DE24 0BD | C79: D | D79: 206124 | E79: 947 | F79: 947 | G79: 947 | H79: 2841 | J79: 0 | K79: 0 | L79: 0 | M79: 0 | O79: 12017.43 | Q79: 0 | R79: 795 | S79: 230 | T79: 0 | V79: 1025 | X79: 13042.43 | AA79: =VLOOKUP($D79,'Nursery detail'!C:AF,17,FALSE)/$AA$1 -> 698.067457 | AB79: =VLOOKUP($D79,'Nursery detail'!C:AG,18,FALSE)/$AA$1 -> 340.4637039 | AC79: =VLOOKUP($D79,'Nursery detail'!C:AH,19,FALSE)/$AA$1 -> 286.4688391 | AD79: 1325 | AE79: =VLOOKUP($D79,'Nursery detail'!C:AF,21,FALSE)/$AE$1 -> 249.5189141 | AF79: =VLOOKUP($D79,'Nursery detail'!C:AG,22,FALSE)/$AE$1 -> 444.4555657 | AG79: =VLOOKUP($D79,'Nursery detail'!C:AH,23,FALSE)/$AE$1 -> 456.0255202 | AH79: 1150 | AI79: =VLOOKUP($D79,'Nursery detail'!$C:$AF,25,FALSE)/$AI$1 -> 0 | AJ79: =VLOOKUP($D79,'Nursery detail'!$C:$AF,26,FALSE)/$AI$1 -> 0 | AK79: =VLOOKUP($D79,'Nursery detail'!$C:$AF,27,FALSE)/$AI$1 -> 0 | AL79: 0
A80: Bramble Brook Pre-School Playgroup | B80: DE3 9HD | C80: D | D80: EY282068 | E80: 5728 | F80: 5728 | G80: 5728 | H80: 17184 | J80: 0 | K80: 0 | L80: 0 | M80: 0 | O80: 72688.32 | Q80: 0 | R80: 654 | S80: 271 | T80: 114 | V80: 1039 | X80: 73727.32 | AA80: =VLOOKUP($D80,'Nursery detail'!C:AF,17,FALSE)/$AA$1 -> 181.8885833 | AB80: =VLOOKUP($D80,'Nursery detail'!C:AG,18,FALSE)/$AA$1 -> 601.6314679 | AC80: =VLOOKUP($D80,'Nursery detail'!C:AH,19,FALSE)/$AA$1 -> 306.4799488 | AD80: 1090 | AE80: =VLOOKUP($D80,'Nursery detail'!C:AF,21,FALSE)/$AE$1 -> 543.9597402 | AF80: =VLOOKUP($D80,'Nursery detail'!C:AG,22,FALSE)/$AE$1 -> 346.5225012 | AG80: =VLOOKUP($D80,'Nursery detail'!C:AH,23,FALSE)/$AE$1 -> 464.5177586 | AH80: 1355 | AI80: =VLOOKUP($D80,'Nursery detail'!$C:$AF,25,FALSE)/$AI$1 -> 180.8567592 | AJ80: =VLOOKUP($D80,'Nursery detail'!$C:$AF,26,FALSE)/$AI$1 -> 34.64821461 | AK80: =VLOOKUP($D80,'Nursery detail'!$C:$AF,27,FALSE)/$AI$1 -> 354.4950262 | AL80: 570
A81: Busy Bees Pre-School | B81: DE22 2HE | C81: D | D81: 206126 | E81: 9727 | F81: 9727 | G81: 9727 | H81: 29181 | J81: 0 | K81: 0 | L81: 0 | M81: 0 | O81: 123435.63 | Q81: 0 | R81: 433 | S81: 340 | T81: 0 | V81: 773 | X81: 124208.63 | AA81: =VLOOKUP($D81,'Nursery detail'!C:AF,17,FALSE)/$AA$1 -> 115.1840424 | AB81: =VLOOKUP($D81,'Nursery detail'!C:AG,18,FALSE)/$AA$1 -> 208.0334659 | AC81: =VLOOKUP($D81,'Nursery detail'!C:AH,19,FALSE)/$AA$1 -> 398.4491584 | AD81: 721.6666667 | AE81: =VLOOKUP($D81,'Nursery detail'!C:AF,21,FALSE)/$AE$1 -> 772.0483227 | AF81: =VLOOKUP($D81,'Nursery detail'!C:AG,22,FALSE)/$AE$1 -> 456.4916386 | AG81: =VLOOKUP($D81,'Nursery detail'!C:AH,23,FALSE)/$AE$1 -> 471.4600386 | AH81: 1700 | AI81: =VLOOKUP($D81,'Nursery detail'!$C:$AF,25,FALSE)/$AI$1 -> 0 | AJ81: =VLOOKUP($D81,'Nursery detail'!$C:$AF,26,FALSE)/$AI$1 -> 0 | AK81: =VLOOKUP($D81,'Nursery detail'!$C:$AF,27,FALSE)/$AI$1 -> 0 | AL81: 0
A82: Busy Bees-Derby, Heatherton | B82: DE23 3TZ | C82: P | D82: 206111 | E82: 17640 | F82: 17010 | G82: 18360 | H82: 53010 | J82: 0 | K82: 0 | L82: 0 | M82: 0 | O82: 224232.3 | Q82: 0 | R82: 1908 | S82: 990 | T82: 71 | V82: 2969 | X82: 227201.3 | AA82: =VLOOKUP($D82,'Nursery detail'!C:AF,17,FALSE)/$AA$1 -> 1345.669672 | AB82: =VLOOKUP($D82,'Nursery detail'!C:AG,18,FALSE)/$AA$1 -> 595.4623721 | AC82: =VLOOKUP($D82,'Nursery detail'!C:AH,19,FALSE)/$AA$1 -> 1238.867956 | AD82: 3180 | AE82: =VLOOKUP($D82,'Nursery detail'!C:AF,21,FALSE)/$AE$1 -> 1874.556766 | AF82: =VLOOKUP($D82,'Nursery detail'!C:AG,22,FALSE)/$AE$1 -> 1831.893638 | AG82: =VLOOKUP($D82,'Nursery detail'!C:AH,23,FALSE)/$AE$1 -> 1243.549596 | AH82: 4950 | AI82: =VLOOKUP($D82,'Nursery detail'!$C:$AF,25,FALSE)/$AI$1 -> 23.85907245 | AJ82: =VLOOKUP($D82,'Nursery detail'!$C:$AF,26,FALSE)/$AI$1 -> 23.85907245 | AK82: =VLOOKUP($D82,'Nursery detail'!$C:$AF,27,FALSE)/$AI$1 -> 307.2818551 | AL82: 355
A83: Carlton Private Day Nursery | B83: DE22 1GQ | C83: P | D83: 206091 | E83: 7642 | F83: 7642 | G83: 7642 | H83: 22926 | J83: 0 | K83: 0 | L83: 0 | M83: 0 | O83: 96976.98 | Q83: 0 | R83: 1556 | S83: 727 | T83: 35 | V83: 2318 | X83: 99294.98 | AA83: =VLOOKUP($D83,'Nursery detail'!C:AF,17,FALSE)/$AA$1 -> 533.9857871 | AB83: =VLOOKUP($D83,'Nursery detail'!C:AG,18,FALSE)/$AA$1 -> 1166.093428 | AC83: =VLOOKUP($D83,'Nursery detail'!C:AH,19,FALSE)/$AA$1 -> 893.2541178 | AD83: 2593.333333 | AE83: =VLOOKUP($D83,'Nursery detail'!C:AF,21,FALSE)/$AE$1 -> 1140.337654 | AF83: =VLOOKUP($D83,'Nursery detail'!C:AG,22,FALSE)/$AE$1 -> 1905.715242 | AG83: =VLOOKUP($D83,'Nursery detail'!C:AH,23,FALSE)/$AE$1 -> 588.9471041 | AH83: 3635 | AI83: =VLOOKUP($D83,'Nursery detail'!$C:$AF,25,FALSE)/$AI$1 -> 11.2538482 | AJ83: =VLOOKUP($D83,'Nursery detail'!$C:$AF,26,FALSE)/$AI$1 -> 11.2538482 | AK83: =VLOOKUP($D83,'Nursery detail'!$C:$AF,27,FALSE)/$AI$1 -> 152.4923036 | AL83: 175
A84: Childcare @ St James Centre | B84: DE23 8LU | C84: P | D84: EY396374 | E84: 4606 | F84: 4606 | G84: 4606 | H84: 13818 | J84: 0 | K84: 0 | L84: 0 | M84: 0 | O84: 58450.14 | Q84: 0 | R84: 7540 | S84: 355 | T84: 1914 | V84: 9809 | X84: 68259.14 | AA84: =VLOOKUP($D84,'Nursery detail'!C:AF,17,FALSE)/$AA$1 -> 4190.111986 | AB84: =VLOOKUP($D84,'Nursery detail'!C:AG,18,FALSE)/$AA$1 -> 4293.625675 | AC84: =VLOOKUP($D84,'Nursery detail'!C:AH,19,FALSE)/$AA$1 -> 4082.929006 | AD84: 12566.66667 | AE84: =VLOOKUP($D84,'Nursery detail'!C:AF,21,FALSE)/$AE$1 -> 415.2846269 | AF84: =VLOOKUP($D84,'Nursery detail'!C:AG,22,FALSE)/$AE$1 -> 116.9601054 | AG84: =VLOOKUP($D84,'Nursery detail'!C:AH,23,FALSE)/$AE$1 -> 1242.755268 | AH84: 1775 | AI84: =VLOOKUP($D84,'Nursery detail'!$C:$AF,25,FALSE)/$AI$1 -> 3610.075072 | AJ84: =VLOOKUP($D84,'Nursery detail'!$C:$AF,26,FALSE)/$AI$1 -> 3124.412289 | AK84: =VLOOKUP($D84,'Nursery detail'!$C:$AF,27,FALSE)/$AI$1 -> 2835.512639 | AL84: 9570
A85: Chuckles Pre-School Playgroup | B85: DE24 0RU | C85: P | D85: 206128 | E85: 1800 | F85: 1680 | G85: 1800 | H85: 5280 | J85: 0 | K85: 0 | L85: 0 | M85: 0 | O85: 22334.4 | Q85: 0 | R85: 814 | S85: 490 | T85: 74 | V85: 1378 | X85: 23712.4 | AA85: =VLOOKUP($D85,'Nursery detail'!C:AF,17,FALSE)/$AA$1 -> 514.8821704 | AB85: =VLOOKUP($D85,'Nursery detail'!C:AG,18,FALSE)/$AA$1 -> 363.2387915 | AC85: =VLOOKUP($D85,'Nursery detail'!C:AH,19,FALSE)/$AA$1 -> 478.5457048 | AD85: 1356.666667 | AE85: =VLOOKUP($D85,'Nursery detail'!C:AF,21,FALSE)/$AE$1 -> 967.69612 | AF85: =VLOOKUP($D85,'Nursery detail'!C:AG,22,FALSE)/$AE$1 -> 724.9802427 | AG85: =VLOOKUP($D85,'Nursery detail'!C:AH,23,FALSE)/$AE$1 -> 757.3236373 | AH85: 2450 | AI85: =VLOOKUP($D85,'Nursery detail'!$C:$AF,25,FALSE)/$AI$1 -> 130.0236124 | AJ85: =VLOOKUP($D85,'Nursery detail'!$C:$AF,26,FALSE)/$AI$1 -> 27.14042989 | AK85: =VLOOKUP($D85,'Nursery detail'!$C:$AF,27,FALSE)/$AI$1 -> 212.8359577 | AL85: 370
A86: Derby City Childminding Network - Amanda Reeves | B86: DE23 3YA | C86: P | D86: 205999 | E86: 2170 | F86: 2170 | G86: 2170 | H86: 6510 | J86: 0 | K86: 0 | L86: 0 | M86: 0 | O86: 27537.3 | Q86: 0 | R86: 1012 | S86: 281 | T86: 255 | V86: 1548 | X86: 29085.3 | AA86: =VLOOKUP($D86,'Nursery detail'!C:AF,17,FALSE)/$AA$1 -> 394.8162116 | AB86: =VLOOKUP($D86,'Nursery detail'!C:AG,18,FALSE)/$AA$1 -> 668.1505119 | AC86: =VLOOKUP($D86,'Nursery detail'!C:AH,19,FALSE)/$AA$1 -> 623.6999431 | AD86: 1686.666667 | AE86: =VLOOKUP($D86,'Nursery detail'!C:AF,21,FALSE)/$AE$1 -> 396.0130089 | AF86: =VLOOKUP($D86,'Nursery detail'!C:AG,22,FALSE)/$AE$1 -> 670.1758612 | AG86: =VLOOKUP($D86,'Nursery detail'!C:AH,23,FALSE)/$AE$1 -> 338.8111298 | AH86: 1405 | AI86: =VLOOKUP($D86,'Nursery detail'!$C:$AF,25,FALSE)/$AI$1 -> 590.4641723 | AJ86: =VLOOKUP($D86,'Nursery detail'!$C:$AF,26,FALSE)/$AI$1 -> 69.90636247 | AK86: =VLOOKUP($D86,'Nursery detail'!$C:$AF,27,FALSE)/$AI$1 -> 614.6294653 | AL86: 1275
A87: Derby City Childminding Network - Andrea Louise Banyard | B87: DE21 7HY | C87: P | D87: EY398922 | E87: 1010 | F87: 1010 | G87: 1010 | H87: 3030 | J87: 0 | K87: 0 | L87: 0 | M87: 0 | O87: 12816.9 | Q87: 0 | R87: 729 | S87: 164 | T87: 0 | V87: 893 | X87: 13709.9 | AA87: =VLOOKUP($D87,'Nursery detail'!C:AF,17,FALSE)/$AA$1 -> 576.8988943 | AB87: =VLOOKUP($D87,'Nursery detail'!C:AG,18,FALSE)/$AA$1 -> 179.7869842 | AC87: =VLOOKUP($D87,'Nursery detail'!C:AH,19,FALSE)/$AA$1 -> 458.3141216 | AD87: 1215 | AE87: =VLOOKUP($D87,'Nursery detail'!C:AF,21,FALSE)/$AE$1 -> 294.6204514 | AF87: =VLOOKUP($D87,'Nursery detail'!C:AG,22,FALSE)/$AE$1 -> 294.6204514 | AG87: =VLOOKUP($D87,'Nursery detail'!C:AH,23,FALSE)/$AE$1 -> 230.7590971 | AH87: 820 | AI87: =VLOOKUP($D87,'Nursery detail'!$C:$AF,25,FALSE)/$AI$1 -> 0 | AJ87: =VLOOKUP($D87,'Nursery detail'!$C:$AF,26,FALSE)/$AI$1 -> 0 | AK87: =VLOOKUP($D87,'Nursery detail'!$C:$AF,27,FALSE)/$AI$1 -> 0 | AL87: 0
A88: Derby City Childminding Network - Angela Jane Hatton | B88: DE21 4JQ | C88: P | D88: 205921 | E88: 340 | F88: 340 | G88: 340 | H88: 1020 | J88: 0 | K88: 0 | L88: 0 | M88: 0 | O88: 4314.6 | Q88: 0 | R88: 389 | S88: 84 | T88: 0 | V88: 473 | X88: 4787.6 | AA88: =VLOOKUP($D88,'Nursery detail'!C:AF,17,FALSE)/$AA$1 -> 340.1748971 | AB88: =VLOOKUP($D88,'Nursery detail'!C:AG,18,FALSE)/$AA$1 -> 170.0874486 | AC88: =VLOOKUP($D88,'Nursery detail'!C:AH,19,FALSE)/$AA$1 -> 138.0709877 | AD88: 648.3333333 | AE88: =VLOOKUP($D88,'Nursery detail'!C:AF,21,FALSE)/$AE$1 -> 140 | AF88: =VLOOKUP($D88,'Nursery detail'!C:AG,22,FALSE)/$AE$1 -> 140 | AG88: =VLOOKUP($D88,'Nursery detail'!C:AH,23,FALSE)/$AE$1 -> 140 | AH88: 420 | AI88: =VLOOKUP($D88,'Nursery detail'!$C:$AF,25,FALSE)/$AI$1 -> 0 | AJ88: =VLOOKUP($D88,'Nursery detail'!$C:$AF,26,FALSE)/$AI$1 -> 0 | AK88: =VLOOKUP($D88,'Nursery detail'!$C:$AF,27,FALSE)/$AI$1 -> 0 | AL88: 0
A89: Derby City Childminding Network - Annabelle Pickles | C89: P | D89: EY536395 | E89: 435 | F89: 435 | G89: 435 | H89: 1305 | J89: 0 | K89: 0 | L89: 0 | M89: 0 | O89: 5520.15 | Q89: 0 | R89: 111 | S89: 42 | T89: 10 | V89: 163 | X89: 5683.15 | AA89: =VLOOKUP($D89,'Nursery detail'!C:AF,17,FALSE)/$AA$1 -> 41.88679245 | AB89: =VLOOKUP($D89,'Nursery detail'!C:AG,18,FALSE)/$AA$1 -> 41.88679245 | AC89: =VLOOKUP($D89,'Nursery detail'!C:AH,19,FALSE)/$AA$1 -> 101.2264151 | AD89: 185 | AE89: =VLOOKUP($D89,'Nursery detail'!C:AF,21,FALSE)/$AE$1 -> 55.46043279 | AF89: =VLOOKUP($D89,'Nursery detail'!C:AG,22,FALSE)/$AE$1 -> 55.46043279 | AG89: =VLOOKUP($D89,'Nursery detail'!C:AH,23,FALSE)/$AE$1 -> 99.07913442 | AH89: 210 | AI89: =VLOOKUP($D89,'Nursery detail'!$C:$AF,25,FALSE)/$AI$1 -> 5.405405405 | AJ89: =VLOOKUP($D89,'Nursery detail'!$C:$AF,26,FALSE)/$AI$1 -> 5.405405405 | AK89: =VLOOKUP($D89,'Nursery detail'!$C:$AF,27,FALSE)/$AI$1 -> 39.18918919 | AL89: 50
A90: Derby City Childminding Network - Anne-Marie Davies | B90: DE24 9JR | C90: P | D90: EY491735 | E90: 306 | F90: 306 | G90: 306 | H90: 918 | J90: 0 | K90: 0 | L90: 0 | M90: 0 | O90: 3883.14 | Q90: 0 | R90: 136 | S90: 85 | T90: 0 | V90: 221 | X90: 4104.14 | AA90: =VLOOKUP($D90,'Nursery detail'!C:AF,17,FALSE)/$AA$1 -> 154.1333333 | AB90: =VLOOKUP($D90,'Nursery detail'!C:AG,18,FALSE)/$AA$1 -> 36.26666667 | AC90: =VLOOKUP($D90,'Nursery detail'!C:AH,19,FALSE)/$AA$1 -> 36.26666667 | AD90: 226.6666667 | AE90: =VLOOKUP($D90,'Nursery detail'!C:AF,21,FALSE)/$AE$1 -> 60.71428571 | AF90: =VLOOKUP($D90,'Nursery detail'!C:AG,22,FALSE)/$AE$1 -> 303.5714286 | AG90: =VLOOKUP($D90,'Nursery detail'!C:AH,23,FALSE)/$AE$1 -> 60.71428571 | AH90: 425 | AI90: =VLOOKUP($D90,'Nursery detail'!$C:$AF,25,FALSE)/$AI$1 -> 0 | AJ90: =VLOOKUP($D90,'Nursery detail'!$C:$AF,26,FALSE)/$AI$1 -> 0 | AK90: =VLOOKUP($D90,'Nursery detail'!$C:$AF,27,FALSE)/$AI$1 -> 0 | AL90: 0
A91: Derby City Childminding Network - Arline Mali | B91: DE23 6QT | C91: P | D91: EY000013 | E91: 250 | F91: 250 | G91: 250 | H91: 750 | J91: 0 | K91: 0 | L91: 0 | M91: 0 | O91: 3172.5 | Q91: 0 | R91: 236 | S91: 120 | T91: 60 | V91: 416 | X91: 3588.5 | AA91: =VLOOKUP($D91,'Nursery detail'!C:AF,17,FALSE)/$AA$1 -> 71.87817259 | AB91: =VLOOKUP($D91,'Nursery detail'!C:AG,18,FALSE)/$AA$1 -> 71.87817259 | AC91: =VLOOKUP($D91,'Nursery detail'!C:AH,19,FALSE)/$AA$1 -> 249.5769882 | AD91: 393.3333333 | AE91: =VLOOKUP($D91,'Nursery detail'!C:AF,21,FALSE)/$AE$1 -> 250.8361204 | AF91: =VLOOKUP($D91,'Nursery detail'!C:AG,22,FALSE)/$AE$1 -> 250.8361204 | AG91: =VLOOKUP($D91,'Nursery detail'!C:AH,23,FALSE)/$AE$1 -> 98.3277592 | AH91: 600 | AI91: =VLOOKUP($D91,'Nursery detail'!$C:$AF,25,FALSE)/$AI$1 -> 24.16107383 | AJ91: =VLOOKUP($D91,'Nursery detail'!$C:$AF,26,FALSE)/$AI$1 -> 24.16107383 | AK91: =VLOOKUP($D91,'Nursery detail'!$C:$AF,27,FALSE)/$AI$1 -> 251.6778523 | AL91: 300
A92: Derby City Childminding Network - AN | C92: P | D92: EY543687 | E92: 120 | F92: 120 | G92: 120 | H92: 360 | J92: 0 | K92: 0 | L92: 0 | M92: 0 | O92: 1522.8 | Q92: 0 | R92: 37 | S92: 14 | T92: 2 | V92: 53 | X92: 1575.8 | AA92: =VLOOKUP($D92,'Nursery detail'!C:AF,17,FALSE)/$AA$1 -> 16.81818182 | AB92: =VLOOKUP($D92,'Nursery detail'!C:AG,18,FALSE)/$AA$1 -> 16.81818182 | AC92: =VLOOKUP($D92,'Nursery detail'!C:AH,19,FALSE)/$AA$1 -> 28.03030303 | AD92: 61.66666667 | AE92: =VLOOKUP($D92,'Nursery detail'!C:AF,21,FALSE)/$AE$1 -> 21.61290323 | AF92: =VLOOKUP($D92,'Nursery detail'!C:AG,22,FALSE)/$AE$1 -> 21.61290323 | AG92: =VLOOKUP($D92,'Nursery detail'!C:AH,23,FALSE)/$AE$1 -> 26.77419355 | AH92: 70 | AI92: =VLOOKUP($D92,'Nursery detail'!$C:$AF,25,FALSE)/$AI$1 -> 1.428571429 | AJ92: =VLOOKUP($D92,'Nursery detail'!$C:$AF,26,FALSE)/$AI$1 -> 1.428571429 | AK92: =VLOOKUP($D92,'Nursery detail'!$C:$AF,27,FALSE)/$AI$1 -> 7.142857143 | AL92: 10
A93: Derby City Childminding Network - Bonnie Testro | C93: P | D93: EY561598 | E93: 23 | F93: 23 | G93: 23 | H93: 69 | J93: 0 | K93: 0 | L93: 0 | M93: 0 | O93: 291.87 | Q93: 0 | R93: 0 | S93: 7 | T93: 0 | V93: 7 | X93: 298.87 | AA93: =VLOOKUP($D93,'Nursery detail'!C:AF,17,FALSE)/$AA$1 -> 0 | AB93: =VLOOKUP($D93,'Nursery detail'!C:AG,18,FALSE)/$AA$1 -> 0 | AC93: =VLOOKUP($D93,'Nursery detail'!C:AH,19,FALSE)/$AA$1 -> 0 | AD93: 0 | AE93: =VLOOKUP($D93,'Nursery detail'!C:AF,21,FALSE)/$AE$1 -> 5 | AF93: =VLOOKUP($D93,'Nursery detail'!C:AG,22,FALSE)/$AE$1 -> 25 | AG93: =VLOOKUP($D93,'Nursery detail'!C:AH,23,FALSE)/$AE$1 -> 5 | AH93: 35 | AI93: =VLOOKUP($D93,'Nursery detail'!$C:$AF,25,FALSE)/$AI$1 -> 0 | AJ93: =VLOOKUP($D93,'Nursery detail'!$C:$AF,26,FALSE)/$AI$1 -> 0 | AK93: =VLOOKUP($D93,'Nursery detail'!$C:$AF,27,FALSE)/$AI$1 -> 0 | AL93: 0
A94: Derby City Childminding Network - Carrieann Redfern | B94: DE24 0PD | C94: P | D94: EY542496 | E94: 180 | F94: 180 | G94: 180 | H94: 540 | J94: 0 | K94: 0 | L94: 0 | M94: 0 | O94: 2284.2 | Q94: 0 | R94: 0 | S94: 79 | T94: 0 | V94: 79 | X94: 2363.2 | AA94: =VLOOKUP($D94,'Nursery detail'!C:AF,17,FALSE)/$AA$1 -> 0 | AB94: =VLOOKUP($D94,'Nursery detail'!C:AG,18,FALSE)/$AA$1 -> 0 | AC94: =VLOOKUP($D94,'Nursery detail'!C:AH,19,FALSE)/$AA$1 -> 0 | AD94: 0 | AE94: =VLOOKUP($D94,'Nursery detail'!C:AF,21,FALSE)/$AE$1 -> 179.5454545 | AF94: =VLOOKUP($D94,'Nursery detail'!C:AG,22,FALSE)/$AE$1 -> 35.90909091 | AG94: =VLOOKUP($D94,'Nursery detail'!C:AH,23,FALSE)/$AE$1 -> 179.5454545 | AH94: 395 | AI94: =VLOOKUP($D94,'Nursery detail'!$C:$AF,25,FALSE)/$AI$1 -> 0 | AJ94: =VLOOKUP($D94,'Nursery detail'!$C:$AF,26,FALSE)/$AI$1 -> 0 | AK94: =VLOOKUP($D94,'Nursery detail'!$C:$AF,27,FALSE)/$AI$1 -> 0 | AL94: 0
A95: Derby City Childminding Network - Celia Murfin | C95: P | D95: EY421552 | E95: 604 | F95: 604 | G95: 604 | H95: 1812 | J95: 0 | K95: 0 | L95: 0 | M95: 0 | O95: 7664.76 | Q95: 0 | R95: 120 | S95: 99 | T95: 12 | V95: 231 | X95: 7895.76 | AA95: =VLOOKUP($D95,'Nursery detail'!C:AF,17,FALSE)/$AA$1 -> 30.02780352 | AB95: =VLOOKUP($D95,'Nursery detail'!C:AG,18,FALSE)/$AA$1 -> 30.02780352 | AC95: =VLOOKUP($D95,'Nursery detail'!C:AH,19,FALSE)/$AA$1 -> 139.944393 | AD95: 200 | AE95: =VLOOKUP($D95,'Nursery detail'!C:AF,21,FALSE)/$AE$1 -> 65.98746354 | AF95: =VLOOKUP($D95,'Nursery detail'!C:AG,22,FALSE)/$AE$1 -> 289.592889 | AG95: =VLOOKUP($D95,'Nursery detail'!C:AH,23,FALSE)/$AE$1 -> 139.4196475 | AH95: 495 | AI95: =VLOOKUP($D95,'Nursery detail'!$C:$AF,25,FALSE)/$AI$1 -> 3.754345307 | AJ95: =VLOOKUP($D95,'Nursery detail'!$C:$AF,26,FALSE)/$AI$1 -> 3.754345307 | AK95: =VLOOKUP($D95,'Nursery detail'!$C:$AF,27,FALSE)/$AI$1 -> 52.49130939 | AL95: 60
A96: Derby City Childminding Network - Cheryll Lesley Haywood-Phillips | B96: DE21 4RQ | C96: P | D96: EY251518 | E96: 120 | F96: 120 | G96: 120 | H96: 360 | J96: 0 | K96: 0 | L96: 0 | M96: 0 | O96: 1522.8 | Q96: 0 | R96: 41 | S96: 11 | T96: 0 | V96: 52 | X96: 1574.8 | AA96: =VLOOKUP($D96,'Nursery detail'!C:AF,17,FALSE)/$AA$1 -> 12.8125 | AB96: =VLOOKUP($D96,'Nursery detail'!C:AG,18,FALSE)/$AA$1 -> 12.8125 | AC96: =VLOOKUP($D96,'Nursery detail'!C:AH,19,FALSE)/$AA$1 -> 42.70833333 | AD96: 68.33333333 | AE96: =VLOOKUP($D96,'Nursery detail'!C:AF,21,FALSE)/$AE$1 -> 15.27777778 | AF96: =VLOOKUP($D96,'Nursery detail'!C:AG,22,FALSE)/$AE$1 -> 15.27777778 | AG96: =VLOOKUP($D96,'Nursery detail'!C:AH,23,FALSE)/$AE$1 -> 24.44444444 | AH96: 55 | AI96: =VLOOKUP($D96,'Nursery detail'!$C:$AF,25,FALSE)/$AI$1 -> 0 | AJ96: =VLOOKUP($D96,'Nursery detail'!$C:$AF,26,FALSE)/$AI$1 -> 0 | AK96: =VLOOKUP($D96,'Nursery detail'!$C:$AF,27,FALSE)/$AI$1 -> 0 | AL96: 0
A97: Derby City Childminding Network - Christine Ann Brocklehurst | B97: DE3 9AS | C97: P | D97: 205852 | E97: 1160 | F97: 1160 | G97: 1160 | H97: 3480 | J97: 0 | K97: 0 | L97: 0 | M97: 0 | O97: 14720.4 | Q97: 0 | R97: 0 | S97: 216 | T97: 0 | V97: 216 | X97: 14936.4 | AA97: =VLOOKUP($D97,'Nursery detail'!C:AF,17,FALSE)/$AA$1 -> 0 | AB97: =VLOOKUP($D97,'Nursery detail'!C:AG,18,FALSE)/$AA$1 -> 0 | AC97: =VLOOKUP($D97,'Nursery detail'!C:AH,19,FALSE)/$AA$1 -> 0 | AD97: 0 | AE97: =VLOOKUP($D97,'Nursery detail'!C:AF,21,FALSE)/$AE$1 -> 385.6173273 | AF97: =VLOOKUP($D97,'Nursery detail'!C:AG,22,FALSE)/$AE$1 -> 86.23201268 | AG97: =VLOOKUP($D97,'Nursery detail'!C:AH,23,FALSE)/$AE$1 -> 608.15066 | AH97: 1080 | AI97: =VLOOKUP($D97,'Nursery detail'!$C:$AF,25,FALSE)/$AI$1 -> 0 | AJ97: =VLOOKUP($D97,'Nursery detail'!$C:$AF,26,FALSE)/$AI$1 -> 0 | AK97: =VLOOKUP($D97,'Nursery detail'!$C:$AF,27,FALSE)/$AI$1 -> 0 | AL97: 0
A98: Derby City Childminding Network - Christine Julie Heathcote | C98: P | D98: 205922 | E98: 433 | F98: 433 | G98: 433 | H98: 1299 | J98: 0 | K98: 0 | L98: 0 | M98: 0 | O98: 5494.77 | Q98: 0 | R98: 277 | S98: 62 | T98: 7 | V98: 346 | X98: 5840.77 | AA98: =VLOOKUP($D98,'Nursery detail'!C:AF,17,FALSE)/$AA$1 -> 100.7466564 | AB98: =VLOOKUP($D98,'Nursery detail'!C:AG,18,FALSE)/$AA$1 -> 259.8624074 | AC98: =VLOOKUP($D98,'Nursery detail'!C:AH,19,FALSE)/$AA$1 -> 101.0576029 | AD98: 461.6666667 | AE98: =VLOOKUP($D98,'Nursery detail'!C:AF,21,FALSE)/$AE$1 -> 105.4576693 | AF98: =VLOOKUP($D98,'Nursery detail'!C:AG,22,FALSE)/$AE$1 -> 105.4576693 | AG98: =VLOOKUP($D98,'Nursery detail'!C:AH,23,FALSE)/$AE$1 -> 99.08466141 | AH98: 310 | AI98: =VLOOKUP($D98,'Nursery detail'!$C:$AF,25,FALSE)/$AI$1 -> 1.745152355 | AJ98: =VLOOKUP($D98,'Nursery detail'!$C:$AF,26,FALSE)/$AI$1 -> 1.745152355 | AK98: =VLOOKUP($D98,'Nursery detail'!$C:$AF,27,FALSE)/$AI$1 -> 31.50969529 | AL98: 35
A99: Derby City Childminding Network - Claire-Ellen Oakley | B99: DE21 2HZ | C99: P | D99: EY412756 | E99: 740 | F99: 740 | G99: 740 | H99: 2220 | J99: 0 | K99: 0 | L99: 0 | M99: 0 | O99: 9390.6 | Q99: 0 | R99: 0 | S99: 0 | T99: 0 | V99: 0 | X99: 9390.6 | AA99: =VLOOKUP($D99,'Nursery detail'!C:AF,17,FALSE)/$AA$1 -> 0 | AB99: =VLOOKUP($D99,'Nursery detail'!C:AG,18,FALSE)/$AA$1 -> 0 | AC99: =VLOOKUP($D99,'Nursery detail'!C:AH,19,FALSE)/$AA$1 -> 0 | AD99: 0 | AE99: =VLOOKUP($D99,'Nursery detail'!C:AF,21,FALSE)/$AE$1 -> 0 | AF99: =VLOOKUP($D99,'Nursery detail'!C:AG,22,FALSE)/$AE$1 -> 0 | AG99: =VLOOKUP($D99,'Nursery detail'!C:AH,23,FALSE)/$AE$1 -> 0 | AH99: 0 | AI99: =VLOOKUP($D99,'Nursery detail'!$C:$AF,25,FALSE)/$AI$1 -> 0 | AJ99: =VLOOKUP($D99,'Nursery detail'!$C:$AF,26,FALSE)/$AI$1 -> 0 | AK99: =VLOOKUP($D99,'Nursery detail'!$C:$AF,27,FALSE)/$AI$1 -> 0 | AL99: 0
A100: Derby City Childminding Network - Clare Mason | B100: DE21 6GQ | C100: P | D100: EY438525 | E100: 880 | F100: 880 | G100: 880 | H100: 2640 | J100: 0 | K100: 0 | L100: 0 | M100: 0 | O100: 11167.2 | Q100: 0 | R100: 577 | S100: 330 | T100: 0 | V100: 907 | X100: 12074.2 | AA100: =VLOOKUP($D100,'Nursery detail'!C:AF,17,FALSE)/$AA$1 -> 329.8856549 | AB100: =VLOOKUP($D100,'Nursery detail'!C:AG,18,FALSE)/$AA$1 -> 439.8475398 | AC100: =VLOOKUP($D100,'Nursery detail'!C:AH,19,FALSE)/$AA$1 -> 191.9334719 | AD100: 961.6666667 | AE100: =VLOOKUP($D100,'Nursery detail'!C:AF,21,FALSE)/$AE$1 -> 330 | AF100: =VLOOKUP($D100,'Nursery detail'!C:AG,22,FALSE)/$AE$1 -> 440 | AG100: =VLOOKUP($D100,'Nursery detail'!C:AH,23,FALSE)/$AE$1 -> 880 | AH100: 1650 | AI100: =VLOOKUP($D100,'Nursery detail'!$C:$AF,25,FALSE)/$AI$1 -> 0 | AJ100: =VLOOKUP($D100,'Nursery detail'!$C:$AF,26,FALSE)/$AI$1 -> 0 | AK100: =VLOOKUP($D100,'Nursery detail'!$C:$AF,27,FALSE)/$AI$1 -> 0 | AL100: 0
A101: Derby City Childminding Network - Deborah Scaife | B101: DE24 0TZ | C101: P | D101: EY294474 | E101: 330 | F101: 330 | G101: 330 | H101: 990 | J101: 0 | K101: 0 | L101: 0 | M101: 0 | O101: 4187.7 | Q101: 0 | R101: 348 | S101: 127 | T101: 0 | V101: 475 | X101: 4662.7 | AA101: =VLOOKUP($D101,'Nursery detail'!C:AF,17,FALSE)/$AA$1 -> 138.1920579 | AB101: =VLOOKUP($D101,'Nursery detail'!C:AG,18,FALSE)/$AA$1 -> 329.9810356 | AC101: =VLOOKUP($D101,'Nursery detail'!C:AH,19,FALSE)/$AA$1 -> 111.8269065 | AD101: 580 | AE101: =VLOOKUP($D101,'Nursery detail'!C:AF,21,FALSE)/$AE$1 -> 330.4683804 | AF101: =VLOOKUP($D101,'Nursery detail'!C:AG,22,FALSE)/$AE$1 -> 155.8208484 | AG101: =VLOOKUP($D101,'Nursery detail'!C:AH,23,FALSE)/$AE$1 -> 148.7107712 | AH101: 635 | AI101: =VLOOKUP($D101,'Nursery detail'!$C:$AF,25,FALSE)/$AI$1 -> 0 | AJ101: =VLOOKUP($D101,'Nursery detail'!$C:$AF,26,FALSE)/$AI$1 -> 0 | AK101: =VLOOKUP($D101,'Nursery detail'!$C:$AF,27,FALSE)/$AI$1 -> 0 | AL101: 0
A102: Derby City Childminding Network - Donna Gladwin | B102: DE21 7DF | C102: P | D102: 205919 | E102: 620 | F102: 620 | G102: 620 | H102: 1860 | J102: 0 | K102: 0 | L102: 0 | M102: 0 | O102: 7867.8 | Q102: 0 | R102: 303 | S102: 105 | T102: 0 | V102: 408 | X102: 8275.8 | AA102: =VLOOKUP($D102,'Nursery detail'!C:AF,17,FALSE)/$AA$1 -> 121.6053512 | AB102: =VLOOKUP($D102,'Nursery detail'!C:AG,18,FALSE)/$AA$1 -> 121.6053512 | AC102: =VLOOKUP($D102,'Nursery detail'!C:AH,19,FALSE)/$AA$1 -> 261.7892977 | AD102: 505 | AE102: =VLOOKUP($D102,'Nursery detail'!C:AF,21,FALSE)/$AE$1 -> 155.391758 | AF102: =VLOOKUP($D102,'Nursery detail'!C:AG,22,FALSE)/$AE$1 -> 155.391758 | AG102: =VLOOKUP($D102,'Nursery detail'!C:AH,23,FALSE)/$AE$1 -> 214.216484 | AH102: 525 | AI102: =VLOOKUP($D102,'Nursery detail'!$C:$AF,25,FALSE)/$AI$1 -> 0 | AJ102: =VLOOKUP($D102,'Nursery detail'!$C:$AF,26,FALSE)/$AI$1 -> 0 | AK102: =VLOOKUP($D102,'Nursery detail'!$C:$AF,27,FALSE)/$AI$1 -> 0 | AL102: 0
A103: Derby City Childminding Network - Ellen Brown | C103: P | D103: EY545371 | E103: 120 | F103: 120 | G103: 120 | H103: 360 | J103: 0 | K103: 0 | L103: 0 | M103: 0 | O103: 1522.8 | Q103: 0 | R103: 0 | S103: 34 | T103: 0 | V103: 34 | X103: 1556.8 | AA103: =VLOOKUP($D103,'Nursery detail'!C:AF,17,FALSE)/$AA$1 -> 0 | AB103: =VLOOKUP($D103,'Nursery detail'!C:AG,18,FALSE)/$AA$1 -> 0 | AC103: =VLOOKUP($D103,'Nursery detail'!C:AH,19,FALSE)/$AA$1 -> 0 | AD103: 0 | AE103: =VLOOKUP($D103,'Nursery detail'!C:AF,21,FALSE)/$AE$1 -> 24.28571429 | AF103: =VLOOKUP($D103,'Nursery detail'!C:AG,22,FALSE)/$AE$1 -> 121.4285714 | AG103: =VLOOKUP($D103,'Nursery detail'!C:AH,23,FALSE)/$AE$1 -> 24.28571429 | AH103: 170 | AI103: =VLOOKUP($D103,'Nursery detail'!$C:$AF,25,FALSE)/$AI$1 -> 0 | AJ103: =VLOOKUP($D103,'Nursery detail'!$C:$AF,26,FALSE)/$AI$1 -> 0 | AK103: =VLOOKUP($D103,'Nursery detail'!$C:$AF,27,FALSE)/$AI$1 -> 0 | AL103: 0
A104: Derby City Childminding Network - Eloise Rippon | B104: DE21 7QZ | C104: P | D104: EY475575 | E104: 550 | F104: 550 | G104: 550 | H104: 1650 | J104: 0 | K104: 0 | L104: 0 | M104: 0 | O104: 6979.5 | Q104: 0 | R104: 0 | S104: 0 | T104: 0 | V104: 0 | X104: 6979.5 | AA104: =VLOOKUP($D104,'Nursery detail'!C:AF,17,FALSE)/$AA$1 -> 0 | AB104: =VLOOKUP($D104,'Nursery detail'!C:AG,18,FALSE)/$AA$1 -> 0 | AC104: =VLOOKUP($D104,'Nursery detail'!C:AH,19,FALSE)/$AA$1 -> 0 | AD104: 0 | AE104: =VLOOKUP($D104,'Nursery detail'!C:AF,21,FALSE)/$AE$1 -> 0 | AF104: =VLOOKUP($D104,'Nursery detail'!C:AG,22,FALSE)/$AE$1 -> 0 | AG104: =VLOOKUP($D104,'Nursery detail'!C:AH,23,FALSE)/$AE$1 -> 0 | AH104: 0 | AI104: =VLOOKUP($D104,'Nursery detail'!$C:$AF,25,FALSE)/$AI$1 -> 0 | AJ104: =VLOOKUP($D104,'Nursery detail'!$C:$AF,26,FALSE)/$AI$1 -> 0 | AK104: =VLOOKUP($D104,'Nursery detail'!$C:$AF,27,FALSE)/$AI$1 -> 0 | AL104: 0
A105: Derby City Childminding Network - Emma Shepherd | C105: P | D105: EY552102 | E105: 360 | F105: 420 | G105: 540 | H105: 1320 | J105: 0 | K105: 0 | L105: 0 | M105: 0 | O105: 5583.6 | Q105: 0 | R105: 0 | S105: 0 | T105: 0 | V105: 0 | X105: 5583.6 | AA105: =VLOOKUP($D105,'Nursery detail'!C:AF,17,FALSE)/$AA$1 -> 0 | AB105: =VLOOKUP($D105,'Nursery detail'!C:AG,18,FALSE)/$AA$1 -> 0 | AC105: =VLOOKUP($D105,'Nursery detail'!C:AH,19,FALSE)/$AA$1 -> 0 | AD105: 0 | AE105: =VLOOKUP($D105,'Nursery detail'!C:AF,21,FALSE)/$AE$1 -> 0 | AF105: =VLOOKUP($D105,'Nursery detail'!C:AG,22,FALSE)/$AE$1 -> 0 | AG105: =VLOOKUP($D105,'Nursery detail'!C:AH,23,FALSE)/$AE$1 -> 0 | AH105: 0 | AI105: =VLOOKUP($D105,'Nursery detail'!$C:$AF,25,FALSE)/$AI$1 -> 0 | AJ105: =VLOOKUP($D105,'Nursery detail'!$C:$AF,26,FALSE)/$AI$1 -> 0 | AK105: =VLOOKUP($D105,'Nursery detail'!$C:$AF,27,FALSE)/$AI$1 -> 0 | AL105: 0
A106: Derby City Childminding Network - Emilie Celine Astley | B106: DE22 1DL | C106: P | D106: EY477405 | E106: 190 | F106: 190 | G106: 190 | H106: 570 | J106: 0 | K106: 0 | L106: 0 | M106: 0 | O106: 2411.1 | Q106: 0 | R106: 0 | S106: 0 | T106: 0 | V106: 0 | X106: 2411.1 | AA106: =VLOOKUP($D106,'Nursery detail'!C:AF,17,FALSE)/$AA$1 -> 0 | AB106: =VLOOKUP($D106,'Nursery detail'!C:AG,18,FALSE)/$AA$1 -> 0 | AC106: =VLOOKUP($D106,'Nursery detail'!C:AH,19,FALSE)/$AA$1 -> 0 | AD106: 0 | AE106: =VLOOKUP($D106,'Nursery detail'!C:AF,21,FALSE)/$AE$1 -> 0 | AF106: =VLOOKUP($D106,'Nursery detail'!C:AG,22,FALSE)/$AE$1 -> 0 | AG106: =VLOOKUP($D106,'Nursery detail'!C:AH,23,FALSE)/$AE$1 -> 0 | AH106: 0 | AI106: =VLOOKUP($D106,'Nursery detail'!$C:$AF,25,FALSE)/$AI$1 -> 0 | AJ106: =VLOOKUP($D106,'Nursery detail'!$C:$AF,26,FALSE)/$AI$1 -> 0 | AK106: =VLOOKUP($D106,'Nursery detail'!$C:$AF,27,FALSE)/$AI$1 -> 0 | AL106: 0
A107: Derby City Childminding Network - Emma Louise Strange, | B107: DE24 0GA | C107: P | D107: EY455065 | E107: 1020 | F107: 1020 | G107: 1020 | H107: 3060 | J107: 0 | K107: 0 | L107: 0 | M107: 0 | O107: 12943.8 | Q107: 0 | R107: 152 | S107: 476 | T107: 0 | V107: 628 | X107: 13571.8 | AA107: =VLOOKUP($D107,'Nursery detail'!C:AF,17,FALSE)/$AA$1 -> 41.88976378 | AB107: =VLOOKUP($D107,'Nursery detail'!C:AG,18,FALSE)/$AA$1 -> 169.5538058 | AC107: =VLOOKUP($D107,'Nursery detail'!C:AH,19,FALSE)/$AA$1 -> 41.88976378 | AD107: 253.3333333 | AE107: =VLOOKUP($D107,'Nursery detail'!C:AF,21,FALSE)/$AE$1 -> 850 | AF107: =VLOOKUP($D107,'Nursery detail'!C:AG,22,FALSE)/$AE$1 -> 510 | AG107: =VLOOKUP($D107,'Nursery detail'!C:AH,23,FALSE)/$AE$1 -> 1020 | AH107: 2380 | AI107: =VLOOKUP($D107,'Nursery detail'!$C:$AF,25,FALSE)/$AI$1 -> 0 | AJ107: =VLOOKUP($D107,'Nursery detail'!$C:$AF,26,FALSE)/$AI$1 -> 0 | AK107: =VLOOKUP($D107,'Nursery detail'!$C:$AF,27,FALSE)/$AI$1 -> 0 | AL107: 0
A108: Derby City Childminding Network - Evangelista Muchineripi Kafuru | C108: P | D108: EY460509 | E108: 190 | F108: 190 | G108: 190 | H108: 570 | J108: 0 | K108: 0 | L108: 0 | M108: 0 | O108: 2411.1 | Q108: 0 | R108: 257 | S108: 44 | T108: 4 | V108: 305 | X108: 2716.1 | AA108: =VLOOKUP($D108,'Nursery detail'!C:AF,17,FALSE)/$AA$1 -> 190.3703704 | AB108: =VLOOKUP($D108,'Nursery detail'!C:AG,18,FALSE)/$AA$1 -> 190.3703704 | AC108: =VLOOKUP($D108,'Nursery detail'!C:AH,19,FALSE)/$AA$1 -> 47.59259259 | AD108: 428.3333333 | AE108: =VLOOKUP($D108,'Nursery detail'!C:AF,21,FALSE)/$AE$1 -> 89.45091514 | AF108: =VLOOKUP($D108,'Nursery detail'!C:AG,22,FALSE)/$AE$1 -> 89.45091514 | AG108: =VLOOKUP($D108,'Nursery detail'!C:AH,23,FALSE)/$AE$1 -> 41.09816972 | AH108: 220 | AI108: =VLOOKUP($D108,'Nursery detail'!$C:$AF,25,FALSE)/$AI$1 -> 1.121495327 | AJ108: =VLOOKUP($D108,'Nursery detail'!$C:$AF,26,FALSE)/$AI$1 -> 1.121495327 | AK108: =VLOOKUP($D108,'Nursery detail'!$C:$AF,27,FALSE)/$AI$1 -> 17.75700935 | AL108: 20
A109: Derby City Childminding Network - Fiona Meek | B109: DE3 0QQ | C109: P | D109: EY401536 | E109: 120 | F109: 120 | G109: 120 | H109: 360 | J109: 0 | K109: 0 | L109: 0 | M109: 0 | O109: 1522.8 | Q109: 0 | R109: 26 | S109: 9 | T109: 3 | V109: 38 | X109: 1560.8 | AA109: =VLOOKUP($D109,'Nursery detail'!C:AF,17,FALSE)/$AA$1 -> 8.125 | AB109: =VLOOKUP($D109,'Nursery detail'!C:AG,18,FALSE)/$AA$1 -> 8.125 | AC109: =VLOOKUP($D109,'Nursery detail'!C:AH,19,FALSE)/$AA$1 -> 27.08333333 | AD109: 43.33333333 | AE109: =VLOOKUP($D109,'Nursery detail'!C:AF,21,FALSE)/$AE$1 -> 10 | AF109: =VLOOKUP($D109,'Nursery detail'!C:AG,22,FALSE)/$AE$1 -> 10 | AG109: =VLOOKUP($D109,'Nursery detail'!C:AH,23,FALSE)/$AE$1 -> 25 | AH109: 45 | AI109: =VLOOKUP($D109,'Nursery detail'!$C:$AF,25,FALSE)/$AI$1 -> 1.25 | AJ109: =VLOOKUP($D109,'Nursery detail'!$C:$AF,26,FALSE)/$AI$1 -> 1.25 | AK109: =VLOOKUP($D109,'Nursery detail'!$C:$AF,27,FALSE)/$AI$1 -> 12.5 | AL109: 15
A110: Derby City Childminding Network - Heather Brocklehurst | B110: DE23 4RQ | C110: P | D110: EY316120 | E110: 1147 | F110: 1147 | G110: 1147 | H110: 3441 | J110: 0 | K110: 0 | L110: 0 | M110: 0 | O110: 14555.43 | Q110: 0 | R110: 0 | S110: 130 | T110: 0 | V110: 130 | X110: 14685.43 | AA110: =VLOOKUP($D110,'Nursery detail'!C:AF,17,FALSE)/$AA$1 -> 0 | AB110: =VLOOKUP($D110,'Nursery detail'!C:AG,18,FALSE)/$AA$1 -> 0 | AC110: =VLOOKUP($D110,'Nursery detail'!C:AH,19,FALSE)/$AA$1 -> 0 | AD110: 0 | AE110: =VLOOKUP($D110,'Nursery detail'!C:AF,21,FALSE)/$AE$1 -> 274.6739287 | AF110: =VLOOKUP($D110,'Nursery detail'!C:AG,22,FALSE)/$AE$1 -> 45.57937044 | AG110: =VLOOKUP($D110,'Nursery detail'!C:AH,23,FALSE)/$AE$1 -> 329.7467008 | AH110: 650 | AI110: =VLOOKUP($D110,'Nursery detail'!$C:$AF,25,FALSE)/$AI$1 -> 0 | AJ110: =VLOOKUP($D110,'Nursery detail'!$C:$AF,26,FALSE)/$AI$1 -> 0 | AK110: =VLOOKUP($D110,'Nursery detail'!$C:$AF,27,FALSE)/$AI$1 -> 0 | AL110: 0
A111: Derby City Childminding Network - Helen Marie Samuels | B111: DE21 4NE | C111: P | D111: 205849 | E111: 1427 | F111: 1427 | G111: 1427 | H111: 4281 | J111: 0 | K111: 0 | L111: 0 | M111: 0 | O111: 18108.63 | Q111: 0 | R111: 262 | S111: 341 | T111: 0 | V111: 603 | X111: 18711.63 | AA111: =VLOOKUP($D111,'Nursery detail'!C:AF,17,FALSE)/$AA$1 -> 20.01697793 | AB111: =VLOOKUP($D111,'Nursery detail'!C:AG,18,FALSE)/$AA$1 -> 20.01697793 | AC111: =VLOOKUP($D111,'Nursery detail'!C:AH,19,FALSE)/$AA$1 -> 396.6327108 | AD111: 436.6666667 | AE111: =VLOOKUP($D111,'Nursery detail'!C:AF,21,FALSE)/$AE$1 -> 662.8380161 | AF111: =VLOOKUP($D111,'Nursery detail'!C:AG,22,FALSE)/$AE$1 -> 645.5922306 | AG111: =VLOOKUP($D111,'Nursery detail'!C:AH,23,FALSE)/$AE$1 -> 396.5697532 | AH111: 1705 | AI111: =VLOOKUP($D111,'Nursery detail'!$C:$AF,25,FALSE)/$AI$1 -> 0 | AJ111: =VLOOKUP($D111,'Nursery detail'!$C:$AF,26,FALSE)/$AI$1 -> 0 | AK111: =VLOOKUP($D111,'Nursery detail'!$C:$AF,27,FALSE)/$AI$1 -> 0 | AL111: 0
A112: Derby City Childminding Network - Hilary Gail Smyth | B112: DE22 2NB | C112: P | D112: EY407775 | E112: 320 | F112: 320 | G112: 320 | H112: 960 | J112: 0 | K112: 0 | L112: 0 | M112: 0 | O112: 4060.8 | Q112: 0 | R112: 29 | S112: 18 | T112: 8 | V112: 55 | X112: 4115.8 | AA112: =VLOOKUP($D112,'Nursery detail'!C:AF,17,FALSE)/$AA$1 -> 6.397058824 | AB112: =VLOOKUP($D112,'Nursery detail'!C:AG,18,FALSE)/$AA$1 -> 6.397058824 | AC112: =VLOOKUP($D112,'Nursery detail'!C:AH,19,FALSE)/$AA$1 -> 35.53921569 | AD112: 48.33333333 | AE112: =VLOOKUP($D112,'Nursery detail'!C:AF,21,FALSE)/$AE$1 -> 10.31072106 | AF112: =VLOOKUP($D112,'Nursery detail'!C:AG,22,FALSE)/$AE$1 -> 10.31072106 | AG112: =VLOOKUP($D112,'Nursery detail'!C:AH,23,FALSE)/$AE$1 -> 69.37855787 | AH112: 90 | AI112: =VLOOKUP($D112,'Nursery detail'!$C:$AF,25,FALSE)/$AI$1 -> 2.142857143 | AJ112: =VLOOKUP($D112,'Nursery detail'!$C:$AF,26,FALSE)/$AI$1 -> 2.142857143 | AK112: =VLOOKUP($D112,'Nursery detail'!$C:$AF,27,FALSE)/$AI$1 -> 35.71428571 | AL112: 40
A113: Derby City Childminding Network - Jennifer Louise Kelly | C113: P | D113: EY477127 | E113: 124 | F113: 124 | G113: 124 | H113: 372 | J113: 0 | K113: 0 | L113: 0 | M113: 0 | O113: 1573.56 | Q113: 0 | R113: 0 | S113: 31 | T113: 0 | V113: 31 | X113: 1604.56 | AA113: =VLOOKUP($D113,'Nursery detail'!C:AF,17,FALSE)/$AA$1 -> 0 | AB113: =VLOOKUP($D113,'Nursery detail'!C:AG,18,FALSE)/$AA$1 -> 0 | AC113: =VLOOKUP($D113,'Nursery detail'!C:AH,19,FALSE)/$AA$1 -> 0 | AD113: 0 | AE113: =VLOOKUP($D113,'Nursery detail'!C:AF,21,FALSE)/$AE$1 -> 125.2832244 | AF113: =VLOOKUP($D113,'Nursery detail'!C:AG,22,FALSE)/$AE$1 -> 14.8583878 | AG113: =VLOOKUP($D113,'Nursery detail'!C:AH,23,FALSE)/$AE$1 -> 14.8583878 | AH113: 155 | AI113: =VLOOKUP($D113,'Nursery detail'!$C:$AF,25,FALSE)/$AI$1 -> 0 | AJ113: =VLOOKUP($D113,'Nursery detail'!$C:$AF,26,FALSE)/$AI$1 -> 0 | AK113: =VLOOKUP($D113,'Nursery detail'!$C:$AF,27,FALSE)/$AI$1 -> 0 | AL113: 0
A114: Derby City Childminding Network - Jennifer Ellen Apaya | B114: DE21 6PH | C114: P | D114: EY240000 | E114: 240 | F114: 240 | G114: 240 | H114: 720 | J114: 0 | K114: 0 | L114: 0 | M114: 0 | O114: 3045.6 | Q114: 0 | R114: 0 | S114: 58 | T114: 58 | V114: 116 | X114: 3161.6 | AA114: =VLOOKUP($D114,'Nursery detail'!C:AF,17,FALSE)/$AA$1 -> 0 | AB114: =VLOOKUP($D114,'Nursery detail'!C:AG,18,FALSE)/$AA$1 -> 0 | AC114: =VLOOKUP($D114,'Nursery detail'!C:AH,19,FALSE)/$AA$1 -> 0 | AD114: 0 | AE114: =VLOOKUP($D114,'Nursery detail'!C:AF,21,FALSE)/$AE$1 -> 241.6666667 | AF114: =VLOOKUP($D114,'Nursery detail'!C:AG,22,FALSE)/$AE$1 -> 24.16666667 | AG114: =VLOOKUP($D114,'Nursery detail'!C:AH,23,FALSE)/$AE$1 -> 24.16666667 | AH114: 290 | AI114: =VLOOKUP($D114,'Nursery detail'!$C:$AF,25,FALSE)/$AI$1 -> 241.6666667 | AJ114: =VLOOKUP($D114,'Nursery detail'!$C:$AF,26,FALSE)/$AI$1 -> 24.16666667 | AK114: =VLOOKUP($D114,'Nursery detail'!$C:$AF,27,FALSE)/$AI$1 -> 24.16666667 | AL114: 290
A115: Derby City Childminding Network - Joanne Margaret Shakespeare | B115: DE3 0PE | C115: P | D115: EY369088 | E115: 760 | F115: 760 | G115: 760 | H115: 2280 | J115: 0 | K115: 0 | L115: 0 | M115: 0 | O115: 9644.4 | Q115: 0 | R115: 241 | S115: 356 | T115: 0 | V115: 597 | X115: 10241.4 | AA115: =VLOOKUP($D115,'Nursery detail'!C:AF,17,FALSE)/$AA$1 -> 55.19083969 | AB115: =VLOOKUP($D115,'Nursery detail'!C:AG,18,FALSE)/$AA$1 -> 55.19083969 | AC115: =VLOOKUP($D115,'Nursery detail'!C:AH,19,FALSE)/$AA$1 -> 291.2849873 | AD115: 401.6666667 | AE115: =VLOOKUP($D115,'Nursery detail'!C:AF,21,FALSE)/$AE$1 -> 761.0451306 | AF115: =VLOOKUP($D115,'Nursery detail'!C:AG,22,FALSE)/$AE$1 -> 570.783848 | AG115: =VLOOKUP($D115,'Nursery detail'!C:AH,23,FALSE)/$AE$1 -> 448.1710214 | AH115: 1780 | AI115: =VLOOKUP($D115,'Nursery detail'!$C:$AF,25,FALSE)/$AI$1 -> 0 | AJ115: =VLOOKUP($D115,'Nursery detail'!$C:$AF,26,FALSE)/$AI$1 -> 0 | AK115: =VLOOKUP($D115,'Nursery detail'!$C:$AF,27,FALSE)/$AI$1 -> 0 | AL115: 0
A116: Derby City Childminding Network - Joanne Mycroft | B116: DE21 6RZ | C116: P | D116: EY462623 | E116: 330 | F116: 330 | G116: 330 | H116: 990 | J116: 0 | K116: 0 | L116: 0 | M116: 0 | O116: 4187.7 | Q116: 0 | R116: 0 | S116: 28 | T116: 0 | V116: 28 | X116: 4215.7 | AA116: =VLOOKUP($D116,'Nursery detail'!C:AF,17,FALSE)/$AA$1 -> 0 | AB116: =VLOOKUP($D116,'Nursery detail'!C:AG,18,FALSE)/$AA$1 -> 0 | AC116: =VLOOKUP($D116,'Nursery detail'!C:AH,19,FALSE)/$AA$1 -> 0 | AD116: 0 | AE116: =VLOOKUP($D116,'Nursery detail'!C:AF,21,FALSE)/$AE$1 -> 14.20289855 | AF116: =VLOOKUP($D116,'Nursery detail'!C:AG,22,FALSE)/$AE$1 -> 111.5942029 | AG116: =VLOOKUP($D116,'Nursery detail'!C:AH,23,FALSE)/$AE$1 -> 14.20289855 | AH116: 140 | AI116: =VLOOKUP($D116,'Nursery detail'!$C:$AF,25,FALSE)/$AI$1 -> 0 | AJ116: =VLOOKUP($D116,'Nursery detail'!$C:$AF,26,FALSE)/$AI$1 -> 0 | AK116: =VLOOKUP($D116,'Nursery detail'!$C:$AF,27,FALSE)/$AI$1 -> 0 | AL116: 0
A117: Derby City Childminding Network - Joyce, Mary Cliff | B117: DE73 6NB | C117: P | D117: EY264853 | E117: 235 | F117: 235 | G117: 235 | H117: 705 | J117: 0 | K117: 0 | L117: 0 | M117: 0 | O117: 2982.15 | Q117: 0 | R117: 0 | S117: 0 | T117: 0 | V117: 0 | X117: 2982.15 | AA117: =VLOOKUP($D117,'Nursery detail'!C:AF,17,FALSE)/$AA$1 -> 0 | AB117: =VLOOKUP($D117,'Nursery detail'!C:AG,18,FALSE)/$AA$1 -> 0 | AC117: =VLOOKUP($D117,'Nursery detail'!C:AH,19,FALSE)/$AA$1 -> 0 | AD117: 0 | AE117: =VLOOKUP($D117,'Nursery detail'!C:AF,21,FALSE)/$AE$1 -> 0 | AF117: =VLOOKUP($D117,'Nursery detail'!C:AG,22,FALSE)/$AE$1 -> 0 | AG117: =VLOOKUP($D117,'Nursery detail'!C:AH,23,FALSE)/$AE$1 -> 0 | AH117: 0 | AI117: =VLOOKUP($D117,'Nursery detail'!$C:$AF,25,FALSE)/$AI$1 -> 0 | AJ117: =VLOOKUP($D117,'Nursery detail'!$C:$AF,26,FALSE)/$AI$1 -> 0 | AK117: =VLOOKUP($D117,'Nursery detail'!$C:$AF,27,FALSE)/$AI$1 -> 0 | AL117: 0
A118: Derby City Childminding Network - Judith Deakin | B118: DE22 2NN | C118: P | D118: 205881 | E118: 1180 | F118: 1180 | G118: 1180 | H118: 3540 | J118: 0 | K118: 0 | L118: 0 | M118: 0 | O118: 14974.2 | Q118: 0 | R118: 0 | S118: 0 | T118: 0 | V118: 0 | X118: 14974.2 | AA118: =VLOOKUP($D118,'Nursery detail'!C:AF,17,FALSE)/$AA$1 -> 0 | AB118: =VLOOKUP($D118,'Nursery detail'!C:AG,18,FALSE)/$AA$1 -> 0 | AC118: =VLOOKUP($D118,'Nursery detail'!C:AH,19,FALSE)/$AA$1 -> 0 | AD118: 0 | AE118: =VLOOKUP($D118,'Nursery detail'!C:AF,21,FALSE)/$AE$1 -> 0 | AF118: =VLOOKUP($D118,'Nursery detail'!C:AG,22,FALSE)/$AE$1 -> 0 | AG118: =VLOOKUP($D118,'Nursery detail'!C:AH,23,FALSE)/$AE$1 -> 0 | AH118: 0 | AI118: =VLOOKUP($D118,'Nursery detail'!$C:$AF,25,FALSE)/$AI$1 -> 0 | AJ118: =VLOOKUP($D118,'Nursery detail'!$C:$AF,26,FALSE)/$AI$1 -> 0 | AK118: =VLOOKUP($D118,'Nursery detail'!$C:$AF,27,FALSE)/$AI$1 -> 0 | AL118: 0
A119: Derby City Childminding Network - Julie Chambers | B119: DE22 2NN | C119: P | D119: EY500987 | E119: 260 | F119: 260 | G119: 260 | H119: 780 | J119: 0 | K119: 0 | L119: 0 | M119: 0 | O119: 3299.4 | Q119: 0 | R119: 0 | S119: 114 | T119: 0 | V119: 114 | X119: 3413.4 | AA119: =VLOOKUP($D119,'Nursery detail'!C:AF,17,FALSE)/$AA$1 -> 0 | AB119: =VLOOKUP($D119,'Nursery detail'!C:AG,18,FALSE)/$AA$1 -> 0 | AC119: =VLOOKUP($D119,'Nursery detail'!C:AH,19,FALSE)/$AA$1 -> 0 | AD119: 0 | AE119: =VLOOKUP($D119,'Nursery detail'!C:AF,21,FALSE)/$AE$1 -> 259.0909091 | AF119: =VLOOKUP($D119,'Nursery detail'!C:AG,22,FALSE)/$AE$1 -> 51.81818182 | AG119: =VLOOKUP($D119,'Nursery detail'!C:AH,23,FALSE)/$AE$1 -> 259.0909091 | AH119: 570 | AI119: =VLOOKUP($D119,'Nursery detail'!$C:$AF,25,FALSE)/$AI$1 -> 0 | AJ119: =VLOOKUP($D119,'Nursery detail'!$C:$AF,26,FALSE)/$AI$1 -> 0 | AK119: =VLOOKUP($D119,'Nursery detail'!$C:$AF,27,FALSE)/$AI$1 -> 0 | AL119: 0
A120: Derby City Childminding Network - Julie Croft | C120: P | D120: EY492729 | E120: 260 | F120: 260 | G120: 260 | H120: 780 | J120: 0 | K120: 0 | L120: 0 | M120: 0 | O120: 3299.4 | Q120: 0 | R120: 406 | S120: 93 | T120: 0 | V120: 499 | X120: 3798.4 | AA120: =VLOOKUP($D120,'Nursery detail'!C:AF,17,FALSE)/$AA$1 -> 260.2564103 | AB120: =VLOOKUP($D120,'Nursery detail'!C:AG,18,FALSE)/$AA$1 -> 260.2564103 | AC120: =VLOOKUP($D120,'Nursery detail'!C:AH,19,FALSE)/$AA$1 -> 156.1538462 | AD120: 676.6666667 | AE120: =VLOOKUP($D120,'Nursery detail'!C:AF,21,FALSE)/$AE$1 -> 155 | AF120: =VLOOKUP($D120,'Nursery detail'!C:AG,22,FALSE)/$AE$1 -> 155 | AG120: =VLOOKUP($D120,'Nursery detail'!C:AH,23,FALSE)/$AE$1 -> 155 | AH120: 465 | AI120: =VLOOKUP($D120,'Nursery detail'!$C:$AF,25,FALSE)/$AI$1 -> 0 | AJ120: =VLOOKUP($D120,'Nursery detail'!$C:$AF,26,FALSE)/$AI$1 -> 0 | AK120: =VLOOKUP($D120,'Nursery detail'!$C:$AF,27,FALSE)/$AI$1 -> 0 | AL120: 0
A121: Derby City Childminding Network - Julie Elizabeth Sewter, | B121: DE73 6UP | C121: P | D121: EY368441 | E121: 120 | F121: 120 | G121: 120 | H121: 360 | J121: 0 | K121: 0 | L121: 0 | M121: 0 | O121: 1522.8 | Q121: 0 | R121: 0 | S121: 28 | T121: 0 | V121: 28 | X121: 1550.8 | AA121: =VLOOKUP($D121,'Nursery detail'!C:AF,17,FALSE)/$AA$1 -> 0 | AB121: =VLOOKUP($D121,'Nursery detail'!C:AG,18,FALSE)/$AA$1 -> 0 | AC121: =VLOOKUP($D121,'Nursery detail'!C:AH,19,FALSE)/$AA$1 -> 0 | AD121: 0 | AE121: =VLOOKUP($D121,'Nursery detail'!C:AF,21,FALSE)/$AE$1 -> 116.6666667 | AF121: =VLOOKUP($D121,'Nursery detail'!C:AG,22,FALSE)/$AE$1 -> 11.66666667 | AG121: =VLOOKUP($D121,'Nursery detail'!C:AH,23,FALSE)/$AE$1 -> 11.66666667 | AH121: 140 | AI121: =VLOOKUP($D121,'Nursery detail'!$C:$AF,25,FALSE)/$AI$1 -> 0 | AJ121: =VLOOKUP($D121,'Nursery detail'!$C:$AF,26,FALSE)/$AI$1 -> 0 | AK121: =VLOOKUP($D121,'Nursery detail'!$C:$AF,27,FALSE)/$AI$1 -> 0 | AL121: 0
A122: Derby City Childminding Network - Kerry Jehane Derbyshire | B122: DE24 0TE | C122: P | D122: EY405755 | E122: 528 | F122: 528 | G122: 528 | H122: 1584 | J122: 0 | K122: 0 | L122: 0 | M122: 0 | O122: 6700.32 | Q122: 0 | R122: 12 | S122: 215 | T122: 0 | V122: 227 | X122: 6927.32 | AA122: =VLOOKUP($D122,'Nursery detail'!C:AF,17,FALSE)/$AA$1 -> 3.244626407 | AB122: =VLOOKUP($D122,'Nursery detail'!C:AG,18,FALSE)/$AA$1 -> 3.244626407 | AC122: =VLOOKUP($D122,'Nursery detail'!C:AH,19,FALSE)/$AA$1 -> 13.51074719 | AD122: 20 | AE122: =VLOOKUP($D122,'Nursery detail'!C:AF,21,FALSE)/$AE$1 -> 530.8021807 | AF122: =VLOOKUP($D122,'Nursery detail'!C:AG,22,FALSE)/$AE$1 -> 530.8021807 | AG122: =VLOOKUP($D122,'Nursery detail'!C:AH,23,FALSE)/$AE$1 -> 13.39563863 | AH122: 1075 | AI122: =VLOOKUP($D122,'Nursery detail'!$C:$AF,25,FALSE)/$AI$1 -> 0 | AJ122: =VLOOKUP($D122,'Nursery detail'!$C:$AF,26,FALSE)/$AI$1 -> 0 | AK122: =VLOOKUP($D122,'Nursery detail'!$C:$AF,27,FALSE)/$AI$1 -> 0 | AL122: 0
A123: Derby City Childminding Network - Laura Marshall | B123: DE23 3ZJ | C123: P | D123: 306845 | E123: 360 | F123: 360 | G123: 360 | H123: 1080 | J123: 0 | K123: 0 | L123: 0 | M123: 0 | O123: 4568.4 | Q123: 0 | R123: 0 | S123: 0 | T123: 0 | V123: 0 | X123: 4568.4 | AA123: =VLOOKUP($D123,'Nursery detail'!C:AF,17,FALSE)/$AA$1 -> 0 | AB123: =VLOOKUP($D123,'Nursery detail'!C:AG,18,FALSE)/$AA$1 -> 0 | AC123: =VLOOKUP($D123,'Nursery detail'!C:AH,19,FALSE)/$AA$1 -> 0 | AD123: 0 | AE123: =VLOOKUP($D123,'Nursery detail'!C:AF,21,FALSE)/$AE$1 -> 0 | AF123: =VLOOKUP($D123,'Nursery detail'!C:AG,22,FALSE)/$AE$1 -> 0 | AG123: =VLOOKUP($D123,'Nursery detail'!C:AH,23,FALSE)/$AE$1 -> 0 | AH123: 0 | AI123: =VLOOKUP($D123,'Nursery detail'!$C:$AF,25,FALSE)/$AI$1 -> 0 | AJ123: =VLOOKUP($D123,'Nursery detail'!$C:$AF,26,FALSE)/$AI$1 -> 0 | AK123: =VLOOKUP($D123,'Nursery detail'!$C:$AF,27,FALSE)/$AI$1 -> 0 | AL123: 0
A124: Derby City Childminding Network - Leah Sheridan | B124: DE22 3TL | C124: P | D124: EY546840 | E124: 493 | F124: 493 | G124: 493 | H124: 1479 | J124: 0 | K124: 0 | L124: 0 | M124: 0 | O124: 6256.17 | Q124: 0 | R124: 0 | S124: 150 | T124: 0 | V124: 150 | X124: 6406.17 | AA124: =VLOOKUP($D124,'Nursery detail'!C:AF,17,FALSE)/$AA$1 -> 0 | AB124: =VLOOKUP($D124,'Nursery detail'!C:AG,18,FALSE)/$AA$1 -> 0 | AC124: =VLOOKUP($D124,'Nursery detail'!C:AH,19,FALSE)/$AA$1 -> 0 | AD124: 0 | AE124: =VLOOKUP($D124,'Nursery detail'!C:AF,21,FALSE)/$AE$1 -> 303.5725449 | AF124: =VLOOKUP($D124,'Nursery detail'!C:AG,22,FALSE)/$AE$1 -> 390.3075577 | AG124: =VLOOKUP($D124,'Nursery detail'!C:AH,23,FALSE)/$AE$1 -> 56.11989748 | AH124: 750 | AI124: =VLOOKUP($D124,'Nursery detail'!$C:$AF,25,FALSE)/$AI$1 -> 0 | AJ124: =VLOOKUP($D124,'Nursery detail'!$C:$AF,26,FALSE)/$AI$1 -> 0 | AK124: =VLOOKUP($D124,'Nursery detail'!$C:$AF,27,FALSE)/$AI$1 -> 0 | AL124: 0
A125: Derby City Childminding Network - Laura Burton | C125: P | D125: EY448130 | E125: 380 | F125: 380 | G125: 380 | H125: 1140 | J125: 0 | K125: 0 | L125: 0 | M125: 0 | O125: 4822.2 | Q125: 0 | R125: 509 | S125: 90 | T125: 7 | V125: 606 | X125: 5428.2 | AA125: =VLOOKUP($D125,'Nursery detail'!C:AF,17,FALSE)/$AA$1 -> 379.8507463 | AB125: =VLOOKUP($D125,'Nursery detail'!C:AG,18,FALSE)/$AA$1 -> 379.8507463 | AC125: =VLOOKUP($D125,'Nursery detail'!C:AH,19,FALSE)/$AA$1 -> 88.6318408 | AD125: 848.3333333 | AE125: =VLOOKUP($D125,'Nursery detail'!C:AF,21,FALSE)/$AE$1 -> 180.6302363 | AF125: =VLOOKUP($D125,'Nursery detail'!C:AG,22,FALSE)/$AE$1 -> 180.6302363 | AG125: =VLOOKUP($D125,'Nursery detail'!C:AH,23,FALSE)/$AE$1 -> 88.73952732 | AH125: 450 | AI125: =VLOOKUP($D125,'Nursery detail'!$C:$AF,25,FALSE)/$AI$1 -> 1.962616822 | AJ125: =VLOOKUP($D125,'Nursery detail'!$C:$AF,26,FALSE)/$AI$1 -> 1.962616822 | AK125: =VLOOKUP($D125,'Nursery detail'!$C:$AF,27,FALSE)/$AI$1 -> 31.07476636 | AL125: 35
A126: Derby City Childminding Network - Lorraine Duthie | B126: DE24 0GR | C126: P | D126: 205878 | E126: 732 | F126: 732 | G126: 732 | H126: 2196 | J126: 0 | K126: 0 | L126: 0 | M126: 0 | O126: 9289.08 | Q126: 0 | R126: 605 | S126: 261 | T126: 0 | V126: 866 | X126: 10155.08 | AA126: =VLOOKUP($D126,'Nursery detail'!C:AF,17,FALSE)/$AA$1 -> 178.7857334 | AB126: =VLOOKUP($D126,'Nursery detail'!C:AG,18,FALSE)/$AA$1 -> 339.5359533 | AC126: =VLOOKUP($D126,'Nursery detail'!C:AH,19,FALSE)/$AA$1 -> 490.0116467 | AD126: 1008.333333 | AE126: =VLOOKUP($D126,'Nursery detail'!C:AF,21,FALSE)/$AE$1 -> 732.3582504 | AF126: =VLOOKUP($D126,'Nursery detail'!C:AG,22,FALSE)/$AE$1 -> 239.0924475 | AG126: =VLOOKUP($D126,'Nursery detail'!C:AH,23,FALSE)/$AE$1 -> 333.5493021 | AH126: 1305 | AI126: =VLOOKUP($D126,'Nursery detail'!$C:$AF,25,FALSE)/$AI$1 -> 0 | AJ126: =VLOOKUP($D126,'Nursery detail'!$C:$AF,26,FALSE)/$AI$1 -> 0 | AK126: =VLOOKUP($D126,'Nursery detail'!$C:$AF,27,FALSE)/$AI$1 -> 0 | AL126: 0
A127: Derby City Childminding Network - Lousie Michelle Griffiths | B127: DE21 6PX | C127: P | D127: 260849 | E127: 130 | F127: 130 | G127: 130 | H127: 390 | J127: 0 | K127: 0 | L127: 0 | M127: 0 | O127: 1649.7 | Q127: 0 | R127: 0 | S127: 32 | T127: 0 | V127: 32 | X127: 1681.7 | AA127: =VLOOKUP($D127,'Nursery detail'!C:AF,17,FALSE)/$AA$1 -> 0 | AB127: =VLOOKUP($D127,'Nursery detail'!C:AG,18,FALSE)/$AA$1 -> 0 | AC127: =VLOOKUP($D127,'Nursery detail'!C:AH,19,FALSE)/$AA$1 -> 0 | AD127: 0 | AE127: =VLOOKUP($D127,'Nursery detail'!C:AF,21,FALSE)/$AE$1 -> 14.17721519 | AF127: =VLOOKUP($D127,'Nursery detail'!C:AG,22,FALSE)/$AE$1 -> 131.6455696 | AG127: =VLOOKUP($D127,'Nursery detail'!C:AH,23,FALSE)/$AE$1 -> 14.17721519 | AH127: 160 | AI127: =VLOOKUP($D127,'Nursery detail'!$C:$AF,25,FALSE)/$AI$1 -> 0 | AJ127: =VLOOKUP($D127,'Nursery detail'!$C:$AF,26,FALSE)/$AI$1 -> 0 | AK127: =VLOOKUP($D127,'Nursery detail'!$C:$AF,27,FALSE)/$AI$1 -> 0 | AL127: 0
A128: Derby City Childminding Network - Mary Gibson | C128: P | D128: 205903 | E128: 272 | F128: 272 | G128: 272 | H128: 816 | J128: 0 | K128: 0 | L128: 0 | M128: 0 | O128: 3451.68 | Q128: 0 | R128: 0 | S128: 119 | T128: 0 | V128: 119 | X128: 3570.68 | AA128: =VLOOKUP($D128,'Nursery detail'!C:AF,17,FALSE)/$AA$1 -> 0 | AB128: =VLOOKUP($D128,'Nursery detail'!C:AG,18,FALSE)/$AA$1 -> 0 | AC128: =VLOOKUP($D128,'Nursery detail'!C:AH,19,FALSE)/$AA$1 -> 0 | AD128: 0 | AE128: =VLOOKUP($D128,'Nursery detail'!C:AF,21,FALSE)/$AE$1 -> 270.4545455 | AF128: =VLOOKUP($D128,'Nursery detail'!C:AG,22,FALSE)/$AE$1 -> 270.4545455 | AG128: =VLOOKUP($D128,'Nursery detail'!C:AH,23,FALSE)/$AE$1 -> 54.09090909 | AH128: 595 | AI128: =VLOOKUP($D128,'Nursery detail'!$C:$AF,25,FALSE)/$AI$1 -> 0 | AJ128: =VLOOKUP($D128,'Nursery detail'!$C:$AF,26,FALSE)/$AI$1 -> 0 | AK128: =VLOOKUP($D128,'Nursery detail'!$C:$AF,27,FALSE)/$AI$1 -> 0 | AL128: 0
A129: Derby City Childminding Network - Michelle Elizabeth Hemmings | B129: DE24 9DD | C129: P | D129: EY340934 | E129: 360 | F129: 360 | G129: 360 | H129: 1080 | J129: 0 | K129: 0 | L129: 0 | M129: 0 | O129: 4568.4 | Q129: 0 | R129: 265 | S129: 114 | T129: 0 | V129: 379 | X129: 4947.4 | AA129: =VLOOKUP($D129,'Nursery detail'!C:AF,17,FALSE)/$AA$1 -> 90.01358696 | AB129: =VLOOKUP($D129,'Nursery detail'!C:AG,18,FALSE)/$AA$1 -> 88.6133756 | AC129: =VLOOKUP($D129,'Nursery detail'!C:AH,19,FALSE)/$AA$1 -> 263.0397041 | AD129: =SUM(AA129:AC129) -> 441.6666667 | AE129: =VLOOKUP($D129,'Nursery detail'!C:AF,21,FALSE)/$AE$1 -> 269.7160883 | AF129: =VLOOKUP($D129,'Nursery detail'!C:AG,22,FALSE)/$AE$1 -> 135.4574132 | AG129: =VLOOKUP($D129,'Nursery detail'!C:AH,23,FALSE)/$AE$1 -> 164.8264984 | AH129: =SUM(AE129:AG129) -> 570 | AI129: =VLOOKUP($D129,'Nursery detail'!$C:$AF,25,FALSE)/$AI$1 -> 0 | AJ129: =VLOOKUP($D129,'Nursery detail'!$C:$AF,26,FALSE)/$AI$1 -> 0 | AK129: =VLOOKUP($D129,'Nursery detail'!$C:$AF,27,FALSE)/$AI$1 -> 0 | AL129: 0
A130: Derby City Childminding Network - Michelle Morrison | B130: DE21 7LY | C130: P | D130: EY357686 | E130: 960 | F130: 960 | G130: 960 | H130: 2880 | J130: 0 | K130: 0 | L130: 0 | M130: 0 | O130: 12182.4 | Q130: 0 | R130: 1224 | S130: 259 | T130: 0 | V130: 1483 | X130: 13665.4 | AA130: =VLOOKUP($D130,'Nursery detail'!C:AF,17,FALSE)/$AA$1 -> 600 | AB130: =VLOOKUP($D130,'Nursery detail'!C:AG,18,FALSE)/$AA$1 -> 960 | AC130: =VLOOKUP($D130,'Nursery detail'!C:AH,19,FALSE)/$AA$1 -> 480 | AD130: 2040 | AE130: =VLOOKUP($D130,'Nursery detail'!C:AF,21,FALSE)/$AE$1 -> 359.7222222 | AF130: =VLOOKUP($D130,'Nursery detail'!C:AG,22,FALSE)/$AE$1 -> 455.6481481 | AG130: =VLOOKUP($D130,'Nursery detail'!C:AH,23,FALSE)/$AE$1 -> 479.6296296 | AH130: 1295 | AI130: =VLOOKUP($D130,'Nursery detail'!$C:$AF,25,FALSE)/$AI$1 -> 0 | AJ130: =VLOOKUP($D130,'Nursery detail'!$C:$AF,26,FALSE)/$AI$1 -> 0 | AK130: =VLOOKUP($D130,'Nursery detail'!$C:$AF,27,FALSE)/$AI$1 -> 0 | AL130: =SUM(AI130:AK130) -> 0
A131: Derby City Childminding Network - Nicky Sherratt | B131: DE23 6JR | C131: P | D131: EY428424 | E131: 900 | F131: 840 | G131: 720 | H131: 2460 | J131: 0 | K131: 0 | L131: 0 | M131: 0 | O131: 10405.8 | Q131: 0 | R131: 0 | S131: 0 | T131: 0 | V131: 0 | X131: 10405.8 | AA131: =VLOOKUP($D131,'Nursery detail'!C:AF,17,FALSE)/$AA$1 -> 0 | AB131: =VLOOKUP($D131,'Nursery detail'!C:AG,18,FALSE)/$AA$1 -> 0 | AC131: =VLOOKUP($D131,'Nursery detail'!C:AH,19,FALSE)/$AA$1 -> 0 | AD131: 0 | AE131: =VLOOKUP($D131,'Nursery detail'!C:AF,21,FALSE)/$AE$1 -> 0 | AF131: =VLOOKUP($D131,'Nursery detail'!C:AG,22,FALSE)/$AE$1 -> 0 | AG131: =VLOOKUP($D131,'Nursery detail'!C:AH,23,FALSE)/$AE$1 -> 0 | AH131: 0 | AI131: =VLOOKUP($D131,'Nursery detail'!$C:$AF,25,FALSE)/$AI$1 -> 0 | AJ131: =VLOOKUP($D131,'Nursery detail'!$C:$AF,26,FALSE)/$AI$1 -> 0 | AK131: =VLOOKUP($D131,'Nursery detail'!$C:$AF,27,FALSE)/$AI$1 -> 0 | AL131: 0
